{"text_format":"1","workbook":"xlsx","n_sheets":25,"sheets":["Prescribed Grazing Checklist","MLRA MAP","INSTRUCTIONS","ECS-63-Questionaire-Optional","528 Cover Crops","528 New Grass Seeding","528 Jobsheet Cover_Sheet","NE-CPA-17A-Community","NE-CPA-17B Similarity Index","NE-CPA-17C Range Condition","528-JS_Lvstk-Forage-Bal-ANN","528-JS-Lvstk-Forage-Bal_MONTH","528 JS - Schedule Option #1auto","528 JS - Schedule Option #1 man","528 JS - Schedule Option #2","528 JS - Schedule Option #3","528 JS - Schedule Option #4","Contingency Plan","NE-ECS-414A-% use","NE-ECS-414B-min height","NE-ECS-12_App_Trend_Range-Req","NE-ECS-13_Past Score","NE-ECS-64_Actual_Use_Report","DATA","DATA2"],"not_rendered":{"charts":7,"images":2,"macros":1,"external_links":1,"defined_names":272,"comments":4,"pivot_tables":0},"unopened":[],"bounds":{"document_bytes":16777216,"sheet_cells":100000,"rows_first":2000,"rows_last":500,"rows_between":2000,"halvings":0,"cell_chars":16384,"cell_head_chars":4096},"cells_cut":0,"cells_raw":0,"read":"whole","date_system":"1900"}

{"sheet":"Prescribed Grazing Checklist","index":0,"n_rows":18,"n_cols":6,"rows_kept":18,"cut":false,"hidden":false,"merged":[[2,0,2,5],[4,2,4,5],[3,0,3,5],[6,2,6,5],[0,0,1,4],[0,5,1,5],[17,2,17,5],[16,2,16,5],[5,2,5,5],[13,2,13,5],[9,0,9,5],[8,2,8,5],[10,2,10,5],[12,2,12,5],[11,2,11,5],[7,2,7,5],[14,2,14,5],[15,2,15,5]]}
["Prescribed Grazing Checklist",null,null,null,null,"Last Update: April, 2015"]
[]
["Prescribed Grazing Design and Installation Documentation consists of the following elements for the fields included in the conservation plan:  a).  Animal Inventory, b).  Forage Inventory, c). Feed/Forage Balance, d).  Grazing Schedule, e).  Contingency Plan and f). Monitoring Plan(short and long term).  The purpose of the Planned Grazing Design Tool is to bring all of the required design elements into one location.  "]
["This workbook should be renamed and saved with the producer's electronic case file.  Worksheets that are not used for the producer may be deleted from his/her workbook.  To save space in the electronic case file, the workbook can be saved as a pdf file.  "]
["Name of Worksheet/Form","Form Requirements","Description"]
["NE-ECS-63 - Questionnaire","Optional  ","Use of this form assists planner in obtaining information that will be useful in developing the conservation plan."]
["NE-ECS-528-Cover Crops","Required when grazing cover crops is the only grazing being planned.","This form is used to document the estimated quantity of forage available for each cover crop field in the conservation plan.  It also documents the type of cover crop, livestock inventory, the estimated # days grazing available, and the grazing schedule.  This is the only documentation needed when cover cropped field(s) are the field(s)in the conservation plan being grazed."]
["NE-ECS-528-New Grass Seeding","Required when grazing newly seeded grass is the only grazing being planned.","This form is used to document the estimated quantity of forage available for each newly seeded field in the conservation plan.  It also documents the type of grass, livestock inventory, the estimated # days grazing available, and the grazing schedule.  This is the only documentation needed when newly seeded field(s) are the ONLY field(s) grazed fields in the conservation plan."]
["NE-CPA-17A, NE-CPA-17B                 AND NE-CPA17C","Forage inventory must be documented.  Either NE-CPA-17A OR NE-CPA-17B OR NE-CPA-17C OR a locally developed alternative may be used.","This form is used to document the quantity of forage for each pasture in the conservation plan.  While the forms are optional, documentation about how production was determined is needed as part of the forage inventory.  A  table generated from ArcGIS is equivalent documentation.  Other methods which assign production values to each grazing unit may be substituted.  "]
["The 528 Jobsheet consists of  3-4 worksheets:  1.  The Coversheet, 2.  The Livestock Inventory, Forage Inventory and Forage Balance Worksheet, 3.  528 Jobsheet Grazing Schedule Worksheet (can be replaced by any other format that indicates the planned dates and sequence for grazing), and 4.  The Contingency Plan.  The 528 Jobsheets and the NE-ECS-414, NE-ECS-12, NE-ECS-13 and NE-ECS-14 are linked so that Producer and Pasture information is automatically populated.  Cells highlighted in light yellow will be automatically populated.  Do not edit those fields if you wish to maintain this functionality."]
["528 Jobsheet Cover Sheet","Required","Complete lines 3-9 to populate landowner fields on other jobsheets.  This worksheet provides general information about the land being planned.  The person completing the inventory, practice design and approval may or may not be the same individual.  The approver must have the appropriate JAA."]
["528 Jobsheet - Livestock Inventory and Annual Forage Balance     (528-JS_Lvstk-Forage-Bal-ANN) and 528-Jobsheet - Livestock Inventory and Monthly Forage Balance (JS_Lvstk-Forage-Bal-MONTH)","REQUIRED:  Either the Annual Balance worksheet OR the monthly balance worksheet is required.  YOU DO NOT NEED TO COMPLETE BOTH THE ANNUAL AND THE MONTHLY WORKSHEET.","These forms combine the Livestock Inventory, Forage Inventory and provide a forage balance.  THE CONSERVATION PLANNER MAY DETERMINE WHETHER AN ANNUAL BALANCE OR MONTHLY BALANCE IS APPROPRIATE.   "]
["528 Jobsheet - Grazing Schedule Option 1 (auto or man), Option 2, Option 3 and Option 4","Grazing Schedule is required,.  You may use one Option 1 OR Option 2 OR Option 3 OR Option 4, OR a calendar, OR dates on plan map OR a locally developed way to display the grazing schedule.","A grazing schedule which outlines approximate time frames for grazing and rest/deferment is required.  Use the format that is most effective for the individual producer.  Dates on plan maps, calendars, one of the formats provided or any method which lists approximate in and out dates and rest/recovery periods is acceptable.    Create an additional worksheet as needed to generate the grazing schedule for future years."]
["528 Jobsheet - Contingency Plan","REQUIRED","The generic contingency plan may be used, or the producer may develop a more ranch specific plan, using the NRCS Jobsheet as a guide or the Managing Drought Risk on the Ranch Handbook as a resource for drought planning."]
["NE-ECS-414A - Proper Grazing Use Worksheet                                                   or NE-ECS-414B Degree of Use Worksheet for Grazing Land","REQUIRED:  Either NE-ECS-414A (Proper Grazing Use) or NE-ECS-414B (Degree of Use for Grazing Lands) is required.","One of the two forms is required as short-term monitoring for all fields, pastures or paddocks that are included in the conservation plan. NE-ECS-414A expresses Proper Grazing Use as a % utilization and NE-ECS-414B expresses planned degree of use as a minimum required height.  Form NE-ECS-414A is usually used for rangeland while NE-ECS-414B is usually used for less diverse grazing lands such as pastureland or cover crops."]
["NE-ECS-12 - Apparent Trend Worksheet","Required for Rangeland","This form is required as long-term monitoring for all rangeland enrolled in an NRCS program contract when prescribed grazing is part of the conservation plan.  Minimum monitoring requirement is 1 location within the grazing system.  If ecological sites and/or plant communities are diverse, additional monitoring sites are recommended."]
["NE-ECS-13 - Pasture Condition Score","Required for Pastureland","This form is required as long-term monitoring for all pastureland enrolled in an NRCS program contract when prescribed grazing is part of the conservation plan.  Minimum monitoring requirement is 1 location within the grazing system.  If forage suitability groups and/or plant species are diverse, additional monitoring sites are recommended."]
["NE-ECS-64 - Actual Grazing Use Report ","Optional ","The field office may use this as documentation for 528-Prescribed Grazing when incentive payments are received by the producer.  The producer would be expected to complete this form before the practice is certified for payment."]

{"sheet":"MLRA MAP","index":1,"n_rows":0,"n_cols":0,"rows_kept":0,"cut":false,"hidden":false,"merged":[]}

{"sheet":"INSTRUCTIONS","index":2,"n_rows":348,"n_cols":8,"rows_kept":348,"cut":false,"hidden":false,"merged":[[225,0,225,10],[236,0,236,10],[156,0,156,10],[220,0,220,10],[200,0,200,1],[2,0,2,10],[52,0,52,10],[49,0,49,10],[42,0,42,10],[50,0,50,10],[51,0,51,10],[119,0,119,10],[78,0,78,10],[79,0,79,10],[81,0,81,10],[88,0,88,10],[103,0,103,10],[80,0,80,10],[83,0,83,10],[84,0,84,10],[85,0,85,10],[86,0,86,10],[113,0,113,10],[114,0,114,10],[263,0,263,10],[89,0,89,10],[104,0,104,10],[115,0,115,10],[116,0,116,10],[120,0,120,10],[121,0,121,10],[214,0,214,10],[231,0,231,10],[211,0,211,10],[224,0,224,10],[223,0,223,10],[208,0,208,10],[209,0,209,10],[210,0,210,10],[144,0,144,10],[233,0,233,10],[218,0,218,10],[222,0,222,10],[235,0,235,10],[142,0,142,10],[143,0,143,10],[146,0,146,10],[117,0,117,10],[0,0,0,10],[9,1,11,10],[8,0,8,10],[16,0,16,10],[66,0,66,10],[67,0,67,10],[68,0,68,10],[69,0,69,10],[39,0,39,10],[40,0,40,10],[64,0,64,10],[65,0,65,10],[41,0,41,10],[44,0,44,10],[43,0,43,10],[45,0,45,10],[46,0,46,10],[47,0,47,10],[48,0,48,10],[53,0,53,10],[54,0,54,10],[55,0,55,10],[56,0,56,10],[57,0,57,10],[347,0,347,10],[330,0,330,10],[331,0,331,10],[332,0,332,10],[341,0,341,10],[342,0,342,10],[344,0,344,10],[346,0,346,10],[304,0,304,10],[310,0,310,10],[340,0,340,10],[323,0,323,10],[309,0,309,10],[325,0,325,10],[326,0,326,10],[327,0,327,10],[314,0,314,10],[315,0,315,10],[313,0,313,10],[305,0,305,10],[306,0,306,10],[329,0,329,10],[345,0,345,10],[334,0,334,10],[279,0,279,10],[264,0,264,10],[273,0,273,10],[274,0,274,10],[276,0,276,10],[272,0,272,10],[266,0,266,10],[268,0,268,10],[277,0,277,10],[269,0,269,10],[271,0,271,10],[278,0,278,10],[316,0,316,10],[317,0,317,10],[318,0,318,10],[294,0,294,10],[284,0,284,10],[291,0,291,10],[289,0,289,10],[280,0,280,10],[297,0,297,10],[226,0,226,10],[246,0,246,10],[252,0,252,10],[254,0,254,10],[255,0,255,10],[257,0,257,10],[260,0,260,10],[148,0,148,10],[328,0,328,10],[319,0,319,10],[320,0,320,10],[321,0,321,10],[160,0,160,10],[216,0,216,10],[228,0,228,10],[167,0,167,10],[169,0,169,10],[203,0,203,3],[192,0,192,4],[198,0,198,4],[207,0,207,10],[293,0,293,10],[262,0,262,10],[261,0,261,10],[256,0,256,10],[251,0,251,10],[244,0,244,10],[229,0,229,10],[242,0,242,10],[249,0,249,10],[241,0,241,10],[238,0,238,10],[239,0,239,10],[247,0,247,10],[240,0,240,10],[259,0,259,10],[125,0,125,10],[126,0,126,10],[127,0,127,10],[128,0,128,10],[129,0,129,10],[130,0,130,10],[134,0,134,10],[133,0,133,10],[245,0,245,10],[243,0,243,10],[221,0,221,10],[149,0,149,10],[139,0,139,10],[177,0,177,10],[174,0,174,10],[189,0,189,10],[187,0,187,10],[141,0,141,10],[153,0,153,10],[173,0,173,10],[155,0,155,10],[157,0,157,10],[158,0,158,10],[179,0,179,10],[180,0,180,10],[191,0,191,10],[194,0,194,10],[181,0,181,10],[182,0,182,4],[190,0,190,4],[135,0,135,10],[136,0,136,10],[150,0,150,10],[151,0,151,10],[152,0,152,10],[154,0,154,10],[147,0,147,10],[145,0,145,10],[137,0,137,10],[138,0,138,10],[77,0,77,10],[91,0,91,10],[93,0,93,10],[94,0,94,10],[102,0,102,10],[58,0,58,10],[59,0,59,10],[60,0,60,10],[61,0,61,10],[63,0,63,10],[62,0,62,10],[74,0,74,10],[82,0,82,10],[96,0,96,10],[73,0,73,10],[71,0,71,10],[70,0,70,10],[72,0,72,10],[76,0,76,10],[108,0,108,10],[178,0,178,10],[105,0,105,10],[106,0,106,10],[87,0,87,10],[95,0,95,10],[98,0,98,10],[99,0,99,10],[100,0,100,10],[101,0,101,10],[122,0,122,10],[123,0,123,10],[111,0,111,10],[109,0,109,10],[110,0,110,10],[19,0,19,10],[20,0,20,10],[215,0,215,10],[75,0,75,10],[131,0,131,10],[132,0,132,10],[124,0,124,10],[202,0,202,10],[161,0,161,10],[168,0,168,10],[170,0,170,10],[171,0,171,10],[172,0,172,10],[166,0,166,10],[159,0,159,10],[201,0,201,10],[199,0,199,10],[140,0,140,10],[118,0,118,10],[97,0,97,10],[92,0,92,10],[90,0,90,10],[112,0,112,10],[107,0,107,10]]}
["GENERAL INSTRUCTIONS"]
[]
["BEFORE BEGINNING USE:"]
[null,"ENABLE MACROS"]
[]
["ENTER INFORMATION IN CLEAR OR \"WHITE\" CELLS."]
["CELLS HIGHLIGHTED IN PALE YELLOW WILL AUTOMATICALLY CALCULATE FOR YOU."]
[]
["IF USING PRESCRIBED GRAZING JOBSHEETS, OPTIONS 1, 2, 3, OR 4:"]
[null,"FORMULAS USED PULL DATA FROM THE ANNUAL FORAGE BALANCE WORKSHEET. IF YOU ARE USING THE MONTHLY FORAGE BALANCE, PLEASE CONTACT THE STATE RANGE SPECIALIST FOR ASSISTANCE IN MODIFYING THESE FORMULAS"]
[]
[]
[]
["IF USING PRESCRIBED GRAZING JOBSHEET OPTION #4:"]
[null," THIS PAGE WILL NEED TO BE PRINTED ON LEGAL SIZE PAPER"]
[]
["BEFORE PRINTING:"]
[null,"PLEASE SELECT ONLY THE PAGE RANGE YOU NEED",null,null,null,null,null,"(This will generally be between pages 18-43)"]
[]
["A 40 pasture version of the tool is available.  Contact State Rangeland Management Specialist for copy of this tool if needed."]
["This version of the tool pulls pasture information into the grazing schedule from the 528-JSPLvstk-Forage-Bal-ANN tab.  If you would like a version that pulls information from the 528-JS-Lvstk-Forage-Bal-Month tab, contact the State Rangeland Management Specialist."]
[]
[]
[]
[]
[]
[]
[]
[]
[]
[]
[]
[]
[]
[]
[]
[]
[]
[]
["INSTRUCTIONS FOR USE OF NE-ECS-63 GRAZING LANDS ASSISTANCE QUESTIONAIRE"]
["Provide the questionnaire to the producer to obtain information that will be needed for planning prescribed grazing and facilitating practices.  The form is not required, but is useful to ensure that necessary information is provided to the planner."]
["INSTRUCTIONS FOR USE OF NE-ECS-528 Cover Crops"]
["NOTE: The shaded \"fields\" will automatically populate as you enter the supporting information."]
["Client, Date, Field Office, County, NRD:  Complete these fields with appropriate information."]
["Tract Number, Field Number, Acres:  Enter the information for each field to be planted to cover crops for grazing."]
["Cover Crop Type:  Select the species or mixture type of cover crop planned to be planted from the drop down menu."]
["Production Category:  Select the production category from the drop-down menu.  The categories are described in green box to the right of the form."]
["Planned production:  This field will automatically populate from a data table.  Production is highly variable based on soils, annual rainfall, and temperatures; the actual production will vary significantly from year to year and are provided to obtain a rough planned forage balance.  Many of the production figures are from published data.  If there is a \"2\" after the cover crop name, published data was not available or was highly variable.  Production was derived from similar crop numbers or individual producer's numbers."]
["Total AUM's available per field:  These values are automatically calculated at 50%,60% and 70% use based on the estimated planned production.  "]
["Planned Degree of Use:  Enter your planned degree of use.  The planned degree of use will vary depending upon the objectives for planting the cover crop."]
["Animal Inventory Information:  Enter the Livestock Type, Planned Number and Average Weight.  Enter all types of livestock that will be grazing the cover crop. Often only one class of livestock will be in the herd."]
["Animal Unit Equivalent and Total AU's:  These fields will automatically calculate once you the Livestock type, planned number and average weight have been entered into the form. "]
["Estimated Days Grazing - Tract Number and Field Number:  These fields will automatically populate based on information previously entered in the form."]
["Estimated Days Grazing - Planned Available AUM's:  Enter the planned AUM's Available for each field with your selected % use. These numbers are found in cells H9 - J12."]
["Estimated Days Grazing - Planned Number of Days:  This field will automatically calculate for each field based on the information entered about the livestock to be grazing the fields and the planned available AUM's."]
["Recommended Utilization Levels:  The tract number, field number, acres and cover crop type will automatically populate from information entered in the first part of the form.  The recommended grazing height will populate from a data table found elsewhere in the form."]
["Actual Height at End of Grazing Period:  This field will be completed by \"hand\" when the practice is certified.  At the time that you are planning 528, it will be left blank."]
["Grazing Schedule - Tract Number, Field Number, Planned Number Days Grazing:  These fields will automatically populate from information entered or generated in portions of the form that have been completed."]
["Grazing Schedule - Planned Start Date-Grazing:  Enter the date that grazing is planned to begin; base the date on information from the producer and the type of cover crop (when it should be ready for grazing)."]
["Grazing Schedule - Planned End Date-Grazing:  This field will automatically populate from information previously entered in the form."]
["Actual Start Date and Actual End Date:  This field will be completed by \"hand\" when the practice is certified.  At the time that you are planning 528, it will be left blank."]
["Signatures and Dates for Designed by and Approved by:  The person designing 528 and the person approving the design for the cover crop fields should sign and date in this area.  If the designer has Job Approval Authority for 528, the designer and approver can be the same person."]
["Signature for Producer:  The producer should sign to indicate that he/she understands the design and has received a copy of the information."]
["Applied Practice Certification:  The person certifying the practice (NRCS or TSP) should sign and date the form if the practice meets NRCS Standards.  "]
["INSTRUCTIONS FOR USE OF NE-ECS-528 - PRESCRIBED GRAZING COVERSHEET."]
["Field Office, County, NRD, Client, Address, Phone, Total Acres, and Date:  Complete these fields.  These will populate fields in the remaining ND-ECS-528 Worksheets."]
["Farm / Tract(s):  List Farm(s) and Tract(s) associated with the grazing unit(s) being planned."]
["Legal Description:  Enter the legal description in as much detail as is needed to identify the locations of the fields, pastures or paddocks in the grazing plan."]
["Management Objectives:  List the producer's objectives.  Objectives should be reasonable and attainable, measureable, and a general time frame should be associated with the objectives."]
["Design Information:  The person completing the inventory, design and approval may be the same individual, if the individual has appropriate Job Approval Authority.  "]
["Producer Signature:  The producer should sign the jobsheet to document receipt of the jobsheets and to document that he/she understands the contents and any requirements."]
["Practice Certification:  NRCS employee or Technical Service provider certifying the completion of Prescribed Grazing (528) should sign the  jobsheet when checking out the practice."]
["Producer Signature certifying the practice has been implemented:  Signature is required IF the producer is receiving an incentive payment for Prescribed Grazing."]
["INSTRUCTIONS FOR USE OF NE-CPA-17A RANGE INVENTORY SUMMARY AND SUGGESTED INITIAL STOCKING RATES BASED ON THE PLANT COMMUNITY"]
["NOTE: The fields shaded below will automatically populate as you enter the supporting information."]
["Client and Date:  These items will populate from the 528 Jobsheet Cover Sheet if information has been entered in that form."]
["Pasture Number: Enter the pasture number as listed on the conservation plan map.  If there are multiple sites and plant communities in one pasture, enter once at first line for the pasture, and leave the additional lines for the pasture blank to minimize confusion.\n"]
["Acres:  Enter total acres for pasture;  If there are multiple sites and plant communities in one pasture, enter once at first line for the pasture, and leave the additional lines for the pasture blank to minimize confusion.  If the pasture will be cross-fenced, the planned acres for the new pasture can be entered to facilitate development of grazing system or you can use the acres for the original pasture."]
["MLRA:  Select the appropriate MLRA from the dropdown menus.  Selection of the correct MLRA will ensure that dropdowns in future fields will contain the appropriate site and community information for the MLRA.  Enter a MLRA for EACH line for each pasture."]
["Ecological Site:  Select the ecological site(s) in each pasture from the drop down menus."]
["Plant Community:  Based on field visit, from the drop down menus, select the plant communities (as described in the Ecological Site Descriptions) present in the pastures.   Use the ESD and the Ecological Site Quick Reference and the plant community that you observed in the field to select the plant community that most closely reflects actual conditions."]
["Estimated pounds production per acre:  This field will automatically pull production data for the MLRA/Site/Plant Community combination.  "]
["Target Harvest Efficiency:  Select the desired harvest efficiency from the dropdown list for each pasture.  You will need to enter that harvest efficiency for each site/community combination.  The harvest efficiency should be the same for sites within a pasture, but harvest efficiencies can be different for different pastures if objectives and/or management differs from pasture to pasture.  In general, 20% harvest efficiency is used when wildlife habitat improvement is a primary objective; 25% is used when grazing continuous season long or a grazing system is just being initiated and distribution is not a problem; 30% is used when a grazing system is in place or if a grazing system is just beginning and distribution issues will be addressed; 35% is used with grazing systems on tame pastures or when cool season invasives are being grazed in a manner to reduce their abundance."]
["Acres for Site:  List the acres for the Ecological Site and plant community combinations."]
["AUM / acre:  This value will be automatically calculated from the estimated production and the acres for that site/community combination and the value of an AUM.  NRCS policy is that 1 AUM=912# forage (30#/day)"]
["Adjustment Factor:  Enter the adjustment factor (0.1 through 1.0).  Adjustments should be made when the site in the planning area is producing less forage than average for the site."]
["Adjusted AUM:  This column will be automatically calculated using the AUM/Ac and the Adjustment Factor entered for the site."]
["AUM/Pasture:  The formula for this column will need to be manually entered as every pasture has a different number of site/community combinations.  ENTER ONE VALUE FOR EACH PASTURE SO THAT THE TOTAL AUM CELL AT THE BOTTOM OF THE PAGE CALCULATES CORRECTLY."]
["INSTRUCTIONS FOR USE OF NE-CPA-17B RANGE INVENTORY SUMMARY AND SUGGESTED INITIAL STOCKING RATES BASED ON THE SIMILARITY INDEX"]
["Client and Date:  These items will populate from the 528 Jobsheet Cover Sheet if information has been entered in that form."]
["Pasture Number: Enter the pasture number as listed on the conservation plan map.  If there are multiple sites and plant communities in one pasture, enter once at first line for the pasture, and leave the additional lines for the pasture blank to minimize confusion.\n"]
["Acres:  Enter total acres for pasture;  If there are multiple sites and plant communities in one pasture, enter once at first line for the pasture, and leave the additional lines for the pasture blank to minimize confusion.  If the pasture will be cross-fenced, the planned acres for the new pasture can be entered to facilitate development of grazing system or you can use the acres for the original pasture."]
["Soil Map Unit No: Enter the predominant soil map unit for the site.\n"]
["MLRA:  Select the appropriate MLRA from the dropdown menus.  Selection of the correct MLRA will ensure that dropdowns in future fields will contain the appropriate site and community information for the MLRA.  Enter a MLRA for EACH line for each pasture."]
["Ecological Site:  Select the ecological site(s) in each pasture from the drop down menus."]
["Similarity Index:  Enter the similarity index for the site.   If the index varies across the pasture, you may enter several combinations per pasture. "]
["Estimated Production:  Enter your estimated forage production based on the similarity index you have determined."]
["Target Harvest Efficiency:  Select the desired harvest efficiency from the dropdown list for each pasture.  You will need to enter that harvest efficiency for each site/community combination.  The harvest efficiency should be the same for sites within a pasture, but harvest efficiencies can be different for different pastures if objectives and/or management differs from pasture to pasture.  In general, 20% harvest efficiency is used when wildlife habitat improvement is a primary objective; 25% is used when grazing continuous season long or a grazing system is just being initiated and distribution is not a problem; 30% is used when a grazing system is in place or if a grazing system is just beginning and distribution issues will be addressed; 35% is used with grazing systems on tame pastures or when cool season invasives are being grazed in a manner to reduce their abundance."]
["Acres for Similarity Index:  Enter the acres for the ecological site and index.  If the index varies across the pasture, you may enter several combinations per pasture."]
["AUM for Site:  The AUMs for the site will be automatically calculated."]
["Adjustment Factor:  Enter the adjustment factor (0.1 through 1.0).  Adjustments should be made when the site in the planning area is producing less forage than average for the site."]
["Adjusted AUM:  This column will be automatically calculated using the AUM/Ac and the Adjustment Factor entered for the site."]
["AUM/Pasture:  The formula for this column will need to be manually entered as every pasture has a different number of site/community combinations.  ENTER ONE VALUE FOR EACH PASTURE SO THAT THE TOTAL AUM CELL AT THE BOTTOM OF THE PAGE CALCULATES CORRECTLY."]
["INSTRUCTIONS FOR USE OF NE-CPA-17C RANGE INVENTORY SUMMARY AND SUGGESTED INITIAL STOCKING RATES BASED ON RANGE CONDITION - Use this form when ecological site information is not available."]
["Client and Date:  These items will populate from the 528 Jobsheet Cover Sheet if information has been entered in that form."]
["Pasture Number: Enter the pasture number as listed on the conservation plan map.  If there are multiple sites and plant communities in one pasture, enter once at first line for the pasture, and leave the additional lines for the pasture blank to minimize confusion.\n"]
["Acres:  Enter total acres for pasture;  If there are multiple sites and plant communities in one pasture, enter once at first line for the pasture, and leave the additional lines for the pasture blank to minimize confusion.  If the pasture will be cross-fenced, the planned acres for the new pasture can be entered to facilitate development of grazing system or you can use the acres for the original pasture."]
["Soil Map Unit Acres:  Enter predominant soil map unit for each site."]
["MLRA:  Select the appropriate MLRA from the dropdown menus.  Selection of the correct MLRA will ensure that dropdowns in future fields will contain the appropriate site and community information for the MLRA.  Enter a MLRA for EACH line for each pasture."]
["Range Site:  Select the appropriate site from the drop down menus."]
["Condition:  Select the appropriate condition descriptor from the drop down menus."]
["AUM/ac:  Enter the appropriate AUM/ac for each site/condition combination."]
["Planned Harvest Efficiency:  Select the desired harvest efficiency from the dropdown list for each pasture.  You will need to enter that harvest efficiency for each site/community combination.  The harvest efficiency should be the same for sites within a pasture, but harvest efficiencies can be different for different pastures if objectives and/or management differs from pasture to pasture.  In general, 20% harvest efficiency is used when wildlife habitat improvement is a primary objective; 25% is used when grazing continuous season long or a grazing system is just being initiated and distribution is not a problem; 30% is used when a grazing system is in place or if a grazing system is just beginning and distribution issues will be addressed; 35% is used with grazing systems on tame pastures or when cool season invasives are being grazed in a manner to reduce their abundance."]
["Acres for site:  Enter the acres for each site and condition combination."]
["AUM for Site:  The AUMs for the site will be automatically calculated."]
["Adjustment Factor:  Enter the adjustment factor (1 through 0.1).  Adjustments should be made when the site in the planning area is producing less forage than average for the site."]
["Adjusted AUM:  This column will be automatically calculated using the AUM/Ac and the Adjustment Factor entered for the site."]
["AUM/Pasture:  The formula for this column will need to be manually entered as every pasture has a different number of site/community combinations.  ENTER ONE VALUE FOR EACH PASTURE SO THAT THE TOTAL AUM CELL AT THE BOTTOM OF THE PAGE CALCULATES CORRECTLY."]
["INSTRUCTIONS FOR USE OF NE-ECS-528 LIVESTOCK AND FORAGE INVENTORY AND FORAGE BALANCE FOR UNIT"]
["If you are planning multiple grazing systems, a copy of this worksheet can be created for each system.  "]
["Field Office:  This field will populate from the NE-NE-ECS-528 Jobsheet Cover Sheet"]
["Client:  This field will populate from the NE-NE-ECS-528 Jobsheet Cover Sheet"]
["Date:  This field will populate from the NE-NE-ECS-528 Jobsheet Cover Sheet"]
["SECTION I:  LIVESTOCK INVENTORY AND FORAGE REQUIREMENTS"]
["Existing Table"]
["Class of Livestock:  Select from the drop down menus the type of livestock currently  grazing the pasture(s), paddock(s) and/or field(s) being planned."]
["Animal numbers:  Enter the number of each type of livestock currently grazing the pasture(s), paddock(s) and/or field(s) being planned."]
["Average weight:  Enter the average weight of each type of livestock currently grazing the pasture(s), paddock(s) and/or field(s) being planned."]
["Animal Unit Equivalent:  These fields will automatically calculate once you the Livestock type, planned number and average weight have been entered into the form. "]
["Months:  Enter the number of months the pasture(s), paddock(s) and/or field(s) being planned are currently being grazed."]
["AUM's Required:  These fields will automatically calculate once you the Livestock type,  number, average weight and months on unit have been entered into the form. "]
["Planned Table"]
["Class of Livestock:  Select from the drop down menus the type of livestock that will be grazing the pasture(s), paddock(s) and/or field(s) being planned in the future."]
["Animal numbers:  Enter the number of each type of livestock that will be grazing the pasture(s), paddock(s) and/or field(s) being planned."]
["Average weight:  Enter the average weight of each type of livestock that will be grazing the pasture(s), paddock(s) and/or field(s) being planned."]
["Animal Unit Equivalent:  These fields will automatically calculate once you the Livestock type, planned number and average weight have been entered into the form. "]
["Months:  Enter the number of months the pasture(s), paddock(s) and/or field(s) being planned will be grazed."]
["AUM's Required:  These fields will automatically calculate once you the Livestock type, planned number, average weight and months on unit have been entered into the form. "]
["SECTION II:  FORAGE INVENTORY - AVAILABLE FORAGE RESOURCES"]
["EXISTING TABLE "]
["Acres, AUM's Available and Season of use:  Enter current information for total acres, total AUM's available and season of use for each type of forage. Obtain the AUM's available from the forage inventory for the pastures, paddocks and/or fields being planned."]
["Total Acres - Forage and Total AUM's Available:   These values will automatically calculate when information is entered in the \"existing\" table."]
["PLANNED TABLE "]
["Acres, AUM's Available and Season of use:  Enter planned information for total acres, total AUM's available and season of use for each type of forage. Obtain the AUM's available from the forage inventory for the pastures, paddocks and/or fields being planned."]
["Total Acres - Forage and Total AUM's Available:   These values will automatically calculate when information is entered in the \"planned\" table."]
["SECTION IIB:  "]
["HARVESTED FORAGES (HAY & GRAIN )  -- THIS SECTION IS OPTIONAL"]
["Type of Feed: Select the type of feed from the drop down menu for both existing and planned."]
["Source: Select purchased or grown from drop down menu for both existing and planned."]
["Total Tons Available:  Enter estimated tons of each type of forage that is typically available for use for both existing and planned."]
["Conversion Factor:  The typical conversion factor to convert tons to AUM's for each type of forage will automatically populate for both planned and existing."]
["AUM's:  The AUM's available from purchased and grown feed will automatically populate for both planned and existing."]
["Total AUM's Available:  The total AUM's available from all types of purchased and grown feed will automatically populate for both planned and existing."]
["SECTION III - FORAGE BALANCE FOR UNIT"]
["AUM'S AVAILABLE - GRAZING:  This value will automatically calculate for both existing and planned."]
["AUM'S AVAILABLE - FEED:  This value will automatically calculate for both existing and planned."]
["TOTAL AUM'S AVAILABLE:  This value will automatically calculate for both existing and planned."]
[" AUM'S NEEDED:  This value will automatically calculate for both existing and planned."]
[" FORAGE BALANCE:  This value will automatically calculate for both existing and planned."]
["% DIFFERENCE:  This value will automatically calculate for both existing and planned."]
["If the difference for grazing is more than 15%, discuss the stocking rates, time of grazing and harvest efficiency with the producer as the objectives and goals will not be achievable with the given stocking rates.  If the difference in available roughage compared to needed roughage is negative, discuss need for purchase of additional feed with producer.  IF THE DIFFERENCE IS 20% OR GREATER, THE GRAZING PLAN DOES NOT MEET THE 528 STANDARD."]
["SECTION IV - PASTURE SUMMARY"]
["Field Number:  Enter the name (if applicable) of the field, pasture or paddock."]
["Field Name:  Enter the name (if applicable) of the field, pasture or paddock."]
["Kind of Forage:  Select the forage type from the dropdown menu."]
["Field Acres:  Enter the acres for the individual fields, pastures or paddocks"]
["Acres:  Enter total acres for each pasture."]
["Planned Harvest Efficiency:  Enter the planned harvest efficiency for each pasture; the harvest efficiency may be different for each pasture or it may be the same."]
["Estimated AUM's Available:  Enter the estimated AUM's for each pasture based on the forage inventory and the selected harvest efficiency for each pasture."]
["Days per Pasture:  This will automatically calculate based on the value entered for length of grazing season and the estimated AUM's per pasture and total AUM's for the system."]
["Length of Grazing system - days:  Enter the number of days that the unit(s) being planned will be grazed.  AN ENTRY IS REQUIRED FOR THE ESTIMATED DAYS PER PASTURE AND ASSOCIATED GRAPHS TO DISPLAY CORRECTLY."]
["Total AUM's for system:  This will automatically calculate when the acres per pasture is entered in the table above."]
["Total acres for system:  This will automatically calculate when the Estimated AUM's available per pasture is entered in the table above."]
["PAGE 2:  SECTION - ANTICIPATED AUM'S PER PASTURE GRAPH"]
["This graph will automatically populate based on entries in the estimated annual forage production."]
[]
[]
["INSTRUCTIONS FOR USE OF NE-ECS-528 LIVESTOCK AND FORAGE INVENTORY AND MONTHLY FORAGE BALANCE "]
["Field Office:  This field will populate from the NE-NE-ECS-528 Jobsheet Cover Sheet"]
["Client:  This field will populate from the NE-NE-ECS-528 Jobsheet Cover Sheet"]
["NRD:  This field will populate from the NE-NE-ECS-528 Jobsheet Cover Sheet"]
["Date:  This field will populate from the NE-NE-ECS-528 Jobsheet Cover Sheet"]
["Livestock Numbers and Forage Needs Table:"]
["Enter the types of livestock."]
["Enter the planned number of each type of livestock."]
["Enter the Animal Unit (AU) Equivalents."]
["Total AU's needed will calculate automatically."]
["January - December - Enter the AU's of forage needed for the moths being planned for the operation or portion of the operation being planned."]
["The total forage needs in AUM's and the total AUM's will automatically be calculated."]
["Comments:  Enter any information needed to explain the current forage needs.  If reductions are made to the AUM's needed due to weaning, culling or other removal of animals explain why the reductions are being made."]
["Feed Requirements Table (Optional):"]
["If the months on harvested forages or grain is included in the plan, enter the type of livestock, Animal Unit (AU) equivalents, number and months on feed.  The needed AUM's by class and total will automatically be calculated."]
["Harvested and/or Purchased Feeds (Optional):"]
["If the feed requirements are being analyzed, complete this table to calculate the total feed and forage balance."]
["Enter the type of harvested and purchased feed available, the acres of each feed harvested, and the tons/acre harvested.  "]
["The total tons of each feedstuff will be calculated automatically."]
["Enter the conversion factor as listed in the bottom of this table for each type of feed."]
["The AUM's available will be calculated."]
["% of Total Forage Produced by Month Graph:"]
["The graph will automatically be generated from the 1st growth curve listed on the Growth Curve Chart below."]
["Growth Curves:"]
["Enter up to 7 growth curves that represent the most common growth curves on the unit.  The growth curves can be obtained from the Ecological Site Descriptions.  If ESD's are not present for your area, use locally developed growth curves for common plant communities in the county or NRD."]
["The growth curves will be used to populate the % of forage produced each month in the next section of the form."]
["Monthly Forage Balance Chart:"]
["Field Number:  Enter the field number from the Conservation Plan Map"]
["Kind of Forage:  Enter range, pasture, annual forage type, corn stalks, etc."]
["Acres:  Enter the Acres for each field, pasture or paddock"]
["Estimated AUM's / Field:  Enter the AUM's determined in the resource inventory.  (NE-CPA-17, table from ArcGIS or estimate of production from Ecological Site Descriptions, etc.)  Enter the AUM's for each field, pasture or paddock."]
["Growth Curve No:  Enter the growth curve number that most closely represents the majority of the vegetation in each field, pasture or paddock."]
["Grazed Forage Production by Month:  This will automatically be populated based on the estimated AUM's / Field and the growth curve selected for the field, pasture or paddock."]
["The Total forage available by month, total forage needs by month, the difference, cumulative forage available and cumulative forage needed will be automatically calculated."]
["SUMMARY TABLE: The table will be automatically populated and will produce the difference in AUM's needed and available for grazed forage and feed (optional).  If the difference in grazed forage compared to estimated available is significant (15% or higher), discuss adjustments needed to accomplish objectives and goals with the producer.  If feed does not balance, discuss options for additional feed sources."]
["Anticipated AUM's Per Pasture:  Graph will automatically be created."]
["Cumulative Available Forage Compared to Cumulative Forage Needs:  Graph will automatically be created."]
["INSTRUCTIONS FOR USE OF NE-ECS-528 Grazing Schedule Option #1"]
["Note:  There are two versions of this form.  One (#1 auto) will automatically fill in the highlights in the months columns when you enter the start grazing date.  The start date dropdowns allow you to select the month and during the growing season the week. (For example - May 1 means the 1st week of May, May 2 means the 2nd week, etc.)"]
["Page 1:  This page has general information about grazing systems and a generic growth curve.  You can edit the information to be more specific to the types of grazing systems utilized in your area and add a local growth curve."]
["Page 2:"]
["Client:  Field will automatically populate from NE-ECS-528 Jobsheet Cover Sheet."]
["Grazing Schedule: Enter description of the time frame for grazing schedule."]
["Date:  Field will automatically populate from NE-ECS-528 Jobsheet Cover Sheet."]
["Days grazing for System:  Enter the number of days grazing for the grazing system (6 months = 180 days, 5 months 150 days, etc.).  This field is important as the days per pasture will not calculate if this is not entered."]
["Dates:  Enter the planned grazing dates for the year being planned."]
["Field No:  Field will automatically populate from the 528-JS-Livestock-Forage-Bal-ANN Worksheet.  If you use the worksheet for Month, contact the State Range Specialist for assistance."]
["Kind of Forage:  Field will automatically populate from the 528-JS-Livestock-Forage-Bal-ANN Worksheet.  If you use the worksheet for Month, contact the State Range Specialist for assistance."]
["Acres:  Field will automatically populate from the 528-JS-Livestock-Forage-Bal-ANN Worksheet.  If you use the worksheet for Month, contact the State Range Specialist for assistance."]
["Estimated AUM's:  Field will automatically populate from the 528-JS-Livestock-Forage-Bal-ANN Worksheet.  If you use the worksheet for Month, contact the State Range Specialist for assistance."]
["% of AUM's for Pasture:  Field will automatically populate from AUM's for the field and total AUM's for system."]
["Estimated Days / Pasture:  Field will automatically populate from the % of AUM's for field and the days grazing for the system."]
["Scheduled Grazing Periods:  Enter the approximate time period for grazing in each pasture to display the grazing sequence.  Cells can be highlighted and merged in whatever manner the conservation planner deems best to illustrate the sequence and approximate timeframe."]
["Copies of this worksheet can be made to outline the grazing schedule(s) for future years.  "]
["INSTRUCTIONS FOR USE OF NE-ECS-528 Grazing Schedule Option # 2"]
["Page1:"]
["Client:  Field will automatically populate from NE-ECS-528 Jobsheet Cover Sheet."]
["Grazing Schedule: Enter description of the time frame for grazing schedule."]
["Date:  Field will automatically populate from NE-ECS-528 Jobsheet Cover Sheet"]
["Days grazing for System:  Enter the number of days grazing for the grazing system (6 months = 180 days, 5 months 150 days, etc.).  This field is important as the days per pasture will not calculate if this is not entered."]
["Dates:  Enter the planned grazing dates for the year being planned."]
["Field No:  Field will automatically populate from the 528-JS-Livestock-Forage-Bal-ANN Worksheet.  If you use the worksheet for Month, contact the State Range Specialist for assistance."]
["Kind of Forage:  Field will automatically populate from the 528-JS-Livestock-Forage-Bal-ANN Worksheet.  If you use the worksheet for Month, contact the State Range Specialist for assistance."]
["Acres:  Field will automatically populate from the 528-JS-Livestock-Forage-Bal-ANN Worksheet.  If you use the worksheet for Month, contact the State Range Specialist for assistance."]
["Estimated AUM's:  Field will automatically populate from the 528-JS-Livestock-Forage-Bal-ANN Worksheet.  If you use the worksheet for Month, contact the State Range Specialist for assistance."]
["% of AUM's for Pasture:  Field will automatically populate from AUM's for the field and total AUM's for system."]
["Estimated Days / Pasture:  Field will automatically populate from the % of AUM's for field and the Days grazing for system."]
["Scheduled Grazing Periods:  Enter the approximate time period for grazing in each pasture to display the grazing sequence.  "]
["The form is set up to display two consecutive years at a time to illustrate that the pastures should be grazed during a different time period in consecutive years."]
["Page 2:  This page has general information about grazing systems and a generic growth curve.  You can edit the information to be more specific to the types of grazing systems utilized in your area and a local growth curve."]
["INSTRUCTIONS FOR USE OF NE-ECS-528 Grazing Schedule Option # 3"]
["Page1:"]
["Client:  Field will automatically populate from NE-ECS-528 Jobsheet Cover Sheet."]
["Grazing Schedule: Enter description of the time frame for grazing schedule."]
["Date:  Field will automatically populate from NE-ECS-528 Jobsheet Cover Sheet"]
["Days grazing for System:  Enter the number of days grazing for the grazing system (6 months = 180 days, 5 months 150 days, etc.).  This field is important as the days per pasture will not calculate if this is not entered."]
["Dates:  Enter the planned grazing dates for the year being planned."]
["Field No:  Field will automatically populate from the 528-JS-Livestock-Forage-Bal-ANN Worksheet.  If you use the worksheet for Month, contact the State Range Specialist for assistance."]
["Kind of Forage:  Field will automatically populate from the 528-JS-Livestock-Forage-Bal-ANN Worksheet.  If you use the worksheet for Month, contact the State Range Specialist for assistance."]
["Acres:  Field will automatically populate from the 528-JS-Livestock-Forage-Bal-ANN Worksheet.  If you use the worksheet for Month, contact the State Range Specialist for assistance."]
["Estimated AUM's:  Field will automatically populate from the 528-JS-Livestock-Forage-Bal-ANN Worksheet.  If you use the worksheet for Month, contact the State Range Specialist for assistance."]
["% of AUM's for Pasture:  Field will automatically populate from AUM's for the field and total AUM's for system."]
["Estimated Days / Pasture:  Field will automatically populate from the % of AUM's for field and the Days grazing for system."]
["Scheduled Grazing Periods:  Enter the approximate time period for grazing in each pasture to display the grazing sequence.  "]
["The form is set up to display two grazing occupations / season.  The form is set up to illustrate that the # of days grazed per occupation are added together when calculating the days grazing in each pasture."]
["Page 2:  This page has general information about grazing systems and a generic growth curve.  You can edit the information to be more specific to the types of grazing systems utilized in your area and add a local growth curve."]
["INSTRUCTIONS FOR USE OF NE-ECS-528 Grazing Schedule Option # 4"]
["Page 1:  This page has general information about grazing systems and a generic growth curve.  You can edit the information to be more specific to the types of grazing systems utilized in your area and a localized growth curve."]
["Page 2:"]
["Client:  Field will automatically populate from NE-ECS-528 Jobsheet Cover Sheet."]
["Grazing Schedule: Enter description of the time frame for grazing schedule."]
["Date:  Field will automatically populate from NE-ECS-528 Jobsheet Cover Sheet"]
["Days grazing for System:  Enter the number of days grazing for the grazing system (6 months = 180 days, 5 months 150 days, etc.)."]
["Dates:  Enter the planned grazing dates for the year being planned."]
["Field No:  Field will automatically populate from the 528-JS-Livestock-Forage-Bal-ANN Worksheet.  If you use the worksheet for Month, contact the State Range Specialist for assistance."]
["Kind of Forage:  Field will automatically populate from the 528-JS-Livestock-Forage-Bal-ANN Worksheet.  If you use the worksheet for Month, contact the State Range Specialist for assistance."]
["Acres:  Field will automatically populate from the 528-JS-Livestock-Forage-Bal-ANN Worksheet.  If you use the worksheet for Month, contact the State Range Specialist for assistance."]
["Estimated AUM's:  Field will automatically populate from the 528-JS-Livestock-Forage-Bal-ANN Worksheet.  If you use the worksheet for Month, contact the State Range Specialist for assistance."]
["% of AUM's for Pasture:  Field will automatically populate from AUM's for the field and total AUM's for system."]
["Estimated Days / Pasture:  Field will automatically populate from the % of AUM's for field and the days grazing."]
["Scheduled Grazing Periods:  Highlight the cells to show the planned grazing schedule.  Each small cell listed under the month heading represents 1 day."]
["CONTINGENCY PLAN"]
["The contingency plan is a generic plan that can be edited.  The final contingency plan will be different for every operation.  The land manager will determine the specific actions to be taken if the available forage is not adequate or is not anticipated to be adequate at each of the target dates.  Specific actions include things like identifying which group of cattle will be moved, sold, fed, etc. when the each of the trigger dates have negative conditions.  The conservation planner should discuss options with the land manager, but the final decision regarding actions to be taken when there are adverse conditions is entirely up to the land manager. NRCS' role is to be an advisor and to bring up items for thought."]
["NE-ECS-414A PROPER GRAZING USE WORKSHEET FOR RANGELAND"]
["Field Office:  Field will automatically populate from NE-ECS-528 Jobsheet Cover Sheet."]
["Client:  Field will automatically populate from NE-ECS-528 Jobsheet Cover Sheet."]
["Date:  Field will automatically populate from NE-ECS-528 Jobsheet Cover Sheet."]
["The fields listed below will be completed when the conservation plan is being developed:"]
["Pasture Name or Number:  Field will automatically populate from NE-ECS-528 Jobsheet Cover Sheet."]
["Acres:  Field will automatically populate from NE-ECS-528 Jobsheet Cover Sheet."]
["Season of Use:  Enter season of use."]
["Type of Grazing Animal:  Enter Type(s) of livestock grazing each field, pasture, or paddock."]
["Key Area #:  Enter the Key Grazing Area Number. The key area is a representative area to be evaluated for degree of use near or shortly after the grazing season for the field, pasture or paddock."]
["Key Plant:  Enter the primary forage plant for which the degree of use will be determined.  "]
["Planned Use (%):  Enter the planned degree of use (not Harvest Efficiency).  Degree of use includes the amount of material removed by livestock, insects, wildlife, senescence, etc.  In other words, removal of forage by any means. See NE-528-Specifications, Table 1 for suggested utilization (degree of use) levels for different grazing management strategies."]
["Planned By and Date:  Enter the name of the person who developed the plan and date the plan was developed."]
["The fields listed below will be completed each year when the pastures are being evaluated for degree of use:"]
["Estimated Use Key Plant Species by Weight:  Enter the degree of use of the key species in the key area each year when the field visits are made to review the grazing plan.  If the use is excessive, the stocking rates and/or time in the individual fields, pastures, or paddocks should be adjusted for the coming year."]
["Date of Field Visit:  Enter the date that the observations of the fields, pastures or paddocks were made."]
["Observer:  Enter the name of the person making the degree of use observations."]
["NE-ECS-414B DEGREE OF USE FOR GRAZING LAND "]
["Field Office:  Field will automatically populate from NE-ECS-528 Jobsheet Cover Sheet."]
["Client:  Field will automatically populate from NE-ECS-528 Jobsheet Cover Sheet."]
["NRD:  Field will automatically populate from NE-eCS-528 Jobsheet Cover Sheet."]
["Date:  Field will automatically populate from NE-ECS-528 Jobsheet Cover Sheet."]
["The fields listed below will be completed when the conservation plan is being developed:"]
["Key Forage Species:  Enter the forage species which will be monitored for appropriate utilization.  "]
["Recommended minimum heights to begin grazing:  Field will automatically populate based upon the species entered."]
["Recommended minimum heights to end grazing:  Field will automatically populate based upon the species entered."]
["Recommended minimum heights to achieve before killing frost:  Field will automatically populate based upon the species entered."]
["Comments:  Enter any pertinent comments regarding the planned Degree of Use."]
["Planned By and Date:  Enter the name of the person completing the plan and date planned."]
["The fields listed below will be completed each year when the pastures are being evaluated for degree of use."]
["Residual Plant Height at time of 1st Killing Frost (inches):  Enter the residual plant height of the key species in the key area each year when field visits are made to review the grazing plan.  If the use is excessive, the stocking rates and/or time in the individual fields, pastures, or paddocks should be adjusted for the coming year."]
["Date of Field Visit:  Enter the date that the observations of the fields, pastures or paddocks were made."]
["Observer:  Enter the name of the person making the degree of use observations."]
["INSTRUCTIONS FOR USE OF NE-ECS-12 RANGELAND TREND"]
["Pasture Name: Enter the name of the pasture."]
["Pasture Number: Enter the pasture number as listed on the aerial photo or map."]
["GPS Location: Identify the location of the site as precisely as possible using a GPS unit.  Utilize either UTM or latitude and longitude.  However, if a GPS unit is not available, and location is determined from a topographic map, attempt to determine degrees, minutes, and seconds for both longitude and latitude."]
["Range Trend Attributes:  Evaluate each of the 5 range trend attributes as compared with the attribute description listed in the Ecological Site Descriptions (ESD) for the reference plant community or one of the other plant communities listed in the ESD.  Choose the numeric value for the condition that best describes each attribute."]
["Total Score:  This field will automatically calculate.  "]
["Overall Trend Value:  Based on the total score, determine whether range trend is moving toward the reference or planned plant community or away from the reference or planned plant community and choose the appropriate rating from the dropdown menu."]
["Use of Overall Trend Value:  In cases where the trend value is moving away from the reference plant community, develop adjustments to the prescribed grazing plan that will meet the land manager's objectives."]
["When making trend estimates, always compare present conditions to what can be expected to be found in the plant community that you are comparing present conditions to; either the historic or interpretive plant community (Rangeland Trend) or one of the other plant communities (Planned Trend) described in the ecological site description. Take into consideration current weather conditions and it's impact on plant growth and other plant related attributes."]
[]
["PASTURE CONDITION SCORE WORKSHEET - NE-ECS-13"]
["Cooperator:  Enter the name of producer (landowner or operator)."]
["Conservationist:  Enter name of person completing the pasture condition score."]
["MLRA-FSG-Species/Mix:  Enter the following for the field being evaluated:  MLRA, Forage Suitability Group (FSG) and the grass species that have been planted in the field."]
["Estimate the carrying capacity by completing one of the following:"]
["List the Estimated Production Potential form the Forage Suitability Group  in pounds/acre and list the estimated annual forage production in terms of AUM's."]
["Measure the production by clipping and weighing and converting to pounds/acre and calculate the AUM's of production actually being produced on site."]
["Evaluate each of the 8 indicators and enter the score for each indicator in the far right column of the form."]
["Add the scores for the indicators for an overall pasture score.   The score will indicate the needs and feasibility for changes in management as shown on the bottom of the form."]
["NE-ECS-64 ACTUAL GRAZING USE REPORT"]
["The following information will be completed by the conservation planner:"]
["Client:  Field will automatically populate from NE-ECS-528 Jobsheet Cover Sheet."]
["Calendar Year:  Enter the appropriate calendar year (year in which grazing will occur)."]
["Date:  Enter the date the  conservation planner completes this section."]
["Contract Number:  Enter the program contract number (if applicable)."]
["Pasture Name/Number:  Enter the name or number of the pasture(s) being evaluated."]
["Acres:  Enter the acres in the field, pasture, or paddock."]
["Planned Grazing Sequence : Enter the order in which the field, pasture or paddock will be grazed (the planned dates could also be entered)."]
["The following information will be completed by the producer or land manager to document use for the calendar year:"]
["Kind of livestock:  Enter the class of livestock (pairs, yearlings, heifers, etc.).  If more than one class is in the herd that grazed each pasture, utilize one line for each class of livestock."]
["Number: Enter the number of each class of livestock that grazed each pasture."]
["Grazing Period - In and Out Dates:  Enter the in and out dates for each pasture.  If the pasture is grazed multiple times, use one line for each grazing period."]
["Animal Information:  Enter the livestock information which will be used to calculate the AUM's removed.  This information includes average weights for class of livestock and calving/weaning dates."]
["The following information will be completed by  either the person reporting the practice OR the client/land manager:"]
["AUM's Removed:  Use the average weight of each class of livestock, the number of each class of livestock, and the amount of time in the pasture to calculate the AUM's removed.  If the AUM's removed is significantly higher, the grazing system should be reviewed to determine whether the stocking rates were too high or whether the estimated production was too low. This can be determined by visually inspecting the pastures and evaluating the degree of use.  If the degree of use is significantly over that planned, the stocking rates for the following year should be adjusted."]

{"sheet":"ECS-63-Questionaire-Optional","index":3,"n_rows":49,"n_cols":11,"rows_kept":49,"cut":false,"hidden":false,"merged":[[7,1,7,2],[7,8,7,9],[7,10,7,11],[7,3,7,5],[33,1,33,2],[33,4,33,5],[33,7,33,8],[13,1,13,11],[18,1,18,11],[16,1,17,2],[16,3,17,11],[12,1,12,2],[11,3,11,7],[20,1,22,3],[19,1,19,2],[8,1,8,2],[42,3,43,5],[42,8,43,10],[23,1,25,3],[23,4,25,11],[30,4,31,11],[39,9,39,10],[38,1,38,11],[34,1,34,2],[35,1,35,2],[36,1,36,2],[34,7,34,8],[34,10,34,11],[42,1,43,2],[42,6,43,7],[9,3,10,11],[11,1,11,2],[11,8,11,11],[14,3,15,11],[41,1,41,11],[12,3,12,8],[34,4,34,5],[0,0,1,3],[2,0,2,3],[0,9,1,12],[2,9,2,12],[6,3,6,6],[5,1,5,2],[3,1,3,11],[5,3,5,6],[4,7,4,8],[4,10,4,11],[5,10,5,11],[6,10,6,11],[4,1,4,2],[4,3,4,4],[0,4,1,8],[2,5,2,7],[47,1,47,5],[48,1,48,2],[48,3,48,11],[19,4,22,11],[26,1,26,3],[26,4,27,11],[32,10,33,11],[37,1,37,2],[36,4,36,5],[36,7,36,8],[36,10,36,11],[37,4,37,5],[37,7,37,8],[37,10,37,11],[32,1,32,3],[46,6,46,11],[8,3,8,8],[44,1,45,2],[46,1,46,4],[27,1,27,3],[30,1,31,3],[28,1,29,3],[28,4,29,11],[39,1,39,2],[39,3,39,5],[44,3,45,11],[40,1,40,11],[35,7,35,8],[35,10,35,11],[35,4,35,5],[9,1,9,2],[10,1,10,2]]}
[null,null,null,null,"GRAZING LANDS ASSISTANCE QUESTIONAIRE"]
[]
[null,null,null,null,null,"NE-ECS-63",null,null,null,"January, 2014"]
[]
[null,"Field Office:   ",null,null,null,null,"County:",null,null,"NRD: "]
[null,"Property Name:  ",null,null,null,null,null,null,null,"Date:"]
[null,"Producer Name:  ",null,null,null,null,null,null,null,"Phone:"]
[null,"Email Address:",null,null,null,null,null,null,"Cell or Fax: "]
[null,"Address:  "]
[null,"Legal Description  "]
[null,"or Farm No. & Tract No."]
[null,"Acres to be Planned:    "]
[null,"(Owned/Leased)"]
[]
[null,"Description of"]
[null,"Livestock Operation:"]
[null,"Goals for Operation:   "]
[]
[]
[null,"Areas of concern:"]
[null,"(grazing distribution, plant vigor, weeds (type), animal gain, erosion, or other concerns)"]
[]
[]
[null,"Current Grazing System/Management:"]
[]
[]
[null,"Length of grazing season "]
[null,"in and out dates:"]
[null,"Describe Winter Grazing or Feeding Program:"]
[]
[null,"Describe Drought Management Plan:"]
[]
[null,"Livestock Information:",null,null,null,null,null,null,null,null,"Breed or Other Information"]
[null,"Class / Type ",null,null,"Number",null,null,"Average Weight"]
[]
[]
[]
[]
[]
[null,"Calving Date(s)",null,null,null,null,null,"Weaning Date(s)"]
[]
[]
[null,"Preferred fence type:",null,null,null,null,"Preferred tank type:"]
[]
[null,"Type Water Source (existing & planned):"]
[]
[null,"(windmill,  solar, submersible w/pipeline, etc.)"]
[null,"Do you fertilize your planted pastures:"]
[null,"Other Comments:"]

{"sheet":"528 Cover Crops","index":4,"n_rows":49,"n_cols":13,"rows_kept":49,"cut":false,"hidden":false,"merged":[[33,0,34,10],[35,7,36,8],[35,9,36,10],[37,3,37,4],[37,5,37,6],[37,7,37,8],[37,9,37,10],[32,0,32,10],[25,8,26,9],[25,5,26,6],[25,7,26,7],[27,5,27,6],[28,5,28,6],[29,5,29,6],[30,5,30,6],[27,8,27,9],[28,8,28,9],[29,8,29,9],[30,8,30,9],[25,2,26,2],[25,3,26,4],[35,0,36,0],[35,1,36,1],[27,3,27,4],[40,3,40,4],[40,5,40,6],[40,7,40,8],[40,9,40,10],[38,3,38,4],[38,5,38,6],[38,7,38,8],[38,9,38,10],[39,3,39,4],[39,5,39,6],[39,7,39,8],[39,9,39,10],[0,0,0,1],[0,3,0,9],[0,10,1,10],[1,3,1,9],[2,1,2,8],[12,0,12,6],[15,10,22,10],[16,0,17,0],[16,1,17,1],[16,2,17,2],[16,3,17,3],[16,4,17,4],[15,0,15,4],[15,5,22,5],[15,6,15,9],[16,6,17,6],[16,7,17,7],[41,2,41,6],[42,2,42,6],[42,8,42,10],[41,8,41,10],[35,2,36,2],[35,3,36,4],[35,5,36,6],[3,1,3,3],[3,5,3,7],[3,9,3,10],[41,0,41,1],[4,0,4,10],[5,0,5,10],[6,0,7,0],[6,1,7,1],[6,2,7,2],[6,3,7,4],[6,6,7,6],[6,7,6,9],[6,5,7,5],[25,0,26,0],[25,1,26,1],[22,0,22,3],[22,6,22,7],[48,0,48,1],[48,8,48,10],[48,2,48,6],[46,0,46,10],[42,0,42,1],[44,0,44,10],[45,0,45,1],[45,2,45,6],[45,8,45,10],[47,0,47,8],[14,12,18,15],[3,12,4,15],[24,0,24,10],[14,0,14,10],[13,0,13,10],[31,0,31,10],[23,0,23,10],[5,12,6,15],[16,8,17,8],[16,9,17,9],[6,10,7,10],[8,3,8,4],[9,3,9,4],[10,3,10,4],[11,3,11,4],[29,3,29,4],[30,3,30,4],[28,3,28,4],[11,12,13,15],[7,12,10,15]]}
[null,null,null,"PRESCRIBED GRAZING JOBSHEET  - NE-ECS-528 Cover Crops",null,null,null,null,null,null,"January, 2014"]
[]
["CLIENT:  ",null,null,null,null,null,null,null,null,"DATE:  "]
["FIELD OFFICE:  ",null,null,null,"COUNTY:  ",null,null,null,"NRD:  ",null,null,null,"Production Category:"]
[]
["FORAGE INVENTORY - AVAILABLE FORAGE RESOURCES",null,null,null,null,null,null,null,null,null,null,null,"1 - Reduced production due to soil restrictions (shallow, gravelly, dense clay, etc.) or other growing conditions."]
["TRACT NUMBER","FIELD NUMBER","ACRES","COVER CROP TYPE",null,"Production Category","PLANNED PRODUCTION (POUNDS/AC) 1","Total AUM'S Available per field",null,null,"Planned Degree of Use"]
[null,null,null,null,null,null,null,"50% USE","60% USE","70% USE",null,null,"2 - Lower production areas of the state due to lower rainfall - Western part of the state  (Use Area Boundaries) & areas with shorter growing degree days."]
[null,null,null,null,null,null,{"$f":"IF($F9=1,(VLOOKUP($D9,DATA2!$F$24:$G$117,2,FALSE)),IF($F9=2,(VLOOKUP($D9,DATA2!$F$24:$J$117,3,FALSE)),IF($F9=3,(VLOOKUP($D9,DATA2!$F$24:$J$117,4,FALSE)),IF($F9=4,(VLOOKUP($D9,DATA2!$F$24:$J$117,5,FALSE)),\" \"))))","v":" "},{"$f":"IF(D9=0,\"\",(G9/913)*0.25*C9)","v":""},{"$f":"IF(D9=0,\"\",(G9/913)*0.3*C9)","v":""},{"$f":"IF(D9=0,\"\",(G9/913)*0.35*C9)","v":""}]
[null,null,null,null,null,null,{"$f":"IF($F10=1,(VLOOKUP($D10,DATA2!$F$24:$G$117,2,FALSE)),IF($F10=2,(VLOOKUP($D10,DATA2!$F$24:$J$117,3,FALSE)),IF($F10=3,(VLOOKUP($D10,DATA2!$F$24:$J$117,4,FALSE)),IF($F10=4,(VLOOKUP($D10,DATA2!$F$24:$J$117,5,FALSE)),\" \"))))","v":" "},{"$f":"IF(D10=0,\"\",(G10/913)*0.25*C10)","v":""},{"$f":"IF(D10=0,\"\",(G10/913)*0.3*C10)","v":""},{"$f":"IF(D10=0,\"\",(G10/913)*0.35*C10)","v":""}]
[null,null,null,null,null,null,{"$f":"IF($F11=1,(VLOOKUP($D11,DATA2!$F$24:$G$117,2,FALSE)),IF($F11=2,(VLOOKUP($D11,DATA2!$F$24:$J$117,3,FALSE)),IF($F11=3,(VLOOKUP($D11,DATA2!$F$24:$J$117,4,FALSE)),IF($F11=4,(VLOOKUP($D11,DATA2!$F$24:$J$117,5,FALSE)),\" \"))))","v":" "},{"$f":"IF(D11=0,\"\",(G11/913)*0.25*C11)","v":""},{"$f":"IF(D11=0,\"\",(G11/913)*0.3*C11)","v":""},{"$f":"IF(D11=0,\"\",(G11/913)*0.35*C11)","v":""}]
[null,null,null,null,null,null,{"$f":"IF($F12=1,(VLOOKUP($D12,DATA2!$F$24:$G$117,2,FALSE)),IF($F12=2,(VLOOKUP($D12,DATA2!$F$24:$J$117,3,FALSE)),IF($F12=3,(VLOOKUP($D12,DATA2!$F$24:$J$117,4,FALSE)),IF($F12=4,(VLOOKUP($D12,DATA2!$F$24:$J$117,5,FALSE)),\" \"))))","v":" "},{"$f":"IF(D12=0,\"\",(G12/913)*0.25*C12)","v":""},{"$f":"IF(D12=0,\"\",(G12/913)*0.3*C12)","v":""},{"$f":"IF(D12=0,\"\",(G12/913)*0.35*C12)","v":""},null,null,"3 - Average production areas of the state (moderate rainfall -central portion of state) or irrigated fields in Western part of state."]
["TOTALS:  ",null,null,null,null,null,null,{"$f":"IF(A9=0,\"\",(SUM(H9:H12)))","v":""},{"$f":"IF(A9=0,\"\",(SUM(I9:I12)))","v":""},{"$f":"IF(A9=0,\"\",(SUM(J9:J12)))","v":""}]
["1  Production will vary significantly with differences in soils and annual rainfall and temperature fluctuations.  Planned production is being used to develop a rough estimate of forage that will be available and to develop an estimate of the number of days grazing that will be available.  These numbers are strictly for planning purposes.  Fields should be monitored as livestock graze and the days grazed adjusted to allow adequate plant height and cover to remain on the field.  2 Production estimates for these cover crops are not available in published literature.  Planned production has been based on similar cover crops or anecdotal information; these values are being provided to give a very rough estimate of production."]
[null,null,null,null,null,null,null,null,null,null,null,null,"4 - Higher production areas of the state - southeastern portion of state - higher rainfall areas or irrigated cropland in central portion of state."]
["ANIMAL INVENTORY ",null,null,null,null,null,"ESTIMATED DAYS GRAZING"]
["Livestock Type","Planned number","Average Weight","Animal Unit Equivalent (AU)","Total AU's",null,"TRACT NUMBER","FIELD NO.","PLANNED AVAILABLE AUM'S","PLANNED NO. DAYS GRAZING"]
[]
[null,null,null,{"$f":"IF(B19=0,\"\",(C19/1000))","v":""},{"$f":"IF(B19=0,\"\",(B19*D19))","v":""},null,{"$f":"IF(A9=0,\"\",A9)","v":""},"",null,{"$f":"IF(A9=0,\"\",(I19/$E$23)*30)","v":""}]
[null,null,null,{"$f":"IF(B20=0,\"\",(C20/1000))","v":""},{"$f":"IF(B20=0,\"\",(B20*D20))","v":""},null,"","",null,{"$f":"IF(A10=0,\"\",(I20/$E$23)*30)","v":""}]
[null,null,null,{"$f":"IF(B21=0,\"\",(C21/1000))","v":""},{"$f":"IF(B21=0,\"\",(B21*D21))","v":""},null,"","",null,{"$f":"IF(A11=0,\"\",(I21/$E$23)*30)","v":""}]
[null,null,null,{"$f":"IF(B22=0,\"\",(C22/1000))","v":""},{"$f":"IF(B22=0,\"\",(B22*D22))","v":""},null,"","",null,{"$f":"IF(A12=0,\"\",(I22/$E$23)*30)","v":""}]
["TOTAL:  ",null,null,null,{"$f":"IF(A19=0,\"\",(SUM(E19:E22)))","v":""},null,"TOTAL:  ",null,{"$f":"IF(A9=0,\"\",(SUM(I19:I22)))","v":""},{"$f":"IF(A9=0,\"\",(SUM(J19:J22)))","v":""}]
[]
["RECOMMENED UTILIZATION LEVELS BASED ON HEIGHT AT END OF GRAZING PERIOD."]
["TRACT NUMBER","FIELD NUMBER","ACRES","COVER CROP TYPE",null,"RECOMMENDED MINIMUM HEIGHT AT END OF GRAZING PERIOD",null,null,"ACTUAL HEIGHT AT END OF GRAZING PERIOD"]
[]
[{"$f":"IF(A9=0,\"\", A9)","v":""},"","",{"$f":"IF(D9=0,\"\",D9)","v":""},null,{"$f":"IF(A9=0,\"\",(VLOOKUP(D28,DATA!$F$309:$G$402,2,FALSE)))","v":""}]
["","","",{"$f":"IF(D10=0,\"\",D10)","v":""},null,{"$f":"IF(A10=0,\"\",(VLOOKUP(D29,DATA!$F$309:$G$402,2,FALSE)))","v":""}]
["","","",{"$f":"IF(D11=0,\"\",D11)","v":""},null,{"$f":"IF(A11=0,\"\",(VLOOKUP(D30,DATA!$F$309:$G$402,2,FALSE)))","v":""}]
["","","",{"$f":"IF(D12=0,\"\",D12)","v":""},null,{"$f":"IF(A12=0,\"\",(VLOOKUP(D31,DATA!$F$309:$G$402,2,FALSE)))","v":""}]
["If plants regrow adequately after cattle are removed from the field, additional grazing period(s) may be incorporated into the grazing system."]
[]
["GRAZING SCHEDULE"]
[]
["TRACT NUMBER","FIELD NUMBER","PLANNED NO. DAYS GRAZING","PLANNED START DATE - GRAZING",null,"PLANNED END DATE - GRAZING",null,"ACTUAL START DATE OF GRAZING",null,"ACTUAL END DATE OF GRAZING"]
[]
[{"$f":"IF(A9=0,\"\", A9)","v":""},"",{"$f":"IF(B38=0,\"\",J19)","v":""},null,null,{"$f":"IF(D38=0,\"\",D38+C38)","v":""}]
["","",{"$f":"IF(B39=0,\"\",J20)","v":""},null,null,{"$f":"IF(D39=0,\"\",D39+C39)","v":""}]
["","",{"$f":"IF(B40=0,\"\",J21)","v":""},null,null,""]
["","",{"$f":"IF(B41=0,\"\",J22)","v":""},null,null,""]
["Designed by:  ",null,null,null,null,null,null,"Date:  "]
["Approved by:  ",null,null,null,null,null,null,"Date:  "]
[]
["I have received a copy of the specifications for prescribed grazing and understand the requirements."]
["Producer Signature:",null,null,null,null,null,null,"Date:  "]
[]
["This applied practice meets Nebraska NRCS standards and specifications:"]
["Certified by:",null,null,null,null,null,null,"Date:  "]

{"sheet":"528 New Grass Seeding","index":5,"n_rows":50,"n_cols":13,"rows_kept":50,"cut":false,"hidden":false,"merged":[[49,0,49,1],[49,2,49,6],[49,8,49,10],[6,3,7,5],[8,3,8,5],[9,3,9,5],[10,3,10,5],[11,3,11,5],[28,7,28,8],[29,7,29,8],[45,0,45,10],[46,0,46,1],[46,2,46,6],[46,8,46,10],[47,0,47,10],[48,0,48,8],[42,0,42,1],[42,2,42,6],[42,8,42,10],[43,0,43,1],[43,2,43,6],[43,8,43,10],[40,3,40,4],[40,5,40,6],[40,7,40,8],[40,9,40,10],[41,3,41,4],[41,5,41,6],[41,7,41,8],[41,9,41,10],[38,3,38,4],[38,5,38,6],[38,7,38,8],[38,9,38,10],[39,3,39,4],[39,5,39,6],[39,7,39,8],[39,9,39,10],[32,0,32,10],[33,0,33,10],[34,0,35,10],[36,0,37,0],[36,1,37,1],[36,2,37,2],[36,3,37,4],[36,5,37,6],[36,7,37,8],[36,9,37,10],[30,3,30,4],[30,5,30,6],[31,3,31,4],[31,5,31,6],[28,3,28,4],[28,5,28,6],[29,3,29,4],[29,5,29,6],[23,0,23,10],[24,0,24,10],[25,0,27,0],[25,1,27,1],[25,2,27,2],[25,3,27,4],[25,5,27,6],[30,7,30,8],[31,7,31,8],[25,9,26,10],[25,7,27,8],[16,4,17,4],[16,6,17,6],[16,7,17,7],[16,8,17,8],[16,9,17,9],[22,0,22,3],[22,6,22,7],[14,0,14,10],[14,12,18,15],[15,0,15,4],[15,5,22,5],[15,6,15,9],[15,10,22,10],[16,0,17,0],[16,1,17,1],[16,2,17,2],[16,3,17,3],[12,0,12,6],[13,0,13,10],[3,12,4,15],[4,0,4,10],[5,0,5,10],[6,0,7,0],[6,1,7,1],[6,2,7,2],[6,6,7,6],[13,12,13,15],[5,12,12,15],[0,0,0,1],[0,3,0,9],[0,10,1,10],[1,3,1,9],[2,1,2,8],[3,1,3,3],[3,5,3,7],[3,9,3,10],[6,7,6,9],[6,10,7,10]]}
[null,null,null,"PRESCRIBED GRAZING JOBSHEET  - NE-ECS-528 NEW GRASS SEEDING",null,null,null,null,null,null,"January, 2014"]
[]
["CLIENT:  ",null,null,null,null,null,null,null,null,"DATE:  "]
["FIELD OFFICE:  ",null,null,null,"COUNTY:  ",null,null,null,"NRD:  ",null,null,null,"Planned Production"]
[]
["FORAGE INVENTORY - AVAILABLE FORAGE RESOURCES",null,null,null,null,null,null,null,null,null,null,null,"Estimate production from the Ecological Site Descriptions for the Ecological Sites in the field for range seedings or from the forage suitability group descriptions for pastureland.  If there are are multiple ecological sites which constitute a significant area in the field, and which differ significantly in production, use a weighted average for planned production."]
["TRACT NUMBER","FIELD NUMBER","ACRES","Type of Grass Seeding",null,null,"PLANNED PRODUCTION (POUNDS/AC) 1","Total AUM'S Available per field",null,null,"Planned Degree of Use"]
[null,null,null,null,null,null,null,"50% USE","60% USE","70% USE"]
[null,null,null,null,null,null,null,{"$f":"IF(D9=0,\"\",(G9/913)*0.25*C9)","v":""},{"$f":"IF(D9=0,\"\",(G9/913)*0.3*C9)","v":""},{"$f":"IF(D9=0,\"\",(G9/913)*0.35*C9)","v":""}]
[null,null,null,null,null,null,null,{"$f":"IF(D10=0,\"\",(G10/913)*0.25*C10)","v":""},{"$f":"IF(D10=0,\"\",(G10/913)*0.3*C10)","v":""},{"$f":"IF(D10=0,\"\",(G10/913)*0.35*C10)","v":""}]
[null,null,null,null,null,null,null,{"$f":"IF(D11=0,\"\",(G11/913)*0.25*C11)","v":""},{"$f":"IF(D11=0,\"\",(G11/913)*0.3*C11)","v":""},{"$f":"IF(D11=0,\"\",(G11/913)*0.35*C11)","v":""}]
[null,null,null,null,null,null,null,{"$f":"IF(D12=0,\"\",(G12/913)*0.25*C12)","v":""},{"$f":"IF(D12=0,\"\",(G12/913)*0.3*C12)","v":""},{"$f":"IF(D12=0,\"\",(G12/913)*0.35*C12)","v":""}]
["TOTALS:  ",null,null,null,null,null,null,{"$f":"IF(A9=0,\"\",(SUM(H9:H12)))","v":""},{"$f":"IF(A9=0,\"\",(SUM(I9:I12)))","v":""},{"$f":"IF(A9=0,\"\",(SUM(J9:J12)))","v":""}]
["1  Production will vary with differences in soils and annual rainfall and temperature fluctuations.  Planned production is being used to develop an estimate of forage that will be available and to develop an estimate of the number of days grazing that will be available.  Before grazing, the stand of grass should be evaluated; if the stand is below average, production will be significantly less than planned.",null,null,null,null,null,null,null,null,null,null,null,"Adjust the planned production down (or up) when appropriate to reflect the density and quality of the stand of grass."]
[null,null,null,null,null,null,null,null,null,null,null,null,"The fields should not be grazed until the stand of grass is established; rate of establishment will vary with climate and weather conditions."]
["ANIMAL INVENTORY ",null,null,null,null,null,"ESTIMATED DAYS GRAZING"]
["Livestock Type","Planned number","Average Weight","Animal Unit Equivalent (AU)","Total AU's",null,"TRACT NUMBER","FIELD NO.","PLANNED AVAILABLE AUM'S","PLANNED NO. DAYS GRAZING"]
[]
[null,null,null,{"$f":"IF(B19=0,\"\",(C19/1000))","v":""},{"$f":"IF(B19=0,\"\",(B19*D19))","v":""},null,{"$f":"IF(A9=0,\"\",A9)","v":""},"",null,{"$f":"IF(A9=0,\"\",(I19/$E$23)*30)","v":""}]
[null,null,null,{"$f":"IF(B20=0,\"\",(C20/1000))","v":""},{"$f":"IF(B20=0,\"\",(B20*D20))","v":""},null,"","",null,{"$f":"IF(A10=0,\"\",(I20/$E$23)*30)","v":""}]
[null,null,null,{"$f":"IF(B21=0,\"\",(C21/1000))","v":""},{"$f":"IF(B21=0,\"\",(B21*D21))","v":""},null,"","",null,{"$f":"IF(A11=0,\"\",(I21/$E$23)*30)","v":""}]
[null,null,null,{"$f":"IF(B22=0,\"\",(C22/1000))","v":""},{"$f":"IF(B22=0,\"\",(B22*D22))","v":""},null,"","",null,{"$f":"IF(A12=0,\"\",(I22/$E$23)*30)","v":""}]
["TOTAL:  ",null,null,null,{"$f":"IF(A19=0,\"\",(SUM(E19:E22)))","v":""},null,"TOTAL:  ",null,{"$f":"IF(A9=0,\"\",(SUM(I19:I22)))","v":""},{"$f":"IF(A9=0,\"\",(SUM(J19:J22)))","v":""}]
[]
["RECOMMENED UTILIZATION LEVELS BASED ON HEIGHT AT END OF GRAZING PERIOD."]
["TRACT NUMBER","FIELD NUMBER","ACRES","Grass Seeding Type",null,"RECOMMENDED MINIMUM HEIGHT AT BEGINNING OF GRAZING PERIOD",null,"RECOMMENDED MINIMUM HEIGHT AT END OF GRAZING PERIOD",null,"ACTUAL HEIGHT AT BEGINNING AND END OF GRAZING PERIOD"]
[]
[null,null,null,null,null,null,null,null,null,"BEGINNING","END"]
[{"$f":"IF(A9=0,\"\", A9)","v":""},"","",{"$f":"IF(D9=0,\"\",D9)","v":""},null,{"$f":"IF(A9=0,\"\",(VLOOKUP(D29,DATA!$F$215:$G$239,2,FALSE)))","v":""},null,{"$f":"IF(C9=0,\"\",(VLOOKUP(D29,DATA!$F$250:$G$274,2,FALSE)))","v":""}]
["","","",{"$f":"IF(D10=0,\"\",D10)","v":""},null,{"$f":"IF(A10=0,\"\",(VLOOKUP(D30,DATA!$F$215:$G$239,2,FALSE)))","v":""},null,{"$f":"IF(C10=0,\"\",(VLOOKUP(D30,DATA!$F$250:$G$274,2,FALSE)))","v":""}]
["","","",{"$f":"IF(D11=0,\"\",D11)","v":""},null,{"$f":"IF(A11=0,\"\",(VLOOKUP(D31,DATA!$F$215:$G$239,2,FALSE)))","v":""},null,{"$f":"IF(C11=0,\"\",(VLOOKUP(D31,DATA!$F$250:$G$274,2,FALSE)))","v":""}]
["","","",{"$f":"IF(D12=0,\"\",D12)","v":""},null,{"$f":"IF(A12=0,\"\",(VLOOKUP(D32,DATA!$F$215:$G$239,2,FALSE)))","v":""},null,{"$f":"IF(C12=0,\"\",(VLOOKUP(D32,DATA!$F$250:$G$274,2,FALSE)))","v":""}]
["Pastureland, especially irrigated pasture and pasture in Central and Eastern Nebraska, will have adequate regrowth to allow for multiple grazing periods throughout the growing season.  Allow for adequate recovery before re-entry into each pasture."]
[]
["GRAZING SCHEDULE"]
[]
["TRACT NUMBER","FIELD NUMBER","PLANNED NO. DAYS GRAZING","PLANNED START DATE - GRAZING",null,"PLANNED END DATE - GRAZING",null,"ACTUAL START DATE OF GRAZING",null,"ACTUAL END DATE OF GRAZING"]
[]
[{"$f":"IF(A9=0,\"\", A9)","v":""},"",{"$f":"IF(B39=0,\"\",J19)","v":""},null,null,{"$f":"IF(D39=0,\"\",D39+C39)","v":""}]
["","",{"$f":"IF(B40=0,\"\",J20)","v":""},null,null,{"$f":"IF(D40=0,\"\",D40+C40)","v":""}]
["","",{"$f":"IF(B41=0,\"\",J21)","v":""},null,null,""]
["","",{"$f":"IF(B42=0,\"\",J22)","v":""},null,null,""]
["Designed by:  ",null,null,null,null,null,null,"Date:  "]
["Approved by:  ",null,null,null,null,null,null,"Date:  "]
[]
["I have received a copy of the specifications for prescribed grazing and understand the requirements."]
["Producer Signature:",null,null,null,null,null,null,"Date:  "]
[]
["This applied practice meets Nebraska NRCS standards and specifications:"]
["Certified by:",null,null,null,null,null,null,"Date:  "]

{"sheet":"528 Jobsheet Cover_Sheet","index":6,"n_rows":29,"n_cols":11,"rows_kept":29,"cut":false,"hidden":false,"merged":[[19,8,19,9],[19,10,19,11],[22,2,22,7],[22,8,22,9],[27,0,27,1],[27,2,27,7],[27,8,27,9],[27,10,27,11],[20,0,20,2],[21,0,21,8],[22,0,22,1],[22,10,22,11],[23,0,23,1],[23,2,23,8],[19,2,19,7],[14,2,14,7],[14,8,14,9],[15,10,15,11],[15,2,15,7],[15,8,15,9],[28,2,28,10],[25,0,25,8],[9,3,11,11],[15,0,15,1],[17,0,17,11],[12,0,12,11],[13,0,13,1],[14,0,14,1],[13,10,13,11],[14,10,14,11],[9,0,11,2],[18,0,19,1],[18,2,18,8],[18,10,18,11],[13,2,13,7],[13,8,13,9],[6,0,8,1],[6,2,8,11],[3,7,3,9],[5,0,5,1],[3,0,3,1],[5,2,5,11],[1,10,1,11],[3,10,3,11],[2,10,2,11],[3,2,3,6],[4,0,4,11],[0,0,1,2],[2,2,2,3],[2,8,2,9],[2,5,2,7],[0,3,0,9],[1,3,1,9],[2,0,2,1]]}
[null,null,null,"PRESCRIBED GRAZING JOBSHEET           "]
[null,null,null,"NE-ECS-528",null,null,null,null,null,null,"September, 2014"]
["FIELD OFFICE:  ",null,null,null,"COUNTY:",null,null,null,"NRD:  "]
["CLIENT:",null,null,null,null,null,null,"DATE:  "]
[]
["Farm/Tract(s)"]
["Legal Description:"]
[]
[]
["Management Objectives:"]
[]
[]
["Design Information:   Natural Resources Conservation Service (NRCS) Representative or Technical Service Provider (TSP):"]
["Inventory by:  ",null,null,null,null,null,null,null,"Date:  "]
["Designed by:  ",null,null,null,null,null,null,null,"Date:  "]
["Approved by:  ",null,null,null,null,null,null,null,"Date:  "]
[]
["I have received a copy of the specifications for prescribed grazing and understand the contents and requirements."]
["Signature of Producer:"]
[null,null,null,null,null,null,null,null,"Date:  "]
["Practice Certification:"]
["This applied practice meets Nebraska NRCS standards and specifications:"]
["Signature:  ",null,null,null,null,null,null,null,"Date:  "]
["Representing:"]
[]
["This practice has been applied as designed:"]
[]
["Signature of Producer:",null,null,null,null,null,null,null,"Date:  "]
[null,null,"Required if financial assistance is being provided for Prescribed Grazing"]

{"sheet":"NE-CPA-17A-Community","index":7,"n_rows":58,"n_cols":13,"rows_kept":58,"cut":false,"hidden":false,"merged":[[57,0,57,12],[3,0,3,1],[3,3,4,3],[3,4,4,4],[3,5,4,5],[3,7,4,7],[3,6,4,6],[3,8,4,8],[3,9,4,9],[3,10,4,10],[3,11,4,11],[3,12,4,12],[56,0,56,1],[56,3,56,12],[55,11,55,12],[1,11,1,12],[55,0,55,10],[2,8,2,9],[2,10,2,12],[0,0,0,3],[1,0,1,3],[0,4,1,7],[2,0,2,3],[2,4,2,7]]}
[null,null,null,null,"RANGE INVENTORY SUMMARY AND SUGGESTED INITIAL STOCKING RATES BASED ON EXISTING PLANT COMMUNITY - NE-CPA-17A"]
[null,null,null,null,null,null,null,null,null,null,null,"January, 2015"]
["CLIENT:",null,null,null,{"$f":"'528 Jobsheet Cover_Sheet'!C4","v":0},null,null,null,"DATE:",null,{"$f":"'528 Jobsheet Cover_Sheet'!K4","v":"00:00:00"}]
["PASTURE",null,null,"ECOLOGICAL SITE","Plant Community                        (as listed in ESD)","Est. lbs. Production / acre","Planned Harvest Efficiency","Acres for site / community","AUM/ac   ","AUM for Site","Adj. Factor*","Adjusted AUM for Site","AUM for pasture"]
["No.","ACRES","MLRA"]
[null,null,null,null,null,{"$f":"IF(C6=0,\"\",(VLOOKUP(E6,DATA!$J$2:$K$1505,2,FALSE)))","v":""},null,null,{"$f":"IF(D6=0,\"\",(F6/912*G6))","v":""},{"$f":"IF(E6=0,\"\",H6*I6)","v":""},null,{"$f":"IF(E6=0,\"\",J6*K6)","v":""}]
[null,null,null,null,null,{"$f":"IF(C7=0,\"\",(VLOOKUP(E7,DATA!$J$2:$K$1505,2,FALSE)))","v":""},null,null,{"$f":"IF(D7=0,\"\",(F7/912*G7))","v":""},{"$f":"IF(E7=0,\"\",H7*I7)","v":""},null,{"$f":"IF(E7=0,\"\",J7*K7)","v":""}]
[null,null,null,null,null,{"$f":"IF(C8=0,\"\",(VLOOKUP(E8,DATA!$J$2:$K$1505,2,FALSE)))","v":""},null,null,{"$f":"IF(D8=0,\"\",(F8/912*G8))","v":""},"",null,""]
[null,null,null,null,null,{"$f":"IF(C9=0,\"\",(VLOOKUP(E9,DATA!$J$2:$K$1505,2,FALSE)))","v":""},null,null,"","",null,""]
[null,null,null,null,null,{"$f":"IF(C10=0,\"\",(VLOOKUP(E10,DATA!$J$2:$K$1505,2,FALSE)))","v":""},null,null,"","",null,""]
[null,null,null,null,null,{"$f":"IF(C11=0,\"\",(VLOOKUP(E11,DATA!$J$2:$K$1505,2,FALSE)))","v":""},null,null,"","",null,""]
[null,null,null,null,null,{"$f":"IF(C12=0,\"\",(VLOOKUP(E12,DATA!$J$2:$K$1505,2,FALSE)))","v":""},null,null,"","",null,""]
[null,null,null,null,null,{"$f":"IF(C13=0,\"\",(VLOOKUP(E13,DATA!$J$2:$K$1505,2,FALSE)))","v":""},null,null,"","",null,""]
[null,null,null,null,null,{"$f":"IF(C14=0,\"\",(VLOOKUP(E14,DATA!$J$2:$K$1505,2,FALSE)))","v":""},null,null,"","",null,""]
[null,null,null,null,null,{"$f":"IF(C15=0,\"\",(VLOOKUP(E15,DATA!$J$2:$K$1505,2,FALSE)))","v":""},null,null,"","",null,""]
[null,null,null,null,null,{"$f":"IF(C16=0,\"\",(VLOOKUP(E16,DATA!$J$2:$K$1505,2,FALSE)))","v":""},null,null,"","",null,""]
[null,null,null,null,null,{"$f":"IF(C17=0,\"\",(VLOOKUP(E17,DATA!$J$2:$K$1505,2,FALSE)))","v":""},null,null,"","",null,""]
[null,null,null,null,null,{"$f":"IF(C18=0,\"\",(VLOOKUP(E18,DATA!$J$2:$K$1505,2,FALSE)))","v":""},null,null,"","",null,""]
[null,null,null,null,null,{"$f":"IF(C19=0,\"\",(VLOOKUP(E19,DATA!$J$2:$K$1505,2,FALSE)))","v":""},null,null,"","",null,""]
[null,null,null,null,null,{"$f":"IF(C20=0,\"\",(VLOOKUP(E20,DATA!$J$2:$K$1505,2,FALSE)))","v":""},null,null,"","",null,""]
[null,null,null,null,null,{"$f":"IF(C21=0,\"\",(VLOOKUP(E21,DATA!$J$2:$K$1505,2,FALSE)))","v":""},null,null,"","",null,""]
[null,null,null,null,null,{"$f":"IF(C22=0,\"\",(VLOOKUP(E22,DATA!$J$2:$K$1505,2,FALSE)))","v":""},null,null,"","",null,""]
[null,null,null,null,null,{"$f":"IF(C23=0,\"\",(VLOOKUP(E23,DATA!$J$2:$K$1505,2,FALSE)))","v":""},null,null,"","",null,""]
[null,null,null,null,null,{"$f":"IF(C24=0,\"\",(VLOOKUP(E24,DATA!$J$2:$K$1505,2,FALSE)))","v":""},null,null,"","",null,""]
[null,null,null,null,null,{"$f":"IF(C25=0,\"\",(VLOOKUP(E25,DATA!$J$2:$K$1505,2,FALSE)))","v":""},null,null,"","",null,""]
[null,null,null,null,null,{"$f":"IF(C26=0,\"\",(VLOOKUP(E26,DATA!$J$2:$K$1505,2,FALSE)))","v":""},null,null,"","",null,""]
[null,null,null,null,null,{"$f":"IF(C27=0,\"\",(VLOOKUP(E27,DATA!$J$2:$K$1505,2,FALSE)))","v":""},null,null,"","",null,""]
[null,null,null,null,null,{"$f":"IF(C28=0,\"\",(VLOOKUP(E28,DATA!$J$2:$K$1505,2,FALSE)))","v":""},null,null,"","",null,""]
[null,null,null,null,null,{"$f":"IF(C29=0,\"\",(VLOOKUP(E29,DATA!$J$2:$K$1505,2,FALSE)))","v":""},null,null,"","",null,""]
[null,null,null,null,null,{"$f":"IF(C30=0,\"\",(VLOOKUP(E30,DATA!$J$2:$K$1505,2,FALSE)))","v":""},null,null,"","",null,""]
[null,null,null,null,null,{"$f":"IF(C31=0,\"\",(VLOOKUP(E31,DATA!$J$2:$K$1505,2,FALSE)))","v":""},null,null,"","",null,""]
[null,null,null,null,null,{"$f":"IF(C32=0,\"\",(VLOOKUP(E32,DATA!$J$2:$K$1505,2,FALSE)))","v":""},null,null,"","",null,""]
[null,null,null,null,null,{"$f":"IF(C33=0,\"\",(VLOOKUP(E33,DATA!$J$2:$K$1505,2,FALSE)))","v":""},null,null,"","",null,""]
[null,null,null,null,null,{"$f":"IF(C34=0,\"\",(VLOOKUP(E34,DATA!$J$2:$K$1505,2,FALSE)))","v":""},null,null,"","",null,""]
[null,null,null,null,null,{"$f":"IF(C35=0,\"\",(VLOOKUP(E35,DATA!$J$2:$K$1505,2,FALSE)))","v":""},null,null,"","",null,""]
[null,null,null,null,null,{"$f":"IF(C36=0,\"\",(VLOOKUP(E36,DATA!$J$2:$K$1505,2,FALSE)))","v":""},null,null,"","",null,""]
[null,null,null,null,null,{"$f":"IF(C37=0,\"\",(VLOOKUP(E37,DATA!$J$2:$K$1505,2,FALSE)))","v":""},null,null,"","",null,""]
[null,null,null,null,null,{"$f":"IF(C38=0,\"\",(VLOOKUP(E38,DATA!$J$2:$K$1505,2,FALSE)))","v":""},null,null,"","",null,""]
[null,null,null,null,null,{"$f":"IF(C39=0,\"\",(VLOOKUP(E39,DATA!$J$2:$K$1505,2,FALSE)))","v":""},null,null,"","",null,""]
[null,null,null,null,null,{"$f":"IF(C40=0,\"\",(VLOOKUP(E40,DATA!$J$2:$K$1505,2,FALSE)))","v":""},null,null,"","",null,""]
[null,null,null,null,null,{"$f":"IF(C41=0,\"\",(VLOOKUP(E41,DATA!$J$2:$K$1505,2,FALSE)))","v":""},null,null,"","",null,""]
[null,null,null,null,null,{"$f":"IF(C42=0,\"\",(VLOOKUP(E42,DATA!$J$2:$K$1505,2,FALSE)))","v":""},null,null,"","",null,""]
[null,null,null,null,null,{"$f":"IF(C43=0,\"\",(VLOOKUP(E43,DATA!$J$2:$K$1505,2,FALSE)))","v":""},null,null,"","",null,""]
[null,null,null,null,null,{"$f":"IF(C44=0,\"\",(VLOOKUP(E44,DATA!$J$2:$K$1505,2,FALSE)))","v":""},null,null,"","",null,""]
[null,null,null,null,null,{"$f":"IF(C45=0,\"\",(VLOOKUP(E45,DATA!$J$2:$K$1505,2,FALSE)))","v":""},null,null,"","",null,""]
[null,null,null,null,null,{"$f":"IF(C46=0,\"\",(VLOOKUP(E46,DATA!$J$2:$K$1505,2,FALSE)))","v":""},null,null,"","",null,""]
[null,null,null,null,null,{"$f":"IF(C47=0,\"\",(VLOOKUP(E47,DATA!$J$2:$K$1505,2,FALSE)))","v":""},null,null,"","",null,""]
[null,null,null,null,null,{"$f":"IF(C48=0,\"\",(VLOOKUP(E48,DATA!$J$2:$K$1505,2,FALSE)))","v":""},null,null,"","",null,""]
[null,null,null,null,null,{"$f":"IF(C49=0,\"\",(VLOOKUP(E49,DATA!$J$2:$K$1505,2,FALSE)))","v":""},null,null,"","",null,""]
[null,null,null,null,null,{"$f":"IF(C50=0,\"\",(VLOOKUP(E50,DATA!$J$2:$K$1505,2,FALSE)))","v":""},null,null,"","",null,""]
[null,null,null,null,null,{"$f":"IF(C51=0,\"\",(VLOOKUP(E51,DATA!$J$2:$K$1505,2,FALSE)))","v":""},null,null,"","",null,""]
[null,null,null,null,null,{"$f":"IF(C52=0,\"\",(VLOOKUP(E52,DATA!$J$2:$K$1505,2,FALSE)))","v":""},null,null,"","",null,""]
[null,null,null,null,null,{"$f":"IF(C53=0,\"\",(VLOOKUP(E53,DATA!$J$2:$K$1505,2,FALSE)))","v":""},null,null,"","",null,""]
[null,null,null,null,null,{"$f":"IF(C54=0,\"\",(VLOOKUP(E54,DATA!$J$2:$K$1505,2,FALSE)))","v":""},null,null,"","",null,""]
[null,null,null,null,null,{"$f":"IF(C55=0,\"\",(VLOOKUP(E55,DATA!$J$2:$K$1505,2,FALSE)))","v":""},null,null,"","",null,""]
["TOTAL AUM'S FOR UNIT :",null,null,null,null,null,null,null,null,null,null,{"$f":"SUM(M6:M55)","v":0}]
["COMMENTS:"]
[" * Adjustments are reductions to forage due to topography, tree cover, brush cover and other factors that reduce the amount of forage available for livestock."]

{"sheet":"NE-CPA-17B Similarity Index","index":8,"n_rows":48,"n_cols":13,"rows_kept":48,"cut":false,"hidden":false,"merged":[[3,12,4,12],[46,10,46,12],[47,0,47,12],[46,0,46,9],[0,4,1,8],[1,10,1,12],[3,0,3,2],[0,0,0,2],[1,0,1,2],[2,4,2,8],[3,4,4,4],[3,8,4,8],[2,9,2,12],[2,0,2,3],[0,11,0,12],[3,7,4,7],[3,6,4,6],[3,9,4,9],[3,10,4,10],[3,11,4,11]]}
[null,null,null,null,"RANGE INVENTORY SUMMARY AND SUGGESTED INITIAL STOCKING RATES BASED ON CURRENT SIMILARITY INDEX - NE-CPA-17B"]
[null,null,null,null,null,null,null,null,null,null,"January, 2015"]
["CLIENT:",null,null,null,{"$f":"'528 Jobsheet Cover_Sheet'!C4","v":0},null,null,null,null,{"$f":"'528 Jobsheet Cover_Sheet'!K4","v":"00:00:00"}]
["PASTURE",null,null,null,"ECOLOGICAL SITE",null,"Estimated Production (#)/ac","Planned Harvest Efficiency","Acres for Similarity Index","AUM for Site     ","Adj. Factor","Adjusted AUM","AUM for Pasture"]
["No.","Acres","SOIL MAP UNIT NO.","MLRA",null,"Similarity Index"]
[null,null,null,null,null,null,null,null,null,{"$f":"IF(I6=0,\"\",(G6*H6)/910*I6)","v":""},null,{"$f":"IF(K6=0,\" \",J6*K6)","v":" "}]
[null,null,null,null,null,null,null,null,null,{"$f":"IF(I7=0,\"\",(G7*H7)/910*I7)","v":""},null,{"$f":"IF(K7=0,\" \",J7*K7)","v":" "}]
[null,null,null,null,null,null,null,null,null,"",null," "]
[null,null,null,null,null,null,null,null,null,"",null," "]
[null,null,null,null,null,null,null,null,null,"",null," "]
[null,null,null,null,null,null,null,null,null,"",null," "]
[null,null,null,null,null,null,null,null,null,"",null," "]
[null,null,null,null,null,null,null,null,null,"",null," "]
[null,null,null,null,null,null,null,null,null,"",null," "]
[null,null,null,null,null,null,null,null,null,"",null," "]
[null,null,null,null,null,null,null,null,null,"",null," "]
[null,null,null,null,null,null,null,null,null,"",null," "]
[null,null,null,null,null,null,null,null,null,"",null," "]
[null,null,null,null,null,null,null,null,null,"",null," "]
[null,null,null,null,null,null,null,null,null,"",null," "]
[null,null,null,null,null,null,null,null,null,"",null," "]
[null,null,null,null,null,null,null,null,null,"",null," "]
[null,null,null,null,null,null,null,null,null,"",null," "]
[null,null,null,null,null,null,null,null,null,"",null," "]
[null,null,null,null,null,null,null,null,null,"",null," "]
[null,null,null,null,null,null,null,null,null,"",null," "]
[null,null,null,null,null,null,null,null,null,"",null," "]
[null,null,null,null,null,null,null,null,null,"",null," "]
[null,null,null,null,null,null,null,null,null,"",null," "]
[null,null,null,null,null,null,null,null,null,"",null," "]
[null,null,null,null,null,null,null,null,null,"",null," "]
[null,null,null,null,null,null,null,null,null,"",null," "]
[null,null,null,null,null,null,null,null,null,"",null," "]
[null,null,null,null,null,null,null,null,null,"",null," "]
[null,null,null,null,null,null,null,null,null,"",null," "]
[null,null,null,null,null,null,null,null,null,"",null," "]
[null,null,null,null,null,null,null,null,null,"",null," "]
[null,null,null,null,null,null,null,null,null,"",null," "]
[null,null,null,null,null,null,null,null,null,"",null," "]
[null,null,null,null,null,null,null,null,null,"",null," "]
[null,null,null,null,null,null,null,null,null,"",null," "]
[null,null,null,null,null,null,null,null,null,"",null," "]
[null,null,null,null,null,null,null,null,null,"",null," "]
[null,null,null,null,null,null,null,null,null,"",null," "]
[null,null,null,null,null,null,null,null,null,"",null," "]
[null,null,null,null,null,null,null,null,null,"",null," "]
["TOTAL AUM'S FOR UNIT:",null,null,null,null,null,null,null,null,null,{"$f":"SUM(M6:M46)","v":0}]
[" * Adjustments are reductions to forage due to drought, topography, tree cover, brush cover and other factors that reduce the amount of forage available for livestock or accessibility (as compared to \"average\" for the site)."]

{"sheet":"NE-CPA-17C Range Condition","index":9,"n_rows":53,"n_cols":14,"rows_kept":53,"cut":false,"hidden":false,"merged":[[52,0,52,13],[51,0,51,11],[1,12,1,13],[3,4,4,4],[3,5,4,5],[3,6,4,6],[3,8,4,8],[3,0,3,2],[2,8,2,10],[2,11,2,13],[2,0,2,3],[0,0,0,2],[0,4,1,10],[1,0,1,2],[51,12,51,13],[3,10,4,10],[3,11,4,11],[3,12,4,12],[3,13,4,13],[3,7,4,7],[2,4,2,7],[3,9,4,9]]}
[null,null,null,null,"RANGE INVENTORY SUMMARY AND SUGGESTED INITIAL STOCKING RATES BASED ON CURRENT RANGE CONDITION - NE-CPA-17C"]
[null,null,null,null,null,null,null,null,null,null,null,null,"January, 2015"]
["CLIENT:",null,null,null,{"$f":"'528 Jobsheet Cover_Sheet'!C4","v":0},null,null,null,"DATE:",null,null,{"$f":"'528 Jobsheet Cover_Sheet'!K4","v":"00:00:00"}]
["PASTURE",null,null,null,"RANGE SITE","Condition","AUM's / ac","Planned Harvest Efficiency","Adjustment for Harvest Efficiency","Acres for site","AUM for Site ","Adj. Factor","Adjusted AUM*","AUM for pasture"]
["No.","ACRES","Soil Map Unit No.","MLRA"]
[null,null,null,null,null,null,null,null,{"$f":"IF(H6=0, \"\",(VLOOKUP(H6,DATA!$C$217:$D$220,2,FALSE)))","v":""},null,{"$f":"IF(J6=0,\"\",G6*I6*J6)","v":""},null,{"$f":"IF(L6=0,\" \",K6*L6)","v":" "}]
[null,null,null,null,null,null,null,null,{"$f":"IF(H7=0, \"\",(VLOOKUP(H7,DATA!$C$217:$D$220,2,FALSE)))","v":""},null,{"$f":"IF(J7=0,\"\",G7*I7*J7)","v":""},null,{"$f":"IF(L7=0,\" \",K7*L7)","v":" "}]
[null,null,null,null,null,null,null,null,{"$f":"IF(H8=0, \"\",(VLOOKUP(H8,DATA!$C$217:$D$220,2,FALSE)))","v":""},null,"",null," "]
[null,null,null,null,null,null,null,null,{"$f":"IF(H9=0, \"\",(VLOOKUP(H9,DATA!$C$217:$D$220,2,FALSE)))","v":""},null,"",null," "]
[null,null,null,null,null,null,null,null,{"$f":"IF(H10=0, \"\",(VLOOKUP(H10,DATA!$C$217:$D$220,2,FALSE)))","v":""},null,"",null," "]
[null,null,null,null,null,null,null,null,{"$f":"IF(H11=0, \"\",(VLOOKUP(H11,DATA!$C$217:$D$220,2,FALSE)))","v":""},null,"",null," "]
[null,null,null,null,null,null,null,null,{"$f":"IF(H12=0, \"\",(VLOOKUP(H12,DATA!$C$217:$D$220,2,FALSE)))","v":""},null,"",null," "]
[null,null,null,null,null,null,null,null,{"$f":"IF(H13=0, \"\",(VLOOKUP(H13,DATA!$C$217:$D$220,2,FALSE)))","v":""},null,"",null," "]
[null,null,null,null,null,null,null,null,{"$f":"IF(H14=0, \"\",(VLOOKUP(H14,DATA!$C$217:$D$220,2,FALSE)))","v":""},null,"",null," "]
[null,null,null,null,null,null,null,null,{"$f":"IF(H15=0, \"\",(VLOOKUP(H15,DATA!$C$217:$D$220,2,FALSE)))","v":""},null,"",null," "]
[null,null,null,null,null,null,null,null,{"$f":"IF(H16=0, \"\",(VLOOKUP(H16,DATA!$C$217:$D$220,2,FALSE)))","v":""},null,"",null," "]
[null,null,null,null,null,null,null,null,{"$f":"IF(H17=0, \"\",(VLOOKUP(H17,DATA!$C$217:$D$220,2,FALSE)))","v":""},null,"",null," "]
[null,null,null,null,null,null,null,null,{"$f":"IF(H18=0, \"\",(VLOOKUP(H18,DATA!$C$217:$D$220,2,FALSE)))","v":""},null,"",null," "]
[null,null,null,null,null,null,null,null,{"$f":"IF(H19=0, \"\",(VLOOKUP(H19,DATA!$C$217:$D$220,2,FALSE)))","v":""},null,"",null," "]
[null,null,null,null,null,null,null,null,{"$f":"IF(H20=0, \"\",(VLOOKUP(H20,DATA!$C$217:$D$220,2,FALSE)))","v":""},null,"",null," "]
[null,null,null,null,null,null,null,null,{"$f":"IF(H21=0, \"\",(VLOOKUP(H21,DATA!$C$217:$D$220,2,FALSE)))","v":""},null,"",null," "]
[null,null,null,null,null,null,null,null,{"$f":"IF(H22=0, \"\",(VLOOKUP(H22,DATA!$C$217:$D$220,2,FALSE)))","v":""},null,"",null," "]
[null,null,null,null,null,null,null,null,{"$f":"IF(H23=0, \"\",(VLOOKUP(H23,DATA!$C$217:$D$220,2,FALSE)))","v":""},null,"",null," "]
[null,null,null,null,null,null,null,null,{"$f":"IF(H24=0, \"\",(VLOOKUP(H24,DATA!$C$217:$D$220,2,FALSE)))","v":""},null,"",null," "]
[null,null,null,null,null,null,null,null,{"$f":"IF(H25=0, \"\",(VLOOKUP(H25,DATA!$C$217:$D$220,2,FALSE)))","v":""},null,"",null," "]
[null,null,null,null,null,null,null,null,{"$f":"IF(H26=0, \"\",(VLOOKUP(H26,DATA!$C$217:$D$220,2,FALSE)))","v":""},null,"",null," "]
[null,null,null,null,null,null,null,null,{"$f":"IF(H27=0, \"\",(VLOOKUP(H27,DATA!$C$217:$D$220,2,FALSE)))","v":""},null,"",null," "]
[null,null,null,null,null,null,null,null,{"$f":"IF(H28=0, \"\",(VLOOKUP(H28,DATA!$C$217:$D$220,2,FALSE)))","v":""},null,"",null," "]
[null,null,null,null,null,null,null,null,{"$f":"IF(H29=0, \"\",(VLOOKUP(H29,DATA!$C$217:$D$220,2,FALSE)))","v":""},null,"",null," "]
[null,null,null,null,null,null,null,null,{"$f":"IF(H30=0, \"\",(VLOOKUP(H30,DATA!$C$217:$D$220,2,FALSE)))","v":""},null,"",null," "]
[null,null,null,null,null,null,null,null,{"$f":"IF(H31=0, \"\",(VLOOKUP(H31,DATA!$C$217:$D$220,2,FALSE)))","v":""},null,"",null," "]
[null,null,null,null,null,null,null,null,{"$f":"IF(H32=0, \"\",(VLOOKUP(H32,DATA!$C$217:$D$220,2,FALSE)))","v":""},null,"",null," "]
[null,null,null,null,null,null,null,null,{"$f":"IF(H33=0, \"\",(VLOOKUP(H33,DATA!$C$217:$D$220,2,FALSE)))","v":""},null,"",null," "]
[null,null,null,null,null,null,null,null,{"$f":"IF(H34=0, \"\",(VLOOKUP(H34,DATA!$C$217:$D$220,2,FALSE)))","v":""},null,"",null," "]
[null,null,null,null,null,null,null,null,{"$f":"IF(H35=0, \"\",(VLOOKUP(H35,DATA!$C$217:$D$220,2,FALSE)))","v":""},null,"",null," "]
[null,null,null,null,null,null,null,null,{"$f":"IF(H36=0, \"\",(VLOOKUP(H36,DATA!$C$217:$D$220,2,FALSE)))","v":""},null,"",null," "]
[null,null,null,null,null,null,null,null,{"$f":"IF(H37=0, \"\",(VLOOKUP(H37,DATA!$C$217:$D$220,2,FALSE)))","v":""},null,"",null," "]
[null,null,null,null,null,null,null,null,{"$f":"IF(H38=0, \"\",(VLOOKUP(H38,DATA!$C$217:$D$220,2,FALSE)))","v":""},null,"",null," "]
[null,null,null,null,null,null,null,null,{"$f":"IF(H39=0, \"\",(VLOOKUP(H39,DATA!$C$217:$D$220,2,FALSE)))","v":""},null,"",null," "]
[null,null,null,null,null,null,null,null,{"$f":"IF(H40=0, \"\",(VLOOKUP(H40,DATA!$C$217:$D$220,2,FALSE)))","v":""},null,"",null," "]
[null,null,null,null,null,null,null,null,{"$f":"IF(H41=0, \"\",(VLOOKUP(H41,DATA!$C$217:$D$220,2,FALSE)))","v":""},null,"",null," "]
[null,null,null,null,null,null,null,null,{"$f":"IF(H42=0, \"\",(VLOOKUP(H42,DATA!$C$217:$D$220,2,FALSE)))","v":""},null,"",null," "]
[null,null,null,null,null,null,null,null,{"$f":"IF(H43=0, \"\",(VLOOKUP(H43,DATA!$C$217:$D$220,2,FALSE)))","v":""},null,"",null," "]
[null,null,null,null,null,null,null,null,{"$f":"IF(H44=0, \"\",(VLOOKUP(H44,DATA!$C$217:$D$220,2,FALSE)))","v":""},null,"",null," "]
[null,null,null,null,null,null,null,null,{"$f":"IF(H45=0, \"\",(VLOOKUP(H45,DATA!$C$217:$D$220,2,FALSE)))","v":""},null,"",null," "]
[null,null,null,null,null,null,null,null,{"$f":"IF(H46=0, \"\",(VLOOKUP(H46,DATA!$C$217:$D$220,2,FALSE)))","v":""},null,"",null," "]
[null,null,null,null,null,null,null,null,{"$f":"IF(H47=0, \"\",(VLOOKUP(H47,DATA!$C$217:$D$220,2,FALSE)))","v":""},null,"",null," "]
[null,null,null,null,null,null,null,null,{"$f":"IF(H48=0, \"\",(VLOOKUP(H48,DATA!$C$217:$D$220,2,FALSE)))","v":""},null,"",null," "]
[null,null,null,null,null,null,null,null,{"$f":"IF(H49=0, \"\",(VLOOKUP(H49,DATA!$C$217:$D$220,2,FALSE)))","v":""},null,"",null," "]
[null,null,null,null,null,null,null,null,{"$f":"IF(H50=0, \"\",(VLOOKUP(H50,DATA!$C$217:$D$220,2,FALSE)))","v":""},null,"",null," "]
[null,null,null,null,null,null,null,null,{"$f":"IF(H51=0, \"\",(VLOOKUP(H51,DATA!$C$217:$D$220,2,FALSE)))","v":""},null,"",null," "]
["TOTAL AUM'S FOR UNIT :",null,null,null,null,null,null,null,null,null,null,null,{"$f":"SUM(N6:N51)","v":0}]
[" * Adjustments are reductions to forage due to topography, tree cover, brush cover and other factors that reduce the amount of forage available for livestock."]

{"sheet":"528-JS_Lvstk-Forage-Bal-ANN","index":10,"n_rows":76,"n_cols":12,"rows_kept":76,"cut":false,"hidden":false,"merged":[[16,0,16,1],[20,2,20,3],[20,0,20,1],[2,4,2,9],[74,2,74,4],[74,6,74,8],[24,1,24,2],[30,1,30,2],[26,1,26,2],[27,1,27,2],[40,9,40,10],[31,9,31,10],[32,5,32,6],[34,1,34,10],[25,1,25,10],[51,5,51,6],[51,7,51,8],[48,3,48,4],[48,5,48,6],[48,7,48,8],[22,0,22,11],[75,6,75,8],[54,3,54,4],[55,3,55,4],[56,3,56,4],[57,3,57,4],[58,3,58,4],[59,3,59,4],[60,3,60,4],[61,3,61,4],[62,3,62,4],[63,3,63,4],[64,3,64,4],[65,3,65,4],[66,3,66,4],[67,3,67,4],[68,3,68,4],[69,3,69,4],[70,3,70,4],[71,3,71,4],[72,3,72,4],[73,3,73,4],[0,0,0,2],[1,0,1,1],[3,2,3,3],[3,0,3,1],[3,4,3,5],[3,6,3,9],[17,0,17,1],[18,0,18,1],[19,0,19,1],[4,0,4,2],[4,3,4,11],[5,0,5,11],[14,0,14,1],[15,0,15,1],[8,7,8,11],[8,2,8,6],[9,7,10,7],[9,8,10,8],[9,9,10,9],[9,10,10,10],[9,11,10,11],[1,4,1,9],[0,4,0,9],[0,10,2,11],[49,5,49,6],[49,7,49,8],[50,5,50,6],[50,7,50,8],[24,0,40,0],[23,1,23,10],[40,5,40,6],[40,1,40,4],[40,7,40,8],[27,5,27,6],[28,5,28,6],[32,1,32,2],[26,9,26,10],[27,9,27,10],[28,9,28,10],[29,9,29,10],[30,9,30,10],[29,5,29,6],[30,5,30,6],[39,1,39,2],[24,15,26,16],[24,13,26,14],[24,11,40,11],[24,7,24,10],[26,5,26,6],[24,3,24,6],[6,0,6,11],[7,0,7,11],[8,13,8,16],[9,13,9,14],[9,15,9,16],[9,2,10,2],[9,4,10,4],[9,0,10,1],[11,0,11,1],[12,0,12,1],[13,0,13,1],[9,3,10,3],[9,5,10,5],[9,6,10,6],[8,0,8,1],[36,1,36,2],[37,1,37,2],[38,1,38,2],[53,10,54,11],[89,1,105,10],[44,3,44,8],[46,3,46,4],[47,3,47,4],[20,7,20,8],[21,0,21,1],[21,2,21,11],[76,1,88,11],[53,3,53,4],[49,3,49,4],[50,3,50,4],[51,3,51,4],[45,5,45,6],[45,7,45,8],[46,5,46,6],[46,7,46,8],[47,5,47,6],[31,1,31,2],[31,5,31,6],[35,1,35,2],[29,1,29,2],[28,1,28,2],[47,7,47,8]]}
[null,null,null,null,"PRESCRIBED GRAZING JOBSHEET ",null,null,null,null,null,"April, 2015"]
[null,null,null,null,"NE-ECS-528"]
[null,null,null,null,"Livestock and Forage Inventory and Forage Balance"]
["FIELD OFFICE:  ",null,{"$f":"'528 Jobsheet Cover_Sheet'!C3","v":0},null,"CLIENT:  ",null,{"$f":"'528 Jobsheet Cover_Sheet'!C4","v":0},null,null,null,"DATE:",{"$f":"'528 Jobsheet Cover_Sheet'!K4","v":"00:00:00"}]
["System and Herd Information:"]
[]
[" LIVESTOCK INVENTORY AND FORAGE REQUIREMENTS "]
[]
[null,null,"Existing",null,null,null,null,"Planned"]
["Class of Livestock",null,"Animal Numbers","Average Weight","Animal Unit Equivalent (AUE)","Months on Unit","AUM's Required","Animal Numbers","Average Weight","Animal Unit Equivalent (AUE)","Months on Unit","AUM's Required"]
[]
[null,null,null,null,{"$f":"IF(A12=0,\"\",D12/1000)","v":""},null,{"$f":"IF(C12=0,\"\",SUM(C12*E12*F12))","v":""},null,null,{"$f":"IF(A12=0,\"\",I12/1000)","v":""},null,{"$f":"IF(A12=0,\"\",SUM(H12*J12*K12))","v":""}]
[null,null,null,null,{"$f":"IF(A13=0,\"\",D13/1000)","v":""},null,{"$f":"IF(C13=0,\"\",SUM(C13*E13*F13))","v":""},null,null,{"$f":"IF(A13=0,\"\",I13/1000)","v":""},null,{"$f":"IF(A13=0,\"\",SUM(H13*J13*K13))","v":""}]
[null,null,null,null,"",null,"",null,null,"",null,{"$f":"IF(A14=0,\"\",SUM(H14*J14*K14))","v":""}]
[null,null,null,null,"",null,"",null,null,"",null,""]
[null,null,null,null,"",null,"",null,null,"",null,""]
[null,null,null,null,"",null,"",null,null,"",null,""]
[null,null,null,null,"",null,"",null,null,"",null,""]
[null,null,null,null,"",null,"",null,null,{"$f":"IF(H19=0,\"\",I19/1000)","v":""},null,""]
[null,null,null,null,"",null,"",null,null,"",null,""]
[null,null,"Total # Animals",null,{"$f":"SUM(C12:C20)","v":0},"Total # AUM's",{"$f":"SUM(G12:G20)","v":0},"Total # Animals",null,{"$f":"SUM(H12:H20)","v":0},"Total # AUM's",{"$f":"SUM(L12:L20)","v":0}]
["COMMENTS:"]
[]
[null,"FORAGE INVENTORY - AVAILABLE FORAGE RESOURCES"]
[null,null,null,"Existing",null,null,null,"Planned"]
[null,"GRAZED FORAGES"]
[null,"Type of Forage",null,"Acres","AUM's  Available","Season of Use",null,"Acres","AUM's Available","Season of Use"]
[null,"Rangeland"]
[null,"Pastureland"]
[null,"Annual Forage"]
[null,"Crop Residue"]
[null,"Other Grazed"]
[null,"Total Acres - Forage",null,{"$f":"SUM(D28:D32)","v":0},"Total AUM's Available",{"$f":"SUM(E28:E32)","v":0},null,"Total Ac. Forage",{"$f":"SUM(H28:H32)","v":0},"Total Available AUM's: ",{"$f":"SUM(I28:I32)","v":0}]
[]
[null,"HARVESTED FORAGES (HAY & GRAIN) - OPTIONAL"]
[null,"Type of Feed",null,"Source","Total Tons Available","Conversion  Factor","AUM's ","Source","Total Tons Available","Conversion Factor","AUM's"]
[null,null,null,null,null,{"$f":"IF(B37=0,\" \",VLOOKUP(B37,DATA!$A$1:$B$6,2,FALSE))","v":" "},{"$f":"IF(B37=0,\"\", SUM(E37*F37))","v":""},null,null,{"$f":"IF(B37=0,\" \",VLOOKUP(B37,DATA!$A$1:$B$6,2,FALSE))","v":" "},{"$f":"IF(B37=0,\"\", SUM(I37*J37))","v":""}]
[null,null,null,null,null,{"$f":"IF(B38=0,\" \",VLOOKUP(B38,DATA!$A$1:$B$6,2,FALSE))","v":" "},{"$f":"IF(B38=0,\"\", SUM(E38*F38))","v":""},null,null,{"$f":"IF(B38=0,\" \",VLOOKUP(B38,DATA!$A$1:$B$6,2,FALSE))","v":" "},{"$f":"IF(B38=0,\"\", SUM(I38*J38))","v":""}]
[null,null,null,null,null,{"$f":"IF(B39=0,\" \",VLOOKUP(B39,DATA!$A$1:$B$6,2,FALSE))","v":" "},{"$f":"IF(B39=0,\"\", SUM(E39*F39))","v":""},null,null,{"$f":"IF(B39=0,\" \",VLOOKUP(B39,DATA!$A$1:$B$6,2,FALSE))","v":" "},{"$f":"IF(B39=0,\"\", SUM(I39*J39))","v":""}]
[null,null,null,null,null,{"$f":"IF(B40=0,\" \",VLOOKUP(B40,DATA!$A$1:$B$6,2,FALSE))","v":" "},{"$f":"IF(B40=0,\"\", SUM(E40*F40))","v":""},null,null,{"$f":"IF(B40=0,\" \",VLOOKUP(B40,DATA!$A$1:$B$6,2,FALSE))","v":" "},{"$f":"IF(B40=0,\"\", SUM(I40*J40))","v":""}]
[null,"Total AUM's Available",null,null,null,{"$f":"SUM(G37:G40)","v":0},null,"Total AUM's Available",null,{"$f":"SUM(K37:K40)","v":0}]
[]
[]
[]
[null,null,null," FORAGE BALANCE FOR UNIT"]
[null,null,null,null,null,"Existing",null,"Planned"]
[null,null,null,"AUM'S Available -Grazing",null,{"$f":"F33","v":0},null,{"$f":"K33","v":0}]
[null,null,null,"AUM'S Available - Feed",null,{"$f":"F41","v":0},null,{"$f":"J41","v":0}]
[null,null,null,"Total AUM's Available",null,{"$f":"SUM(F47:F48)","v":0},null,{"$f":"SUM(H47:H48)","v":0}]
[null,null,null,"AUM's Needed",null,{"$f":"G21","v":0},null,{"$f":"L21","v":0}]
[null,null,null,"Forage Balance",null,{"$f":"F49-F50","v":0},null,{"$f":"H49-H50","v":0}]
[null,null,null,"% Difference",null,{"$f":"(F51/F50)*100","v":{"$error":"#DIV/0!"}},null,{"$f":"(H51/H50)*100","v":{"$error":"#DIV/0!"}}]
[]
[null,null,"Field Number","Field Name",null,"Type of Forage","Acres","Planned Harvest Efficiency","Estimated AUM's Available ","Estimated Days Per Pasture"]
[null,null,null,null,null,null,null,null,null,{"$f":"IF(I55=0,\" \",($I55/$J$75)*$F$75)","v":" "}]
[null,null,null,null,null,null,null,null,null,{"$f":"IF(I56=0,\" \",($I56/$J$75)*$F$75)","v":" "}]
[null,null,null,null,null,null,null,null,null," "]
[null,null,null,null,null,null,null,null,null," "]
[null,null,null,null,null,null,null,null,null," "]
[null,null,null,null,null,null,null,null,null," "]
[null,null,null,null,null,null,null,null,null," "]
[null,null,null,null,null,null,null,null,null," "]
[null,null,null,null,null,null,null,null,null," "]
[null,null,null,null,null,null,null,null,null," "]
[null,null,null,null,null,null,null,null,null," "]
[null,null,null,null,null,null,null,null,null," "]
[null,null,null,null,null,null,null,null,null," "]
[null,null,null,null,null,null,null,null,null," "]
[null,null,null,null,null,null,null,null,null," "]
[null,null,null,null,null,null,null,null,null," "]
[null,null,null,null,null,null,null,null,null," "]
[null,null,null,null,null,null,null,null,null," "]
[null,null,null,null,null,null,null,null,null," "]
[null,null,null,null,null,null,null,null,null," "]
[null,null,"Length of Grazing System - days",null,null,null,"TOTAL AUM's for system",null,null,{"$f":"SUM(I55:I74)","v":0}]
[null,null,null,null,null,null,"TOTAL Acres for system",null,null,{"$f":"SUM(G55:G74)","v":0}]

{"sheet":"528-JS-Lvstk-Forage-Bal_MONTH","index":11,"n_rows":94,"n_cols":19,"rows_kept":94,"cut":false,"hidden":false,"merged":[[23,14,23,15],[24,14,24,15],[25,14,25,15],[26,14,26,15],[48,1,48,18],[50,4,51,6],[50,7,50,18],[90,0,90,18],[64,0,64,1],[65,0,65,1],[66,0,66,1],[58,4,58,6],[55,4,55,6],[56,4,56,6],[76,0,76,1],[77,0,77,1],[78,0,78,1],[27,8,28,13],[52,4,52,6],[115,0,134,18],[95,0,114,18],[94,0,94,18],[91,0,91,3],[89,0,89,18],[49,0,49,18],[50,0,51,3],[52,0,52,3],[53,0,53,3],[54,0,54,3],[55,0,55,3],[56,0,56,3],[57,0,57,3],[58,0,58,3],[60,0,60,18],[61,0,62,1],[63,0,63,1],[69,0,69,1],[70,0,70,1],[71,0,71,1],[72,0,72,1],[73,0,73,1],[84,0,84,5],[85,0,85,5],[1,6,1,13],[2,6,2,13],[3,3,3,5],[3,6,3,7],[1,0,2,5],[3,0,3,2],[3,17,3,18],[3,15,3,16],[3,8,3,14],[2,17,2,18],[19,1,19,6],[4,1,4,18],[7,4,8,4],[7,5,8,5],[7,6,8,6],[7,7,7,18],[7,0,8,3],[9,0,9,3],[5,0,6,18],[10,0,10,3],[13,0,13,3],[14,0,14,18],[15,0,15,3],[16,0,17,18],[15,4,15,6],[11,0,11,3],[12,0,12,3],[18,1,18,18],[19,8,19,17],[20,16,21,17],[25,1,25,2],[26,1,26,2],[27,1,27,2],[20,3,21,3],[20,6,21,6],[20,8,21,9],[20,12,21,13],[27,16,28,17],[27,14,28,15],[20,14,21,15],[22,16,22,17],[23,16,23,17],[22,12,22,13],[23,12,23,13],[22,8,22,9],[20,5,21,5],[20,4,21,4],[22,14,22,15],[20,1,21,2],[20,10,21,11],[24,12,24,13],[25,12,25,13],[28,5,28,6],[93,5,93,6],[93,0,93,3],[93,7,93,8],[93,9,93,11],[93,12,93,13],[93,14,93,16],[74,2,74,3],[63,2,63,3],[64,2,64,3],[65,2,65,3],[66,2,66,3],[67,2,67,3],[68,2,68,3],[81,2,81,3],[82,2,82,3],[83,6,84,6],[75,2,75,3],[76,2,76,3],[77,2,77,3],[78,2,78,3],[79,2,79,3],[80,2,80,3],[86,0,86,5],[87,0,87,5],[91,5,91,6],[91,7,91,8],[53,4,53,6],[54,4,54,6],[74,0,74,1],[75,0,75,1],[67,0,67,1],[68,0,68,1],[83,0,83,5],[72,2,72,3],[73,2,73,3],[69,2,69,3],[70,2,70,3],[71,2,71,3],[61,2,62,3],[61,4,61,6],[61,7,61,18],[57,4,57,6],[91,14,91,16],[91,9,91,11],[91,12,91,13],[135,0,153,18],[22,10,22,11],[23,10,23,11],[24,10,24,11],[25,10,25,11],[26,10,26,11],[79,0,79,1],[80,0,80,1],[81,0,81,1],[82,0,82,1],[22,1,22,2],[23,1,23,2],[24,1,24,2],[30,0,47,18],[28,1,28,4],[24,16,24,17],[25,16,25,17],[26,16,26,17],[26,12,26,13],[29,2,29,18],[23,8,23,9],[24,8,24,9],[25,8,25,9],[26,8,26,9]]}
[]
[null,null,null,null,null,null,"PRESCRIBED GRAZING JOBSHEET  NE-ECS-528"]
[null,null,null,null,null,null,"Livestock and Forage Inventory and Forage Balance",null,null,null,null,null,null,null,null,null,null,"April, 2015"]
["FIELD OFFICE:  ",null,null,{"$f":"'528 Jobsheet Cover_Sheet'!C3","v":0},null,null,"CLIENT:  ",null,{"$f":"'528 Jobsheet Cover_Sheet'!C4","v":0},null,null,null,null,null,null,"DATE:  ",null,{"$f":"'528 Jobsheet Cover_Sheet'!K4","v":"00:00:00"}]
[]
["Livestock Numbers and Forage Needs"]
[]
["Livestock",null,null,null,"Planned number","AU equivalents","Total AU's","AU's of forage needed - for operation or portion of operation - for each month"]
[null,null,null,null,null,null,null,"Jan","Feb","Mar","Apr","May","Jun","Jul","Aug","Sep","Oct","Nov","Dec"]
[null,null,null,null,null,null,{"$f":"SUM(E10*F10)","v":0}]
[null,null,null,null,null,null,{"$f":"SUM(E11*F11)","v":0}]
[null,null,null,null,null,null,{"$f":"SUM(E12*F12)","v":0}]
[null,null,null,null,null,null,{"$f":"SUM(E13*F13)","v":0}]
[null,null,null,null,null,null,{"$f":"SUM(E14*F14)","v":0}]
[]
["Total Forage Needs (AUM's)",null,null,null,{"$f":"SUM(H16:S16)","v":0},null,null,{"$f":"SUM(H10:H14)","v":0},0,0,0,0,0,0,0,0,0,0,0]
["Comments:  "]
[]
[]
[null,"FEED REQUIREMENTS (OPTIONAL)",null,null,null,null,null,null,"HARVESTED AND/OR PURCHASED FEEDS  (OPTIONAL)"]
[null,"Livestock",null,"Animal Unit Equivalents","Planned Number","Months on Feed","Needed AUM's",null,"Type",null,"Acres",null,"Total tons per feed type",null,"Conversion Factor",null,"AUM's Available"]
[]
[null,null,null,null,null,null,{"$f":"D23*E23*F23","v":0},null,null,null,null,null,null,null,{"$f":"IF(I23=0,\"\",(VLOOKUP(I23,DATA!$A$1:$B$6,2,FALSE)))","v":""},null,{"$f":"IF(I23=0,\"\",(M23*O23))","v":""}]
[null,null,null,null,null,null,0,null,null,null,null,null,null,null,{"$f":"IF(I24=0,\"\",(VLOOKUP(I24,DATA!$A$1:$B$6,2,FALSE)))","v":""},null,{"$f":"IF(I24=0,\"\",(M24*O24))","v":""}]
[null,null,null,null,null,null,0,null,null,null,null,null,null,null,{"$f":"IF(I25=0,\"\",(VLOOKUP(I25,DATA!$A$1:$B$6,2,FALSE)))","v":""},null,{"$f":"IF(I25=0,\"\",(M25*O25))","v":""}]
[null,null,null,null,null,null,0,null,null,null,null,null,null,null,{"$f":"IF(I26=0,\"\",(VLOOKUP(I26,DATA!$A$1:$B$6,2,FALSE)))","v":""},null,{"$f":"IF(I26=0,\"\",(M26*O26))","v":""}]
[null,null,null,null,null,null,0,null,null,null,null,null,null,null,{"$f":"IF(I27=0,\"\",(VLOOKUP(I27,DATA!$A$1:$B$6,2,FALSE)))","v":""},null,{"$f":"IF(I27=0,\"\",(M27*O27))","v":""}]
[null,null,null,null,null,null,0,null,null,null,null,null,null,null,"TOTAL AUM's",null,{"$f":"SUM(Q23:Q27)","v":0}]
[null,"TOTAL:  ",null,null,null,{"$f":"SUM(G23:G28)","v":0}]
[]
[]
[]
[]
[]
[]
[]
[]
[]
[]
[]
[]
[]
[]
[]
[]
[]
[]
[]
[]
["Growth Curves"]
["Description",null,null,null,"Curve Number",null,null,"% Forage Produced by Month"]
[null,null,null,null,null,null,null,"Jan","Feb","Mar","Apr","May","Jun","Jul","Aug","Sep","Oct","Nov","Dec"]
[null,null,null,null,1,null,null,{"$f":"IF($A53=0,\" \",VLOOKUP($A53,DATA!$L$2:$X$143,2,FALSE))","v":" "},{"$f":"IF($A53=0,\" \",VLOOKUP($A53,DATA!$L$2:$X$143,3,FALSE))","v":" "},{"$f":"IF($A53=0,\" \",VLOOKUP($A53,DATA!$L$2:$X$143,4,FALSE))","v":" "},{"$f":"IF($A53=0,\" \",VLOOKUP($A53,DATA!$L$2:$X$143,5,FALSE))","v":" "},{"$f":"IF($A53=0,\" \",VLOOKUP($A53,DATA!$L$2:$X$143,6,FALSE))","v":" "},{"$f":"IF($A53=0,\" \",VLOOKUP($A53,DATA!$L$2:$X$143,7,FALSE))","v":" "},{"$f":"IF($A53=0,\" \",VLOOKUP($A53,DATA!$L$2:$X$143,8,FALSE))","v":" "},{"$f":"IF($A53=0,\" \",VLOOKUP($A53,DATA!$L$2:$X$143,9,FALSE))","v":" "},{"$f":"IF($A53=0,\" \",VLOOKUP($A53,DATA!$L$2:$X$143,10,FALSE))","v":" "},{"$f":"IF($A53=0,\" \",VLOOKUP($A53,DATA!$L$2:$X$143,11,FALSE))","v":" "},{"$f":"IF($A53=0,\" \",VLOOKUP($A53,DATA!$L$2:$X$143,12,FALSE))","v":" "},{"$f":"IF($A53=0,\" \",VLOOKUP($A53,DATA!$L$2:$X$143,13,FALSE))","v":" "}]
[null,null,null,null,2,null,null,{"$f":"IF($A54=0,\" \",VLOOKUP($A54,DATA!$L$2:$X$143,2,FALSE))","v":" "},{"$f":"IF($A54=0,\" \",VLOOKUP($A54,DATA!$L$2:$X$143,3,FALSE))","v":" "},{"$f":"IF($A54=0,\" \",VLOOKUP($A54,DATA!$L$2:$X$143,4,FALSE))","v":" "},{"$f":"IF($A54=0,\" \",VLOOKUP($A54,DATA!$L$2:$X$143,5,FALSE))","v":" "},{"$f":"IF($A54=0,\" \",VLOOKUP($A54,DATA!$L$2:$X$143,6,FALSE))","v":" "},{"$f":"IF($A54=0,\" \",VLOOKUP($A54,DATA!$L$2:$X$143,7,FALSE))","v":" "},{"$f":"IF($A54=0,\" \",VLOOKUP($A54,DATA!$L$2:$X$143,8,FALSE))","v":" "},{"$f":"IF($A54=0,\" \",VLOOKUP($A54,DATA!$L$2:$X$143,9,FALSE))","v":" "},{"$f":"IF($A54=0,\" \",VLOOKUP($A54,DATA!$L$2:$X$143,10,FALSE))","v":" "},{"$f":"IF($A54=0,\" \",VLOOKUP($A54,DATA!$L$2:$X$143,11,FALSE))","v":" "},{"$f":"IF($A54=0,\" \",VLOOKUP($A54,DATA!$L$2:$X$143,12,FALSE))","v":" "},{"$f":"IF($A54=0,\" \",VLOOKUP($A54,DATA!$L$2:$X$143,13,FALSE))","v":" "}]
[null,null,null,null,3,null,null,{"$f":"IF($A55=0,\" \",VLOOKUP($A55,DATA!$L$2:$X$143,2,FALSE))","v":" "},{"$f":"IF($A55=0,\" \",VLOOKUP($A55,DATA!$L$2:$X$143,3,FALSE))","v":" "},{"$f":"IF($A55=0,\" \",VLOOKUP($A55,DATA!$L$2:$X$143,4,FALSE))","v":" "},{"$f":"IF($A55=0,\" \",VLOOKUP($A55,DATA!$L$2:$X$143,5,FALSE))","v":" "},{"$f":"IF($A55=0,\" \",VLOOKUP($A55,DATA!$L$2:$X$143,6,FALSE))","v":" "},{"$f":"IF($A55=0,\" \",VLOOKUP($A55,DATA!$L$2:$X$143,7,FALSE))","v":" "},{"$f":"IF($A55=0,\" \",VLOOKUP($A55,DATA!$L$2:$X$143,8,FALSE))","v":" "},{"$f":"IF($A55=0,\" \",VLOOKUP($A55,DATA!$L$2:$X$143,9,FALSE))","v":" "},{"$f":"IF($A55=0,\" \",VLOOKUP($A55,DATA!$L$2:$X$143,10,FALSE))","v":" "},{"$f":"IF($A55=0,\" \",VLOOKUP($A55,DATA!$L$2:$X$143,11,FALSE))","v":" "},{"$f":"IF($A55=0,\" \",VLOOKUP($A55,DATA!$L$2:$X$143,12,FALSE))","v":" "},{"$f":"IF($A55=0,\" \",VLOOKUP($A55,DATA!$L$2:$X$143,13,FALSE))","v":" "}]
[null,null,null,null,4,null,null,{"$f":"IF($A56=0,\" \",VLOOKUP($A56,DATA!$L$2:$X$143,2,FALSE))","v":" "},{"$f":"IF($A56=0,\" \",VLOOKUP($A56,DATA!$L$2:$X$143,3,FALSE))","v":" "},{"$f":"IF($A56=0,\" \",VLOOKUP($A56,DATA!$L$2:$X$143,4,FALSE))","v":" "},{"$f":"IF($A56=0,\" \",VLOOKUP($A56,DATA!$L$2:$X$143,5,FALSE))","v":" "},{"$f":"IF($A56=0,\" \",VLOOKUP($A56,DATA!$L$2:$X$143,6,FALSE))","v":" "},{"$f":"IF($A56=0,\" \",VLOOKUP($A56,DATA!$L$2:$X$143,7,FALSE))","v":" "},{"$f":"IF($A56=0,\" \",VLOOKUP($A56,DATA!$L$2:$X$143,8,FALSE))","v":" "},{"$f":"IF($A56=0,\" \",VLOOKUP($A56,DATA!$L$2:$X$143,9,FALSE))","v":" "},{"$f":"IF($A56=0,\" \",VLOOKUP($A56,DATA!$L$2:$X$143,10,FALSE))","v":" "},{"$f":"IF($A56=0,\" \",VLOOKUP($A56,DATA!$L$2:$X$143,11,FALSE))","v":" "},{"$f":"IF($A56=0,\" \",VLOOKUP($A56,DATA!$L$2:$X$143,12,FALSE))","v":" "},{"$f":"IF($A56=0,\" \",VLOOKUP($A56,DATA!$L$2:$X$143,13,FALSE))","v":" "}]
[null,null,null,null,5,null,null,{"$f":"IF($A57=0,\" \",VLOOKUP($A57,DATA!$L$2:$X$143,2,FALSE))","v":" "},{"$f":"IF($A57=0,\" \",VLOOKUP($A57,DATA!$L$2:$X$143,3,FALSE))","v":" "},{"$f":"IF($A57=0,\" \",VLOOKUP($A57,DATA!$L$2:$X$143,4,FALSE))","v":" "},{"$f":"IF($A57=0,\" \",VLOOKUP($A57,DATA!$L$2:$X$143,5,FALSE))","v":" "},{"$f":"IF($A57=0,\" \",VLOOKUP($A57,DATA!$L$2:$X$143,6,FALSE))","v":" "},{"$f":"IF($A57=0,\" \",VLOOKUP($A57,DATA!$L$2:$X$143,7,FALSE))","v":" "},{"$f":"IF($A57=0,\" \",VLOOKUP($A57,DATA!$L$2:$X$143,8,FALSE))","v":" "},{"$f":"IF($A57=0,\" \",VLOOKUP($A57,DATA!$L$2:$X$143,9,FALSE))","v":" "},{"$f":"IF($A57=0,\" \",VLOOKUP($A57,DATA!$L$2:$X$143,10,FALSE))","v":" "},{"$f":"IF($A57=0,\" \",VLOOKUP($A57,DATA!$L$2:$X$143,11,FALSE))","v":" "},{"$f":"IF($A57=0,\" \",VLOOKUP($A57,DATA!$L$2:$X$143,12,FALSE))","v":" "},{"$f":"IF($A57=0,\" \",VLOOKUP($A57,DATA!$L$2:$X$143,13,FALSE))","v":" "}]
[null,null,null,null,6,null,null,{"$f":"IF($A58=0,\" \",VLOOKUP($A58,DATA!$L$2:$X$143,2,FALSE))","v":" "},{"$f":"IF($A58=0,\" \",VLOOKUP($A58,DATA!$L$2:$X$143,3,FALSE))","v":" "},{"$f":"IF($A58=0,\" \",VLOOKUP($A58,DATA!$L$2:$X$143,4,FALSE))","v":" "},{"$f":"IF($A58=0,\" \",VLOOKUP($A58,DATA!$L$2:$X$143,5,FALSE))","v":" "},{"$f":"IF($A58=0,\" \",VLOOKUP($A58,DATA!$L$2:$X$143,6,FALSE))","v":" "},{"$f":"IF($A58=0,\" \",VLOOKUP($A58,DATA!$L$2:$X$143,7,FALSE))","v":" "},{"$f":"IF($A58=0,\" \",VLOOKUP($A58,DATA!$L$2:$X$143,8,FALSE))","v":" "},{"$f":"IF($A58=0,\" \",VLOOKUP($A58,DATA!$L$2:$X$143,9,FALSE))","v":" "},{"$f":"IF($A58=0,\" \",VLOOKUP($A58,DATA!$L$2:$X$143,10,FALSE))","v":" "},{"$f":"IF($A58=0,\" \",VLOOKUP($A58,DATA!$L$2:$X$143,11,FALSE))","v":" "},{"$f":"IF($A58=0,\" \",VLOOKUP($A58,DATA!$L$2:$X$143,12,FALSE))","v":" "},{"$f":"IF($A58=0,\" \",VLOOKUP($A58,DATA!$L$2:$X$143,13,FALSE))","v":" "}]
[null,null,null,null,7,null,null,{"$f":"IF($A59=0,\" \",VLOOKUP($A59,DATA!$L$2:$X$143,2,FALSE))","v":" "},{"$f":"IF($A59=0,\" \",VLOOKUP($A59,DATA!$L$2:$X$143,3,FALSE))","v":" "},{"$f":"IF($A59=0,\" \",VLOOKUP($A59,DATA!$L$2:$X$143,4,FALSE))","v":" "},{"$f":"IF($A59=0,\" \",VLOOKUP($A59,DATA!$L$2:$X$143,5,FALSE))","v":" "},{"$f":"IF($A59=0,\" \",VLOOKUP($A59,DATA!$L$2:$X$143,6,FALSE))","v":" "},{"$f":"IF($A59=0,\" \",VLOOKUP($A59,DATA!$L$2:$X$143,7,FALSE))","v":" "},{"$f":"IF($A59=0,\" \",VLOOKUP($A59,DATA!$L$2:$X$143,8,FALSE))","v":" "},{"$f":"IF($A59=0,\" \",VLOOKUP($A59,DATA!$L$2:$X$143,9,FALSE))","v":" "},{"$f":"IF($A59=0,\" \",VLOOKUP($A59,DATA!$L$2:$X$143,10,FALSE))","v":" "},{"$f":"IF($A59=0,\" \",VLOOKUP($A59,DATA!$L$2:$X$143,11,FALSE))","v":" "},{"$f":"IF($A59=0,\" \",VLOOKUP($A59,DATA!$L$2:$X$143,12,FALSE))","v":" "},{"$f":"IF($A59=0,\" \",VLOOKUP($A59,DATA!$L$2:$X$143,13,FALSE))","v":" "}]
[]
["Monthly Forage Balance"]
["Field no. ",null,"Kind of forage (Range, pasture, annual forage, cover crop,  cornstalks, etc.)",null,null,null,null,"Grazed Forage Production by Month"]
[null,null,null,null,"Acres","Estimated AUM's  / Field ","Growth Curve No.","Jan","Feb","Mar","Apr","May","Jun","Jul","Aug","Sep","Oct","Nov","Dec"]
[null,null,null,null,null,null,null,{"$f":"IF($G64=0,\" \",VLOOKUP($G64,$E$53:$S$59,4,FALSE)*(E64/100))","v":" "},{"$f":"IF($G64=0,\" \",VLOOKUP($G64,$E$53:$S$59,5,FALSE)*(F64/100))","v":" "},{"$f":"IF($G64=0,\" \",VLOOKUP($G64,$E$53:$S$59,6,FALSE)*(F64/100))","v":" "},{"$f":"IF($G64=0,\" \",VLOOKUP($G64,$E$53:$S$59,7,FALSE)*(F64/100))","v":" "},{"$f":"IF($G64=0,\" \",VLOOKUP($G64,$E$53:$S$59,8,FALSE)*(F64/100))","v":" "},{"$f":"IF($G64=0,\" \",VLOOKUP($G64,$E$53:$S$59,9,FALSE)*(F64/100))","v":" "},{"$f":"IF($G64=0,\" \",VLOOKUP($G64,$E$53:$S$59,10,FALSE)*(F64/100))","v":" "},{"$f":"IF($G64=0,\" \",VLOOKUP($G64,$E$53:$S$59,11,FALSE)*(F64/100))","v":" "},{"$f":"IF($G64=0,\" \",VLOOKUP($G64,$E$53:$S$59,12,FALSE)*(F64/100))","v":" "},{"$f":"IF($G64=0,\" \",VLOOKUP($G64,$E$53:$S$59,13,FALSE)*(F64/100))","v":" "},{"$f":"IF($G64=0,\" \",VLOOKUP($G64,$E$53:$S$59,14,FALSE)*(F64/100))","v":" "},{"$f":"IF($G64=0,\" \",VLOOKUP($G64,$E$53:$S$59,15,FALSE)*(F64/100))","v":" "}]
[null,null,null,null,null,null,null,{"$f":"IF($G65=0,\" \",VLOOKUP($G65,$E$53:$S$59,4,FALSE)*(E65/100))","v":" "},{"$f":"IF($G65=0,\" \",VLOOKUP($G65,$E$53:$S$59,5,FALSE)*(F65/100))","v":" "},{"$f":"IF($G65=0,\" \",VLOOKUP($G65,$E$53:$S$59,6,FALSE)*(F65/100))","v":" "},{"$f":"IF($G65=0,\" \",VLOOKUP($G65,$E$53:$S$59,7,FALSE)*(F65/100))","v":" "},{"$f":"IF($G65=0,\" \",VLOOKUP($G65,$E$53:$S$59,8,FALSE)*(F65/100))","v":" "},{"$f":"IF($G65=0,\" \",VLOOKUP($G65,$E$53:$S$59,9,FALSE)*(F65/100))","v":" "},{"$f":"IF($G65=0,\" \",VLOOKUP($G65,$E$53:$S$59,10,FALSE)*(F65/100))","v":" "},{"$f":"IF($G65=0,\" \",VLOOKUP($G65,$E$53:$S$59,11,FALSE)*(F65/100))","v":" "},{"$f":"IF($G65=0,\" \",VLOOKUP($G65,$E$53:$S$59,12,FALSE)*(F65/100))","v":" "},{"$f":"IF($G65=0,\" \",VLOOKUP($G65,$E$53:$S$59,13,FALSE)*(F65/100))","v":" "},{"$f":"IF($G65=0,\" \",VLOOKUP($G65,$E$53:$S$59,14,FALSE)*(F65/100))","v":" "},{"$f":"IF($G65=0,\" \",VLOOKUP($G65,$E$53:$S$59,15,FALSE)*(F65/100))","v":" "}]
[null,null,null,null,null,null,null," "," "," "," "," "," "," "," "," "," "," "," "]
[null,null,null,null,null,null,null," "," "," "," "," "," "," "," "," "," "," "," "]
[null,null,null,null,null,null,null," "," "," "," "," "," "," "," "," "," "," "," "]
[null,null,null,null,null,null,null," "," "," "," "," "," "," "," "," "," "," "," "]
[null,null,null,null,null,null,null," "," "," "," "," "," "," "," "," "," "," "," "]
[null,null,null,null,null,null,null," "," "," "," "," "," "," "," "," "," "," "," "]
[null,null,null,null,null,null,null," "," "," "," "," "," "," "," "," "," "," "," "]
[null,null,null,null,null,null,null," "," "," "," "," "," "," "," "," "," "," "," "]
[null,null,null,null,null,null,null," "," "," "," "," "," "," "," "," "," "," "," "]
[null,null,null,null,null,null,null," "," "," "," "," "," "," "," "," "," "," "," "]
[null,null,null,null,null,null,null," "," "," "," "," "," "," "," "," "," "," "," "]
[null,null,null,null,null,null,null," "," "," "," "," "," "," "," "," "," "," "," "]
[null,null,null,null,null,null,null," "," "," "," "," "," "," "," "," "," "," "," "]
[null,null,null,null,null,null,null," "," "," "," "," "," "," "," "," "," "," "," "]
[null,null,null,null,null,null,null," "," "," "," "," "," "," "," "," "," "," "," "]
[null,null,null,null,null,null,null," "," "," "," "," "," "," "," "," "," "," "," "]
[null,null,null,null,null,null,null," "," "," "," "," "," "," "," "," "," "," "," "]
[null,null,null,null,null,null,null," ",{"$f":"IF($G83=0,\" \",VLOOKUP($G83,$E$53:$S$59,5,FALSE)*(F83/100))","v":" "}," "," "," "," "," "," "," "," "," "," "]
["Total forage available by month(AUM's)",null,null,null,null,null,null,{"$f":"SUM(H64:H83)","v":0},0,0,0,0,0,0,0,0,0,0,0]
["Total forage needs (AUM's) by month",null,null,null,null,null,null,{"$f":"H16","v":0},0,0,0,0,0,0,0,0,0,0,0]
["Difference (+) or (-)  (AUM's)",null,null,null,null,null,{"$f":"G87-G88","v":0},{"$f":"SUM(H84-H85)","v":0},0,0,0,0,0,0,0,0,0,0,0]
["Cumulative forage available (AUM's)",null,null,null,null,null,{"$f":"SUM(H84:S84)","v":0},{"$f":"H84","v":0},{"$f":"H87+I84","v":0},{"$f":"I87+J84","v":0},0,0,0,0,0,0,0,0,{"$f":"R87+S84","v":0}]
["Cumulative Forage Needs",null,null,null,null,null,{"$f":"SUM(H85:S85)","v":0},{"$f":"H85","v":0},{"$f":"H88+I85","v":0},0,0,0,0,0,0,0,0,0,{"$f":"R88+S85","v":0}]
[]
["SUMMARY"]
[]
["Available AUM's Grazing:",null,null,null,{"$f":"SUM(F64:F83)","v":0},"Total AUM's Grazing Needed: ",null,{"$f":"SUM(F16:Q16)","v":0},null,"Difference in AUM's:  ",null,null,{"$f":"E92-H92","v":0},null,"% Difference:  ",null,null,{"$f":"IF(E16=0,\"\",(M92/H92)*100)","v":""},"%"]
[]
["Available AUM's Feed:  ",null,null,null,{"$f":"Q28","v":0},"Total AUM's Feed Required:  ",null,{"$f":"F29","v":0},null,"Difference in AUM's:  ",null,null,{"$f":"E94-H94","v":0},null,"% Difference:  ",null,null,{"$f":"IF(E94=0,\"\",(M94/H94)*100)","v":""},"%"]

{"sheet":"528 JS - Schedule Option #1auto","index":12,"n_rows":484,"n_cols":52,"rows_kept":484,"cut":false,"hidden":false,"merged":[[49,0,49,1],[49,2,54,54],[26,4,27,4],[26,5,27,5],[24,4,24,5],[25,6,25,54],[26,31,26,34],[26,35,26,38],[26,39,26,42],[26,43,26,46],[26,6,27,6],[26,19,26,22],[26,23,26,26],[26,27,26,30],[25,0,27,0],[25,3,25,5],[6,0,6,54],[14,2,14,54],[15,2,15,54],[16,2,16,54],[11,2,11,54],[12,2,12,54],[13,2,13,54],[7,0,7,54],[8,0,8,54],[9,0,9,54],[10,0,10,54],[1,20,1,32],[3,0,3,54],[4,0,4,54],[5,0,5,54],[0,0,1,5],[0,36,1,40],[0,42,2,54],[2,0,2,1],[2,2,2,4],[2,5,2,6],[2,33,2,35],[2,20,2,32],[27,15,27,18],[27,51,27,54],[17,2,17,54],[18,2,18,54],[19,2,19,54],[20,0,20,54],[21,36,22,40],[22,20,22,32],[21,6,21,35],[23,15,23,39],[21,0,22,4],[27,47,27,50],[27,7,27,10],[0,12,0,34],[2,36,2,41],[48,0,48,1],[23,46,23,54],[23,0,23,1],[23,2,23,4],[23,5,23,6],[24,6,24,26],[24,27,24,36],[24,0,24,3],[25,1,27,1],[25,2,27,2],[26,3,27,3],[27,11,27,14]]}
[null,null,null,null,null,null,null,null,null,null,null,null,"PRESCRIBED GRAZING JOBSHEET           ",null,null,null,null,null,null,null,null,null,null,null,null,null,null,null,null,null,null,null,null,null,null,null,null,null,null,null,null,null,"January, 2014"]
[null,null,null,null,null,null,null,null,null,null,null,null,null,null,null,null,null,null,null,null,"NE-ECS-528"]
["CLIENT:",null,{"$f":"'528 Jobsheet Cover_Sheet'!C4","v":0},null,null,null,null,null,null,null,null,null,null,null,null,null,null,null,null,null,"GRAZING SCHEDULE - YEAR #1",null,null,null,null,null,null,null,null,null,null,null,null,"Date:",null,null,{"$f":"'528 Jobsheet Cover_Sheet'!K4","v":"00:00:00"}]
[]
["Grazing management systems are planned forage and livestock management programs designed to accomplish range improvement.  A grazing system is developed to maintain or improve range similarity index, productivity, health and vigor while simultaneously achieving a high, sustainable level of livestock production."]
["Types of Grazing Systems:  Prescribed grazing is a grazing system which is tailored to the individual operation and designed to achieve the specific objectives of the operation.  There are several general types of grazing management systems:"]
["1.  Rest Rotation:  In a rest rotation grazing management system, one or more pastures are left ungrazed for the entire growing season.  Each year a different pasture(s) is ungrazed; in other words, the rest is rotated.  Incorporating rest so that each pasture is ungrazed once every 5-7 years builds in resilience, aids in drought recovery and provides wildlife habitat.  Stocking rates should be adjusted to account for the forage that is unavailable each year."]
["2.  Deferred Rotation:  In a deferred rotation grazing management system, a herd is rotated through three or more pastures.  While one pasture is being grazed, the remaining pastures are not grazed (deferred).  The pastures are grazed in a planned sequence.  The sequence of grazing is generally changed each year.  "]
["3.  High Intensity/Low Frequency Rotation:  In a high intensity/low frequency rotation grazing management system, one herd of livestock grazes eight or more pastures in a planned sequence. Livestock are moved into one pasture and the other pastures are rested. When the forage is grazed to the desired intensity, livestock are moved to the next pasture in the rotation. Livestock typically stay in a pasture 10 to 25 days. The frequent moves allow long rest periods for each pasture.  The sequence of grazing is generally changed each year.  "]
["4.  Short-duration. (Management Intensive Grazing.) This is similar to the high intensity/low frequency system, except the speed of the rotation is adjusted according to the growth rate and the required rest period of the plants. During the peak of the growing season, livestock are moved rapidly with slower moves when pasture growth rate slow down."]
["Purpose of prescribed grazing management systems:"]
[null,null,"Maintain or speed up improvement in plant cover while properly using the forage in all pastures."]
[null,null,"Improve efficiency of grazing by uniformly using all parts of each grazed pasture."]
[null,null,"Permit a higher level of livestock production."]
[null,null,"Insure a supply of forage throughout the grazing season."]
[null,null,"Insure that an adequate feed and forage balance is maintained for the unit."]
[null,null,"Improve control of undesirable plants."]
[null,null,"Allow easier handling and observation of livestock."]
[null,null,"Enhance wildlife habitat."]
[null,null,"Enhance watershed protection."]
["A growth curve may be created, saved as a jpeg or pdf and inserted into this text box. If you chose not to use a growth curve,  delete the text.\n"]
[null,null,null,null,null,null,"PRESCRIBED GRAZING JOBSHEET           "]
[null,null,null,null,null,null,null,null,null,null,null,null,null,null,null,null,null,null,null,null,"NE-ECS-528"]
["CLIENT:",null,{"$f":"'528 Jobsheet Cover_Sheet'!C4:G4","v":0},null,null,null,null,null,null,null,null,null,null,null,null,"GRAZING SCHEDULE - YEAR #1",null,null,null,null,null,null,null,null,null,null,null,null,null,null,null,null,null,null,null,null,null,null,null,null,null,null,null,"Date:  ",null,null,{"$f":"'528 Jobsheet Cover_Sheet'!K4","v":"00:00:00"}]
["Number of Days",null,null,null,null,null,"Planned Grazing Dates"]
["Field no. ","Kind of forage (Range, pasture, hay, silage, cornstalks, etc.)","Acres","AUM Information",null,null,"Dates are estimates - actual moves should be based upon plant growth which will vary from year to year"]
[null,null,null,"Estimated AUM for Field","% AUM by field","Est. Days / Field","Start  Date",null,null,null,null,null,null,null,null,null,null,null,null,"April  (week)",null,null,null,"May  (week)",null,null,null,"June  (week)",null,null,null,"July (week)",null,null,null,"August  (week)",null,null,null,"Sept. (week)",null,null,null,"October  (week)"]
[null,null,null,null,null,null,null,"Jan",null,null,null,"Feb",null,null,null,"Mar",null,null,null,1,2,3,4,1,2,3,4,1,2,3,4,1,2,3,4,1,2,3,4,1,2,3,4,1,2,3,4,"Nov",null,null,null,"Dec"]
[{"$f":"'528-JS_Lvstk-Forage-Bal-ANN'!C55","v":0},{"$f":"IF(A29=0,\"\",('528-JS_Lvstk-Forage-Bal-ANN'!F55))","v":""},{"$f":"IF(A29=0,\"\",('528-JS_Lvstk-Forage-Bal-ANN'!G55))","v":""},{"$f":"IF(A29=0,\"\",('528-JS_Lvstk-Forage-Bal-ANN'!I55))","v":""},{"$f":"IF(A29=0,\"\", D29/D49*100)","v":""},{"$f":"IF(A29=0,\"\", $E$25*E29/100)","v":""}]
[{"$f":"'528-JS_Lvstk-Forage-Bal-ANN'!C56","v":0},{"$f":"IF(A30=0,\"\",('528-JS_Lvstk-Forage-Bal-ANN'!F56))","v":""},{"$f":"IF(A30=0,\"\",('528-JS_Lvstk-Forage-Bal-ANN'!G56))","v":""},{"$f":"IF(A30=0,\"\",('528-JS_Lvstk-Forage-Bal-ANN'!I56))","v":""},{"$f":"IF(A30=0,\"\", D30/D49*100)","v":""},{"$f":"IF(A30=0,\"\", $E$25*E30/100)","v":""}]
[{"$f":"'528-JS_Lvstk-Forage-Bal-ANN'!C57","v":0},{"$f":"IF(A31=0,\"\",('528-JS_Lvstk-Forage-Bal-ANN'!F57))","v":""},{"$f":"IF(A31=0,\"\",('528-JS_Lvstk-Forage-Bal-ANN'!G57))","v":""},{"$f":"IF(A31=0,\"\",('528-JS_Lvstk-Forage-Bal-ANN'!I57))","v":""},{"$f":"IF(A31=0,\"\", D31/D49*100)","v":""},""]
[{"$f":"'528-JS_Lvstk-Forage-Bal-ANN'!C58","v":0},{"$f":"IF(A32=0,\"\",('528-JS_Lvstk-Forage-Bal-ANN'!F58))","v":""},{"$f":"IF(A32=0,\"\",('528-JS_Lvstk-Forage-Bal-ANN'!G58))","v":""},{"$f":"IF(A32=0,\"\",('528-JS_Lvstk-Forage-Bal-ANN'!I58))","v":""},{"$f":"IF(A32=0,\"\", D32/D49 *100)","v":""},""]
[{"$f":"'528-JS_Lvstk-Forage-Bal-ANN'!C59","v":0},{"$f":"IF(A33=0,\"\",('528-JS_Lvstk-Forage-Bal-ANN'!F59))","v":""},{"$f":"IF(A33=0,\"\",('528-JS_Lvstk-Forage-Bal-ANN'!G59))","v":""},{"$f":"IF(A33=0,\"\",('528-JS_Lvstk-Forage-Bal-ANN'!I59))","v":""},{"$f":"IF(A33=0, \"\", D33/D49*100)","v":""},""]
[{"$f":"'528-JS_Lvstk-Forage-Bal-ANN'!C60","v":0},{"$f":"IF(A34=0,\"\",('528-JS_Lvstk-Forage-Bal-ANN'!F60))","v":""},{"$f":"IF(A34=0,\"\",('528-JS_Lvstk-Forage-Bal-ANN'!G60))","v":""},{"$f":"IF(A34=0,\"\",('528-JS_Lvstk-Forage-Bal-ANN'!I60))","v":""},{"$f":"IF(A34=0,\"\", D34/D49*100)","v":""},""]
[{"$f":"'528-JS_Lvstk-Forage-Bal-ANN'!C61","v":0},{"$f":"IF(A35=0,\"\",('528-JS_Lvstk-Forage-Bal-ANN'!F61))","v":""},{"$f":"IF(A35=0,\"\",('528-JS_Lvstk-Forage-Bal-ANN'!G61))","v":""},{"$f":"IF(A35=0,\"\",('528-JS_Lvstk-Forage-Bal-ANN'!I61))","v":""},{"$f":"IF(A35=0,\"\", D35/D49*100)","v":""},""]
[{"$f":"'528-JS_Lvstk-Forage-Bal-ANN'!C62","v":0},{"$f":"IF(A36=0,\"\",('528-JS_Lvstk-Forage-Bal-ANN'!F62))","v":""},{"$f":"IF(A36=0,\"\",('528-JS_Lvstk-Forage-Bal-ANN'!G62))","v":""},{"$f":"IF(A36=0,\"\",('528-JS_Lvstk-Forage-Bal-ANN'!I62))","v":""},{"$f":"IF(A36=0,\"\", D36/D49*100)","v":""},""]
[{"$f":"'528-JS_Lvstk-Forage-Bal-ANN'!C63","v":0},{"$f":"IF(A37=0,\"\",('528-JS_Lvstk-Forage-Bal-ANN'!F63))","v":""},{"$f":"IF(A37=0,\"\",('528-JS_Lvstk-Forage-Bal-ANN'!G63))","v":""},{"$f":"IF(A37=0,\"\",('528-JS_Lvstk-Forage-Bal-ANN'!I63))","v":""},{"$f":"IF(A37=0,\"\", D37/D49*100)","v":""},""]
[{"$f":"'528-JS_Lvstk-Forage-Bal-ANN'!C64","v":0},{"$f":"IF(A38=0,\"\",('528-JS_Lvstk-Forage-Bal-ANN'!F64))","v":""},{"$f":"IF(A38=0,\"\",('528-JS_Lvstk-Forage-Bal-ANN'!G64))","v":""},{"$f":"IF(A38=0,\"\",('528-JS_Lvstk-Forage-Bal-ANN'!I64))","v":""},{"$f":"IF(A38=0,\"\", D38/D49*100)","v":""},""]
[{"$f":"'528-JS_Lvstk-Forage-Bal-ANN'!C65","v":0},{"$f":"IF(A39=0,\"\",('528-JS_Lvstk-Forage-Bal-ANN'!F65))","v":""},{"$f":"IF(A39=0,\"\",('528-JS_Lvstk-Forage-Bal-ANN'!G65))","v":""},{"$f":"IF(A39=0,\"\",('528-JS_Lvstk-Forage-Bal-ANN'!I65))","v":""},{"$f":"IF(A39=0,\"\", D39/D49*100)","v":""},""]
[{"$f":"'528-JS_Lvstk-Forage-Bal-ANN'!C66","v":0},{"$f":"IF(A40=0,\"\",('528-JS_Lvstk-Forage-Bal-ANN'!F66))","v":""},{"$f":"IF(A40=0,\"\",('528-JS_Lvstk-Forage-Bal-ANN'!G66))","v":""},{"$f":"IF(A40=0,\"\",('528-JS_Lvstk-Forage-Bal-ANN'!I66))","v":""},{"$f":"IF(A40=0,\"\", D40/D49*100)","v":""},""]
[{"$f":"'528-JS_Lvstk-Forage-Bal-ANN'!C67","v":0},{"$f":"IF(A41=0,\"\",('528-JS_Lvstk-Forage-Bal-ANN'!F67))","v":""},{"$f":"IF(A41=0,\"\",('528-JS_Lvstk-Forage-Bal-ANN'!G67))","v":""},{"$f":"IF(A41=0,\"\",('528-JS_Lvstk-Forage-Bal-ANN'!I67))","v":""},{"$f":"IF(A41=0, \"\", D41/D49*100)","v":""},""]
[{"$f":"'528-JS_Lvstk-Forage-Bal-ANN'!C68","v":0},{"$f":"IF(A42=0,\"\",('528-JS_Lvstk-Forage-Bal-ANN'!F68))","v":""},{"$f":"IF(A42=0,\"\",('528-JS_Lvstk-Forage-Bal-ANN'!G68))","v":""},{"$f":"IF(A42=0,\"\",('528-JS_Lvstk-Forage-Bal-ANN'!I68))","v":""},{"$f":"IF(A42=0, \"\", D42/D49*100)","v":""},""]
[{"$f":"'528-JS_Lvstk-Forage-Bal-ANN'!C69","v":0},{"$f":"IF(A43=0,\"\",('528-JS_Lvstk-Forage-Bal-ANN'!F69))","v":""},{"$f":"IF(A43=0,\"\",('528-JS_Lvstk-Forage-Bal-ANN'!G69))","v":""},{"$f":"IF(A43=0,\"\",('528-JS_Lvstk-Forage-Bal-ANN'!I69))","v":""},{"$f":"IF(A43=0,\"\", D43/D49*100)","v":""},""]
[{"$f":"'528-JS_Lvstk-Forage-Bal-ANN'!C70","v":0},{"$f":"IF(A44=0,\"\",('528-JS_Lvstk-Forage-Bal-ANN'!F70))","v":""},{"$f":"IF(A44=0,\"\",('528-JS_Lvstk-Forage-Bal-ANN'!G70))","v":""},{"$f":"IF(A44=0,\"\",('528-JS_Lvstk-Forage-Bal-ANN'!I70))","v":""},{"$f":"IF(A44=0,\"\", D44/D49*100)","v":""},""]
[{"$f":"'528-JS_Lvstk-Forage-Bal-ANN'!C71","v":0},{"$f":"IF(A45=0,\"\",('528-JS_Lvstk-Forage-Bal-ANN'!F71))","v":""},{"$f":"IF(A45=0,\"\",('528-JS_Lvstk-Forage-Bal-ANN'!G71))","v":""},{"$f":"IF(A45=0,\"\",('528-JS_Lvstk-Forage-Bal-ANN'!I71))","v":""},{"$f":"IF(A45=0,\"\", D45/D49*100)","v":""},""]
[{"$f":"'528-JS_Lvstk-Forage-Bal-ANN'!C72","v":0},{"$f":"IF(A46=0,\"\",('528-JS_Lvstk-Forage-Bal-ANN'!F72))","v":""},{"$f":"IF(A46=0,\"\",('528-JS_Lvstk-Forage-Bal-ANN'!G72))","v":""},{"$f":"IF(A46=0,\"\",('528-JS_Lvstk-Forage-Bal-ANN'!I72))","v":""},{"$f":"IF(A46=0, \"\", D46/D49*100)","v":""},""]
[{"$f":"'528-JS_Lvstk-Forage-Bal-ANN'!C73","v":0},{"$f":"IF(A47=0,\"\",('528-JS_Lvstk-Forage-Bal-ANN'!F73))","v":""},{"$f":"IF(A47=0,\"\",('528-JS_Lvstk-Forage-Bal-ANN'!G73))","v":""},{"$f":"IF(A47=0,\"\",('528-JS_Lvstk-Forage-Bal-ANN'!I73))","v":""},{"$f":"IF(A47=0, \"\", D47/D49*100)","v":""},""]
[{"$f":"'528-JS_Lvstk-Forage-Bal-ANN'!C74","v":0},{"$f":"IF(A48=0,\"\",('528-JS_Lvstk-Forage-Bal-ANN'!F74))","v":""},{"$f":"IF(A48=0,\"\",('528-JS_Lvstk-Forage-Bal-ANN'!G74))","v":""},{"$f":"IF(A48=0,\"\",('528-JS_Lvstk-Forage-Bal-ANN'!I74))","v":""},{"$f":"IF(A48=0, \"\", D48/D49*100)","v":""},""]
["TOTAL",null,{"$f":"SUM(C29:C48)","v":0},{"$f":"SUM(D29:D48)","v":0},{"$f":"SUM(E29:E48)","v":0},{"$f":"SUM(F29:F48)","v":0}]
["Comments:"]
[]
[]
[]
[]
[]
[]
[]
[]
[]
[]
[]
[]
[]
[]
[]
[]
[]
[]
[]
[]
[]
[]
[]
[]
[]
[]
[]
[]
[]
[]
[]
[]
[]
[]
[]
[]
[]
[]
[]
[]
[]
[]
[]
[]
[]
[]
[]
[]
[]
[]
[]
[]
[]
[]
[]
[]
[]
[]
[]
[]
[]
[]
[]
[]
[null,null,null,null,null,"Gantt final as of 1/06/2014"]
[null,null,null,null,null,"Do not adjust these values"]
[]
[null,null,null,null,null,"Errors in these ranges are intentional."]
[null,null,null,null,null,null,null,null,null,null,null,null,null,null,null,null,null,null,null,null,null,"start",null,"duration",null,null,null,"start","end"]
[null,null,null,null,null,"Jan",1,"Jan","2014-01-01",1,null,null,null,null,null,null,null,null,null,null,null,{"$f":"VLOOKUP(G29,H120:R484,3,FALSE)","v":{"$error":"#N/A"}},null,{"$f":"F29","v":""},null,null,null,{"$f":"V120","v":{"$error":"#N/A"}},{"$f":"SUM(V120,X120)","v":{"$error":"#N/A"}}]
[null,null,null,null,null,"Feb",2,null,"2014-01-02",2,null,null,null,null,null,null,null,null,null,null,null,{"$f":"VLOOKUP(G30,H121:T485,3,FALSE)","v":{"$error":"#N/A"}},null,"",null,null,null,{"$f":"V121","v":{"$error":"#N/A"}},{"$error":"#N/A"}]
[null,null,null,null,null,"Mar",3,null,"2014-01-03",3,null,null,null,null,null,null,null,null,null,null,null,{"$error":"#N/A"},null,"",null,null,null,{"$error":"#N/A"},{"$error":"#N/A"}]
[null,null,null,null,null,"Ap1",4,null,"2014-01-04",4,null,null,null,null,null,null,null,null,null,null,null,{"$error":"#N/A"},null,"",null,null,null,{"$error":"#N/A"},{"$error":"#N/A"}]
[null,null,null,null,null,"Ap2",5,null,"2014-01-05",5,null,null,null,null,null,null,null,null,null,null,null,{"$error":"#N/A"},null,"",null,null,null,{"$error":"#N/A"},{"$error":"#N/A"}]
[null,null,null,null,null,"Ap3",6,null,"2014-01-06",6,null,null,null,null,null,null,null,null,null,null,null,{"$error":"#N/A"},null,"",null,null,null,{"$error":"#N/A"},{"$error":"#N/A"}]
[null,null,null,null,null,"Ap4",7,null,"2014-01-07",7,null,null,null,null,null,null,null,null,null,null,null,{"$error":"#N/A"},null,"",null,null,null,{"$error":"#N/A"},{"$error":"#N/A"}]
[null,null,null,null,null,"Ma1",8,null,"2014-01-08",8,null,null,null,null,null,null,null,null,null,null,null,{"$error":"#N/A"},null,"",null,null,null,{"$error":"#N/A"},{"$error":"#N/A"}]
[null,null,null,null,null,"Ma2",9,null,"2014-01-09",9,null,null,null,null,null,null,null,null,null,null,null,{"$error":"#N/A"},null,"",null,null,null,{"$error":"#N/A"},{"$error":"#N/A"}]
[null,null,null,null,null,"Ma3",10,null,"2014-01-10",10,null,null,null,null,null,null,null,null,null,null,null,{"$error":"#N/A"},null,"",null,null,null,{"$error":"#N/A"},{"$error":"#N/A"}]
[null,null,null,null,null,"Ma4",11,null,"2014-01-11",11,null,null,null,null,null,null,null,null,null,null,null,{"$error":"#N/A"},null,"",null,null,null,{"$error":"#N/A"},{"$error":"#N/A"}]
[null,null,null,null,null,"Jn1",12,null,"2014-01-12",12,null,null,null,null,null,null,null,null,null,null,null,{"$error":"#N/A"},null,"",null,null,null,{"$error":"#N/A"},{"$error":"#N/A"}]
[null,null,null,null,null,"Jn2",13,null,"2014-01-13",13,null,null,null,null,null,null,null,null,null,null,null,{"$error":"#N/A"},null,"",null,null,null,{"$error":"#N/A"},{"$error":"#N/A"}]
[null,null,null,null,null,"Jn3",14,null,"2014-01-14",14,null,null,null,null,null,null,null,null,null,null,null,{"$error":"#N/A"},null,"",null,null,null,{"$error":"#N/A"},{"$error":"#N/A"}]
[null,null,null,null,null,"Jn4",15,null,"2014-01-15",15,null,null,null,null,null,null,null,null,null,null,null,{"$error":"#N/A"},null,"",null,null,null,{"$error":"#N/A"},{"$error":"#N/A"}]
[null,null,null,null,null,"Jy1",16,null,"2014-01-16",16,null,null,null,null,null,null,null,null,null,null,null,{"$error":"#N/A"},null,"",null,null,null,{"$error":"#N/A"},{"$error":"#N/A"}]
[null,null,null,null,null,"Jy2",17,null,"2014-01-17",17,null,null,null,null,null,null,null,null,null,null,null,{"$error":"#N/A"},null,"",null,null,null,{"$error":"#N/A"},{"$error":"#N/A"}]
[null,null,null,null,null,"Jy3",18,null,"2014-01-18",18,null,null,null,null,null,null,null,null,null,null,null,{"$error":"#N/A"},null,"",null,null,null,{"$error":"#N/A"},{"$error":"#N/A"}]
[null,null,null,null,null,"Jy4",19,null,"2014-01-19",19,null,null,null,null,null,null,null,null,null,null,null,{"$error":"#N/A"},null,"",null,null,null,{"$error":"#N/A"},{"$error":"#N/A"}]
[null,null,null,null,null,"Ag1",20,null,"2014-01-20",20,null,null,null,null,null,null,null,null,null,null,null,{"$error":"#N/A"},null,"",null,null,null,{"$error":"#N/A"},{"$error":"#N/A"}]
[null,null,null,null,null,"Ag2",21,null,"2014-01-21",21]
[null,null,null,null,null,"Ag3",22,null,"2014-01-22",22]
[null,null,null,null,null,"Ag4",23,null,"2014-01-23",23]
[null,null,null,null,null,"Se1",24,null,"2014-01-24",24]
[null,null,null,null,null,"Se2",25,null,"2014-01-25",25]
[null,null,null,null,null,"Se3",26,null,"2014-01-26",26]
[null,null,null,null,null,"Se4",27,null,"2014-01-27",27]
[null,null,null,null,null,"Oc1",28,null,"2014-01-28",28]
[null,null,null,null,null,"Oc2",29,null,"2014-01-29",29]
[null,null,null,null,null,"Oc3",30,null,"2014-01-30",30]
[null,null,null,null,null,"Oc4",31,"Feb","2014-01-31",31]
[null,null,null,null,null,"Nov",32,null,"2014-02-01",32]
[null,null,null,null,null,"Dec",33,null,"2014-02-02",33]
[null,null,null,null,null,null,34,null,"2014-02-03",34]
[null,null,null,null,null,null,35,null,"2014-02-04",35]
[null,null,null,null,null,null,36,null,"2014-02-05",36]
[null,null,null,null,null,null,37,null,"2014-02-06",37]
[null,null,null,null,null,null,38,null,"2014-02-07",38]
[null,null,null,null,null,null,39,null,"2014-02-08",39]
[null,null,null,null,null,null,40,null,"2014-02-09",40]
[null,null,null,null,null,null,41,null,"2014-02-10",41]
[null,null,null,null,null,null,42,null,"2014-02-11",42]
[null,null,null,null,null,null,43,null,"2014-02-12",43]
[null,null,null,null,null,null,44,null,"2014-02-13",44]
[null,null,null,null,null,null,45,null,"2014-02-14",45]
[null,null,null,null,null,null,46,null,"2014-02-15",46]
[null,null,null,null,null,null,47,null,"2014-02-16",47]
[null,null,null,null,null,null,48,null,"2014-02-17",48]
[null,null,null,null,null,null,49,null,"2014-02-18",49]
[null,null,null,null,null,null,50,null,"2014-02-19",50]
[null,null,null,null,null,null,51,null,"2014-02-20",51]
[null,null,null,null,null,null,52,null,"2014-02-21",52]
[null,null,null,null,null,null,53,null,"2014-02-22",53]
[null,null,null,null,null,null,54,null,"2014-02-23",54]
[null,null,null,null,null,null,55,null,"2014-02-24",55]
[null,null,null,null,null,null,56,null,"2014-02-25",56]
[null,null,null,null,null,null,57,null,"2014-02-26",57]
[null,null,null,null,null,null,58,null,"2014-02-27",58]
[null,null,null,null,null,null,59,null,"2014-02-28",59]
[null,null,null,null,null,null,60,null,"2014-03-01",60]
[null,null,null,null,null,null,61,"Mar","2014-03-02",61]
[null,null,null,null,null,null,62,null,"2014-03-03",62]
[null,null,null,null,null,null,63,null,"2014-03-04",63]
[null,null,null,null,null,null,64,null,"2014-03-05",64]
[null,null,null,null,null,null,65,null,"2014-03-06",65]
[null,null,null,null,null,null,66,null,"2014-03-07",66]
[null,null,null,null,null,null,67,null,"2014-03-08",67]
[null,null,null,null,null,null,68,null,"2014-03-09",68]
[null,null,null,null,null,null,69,null,"2014-03-10",69]
[null,null,null,null,null,null,70,null,"2014-03-11",70]
[null,null,null,null,null,null,71,null,"2014-03-12",71]
[null,null,null,null,null,null,72,null,"2014-03-13",72]
[null,null,null,null,null,null,73,null,"2014-03-14",73]
[null,null,null,null,null,null,74,null,"2014-03-15",74]
[null,null,null,null,null,null,75,null,"2014-03-16",75]
[null,null,null,null,null,null,76,null,"2014-03-17",76]
[null,null,null,null,null,null,77,null,"2014-03-18",77]
[null,null,null,null,null,null,78,null,"2014-03-19",78]
[null,null,null,null,null,null,79,null,"2014-03-20",79]
[null,null,null,null,null,null,80,null,"2014-03-21",80]
[null,null,null,null,null,null,81,null,"2014-03-22",81]
[null,null,null,null,null,null,82,null,"2014-03-23",82]
[null,null,null,null,null,null,83,null,"2014-03-24",83]
[null,null,null,null,null,null,84,null,"2014-03-25",84]
[null,null,null,null,null,null,85,null,"2014-03-26",85]
[null,null,null,null,null,null,86,null,"2014-03-27",86]
[null,null,null,null,null,null,87,null,"2014-03-28",87]
[null,null,null,null,null,null,88,null,"2014-03-29",88]
[null,null,null,null,null,null,89,null,"2014-03-30",89]
[null,null,null,null,null,null,90,null,"2014-03-31",90]
[null,null,null,null,null,null,91,null,"2014-04-01",91]
[null,null,null,null,null,null,92,"Ap1","2014-04-02",92]
[null,null,null,null,null,null,93,null,"2014-04-03",93]
[null,null,null,null,null,null,94,null,"2014-04-04",94]
[null,null,null,null,null,null,95,null,"2014-04-05",95]
[null,null,null,null,null,null,96,null,"2014-04-06",96]
[null,null,null,null,null,null,97,null,"2014-04-07",97]
[null,null,null,null,null,null,98,null,"2014-04-08",98]
[null,null,null,null,null,null,99,"Ap2","2014-04-09",99]
[null,null,null,null,null,null,100,null,"2014-04-10",100]
[null,null,null,null,null,null,101,null,"2014-04-11",101]
[null,null,null,null,null,null,102,null,"2014-04-12",102]
[null,null,null,null,null,null,103,null,"2014-04-13",103]
[null,null,null,null,null,null,104,null,"2014-04-14",104]
[null,null,null,null,null,null,105,null,"2014-04-15",105]
[null,null,null,null,null,null,106,"Ap3","2014-04-16",106]
[null,null,null,null,null,null,107,null,"2014-04-17",107]
[null,null,null,null,null,null,108,null,"2014-04-18",108]
[null,null,null,null,null,null,109,null,"2014-04-19",109]
[null,null,null,null,null,null,110,null,"2014-04-20",110]
[null,null,null,null,null,null,111,null,"2014-04-21",111]
[null,null,null,null,null,null,112,null,"2014-04-22",112]
[null,null,null,null,null,null,113,null,"2014-04-23",113]
[null,null,null,null,null,null,114,"Ap4","2014-04-24",114]
[null,null,null,null,null,null,115,null,"2014-04-25",115]
[null,null,null,null,null,null,116,null,"2014-04-26",116]
[null,null,null,null,null,null,117,null,"2014-04-27",117]
[null,null,null,null,null,null,118,null,"2014-04-28",118]
[null,null,null,null,null,null,119,null,"2014-04-29",119]
[null,null,null,null,null,null,120,null,"2014-04-30",120]
[null,null,null,null,null,null,121,null,"2014-05-01",121]
[null,null,null,null,null,null,122,"Ma1","2014-05-02",122]
[null,null,null,null,null,null,123,null,"2014-05-03",123]
[null,null,null,null,null,null,124,null,"2014-05-04",124]
[null,null,null,null,null,null,125,null,"2014-05-05",125]
[null,null,null,null,null,null,126,null,"2014-05-06",126]
[null,null,null,null,null,null,127,null,"2014-05-07",127]
[null,null,null,null,null,null,128,null,"2014-05-08",128]
[null,null,null,null,null,null,129,"Ma2","2014-05-09",129]
[null,null,null,null,null,null,130,null,"2014-05-10",130]
[null,null,null,null,null,null,131,null,"2014-05-11",131]
[null,null,null,null,null,null,132,null,"2014-05-12",132]
[null,null,null,null,null,null,133,null,"2014-05-13",133]
[null,null,null,null,null,null,134,null,"2014-05-14",134]
[null,null,null,null,null,null,135,null,"2014-05-15",135]
[null,null,null,null,null,null,136,"Ma3","2014-05-16",136]
[null,null,null,null,null,null,137,null,"2014-05-17",137]
[null,null,null,null,null,null,138,null,"2014-05-18",138]
[null,null,null,null,null,null,139,null,"2014-05-19",139]
[null,null,null,null,null,null,140,null,"2014-05-20",140]
[null,null,null,null,null,null,141,null,"2014-05-21",141]
[null,null,null,null,null,null,142,null,"2014-05-22",142]
[null,null,null,null,null,null,143,"Ma4","2014-05-23",143]
[null,null,null,null,null,null,144,null,"2014-05-24",144]
[null,null,null,null,null,null,145,null,"2014-05-25",145]
[null,null,null,null,null,null,146,null,"2014-05-26",146]
[null,null,null,null,null,null,147,null,"2014-05-27",147]
[null,null,null,null,null,null,148,null,"2014-05-28",148]
[null,null,null,null,null,null,149,null,"2014-05-29",149]
[null,null,null,null,null,null,150,null,"2014-05-30",150]
[null,null,null,null,null,null,151,null,"2014-05-31",151]
[null,null,null,null,null,null,152,null,"2014-06-01",152]
[null,null,null,null,null,null,153,"Jn1","2014-06-02",153]
[null,null,null,null,null,null,154,null,"2014-06-03",154]
[null,null,null,null,null,null,155,null,"2014-06-04",155]
[null,null,null,null,null,null,156,null,"2014-06-05",156]
[null,null,null,null,null,null,157,null,"2014-06-06",157]
[null,null,null,null,null,null,158,null,"2014-06-07",158]
[null,null,null,null,null,null,159,null,"2014-06-08",159]
[null,null,null,null,null,null,160,"Jn2","2014-06-09",160]
[null,null,null,null,null,null,161,null,"2014-06-10",161]
[null,null,null,null,null,null,162,null,"2014-06-11",162]
[null,null,null,null,null,null,163,null,"2014-06-12",163]
[null,null,null,null,null,null,164,null,"2014-06-13",164]
[null,null,null,null,null,null,165,null,"2014-06-14",165]
[null,null,null,null,null,null,166,null,"2014-06-15",166]
[null,null,null,null,null,null,167,null,"2014-06-16",167]
[null,null,null,null,null,null,168,"Jn3","2014-06-17",168]
[null,null,null,null,null,null,169,null,"2014-06-18",169]
[null,null,null,null,null,null,170,null,"2014-06-19",170]
[null,null,null,null,null,null,171,null,"2014-06-20",171]
[null,null,null,null,null,null,172,null,"2014-06-21",172]
[null,null,null,null,null,null,173,null,"2014-06-22",173]
[null,null,null,null,null,null,174,null,"2014-06-23",174]
[null,null,null,null,null,null,175,"Jn4","2014-06-24",175]
[null,null,null,null,null,null,176,null,"2014-06-25",176]
[null,null,null,null,null,null,177,null,"2014-06-26",177]
[null,null,null,null,null,null,178,null,"2014-06-27",178]
[null,null,null,null,null,null,179,null,"2014-06-28",179]
[null,null,null,null,null,null,180,null,"2014-06-29",180]
[null,null,null,null,null,null,181,null,"2014-06-30",181]
[null,null,null,null,null,null,182,"Jy1","2014-07-01",182]
[null,null,null,null,null,null,183,null,"2014-07-02",183]
[null,null,null,null,null,null,184,null,"2014-07-03",184]
[null,null,null,null,null,null,185,null,"2014-07-04",185]
[null,null,null,null,null,null,186,null,"2014-07-05",186]
[null,null,null,null,null,null,187,null,"2014-07-06",187]
[null,null,null,null,null,null,188,null,"2014-07-07",188]
[null,null,null,null,null,null,189,null,"2014-07-08",189]
[null,null,null,null,null,null,190,"Jy2","2014-07-09",190]
[null,null,null,null,null,null,191,null,"2014-07-10",191]
[null,null,null,null,null,null,192,null,"2014-07-11",192]
[null,null,null,null,null,null,193,null,"2014-07-12",193]
[null,null,null,null,null,null,194,null,"2014-07-13",194]
[null,null,null,null,null,null,195,null,"2014-07-14",195]
[null,null,null,null,null,null,196,null,"2014-07-15",196]
[null,null,null,null,null,null,197,"Jy3","2014-07-16",197]
[null,null,null,null,null,null,198,null,"2014-07-17",198]
[null,null,null,null,null,null,199,null,"2014-07-18",199]
[null,null,null,null,null,null,200,null,"2014-07-19",200]
[null,null,null,null,null,null,201,null,"2014-07-20",201]
[null,null,null,null,null,null,202,null,"2014-07-21",202]
[null,null,null,null,null,null,203,null,"2014-07-22",203]
[null,null,null,null,null,null,204,null,"2014-07-23",204]
[null,null,null,null,null,null,205,"Jy4","2014-07-24",205]
[null,null,null,null,null,null,206,null,"2014-07-25",206]
[null,null,null,null,null,null,207,null,"2014-07-26",207]
[null,null,null,null,null,null,208,null,"2014-07-27",208]
[null,null,null,null,null,null,209,null,"2014-07-28",209]
[null,null,null,null,null,null,210,null,"2014-07-29",210]
[null,null,null,null,null,null,211,null,"2014-07-30",211]
[null,null,null,null,null,null,212,null,"2014-07-31",212]
[null,null,null,null,null,null,213,"Ag1","2014-08-01",213]
[null,null,null,null,null,null,214,null,"2014-08-02",214]
[null,null,null,null,null,null,215,null,"2014-08-03",215]
[null,null,null,null,null,null,216,null,"2014-08-04",216]
[null,null,null,null,null,null,217,null,"2014-08-05",217]
[null,null,null,null,null,null,218,null,"2014-08-06",218]
[null,null,null,null,null,null,219,null,"2014-08-07",219]
[null,null,null,null,null,null,220,null,"2014-08-08",220]
[null,null,null,null,null,null,221,"Ag2","2014-08-09",221]
[null,null,null,null,null,null,222,null,"2014-08-10",222]
[null,null,null,null,null,null,223,null,"2014-08-11",223]
[null,null,null,null,null,null,224,null,"2014-08-12",224]
[null,null,null,null,null,null,225,null,"2014-08-13",225]
[null,null,null,null,null,null,226,null,"2014-08-14",226]
[null,null,null,null,null,null,227,null,"2014-08-15",227]
[null,null,null,null,null,null,228,"Ag3","2014-08-16",228]
[null,null,null,null,null,null,229,null,"2014-08-17",229]
[null,null,null,null,null,null,230,null,"2014-08-18",230]
[null,null,null,null,null,null,231,null,"2014-08-19",231]
[null,null,null,null,null,null,232,null,"2014-08-20",232]
[null,null,null,null,null,null,233,null,"2014-08-21",233]
[null,null,null,null,null,null,234,null,"2014-08-22",234]
[null,null,null,null,null,null,235,null,"2014-08-23",235]
[null,null,null,null,null,null,236,null,"2014-08-24",236]
[null,null,null,null,null,null,237,null,"2014-08-25",237]
[null,null,null,null,null,null,238,"Ag4","2014-08-26",238]
[null,null,null,null,null,null,239,null,"2014-08-27",239]
[null,null,null,null,null,null,240,null,"2014-08-28",240]
[null,null,null,null,null,null,241,null,"2014-08-29",241]
[null,null,null,null,null,null,242,null,"2014-08-30",242]
[null,null,null,null,null,null,243,null,"2014-08-31",243]
[null,null,null,null,null,null,244,"Se1","2014-09-01",244]
[null,null,null,null,null,null,245,null,"2014-09-02",245]
[null,null,null,null,null,null,246,null,"2014-09-03",246]
[null,null,null,null,null,null,247,null,"2014-09-04",247]
[null,null,null,null,null,null,248,null,"2014-09-05",248]
[null,null,null,null,null,null,249,null,"2014-09-06",249]
[null,null,null,null,null,null,250,null,"2014-09-07",250]
[null,null,null,null,null,null,251,"Se2","2014-09-08",251]
[null,null,null,null,null,null,252,null,"2014-09-09",252]
[null,null,null,null,null,null,253,null,"2014-09-10",253]
[null,null,null,null,null,null,254,null,"2014-09-11",254]
[null,null,null,null,null,null,255,null,"2014-09-12",255]
[null,null,null,null,null,null,256,null,"2014-09-13",256]
[null,null,null,null,null,null,257,null,"2014-09-14",257]
[null,null,null,null,null,null,258,"Se3","2014-09-15",258]
[null,null,null,null,null,null,259,null,"2014-09-16",259]
[null,null,null,null,null,null,260,null,"2014-09-17",260]
[null,null,null,null,null,null,261,null,"2014-09-18",261]
[null,null,null,null,null,null,262,null,"2014-09-19",262]
[null,null,null,null,null,null,263,null,"2014-09-20",263]
[null,null,null,null,null,null,264,null,"2014-09-21",264]
[null,null,null,null,null,null,265,"Se4","2014-09-22",265]
[null,null,null,null,null,null,266,null,"2014-09-23",266]
[null,null,null,null,null,null,267,null,"2014-09-24",267]
[null,null,null,null,null,null,268,null,"2014-09-25",268]
[null,null,null,null,null,null,269,null,"2014-09-26",269]
[null,null,null,null,null,null,270,null,"2014-09-27",270]
[null,null,null,null,null,null,271,null,"2014-09-28",271]
[null,null,null,null,null,null,272,null,"2014-09-29",272]
[null,null,null,null,null,null,273,null,"2014-09-30",273]
[null,null,null,null,null,null,274,"Oc1","2014-10-01",274]
[null,null,null,null,null,null,275,null,"2014-10-02",275]
[null,null,null,null,null,null,276,null,"2014-10-03",276]
[null,null,null,null,null,null,277,null,"2014-10-04",277]
[null,null,null,null,null,null,278,null,"2014-10-05",278]
[null,null,null,null,null,null,279,null,"2014-10-06",279]
[null,null,null,null,null,null,280,null,"2014-10-07",280]
[null,null,null,null,null,null,281,null,"2014-10-08",281]
[null,null,null,null,null,null,282,"Oc2","2014-10-09",282]
[null,null,null,null,null,null,283,null,"2014-10-10",283]
[null,null,null,null,null,null,284,null,"2014-10-11",284]
[null,null,null,null,null,null,285,null,"2014-10-12",285]
[null,null,null,null,null,null,286,null,"2014-10-13",286]
[null,null,null,null,null,null,287,null,"2014-10-14",287]
[null,null,null,null,null,null,288,null,"2014-10-15",288]
[null,null,null,null,null,null,289,"Oc3","2014-10-16",289]
[null,null,null,null,null,null,290,null,"2014-10-17",290]
[null,null,null,null,null,null,291,null,"2014-10-18",291]
[null,null,null,null,null,null,292,null,"2014-10-19",292]
[null,null,null,null,null,null,293,null,"2014-10-20",293]
[null,null,null,null,null,null,294,null,"2014-10-21",294]
[null,null,null,null,null,null,295,null,"2014-10-22",295]
[null,null,null,null,null,null,296,null,"2014-10-23",296]
[null,null,null,null,null,null,297,"Oc4","2014-10-24",297]
[null,null,null,null,null,null,298,null,"2014-10-25",298]
[null,null,null,null,null,null,299,null,"2014-10-26",299]
[null,null,null,null,null,null,300,null,"2014-10-27",300]
[null,null,null,null,null,null,301,null,"2014-10-28",301]
[null,null,null,null,null,null,302,null,"2014-10-29",302]
[null,null,null,null,null,null,303,null,"2014-10-30",303]
[null,null,null,null,null,null,304,null,"2014-10-31",304]
[null,null,null,null,null,null,305,"Nov","2014-11-01",305]
[null,null,null,null,null,null,306,null,"2014-11-02",306]
[null,null,null,null,null,null,307,null,"2014-11-03",307]
[null,null,null,null,null,null,308,null,"2014-11-04",308]
[null,null,null,null,null,null,309,null,"2014-11-05",309]
[null,null,null,null,null,null,310,null,"2014-11-06",310]
[null,null,null,null,null,null,311,null,"2014-11-07",311]
[null,null,null,null,null,null,312,null,"2014-11-08",312]
[null,null,null,null,null,null,313,null,"2014-11-09",313]
[null,null,null,null,null,null,314,null,"2014-11-10",314]
[null,null,null,null,null,null,315,null,"2014-11-11",315]
[null,null,null,null,null,null,316,null,"2014-11-12",316]
[null,null,null,null,null,null,317,null,"2014-11-13",317]
[null,null,null,null,null,null,318,null,"2014-11-14",318]
[null,null,null,null,null,null,319,null,"2014-11-15",319]
[null,null,null,null,null,null,320,null,"2014-11-16",320]
[null,null,null,null,null,null,321,null,"2014-11-17",321]
[null,null,null,null,null,null,322,null,"2014-11-18",322]
[null,null,null,null,null,null,323,null,"2014-11-19",323]
[null,null,null,null,null,null,324,null,"2014-11-20",324]
[null,null,null,null,null,null,325,null,"2014-11-21",325]
[null,null,null,null,null,null,326,null,"2014-11-22",326]
[null,null,null,null,null,null,327,null,"2014-11-23",327]
[null,null,null,null,null,null,328,null,"2014-11-24",328]
[null,null,null,null,null,null,329,null,"2014-11-25",329]
[null,null,null,null,null,null,330,null,"2014-11-26",330]
[null,null,null,null,null,null,331,null,"2014-11-27",331]
[null,null,null,null,null,null,332,null,"2014-11-28",332]
[null,null,null,null,null,null,333,null,"2014-11-29",333]
[null,null,null,null,null,null,334,null,"2014-11-30",334]
[null,null,null,null,null,null,335,"Dec","2014-12-01",335]
[null,null,null,null,null,null,336,null,"2014-12-02",336]
[null,null,null,null,null,null,337,null,"2014-12-03",337]
[null,null,null,null,null,null,338,null,"2014-12-04",338]
[null,null,null,null,null,null,339,null,"2014-12-05",339]
[null,null,null,null,null,null,340,null,"2014-12-06",340]
[null,null,null,null,null,null,341,null,"2014-12-07",341]
[null,null,null,null,null,null,342,null,"2014-12-08",342]
[null,null,null,null,null,null,343,null,"2014-12-09",343]
[null,null,null,null,null,null,344,null,"2014-12-10",344]
[null,null,null,null,null,null,345,null,"2014-12-11",345]
[null,null,null,null,null,null,346,null,"2014-12-12",346]
[null,null,null,null,null,null,347,null,"2014-12-13",347]
[null,null,null,null,null,null,348,null,"2014-12-14",348]
[null,null,null,null,null,null,349,null,"2014-12-15",349]
[null,null,null,null,null,null,350,null,"2014-12-16",350]
[null,null,null,null,null,null,351,null,"2014-12-17",351]
[null,null,null,null,null,null,352,null,"2014-12-18",352]
[null,null,null,null,null,null,353,null,"2014-12-19",353]
[null,null,null,null,null,null,354,null,"2014-12-20",354]
[null,null,null,null,null,null,355,null,"2014-12-21",355]
[null,null,null,null,null,null,356,null,"2014-12-22",356]
[null,null,null,null,null,null,357,null,"2014-12-23",357]
[null,null,null,null,null,null,358,null,"2014-12-24",358]
[null,null,null,null,null,null,359,null,"2014-12-25",359]
[null,null,null,null,null,null,360,null,"2014-12-26",360]
[null,null,null,null,null,null,361,null,"2014-12-27",361]
[null,null,null,null,null,null,362,null,"2014-12-28",362]
[null,null,null,null,null,null,363,null,"2014-12-29",363]
[null,null,null,null,null,null,364,null,"2014-12-30",364]
[null,null,null,null,null,null,365,null,"2014-12-31",365]

{"sheet":"528 JS - Schedule Option #1 man","index":13,"n_rows":484,"n_cols":51,"rows_kept":484,"cut":false,"hidden":false,"merged":[[0,0,1,5],[0,19,0,31],[0,35,1,39],[0,41,2,53],[1,19,1,31],[2,0,2,1],[2,2,2,4],[2,19,2,31],[2,32,2,34],[13,2,13,53],[2,35,2,40],[3,0,3,53],[4,0,4,53],[5,0,5,53],[6,0,6,53],[7,0,7,53],[8,0,8,53],[9,0,9,53],[10,0,10,53],[11,2,11,53],[12,2,12,53],[23,0,23,1],[23,2,23,4],[23,14,23,38],[23,45,23,53],[14,2,14,53],[15,2,15,53],[16,2,16,53],[17,2,17,53],[18,2,18,53],[19,2,19,53],[21,14,21,39],[20,0,20,53],[21,0,22,4],[22,19,22,31],[24,0,24,3],[24,4,24,5],[24,6,24,25],[24,26,24,35],[25,0,27,0],[25,1,27,1],[25,2,27,2],[25,3,25,5],[25,6,25,53],[26,3,27,3],[27,46,27,49],[27,50,27,53],[49,0,49,1],[49,2,54,53],[48,0,48,1],[26,30,26,33],[26,34,26,37],[26,38,26,41],[26,42,26,45],[27,6,27,9],[27,10,27,13],[27,14,27,17],[26,4,27,4],[26,5,27,5],[26,18,26,21],[26,22,26,25],[26,26,26,29]]}
[null,null,null,null,null,null,null,null,null,null,null,null,null,null,null,null,null,null,null,"PRESCRIBED GRAZING JOBSHEET           ",null,null,null,null,null,null,null,null,null,null,null,null,null,null,null,null,null,null,null,null,null,"January, 2014"]
[null,null,null,null,null,null,null,null,null,null,null,null,null,null,null,null,null,null,null,"NE-ECS-528"]
["CLIENT:",null,{"$f":"'528 Jobsheet Cover_Sheet'!C4","v":0},null,null,null,null,null,null,null,null,null,null,null,null,null,null,null,null,"GRAZING SCHEDULE - YEAR #1",null,null,null,null,null,null,null,null,null,null,null,null,"Date:",null,null,{"$f":"'528 Jobsheet Cover_Sheet'!K4","v":"00:00:00"}]
[]
["Grazing management systems are planned forage and livestock management programs designed to accomplish range improvement.  A grazing system is developed to maintain or improve range similarity index, productivity, health and vigor while simultaneously achieving a high, sustainable level of livestock production."]
["Types of Grazing Systems:  Prescribed grazing is a grazing system which is tailored to the individual operation and designed to achieve the specific objectives of the operation.  There are several general types of grazing management systems:"]
["1.  Rest Rotation:  In a rest rotation grazing management system, one or more pastures are left ungrazed for the entire growing season.  Each year a different pasture(s) is ungrazed; in other words, the rest is rotated.  Incorporating rest so that each pasture is ungrazed once every 5-7 years builds in resilience, aids in drought recovery and provides wildlife habitat.  Stocking rates should be adjusted to account for the forage that is unavailable each year."]
["2.  Deferred Rotation:  In a deferred rotation grazing management system, a herd is rotated through three or more pastures.  While one pasture is being grazed, the remaining pastures are not grazed (deferred).  The pastures are grazed in a planned sequence.  The sequence of grazing is generally changed each year.  "]
["3.  High Intensity/Low Frequency Rotation:  In a high intensity/low frequency rotation grazing management system, one herd of livestock grazes eight or more pastures in a planned sequence. Livestock are moved into one pasture and the other pastures are rested. When the forage is grazed to the desired intensity, livestock are moved to the next pasture in the rotation. Livestock typically stay in a pasture 10 to 25 days. The frequent moves allow long rest periods for each pasture.  The sequence of grazing is generally changed each year.  "]
["4.  Short-duration. (Management Intensive Grazing.) This is similar to the high intensity/low frequency system, except the speed of the rotation is adjusted according to the growth rate and the required rest period of the plants. During the peak of the growing season, livestock are moved rapidly with slower moves when pasture growth rate slow down."]
["Purpose of prescribed grazing management systems:"]
[null,null,"Maintain or speed up improvement in plant cover while properly using the forage in all pastures."]
[null,null,"Improve efficiency of grazing by uniformly using all parts of each grazed pasture."]
[null,null,"Permit a higher level of livestock production."]
[null,null,"Insure a supply of forage throughout the grazing season."]
[null,null,"Insure that an adequate feed and forage balance is maintained for the unit."]
[null,null,"Improve control of undesirable plants."]
[null,null,"Allow easier handling and observation of livestock."]
[null,null,"Enhance wildlife habitat."]
[null,null,"Enhance watershed protection."]
["A growth curve may be created, saved as a jpeg or pdf and inserted into this text box. If you chose not to use a growth curve,  delete the text.\n"]
[null,null,null,null,null,null,null,null,null,null,null,null,null,null,"PRESCRIBED GRAZING JOBSHEET           "]
[null,null,null,null,null,null,null,null,null,null,null,null,null,null,null,null,null,null,null,"NE-ECS-528"]
["CLIENT:",null,{"$f":"'528 Jobsheet Cover_Sheet'!C4:G4","v":0},null,null,null,null,null,null,null,null,null,null,null,"GRAZING SCHEDULE - YEAR #1",null,null,null,null,null,null,null,null,null,null,null,null,null,null,null,null,null,null,null,null,null,null,null,null,null,null,null,"Date:  ",null,null,{"$f":"'528 Jobsheet Cover_Sheet'!K4","v":"00:00:00"}]
["Number of Days",null,null,null,null,null,"Planned Grazing Dates"]
["Field no. ","Kind of forage (Range, pasture, hay, silage, cornstalks, etc.)","Acres","AUM Information"]
[null,null,null,"Estimated AUM for Field","% AUM by field","Est. Days / Field",null,null,null,null,null,null,null,null,null,null,null,null,"April  (week)",null,null,null,"May  (week)",null,null,null,"June  (week)",null,null,null,"July (week)",null,null,null,"August  (week)",null,null,null,"Sept. (week)",null,null,null,"October  (week)"]
[null,null,null,null,null,null,"Jan",null,null,null,"Feb",null,null,null,"Mar",null,null,null,1,2,3,4,1,2,3,4,1,2,3,4,1,2,3,4,1,2,3,4,1,2,3,4,1,2,3,4,"Nov",null,null,null,"Dec"]
[{"$f":"'528-JS_Lvstk-Forage-Bal-ANN'!C55","v":0},{"$f":"IF(A29=0,\"\",('528-JS_Lvstk-Forage-Bal-ANN'!F55))","v":""},{"$f":"IF(A29=0,\"\",('528-JS_Lvstk-Forage-Bal-ANN'!G55))","v":""},{"$f":"IF(A29=0,\"\",('528-JS_Lvstk-Forage-Bal-ANN'!I55))","v":""},{"$f":"IF(A29=0,\"\", D29/D49*100)","v":""},{"$f":"IF(A29=0,\"\", $E$25*E29/100)","v":""}]
[{"$f":"'528-JS_Lvstk-Forage-Bal-ANN'!C56","v":0},{"$f":"IF(A30=0,\"\",('528-JS_Lvstk-Forage-Bal-ANN'!F56))","v":""},{"$f":"IF(A30=0,\"\",('528-JS_Lvstk-Forage-Bal-ANN'!G56))","v":""},{"$f":"IF(A30=0,\"\",('528-JS_Lvstk-Forage-Bal-ANN'!I56))","v":""},{"$f":"IF(A30=0,\"\", D30/D49*100)","v":""},{"$f":"IF(A30=0,\"\", $E$25*E30/100)","v":""}]
[{"$f":"'528-JS_Lvstk-Forage-Bal-ANN'!C57","v":0},{"$f":"IF(A31=0,\"\",('528-JS_Lvstk-Forage-Bal-ANN'!F57))","v":""},{"$f":"IF(A31=0,\"\",('528-JS_Lvstk-Forage-Bal-ANN'!G57))","v":""},{"$f":"IF(A31=0,\"\",('528-JS_Lvstk-Forage-Bal-ANN'!I57))","v":""},{"$f":"IF(A31=0,\"\", D31/D49*100)","v":""},""]
[{"$f":"'528-JS_Lvstk-Forage-Bal-ANN'!C58","v":0},{"$f":"IF(A32=0,\"\",('528-JS_Lvstk-Forage-Bal-ANN'!F58))","v":""},{"$f":"IF(A32=0,\"\",('528-JS_Lvstk-Forage-Bal-ANN'!G58))","v":""},{"$f":"IF(A32=0,\"\",('528-JS_Lvstk-Forage-Bal-ANN'!I58))","v":""},{"$f":"IF(A32=0,\"\", D32/D49 *100)","v":""},""]
[{"$f":"'528-JS_Lvstk-Forage-Bal-ANN'!C59","v":0},{"$f":"IF(A33=0,\"\",('528-JS_Lvstk-Forage-Bal-ANN'!F59))","v":""},{"$f":"IF(A33=0,\"\",('528-JS_Lvstk-Forage-Bal-ANN'!G59))","v":""},{"$f":"IF(A33=0,\"\",('528-JS_Lvstk-Forage-Bal-ANN'!I59))","v":""},{"$f":"IF(A33=0, \"\", D33/D49*100)","v":""},""]
[{"$f":"'528-JS_Lvstk-Forage-Bal-ANN'!C60","v":0},{"$f":"IF(A34=0,\"\",('528-JS_Lvstk-Forage-Bal-ANN'!F60))","v":""},{"$f":"IF(A34=0,\"\",('528-JS_Lvstk-Forage-Bal-ANN'!G60))","v":""},{"$f":"IF(A34=0,\"\",('528-JS_Lvstk-Forage-Bal-ANN'!I60))","v":""},{"$f":"IF(A34=0,\"\", D34/D49*100)","v":""},""]
[{"$f":"'528-JS_Lvstk-Forage-Bal-ANN'!C61","v":0},{"$f":"IF(A35=0,\"\",('528-JS_Lvstk-Forage-Bal-ANN'!F61))","v":""},{"$f":"IF(A35=0,\"\",('528-JS_Lvstk-Forage-Bal-ANN'!G61))","v":""},{"$f":"IF(A35=0,\"\",('528-JS_Lvstk-Forage-Bal-ANN'!I61))","v":""},{"$f":"IF(A35=0,\"\", D35/D49*100)","v":""},""]
[{"$f":"'528-JS_Lvstk-Forage-Bal-ANN'!C62","v":0},{"$f":"IF(A36=0,\"\",('528-JS_Lvstk-Forage-Bal-ANN'!F62))","v":""},{"$f":"IF(A36=0,\"\",('528-JS_Lvstk-Forage-Bal-ANN'!G62))","v":""},{"$f":"IF(A36=0,\"\",('528-JS_Lvstk-Forage-Bal-ANN'!I62))","v":""},{"$f":"IF(A36=0,\"\", D36/D49*100)","v":""},""]
[{"$f":"'528-JS_Lvstk-Forage-Bal-ANN'!C63","v":0},{"$f":"IF(A37=0,\"\",('528-JS_Lvstk-Forage-Bal-ANN'!F63))","v":""},{"$f":"IF(A37=0,\"\",('528-JS_Lvstk-Forage-Bal-ANN'!G63))","v":""},{"$f":"IF(A37=0,\"\",('528-JS_Lvstk-Forage-Bal-ANN'!I63))","v":""},{"$f":"IF(A37=0,\"\", D37/D49*100)","v":""},""]
[{"$f":"'528-JS_Lvstk-Forage-Bal-ANN'!C64","v":0},{"$f":"IF(A38=0,\"\",('528-JS_Lvstk-Forage-Bal-ANN'!F64))","v":""},{"$f":"IF(A38=0,\"\",('528-JS_Lvstk-Forage-Bal-ANN'!G64))","v":""},{"$f":"IF(A38=0,\"\",('528-JS_Lvstk-Forage-Bal-ANN'!I64))","v":""},{"$f":"IF(A38=0,\"\", D38/D49*100)","v":""},""]
[{"$f":"'528-JS_Lvstk-Forage-Bal-ANN'!C65","v":0},{"$f":"IF(A39=0,\"\",('528-JS_Lvstk-Forage-Bal-ANN'!F65))","v":""},{"$f":"IF(A39=0,\"\",('528-JS_Lvstk-Forage-Bal-ANN'!G65))","v":""},{"$f":"IF(A39=0,\"\",('528-JS_Lvstk-Forage-Bal-ANN'!I65))","v":""},{"$f":"IF(A39=0,\"\", D39/D49*100)","v":""},""]
[{"$f":"'528-JS_Lvstk-Forage-Bal-ANN'!C66","v":0},{"$f":"IF(A40=0,\"\",('528-JS_Lvstk-Forage-Bal-ANN'!F66))","v":""},{"$f":"IF(A40=0,\"\",('528-JS_Lvstk-Forage-Bal-ANN'!G66))","v":""},{"$f":"IF(A40=0,\"\",('528-JS_Lvstk-Forage-Bal-ANN'!I66))","v":""},{"$f":"IF(A40=0,\"\", D40/D49*100)","v":""},""]
[{"$f":"'528-JS_Lvstk-Forage-Bal-ANN'!C67","v":0},{"$f":"IF(A41=0,\"\",('528-JS_Lvstk-Forage-Bal-ANN'!F67))","v":""},{"$f":"IF(A41=0,\"\",('528-JS_Lvstk-Forage-Bal-ANN'!G67))","v":""},{"$f":"IF(A41=0,\"\",('528-JS_Lvstk-Forage-Bal-ANN'!I67))","v":""},{"$f":"IF(A41=0, \"\", D41/D49*100)","v":""},""]
[{"$f":"'528-JS_Lvstk-Forage-Bal-ANN'!C68","v":0},{"$f":"IF(A42=0,\"\",('528-JS_Lvstk-Forage-Bal-ANN'!F68))","v":""},{"$f":"IF(A42=0,\"\",('528-JS_Lvstk-Forage-Bal-ANN'!G68))","v":""},{"$f":"IF(A42=0,\"\",('528-JS_Lvstk-Forage-Bal-ANN'!I68))","v":""},{"$f":"IF(A42=0, \"\", D42/D49*100)","v":""},""]
[{"$f":"'528-JS_Lvstk-Forage-Bal-ANN'!C69","v":0},{"$f":"IF(A43=0,\"\",('528-JS_Lvstk-Forage-Bal-ANN'!F69))","v":""},{"$f":"IF(A43=0,\"\",('528-JS_Lvstk-Forage-Bal-ANN'!G69))","v":""},{"$f":"IF(A43=0,\"\",('528-JS_Lvstk-Forage-Bal-ANN'!I69))","v":""},{"$f":"IF(A43=0,\"\", D43/D49*100)","v":""},""]
[{"$f":"'528-JS_Lvstk-Forage-Bal-ANN'!C70","v":0},{"$f":"IF(A44=0,\"\",('528-JS_Lvstk-Forage-Bal-ANN'!F70))","v":""},{"$f":"IF(A44=0,\"\",('528-JS_Lvstk-Forage-Bal-ANN'!G70))","v":""},{"$f":"IF(A44=0,\"\",('528-JS_Lvstk-Forage-Bal-ANN'!I70))","v":""},{"$f":"IF(A44=0,\"\", D44/D49*100)","v":""},""]
[{"$f":"'528-JS_Lvstk-Forage-Bal-ANN'!C71","v":0},{"$f":"IF(A45=0,\"\",('528-JS_Lvstk-Forage-Bal-ANN'!F71))","v":""},{"$f":"IF(A45=0,\"\",('528-JS_Lvstk-Forage-Bal-ANN'!G71))","v":""},{"$f":"IF(A45=0,\"\",('528-JS_Lvstk-Forage-Bal-ANN'!I71))","v":""},{"$f":"IF(A45=0,\"\", D45/D49*100)","v":""},""]
[{"$f":"'528-JS_Lvstk-Forage-Bal-ANN'!C72","v":0},{"$f":"IF(A46=0,\"\",('528-JS_Lvstk-Forage-Bal-ANN'!F72))","v":""},{"$f":"IF(A46=0,\"\",('528-JS_Lvstk-Forage-Bal-ANN'!G72))","v":""},{"$f":"IF(A46=0,\"\",('528-JS_Lvstk-Forage-Bal-ANN'!I72))","v":""},{"$f":"IF(A46=0, \"\", D46/D49*100)","v":""},""]
[{"$f":"'528-JS_Lvstk-Forage-Bal-ANN'!C73","v":0},{"$f":"IF(A47=0,\"\",('528-JS_Lvstk-Forage-Bal-ANN'!F73))","v":""},{"$f":"IF(A47=0,\"\",('528-JS_Lvstk-Forage-Bal-ANN'!G73))","v":""},{"$f":"IF(A47=0,\"\",('528-JS_Lvstk-Forage-Bal-ANN'!I73))","v":""},{"$f":"IF(A47=0, \"\", D47/D49*100)","v":""},""]
[{"$f":"'528-JS_Lvstk-Forage-Bal-ANN'!C74","v":0},{"$f":"IF(A48=0,\"\",('528-JS_Lvstk-Forage-Bal-ANN'!F74))","v":""},{"$f":"IF(A48=0,\"\",('528-JS_Lvstk-Forage-Bal-ANN'!G74))","v":""},{"$f":"IF(A48=0,\"\",('528-JS_Lvstk-Forage-Bal-ANN'!I74))","v":""},{"$f":"IF(A48=0, \"\", D48/D49*100)","v":""},""]
["TOTAL",null,{"$f":"SUM(C29:C48)","v":0},{"$f":"SUM(D29:D48)","v":0},{"$f":"SUM(E29:E48)","v":0},{"$f":"SUM(F29:F48)","v":0}]
["Comments:"]
[]
[]
[]
[]
[]
[]
[]
[]
[]
[]
[]
[]
[]
[]
[]
[]
[]
[]
[]
[]
[]
[]
[]
[]
[]
[]
[]
[]
[]
[]
[]
[]
[]
[]
[]
[]
[]
[]
[]
[]
[]
[]
[]
[]
[]
[]
[]
[]
[]
[]
[]
[]
[]
[]
[]
[]
[]
[]
[]
[]
[]
[]
[]
[]
[null,null,null,null,null,"Gantt final as of 1/06/2014"]
[null,null,null,null,null,"Do not adjust these values"]
[]
[null,null,null,null,null,"Errors in these ranges are intentional."]
[null,null,null,null,null,null,null,null,null,null,null,null,null,null,null,null,null,null,null,null,"start",null,"duration",null,null,null,"start","end"]
[null,null,null,null,null,"Jan","Jan","2014-01-01",1,null,null,null,null,null,null,null,null,null,null,null,{"$f":"VLOOKUP(#REF!,G120:Q484,3,FALSE)","v":{"$error":"#REF!"}},null,{"$f":"F29","v":""},null,null,null,{"$f":"U120","v":{"$error":"#REF!"}},{"$f":"SUM(U120,W120)","v":{"$error":"#REF!"}}]
[null,null,null,null,null,"Feb",null,"2014-01-02",2,null,null,null,null,null,null,null,null,null,null,null,{"$f":"VLOOKUP(#REF!,G121:S485,3,FALSE)","v":{"$error":"#REF!"}},null,"",null,null,null,{"$f":"U121","v":{"$error":"#REF!"}},{"$error":"#REF!"}]
[null,null,null,null,null,"Mar",null,"2014-01-03",3,null,null,null,null,null,null,null,null,null,null,null,{"$f":"VLOOKUP(#REF!,G122:S486,3,FALSE)","v":{"$error":"#REF!"}},null,"",null,null,null,{"$error":"#REF!"},{"$error":"#REF!"}]
[null,null,null,null,null,"Ap1",null,"2014-01-04",4,null,null,null,null,null,null,null,null,null,null,null,{"$f":"VLOOKUP(#REF!,G123:S487,3,FALSE)","v":{"$error":"#REF!"}},null,"",null,null,null,{"$error":"#REF!"},{"$error":"#REF!"}]
[null,null,null,null,null,"Ap2",null,"2014-01-05",5,null,null,null,null,null,null,null,null,null,null,null,{"$f":"VLOOKUP(#REF!,G124:S488,3,FALSE)","v":{"$error":"#REF!"}},null,"",null,null,null,{"$error":"#REF!"},{"$error":"#REF!"}]
[null,null,null,null,null,"Ap3",null,"2014-01-06",6,null,null,null,null,null,null,null,null,null,null,null,{"$f":"VLOOKUP(#REF!,G125:S489,3,FALSE)","v":{"$error":"#REF!"}},null,"",null,null,null,{"$error":"#REF!"},{"$error":"#REF!"}]
[null,null,null,null,null,"Ap4",null,"2014-01-07",7,null,null,null,null,null,null,null,null,null,null,null,{"$f":"VLOOKUP(#REF!,G126:S490,3,FALSE)","v":{"$error":"#REF!"}},null,"",null,null,null,{"$error":"#REF!"},{"$error":"#REF!"}]
[null,null,null,null,null,"Ma1",null,"2014-01-08",8,null,null,null,null,null,null,null,null,null,null,null,{"$f":"VLOOKUP(#REF!,G127:S491,3,FALSE)","v":{"$error":"#REF!"}},null,"",null,null,null,{"$error":"#REF!"},{"$error":"#REF!"}]
[null,null,null,null,null,"Ma2",null,"2014-01-09",9,null,null,null,null,null,null,null,null,null,null,null,{"$f":"VLOOKUP(#REF!,G128:S492,3,FALSE)","v":{"$error":"#REF!"}},null,"",null,null,null,{"$error":"#REF!"},{"$error":"#REF!"}]
[null,null,null,null,null,"Ma3",null,"2014-01-10",10,null,null,null,null,null,null,null,null,null,null,null,{"$f":"VLOOKUP(#REF!,G129:S493,3,FALSE)","v":{"$error":"#REF!"}},null,"",null,null,null,{"$error":"#REF!"},{"$error":"#REF!"}]
[null,null,null,null,null,"Ma4",null,"2014-01-11",11,null,null,null,null,null,null,null,null,null,null,null,{"$f":"VLOOKUP(#REF!,G130:S494,3,FALSE)","v":{"$error":"#REF!"}},null,"",null,null,null,{"$error":"#REF!"},{"$error":"#REF!"}]
[null,null,null,null,null,"Jn1",null,"2014-01-12",12,null,null,null,null,null,null,null,null,null,null,null,{"$f":"VLOOKUP(#REF!,G131:S495,3,FALSE)","v":{"$error":"#REF!"}},null,"",null,null,null,{"$error":"#REF!"},{"$error":"#REF!"}]
[null,null,null,null,null,"Jn2",null,"2014-01-13",13,null,null,null,null,null,null,null,null,null,null,null,{"$f":"VLOOKUP(#REF!,G132:S496,3,FALSE)","v":{"$error":"#REF!"}},null,"",null,null,null,{"$error":"#REF!"},{"$error":"#REF!"}]
[null,null,null,null,null,"Jn3",null,"2014-01-14",14,null,null,null,null,null,null,null,null,null,null,null,{"$f":"VLOOKUP(#REF!,G133:S497,3,FALSE)","v":{"$error":"#REF!"}},null,"",null,null,null,{"$error":"#REF!"},{"$error":"#REF!"}]
[null,null,null,null,null,"Jn4",null,"2014-01-15",15,null,null,null,null,null,null,null,null,null,null,null,{"$f":"VLOOKUP(#REF!,G134:S498,3,FALSE)","v":{"$error":"#REF!"}},null,"",null,null,null,{"$error":"#REF!"},{"$error":"#REF!"}]
[null,null,null,null,null,"Jy1",null,"2014-01-16",16,null,null,null,null,null,null,null,null,null,null,null,{"$f":"VLOOKUP(#REF!,G135:S499,3,FALSE)","v":{"$error":"#REF!"}},null,"",null,null,null,{"$error":"#REF!"},{"$error":"#REF!"}]
[null,null,null,null,null,"Jy2",null,"2014-01-17",17,null,null,null,null,null,null,null,null,null,null,null,{"$f":"VLOOKUP(#REF!,G136:S500,3,FALSE)","v":{"$error":"#REF!"}},null,"",null,null,null,{"$error":"#REF!"},{"$error":"#REF!"}]
[null,null,null,null,null,"Jy3",null,"2014-01-18",18,null,null,null,null,null,null,null,null,null,null,null,{"$f":"VLOOKUP(#REF!,G137:S501,3,FALSE)","v":{"$error":"#REF!"}},null,"",null,null,null,{"$error":"#REF!"},{"$error":"#REF!"}]
[null,null,null,null,null,"Jy4",null,"2014-01-19",19,null,null,null,null,null,null,null,null,null,null,null,{"$f":"VLOOKUP(#REF!,G138:S502,3,FALSE)","v":{"$error":"#REF!"}},null,"",null,null,null,{"$error":"#REF!"},{"$error":"#REF!"}]
[null,null,null,null,null,"Ag1",null,"2014-01-20",20,null,null,null,null,null,null,null,null,null,null,null,{"$f":"VLOOKUP(#REF!,G139:S503,3,FALSE)","v":{"$error":"#REF!"}},null,"",null,null,null,{"$error":"#REF!"},{"$error":"#REF!"}]
[null,null,null,null,null,"Ag2",null,"2014-01-21",21]
[null,null,null,null,null,"Ag3",null,"2014-01-22",22]
[null,null,null,null,null,"Ag4",null,"2014-01-23",23]
[null,null,null,null,null,"Se1",null,"2014-01-24",24]
[null,null,null,null,null,"Se2",null,"2014-01-25",25]
[null,null,null,null,null,"Se3",null,"2014-01-26",26]
[null,null,null,null,null,"Se4",null,"2014-01-27",27]
[null,null,null,null,null,"Oc1",null,"2014-01-28",28]
[null,null,null,null,null,"Oc2",null,"2014-01-29",29]
[null,null,null,null,null,"Oc3",null,"2014-01-30",30]
[null,null,null,null,null,"Oc4","Feb","2014-01-31",31]
[null,null,null,null,null,"Nov",null,"2014-02-01",32]
[null,null,null,null,null,"Dec",null,"2014-02-02",33]
[null,null,null,null,null,null,null,"2014-02-03",34]
[null,null,null,null,null,null,null,"2014-02-04",35]
[null,null,null,null,null,null,null,"2014-02-05",36]
[null,null,null,null,null,null,null,"2014-02-06",37]
[null,null,null,null,null,null,null,"2014-02-07",38]
[null,null,null,null,null,null,null,"2014-02-08",39]
[null,null,null,null,null,null,null,"2014-02-09",40]
[null,null,null,null,null,null,null,"2014-02-10",41]
[null,null,null,null,null,null,null,"2014-02-11",42]
[null,null,null,null,null,null,null,"2014-02-12",43]
[null,null,null,null,null,null,null,"2014-02-13",44]
[null,null,null,null,null,null,null,"2014-02-14",45]
[null,null,null,null,null,null,null,"2014-02-15",46]
[null,null,null,null,null,null,null,"2014-02-16",47]
[null,null,null,null,null,null,null,"2014-02-17",48]
[null,null,null,null,null,null,null,"2014-02-18",49]
[null,null,null,null,null,null,null,"2014-02-19",50]
[null,null,null,null,null,null,null,"2014-02-20",51]
[null,null,null,null,null,null,null,"2014-02-21",52]
[null,null,null,null,null,null,null,"2014-02-22",53]
[null,null,null,null,null,null,null,"2014-02-23",54]
[null,null,null,null,null,null,null,"2014-02-24",55]
[null,null,null,null,null,null,null,"2014-02-25",56]
[null,null,null,null,null,null,null,"2014-02-26",57]
[null,null,null,null,null,null,null,"2014-02-27",58]
[null,null,null,null,null,null,null,"2014-02-28",59]
[null,null,null,null,null,null,null,"2014-03-01",60]
[null,null,null,null,null,null,"Mar","2014-03-02",61]
[null,null,null,null,null,null,null,"2014-03-03",62]
[null,null,null,null,null,null,null,"2014-03-04",63]
[null,null,null,null,null,null,null,"2014-03-05",64]
[null,null,null,null,null,null,null,"2014-03-06",65]
[null,null,null,null,null,null,null,"2014-03-07",66]
[null,null,null,null,null,null,null,"2014-03-08",67]
[null,null,null,null,null,null,null,"2014-03-09",68]
[null,null,null,null,null,null,null,"2014-03-10",69]
[null,null,null,null,null,null,null,"2014-03-11",70]
[null,null,null,null,null,null,null,"2014-03-12",71]
[null,null,null,null,null,null,null,"2014-03-13",72]
[null,null,null,null,null,null,null,"2014-03-14",73]
[null,null,null,null,null,null,null,"2014-03-15",74]
[null,null,null,null,null,null,null,"2014-03-16",75]
[null,null,null,null,null,null,null,"2014-03-17",76]
[null,null,null,null,null,null,null,"2014-03-18",77]
[null,null,null,null,null,null,null,"2014-03-19",78]
[null,null,null,null,null,null,null,"2014-03-20",79]
[null,null,null,null,null,null,null,"2014-03-21",80]
[null,null,null,null,null,null,null,"2014-03-22",81]
[null,null,null,null,null,null,null,"2014-03-23",82]
[null,null,null,null,null,null,null,"2014-03-24",83]
[null,null,null,null,null,null,null,"2014-03-25",84]
[null,null,null,null,null,null,null,"2014-03-26",85]
[null,null,null,null,null,null,null,"2014-03-27",86]
[null,null,null,null,null,null,null,"2014-03-28",87]
[null,null,null,null,null,null,null,"2014-03-29",88]
[null,null,null,null,null,null,null,"2014-03-30",89]
[null,null,null,null,null,null,null,"2014-03-31",90]
[null,null,null,null,null,null,null,"2014-04-01",91]
[null,null,null,null,null,null,"Ap1","2014-04-02",92]
[null,null,null,null,null,null,null,"2014-04-03",93]
[null,null,null,null,null,null,null,"2014-04-04",94]
[null,null,null,null,null,null,null,"2014-04-05",95]
[null,null,null,null,null,null,null,"2014-04-06",96]
[null,null,null,null,null,null,null,"2014-04-07",97]
[null,null,null,null,null,null,null,"2014-04-08",98]
[null,null,null,null,null,null,"Ap2","2014-04-09",99]
[null,null,null,null,null,null,null,"2014-04-10",100]
[null,null,null,null,null,null,null,"2014-04-11",101]
[null,null,null,null,null,null,null,"2014-04-12",102]
[null,null,null,null,null,null,null,"2014-04-13",103]
[null,null,null,null,null,null,null,"2014-04-14",104]
[null,null,null,null,null,null,null,"2014-04-15",105]
[null,null,null,null,null,null,"Ap3","2014-04-16",106]
[null,null,null,null,null,null,null,"2014-04-17",107]
[null,null,null,null,null,null,null,"2014-04-18",108]
[null,null,null,null,null,null,null,"2014-04-19",109]
[null,null,null,null,null,null,null,"2014-04-20",110]
[null,null,null,null,null,null,null,"2014-04-21",111]
[null,null,null,null,null,null,null,"2014-04-22",112]
[null,null,null,null,null,null,null,"2014-04-23",113]
[null,null,null,null,null,null,"Ap4","2014-04-24",114]
[null,null,null,null,null,null,null,"2014-04-25",115]
[null,null,null,null,null,null,null,"2014-04-26",116]
[null,null,null,null,null,null,null,"2014-04-27",117]
[null,null,null,null,null,null,null,"2014-04-28",118]
[null,null,null,null,null,null,null,"2014-04-29",119]
[null,null,null,null,null,null,null,"2014-04-30",120]
[null,null,null,null,null,null,null,"2014-05-01",121]
[null,null,null,null,null,null,"Ma1","2014-05-02",122]
[null,null,null,null,null,null,null,"2014-05-03",123]
[null,null,null,null,null,null,null,"2014-05-04",124]
[null,null,null,null,null,null,null,"2014-05-05",125]
[null,null,null,null,null,null,null,"2014-05-06",126]
[null,null,null,null,null,null,null,"2014-05-07",127]
[null,null,null,null,null,null,null,"2014-05-08",128]
[null,null,null,null,null,null,"Ma2","2014-05-09",129]
[null,null,null,null,null,null,null,"2014-05-10",130]
[null,null,null,null,null,null,null,"2014-05-11",131]
[null,null,null,null,null,null,null,"2014-05-12",132]
[null,null,null,null,null,null,null,"2014-05-13",133]
[null,null,null,null,null,null,null,"2014-05-14",134]
[null,null,null,null,null,null,null,"2014-05-15",135]
[null,null,null,null,null,null,"Ma3","2014-05-16",136]
[null,null,null,null,null,null,null,"2014-05-17",137]
[null,null,null,null,null,null,null,"2014-05-18",138]
[null,null,null,null,null,null,null,"2014-05-19",139]
[null,null,null,null,null,null,null,"2014-05-20",140]
[null,null,null,null,null,null,null,"2014-05-21",141]
[null,null,null,null,null,null,null,"2014-05-22",142]
[null,null,null,null,null,null,"Ma4","2014-05-23",143]
[null,null,null,null,null,null,null,"2014-05-24",144]
[null,null,null,null,null,null,null,"2014-05-25",145]
[null,null,null,null,null,null,null,"2014-05-26",146]
[null,null,null,null,null,null,null,"2014-05-27",147]
[null,null,null,null,null,null,null,"2014-05-28",148]
[null,null,null,null,null,null,null,"2014-05-29",149]
[null,null,null,null,null,null,null,"2014-05-30",150]
[null,null,null,null,null,null,null,"2014-05-31",151]
[null,null,null,null,null,null,null,"2014-06-01",152]
[null,null,null,null,null,null,"Jn1","2014-06-02",153]
[null,null,null,null,null,null,null,"2014-06-03",154]
[null,null,null,null,null,null,null,"2014-06-04",155]
[null,null,null,null,null,null,null,"2014-06-05",156]
[null,null,null,null,null,null,null,"2014-06-06",157]
[null,null,null,null,null,null,null,"2014-06-07",158]
[null,null,null,null,null,null,null,"2014-06-08",159]
[null,null,null,null,null,null,"Jn2","2014-06-09",160]
[null,null,null,null,null,null,null,"2014-06-10",161]
[null,null,null,null,null,null,null,"2014-06-11",162]
[null,null,null,null,null,null,null,"2014-06-12",163]
[null,null,null,null,null,null,null,"2014-06-13",164]
[null,null,null,null,null,null,null,"2014-06-14",165]
[null,null,null,null,null,null,null,"2014-06-15",166]
[null,null,null,null,null,null,null,"2014-06-16",167]
[null,null,null,null,null,null,"Jn3","2014-06-17",168]
[null,null,null,null,null,null,null,"2014-06-18",169]
[null,null,null,null,null,null,null,"2014-06-19",170]
[null,null,null,null,null,null,null,"2014-06-20",171]
[null,null,null,null,null,null,null,"2014-06-21",172]
[null,null,null,null,null,null,null,"2014-06-22",173]
[null,null,null,null,null,null,null,"2014-06-23",174]
[null,null,null,null,null,null,"Jn4","2014-06-24",175]
[null,null,null,null,null,null,null,"2014-06-25",176]
[null,null,null,null,null,null,null,"2014-06-26",177]
[null,null,null,null,null,null,null,"2014-06-27",178]
[null,null,null,null,null,null,null,"2014-06-28",179]
[null,null,null,null,null,null,null,"2014-06-29",180]
[null,null,null,null,null,null,null,"2014-06-30",181]
[null,null,null,null,null,null,"Jy1","2014-07-01",182]
[null,null,null,null,null,null,null,"2014-07-02",183]
[null,null,null,null,null,null,null,"2014-07-03",184]
[null,null,null,null,null,null,null,"2014-07-04",185]
[null,null,null,null,null,null,null,"2014-07-05",186]
[null,null,null,null,null,null,null,"2014-07-06",187]
[null,null,null,null,null,null,null,"2014-07-07",188]
[null,null,null,null,null,null,null,"2014-07-08",189]
[null,null,null,null,null,null,"Jy2","2014-07-09",190]
[null,null,null,null,null,null,null,"2014-07-10",191]
[null,null,null,null,null,null,null,"2014-07-11",192]
[null,null,null,null,null,null,null,"2014-07-12",193]
[null,null,null,null,null,null,null,"2014-07-13",194]
[null,null,null,null,null,null,null,"2014-07-14",195]
[null,null,null,null,null,null,null,"2014-07-15",196]
[null,null,null,null,null,null,"Jy3","2014-07-16",197]
[null,null,null,null,null,null,null,"2014-07-17",198]
[null,null,null,null,null,null,null,"2014-07-18",199]
[null,null,null,null,null,null,null,"2014-07-19",200]
[null,null,null,null,null,null,null,"2014-07-20",201]
[null,null,null,null,null,null,null,"2014-07-21",202]
[null,null,null,null,null,null,null,"2014-07-22",203]
[null,null,null,null,null,null,null,"2014-07-23",204]
[null,null,null,null,null,null,"Jy4","2014-07-24",205]
[null,null,null,null,null,null,null,"2014-07-25",206]
[null,null,null,null,null,null,null,"2014-07-26",207]
[null,null,null,null,null,null,null,"2014-07-27",208]
[null,null,null,null,null,null,null,"2014-07-28",209]
[null,null,null,null,null,null,null,"2014-07-29",210]
[null,null,null,null,null,null,null,"2014-07-30",211]
[null,null,null,null,null,null,null,"2014-07-31",212]
[null,null,null,null,null,null,"Ag1","2014-08-01",213]
[null,null,null,null,null,null,null,"2014-08-02",214]
[null,null,null,null,null,null,null,"2014-08-03",215]
[null,null,null,null,null,null,null,"2014-08-04",216]
[null,null,null,null,null,null,null,"2014-08-05",217]
[null,null,null,null,null,null,null,"2014-08-06",218]
[null,null,null,null,null,null,null,"2014-08-07",219]
[null,null,null,null,null,null,null,"2014-08-08",220]
[null,null,null,null,null,null,"Ag2","2014-08-09",221]
[null,null,null,null,null,null,null,"2014-08-10",222]
[null,null,null,null,null,null,null,"2014-08-11",223]
[null,null,null,null,null,null,null,"2014-08-12",224]
[null,null,null,null,null,null,null,"2014-08-13",225]
[null,null,null,null,null,null,null,"2014-08-14",226]
[null,null,null,null,null,null,null,"2014-08-15",227]
[null,null,null,null,null,null,"Ag3","2014-08-16",228]
[null,null,null,null,null,null,null,"2014-08-17",229]
[null,null,null,null,null,null,null,"2014-08-18",230]
[null,null,null,null,null,null,null,"2014-08-19",231]
[null,null,null,null,null,null,null,"2014-08-20",232]
[null,null,null,null,null,null,null,"2014-08-21",233]
[null,null,null,null,null,null,null,"2014-08-22",234]
[null,null,null,null,null,null,null,"2014-08-23",235]
[null,null,null,null,null,null,null,"2014-08-24",236]
[null,null,null,null,null,null,null,"2014-08-25",237]
[null,null,null,null,null,null,"Ag4","2014-08-26",238]
[null,null,null,null,null,null,null,"2014-08-27",239]
[null,null,null,null,null,null,null,"2014-08-28",240]
[null,null,null,null,null,null,null,"2014-08-29",241]
[null,null,null,null,null,null,null,"2014-08-30",242]
[null,null,null,null,null,null,null,"2014-08-31",243]
[null,null,null,null,null,null,"Se1","2014-09-01",244]
[null,null,null,null,null,null,null,"2014-09-02",245]
[null,null,null,null,null,null,null,"2014-09-03",246]
[null,null,null,null,null,null,null,"2014-09-04",247]
[null,null,null,null,null,null,null,"2014-09-05",248]
[null,null,null,null,null,null,null,"2014-09-06",249]
[null,null,null,null,null,null,null,"2014-09-07",250]
[null,null,null,null,null,null,"Se2","2014-09-08",251]
[null,null,null,null,null,null,null,"2014-09-09",252]
[null,null,null,null,null,null,null,"2014-09-10",253]
[null,null,null,null,null,null,null,"2014-09-11",254]
[null,null,null,null,null,null,null,"2014-09-12",255]
[null,null,null,null,null,null,null,"2014-09-13",256]
[null,null,null,null,null,null,null,"2014-09-14",257]
[null,null,null,null,null,null,"Se3","2014-09-15",258]
[null,null,null,null,null,null,null,"2014-09-16",259]
[null,null,null,null,null,null,null,"2014-09-17",260]
[null,null,null,null,null,null,null,"2014-09-18",261]
[null,null,null,null,null,null,null,"2014-09-19",262]
[null,null,null,null,null,null,null,"2014-09-20",263]
[null,null,null,null,null,null,null,"2014-09-21",264]
[null,null,null,null,null,null,"Se4","2014-09-22",265]
[null,null,null,null,null,null,null,"2014-09-23",266]
[null,null,null,null,null,null,null,"2014-09-24",267]
[null,null,null,null,null,null,null,"2014-09-25",268]
[null,null,null,null,null,null,null,"2014-09-26",269]
[null,null,null,null,null,null,null,"2014-09-27",270]
[null,null,null,null,null,null,null,"2014-09-28",271]
[null,null,null,null,null,null,null,"2014-09-29",272]
[null,null,null,null,null,null,null,"2014-09-30",273]
[null,null,null,null,null,null,"Oc1","2014-10-01",274]
[null,null,null,null,null,null,null,"2014-10-02",275]
[null,null,null,null,null,null,null,"2014-10-03",276]
[null,null,null,null,null,null,null,"2014-10-04",277]
[null,null,null,null,null,null,null,"2014-10-05",278]
[null,null,null,null,null,null,null,"2014-10-06",279]
[null,null,null,null,null,null,null,"2014-10-07",280]
[null,null,null,null,null,null,null,"2014-10-08",281]
[null,null,null,null,null,null,"Oc2","2014-10-09",282]
[null,null,null,null,null,null,null,"2014-10-10",283]
[null,null,null,null,null,null,null,"2014-10-11",284]
[null,null,null,null,null,null,null,"2014-10-12",285]
[null,null,null,null,null,null,null,"2014-10-13",286]
[null,null,null,null,null,null,null,"2014-10-14",287]
[null,null,null,null,null,null,null,"2014-10-15",288]
[null,null,null,null,null,null,"Oc3","2014-10-16",289]
[null,null,null,null,null,null,null,"2014-10-17",290]
[null,null,null,null,null,null,null,"2014-10-18",291]
[null,null,null,null,null,null,null,"2014-10-19",292]
[null,null,null,null,null,null,null,"2014-10-20",293]
[null,null,null,null,null,null,null,"2014-10-21",294]
[null,null,null,null,null,null,null,"2014-10-22",295]
[null,null,null,null,null,null,null,"2014-10-23",296]
[null,null,null,null,null,null,"Oc4","2014-10-24",297]
[null,null,null,null,null,null,null,"2014-10-25",298]
[null,null,null,null,null,null,null,"2014-10-26",299]
[null,null,null,null,null,null,null,"2014-10-27",300]
[null,null,null,null,null,null,null,"2014-10-28",301]
[null,null,null,null,null,null,null,"2014-10-29",302]
[null,null,null,null,null,null,null,"2014-10-30",303]
[null,null,null,null,null,null,null,"2014-10-31",304]
[null,null,null,null,null,null,"Nov","2014-11-01",305]
[null,null,null,null,null,null,null,"2014-11-02",306]
[null,null,null,null,null,null,null,"2014-11-03",307]
[null,null,null,null,null,null,null,"2014-11-04",308]
[null,null,null,null,null,null,null,"2014-11-05",309]
[null,null,null,null,null,null,null,"2014-11-06",310]
[null,null,null,null,null,null,null,"2014-11-07",311]
[null,null,null,null,null,null,null,"2014-11-08",312]
[null,null,null,null,null,null,null,"2014-11-09",313]
[null,null,null,null,null,null,null,"2014-11-10",314]
[null,null,null,null,null,null,null,"2014-11-11",315]
[null,null,null,null,null,null,null,"2014-11-12",316]
[null,null,null,null,null,null,null,"2014-11-13",317]
[null,null,null,null,null,null,null,"2014-11-14",318]
[null,null,null,null,null,null,null,"2014-11-15",319]
[null,null,null,null,null,null,null,"2014-11-16",320]
[null,null,null,null,null,null,null,"2014-11-17",321]
[null,null,null,null,null,null,null,"2014-11-18",322]
[null,null,null,null,null,null,null,"2014-11-19",323]
[null,null,null,null,null,null,null,"2014-11-20",324]
[null,null,null,null,null,null,null,"2014-11-21",325]
[null,null,null,null,null,null,null,"2014-11-22",326]
[null,null,null,null,null,null,null,"2014-11-23",327]
[null,null,null,null,null,null,null,"2014-11-24",328]
[null,null,null,null,null,null,null,"2014-11-25",329]
[null,null,null,null,null,null,null,"2014-11-26",330]
[null,null,null,null,null,null,null,"2014-11-27",331]
[null,null,null,null,null,null,null,"2014-11-28",332]
[null,null,null,null,null,null,null,"2014-11-29",333]
[null,null,null,null,null,null,null,"2014-11-30",334]
[null,null,null,null,null,null,"Dec","2014-12-01",335]
[null,null,null,null,null,null,null,"2014-12-02",336]
[null,null,null,null,null,null,null,"2014-12-03",337]
[null,null,null,null,null,null,null,"2014-12-04",338]
[null,null,null,null,null,null,null,"2014-12-05",339]
[null,null,null,null,null,null,null,"2014-12-06",340]
[null,null,null,null,null,null,null,"2014-12-07",341]
[null,null,null,null,null,null,null,"2014-12-08",342]
[null,null,null,null,null,null,null,"2014-12-09",343]
[null,null,null,null,null,null,null,"2014-12-10",344]
[null,null,null,null,null,null,null,"2014-12-11",345]
[null,null,null,null,null,null,null,"2014-12-12",346]
[null,null,null,null,null,null,null,"2014-12-13",347]
[null,null,null,null,null,null,null,"2014-12-14",348]
[null,null,null,null,null,null,null,"2014-12-15",349]
[null,null,null,null,null,null,null,"2014-12-16",350]
[null,null,null,null,null,null,null,"2014-12-17",351]
[null,null,null,null,null,null,null,"2014-12-18",352]
[null,null,null,null,null,null,null,"2014-12-19",353]
[null,null,null,null,null,null,null,"2014-12-20",354]
[null,null,null,null,null,null,null,"2014-12-21",355]
[null,null,null,null,null,null,null,"2014-12-22",356]
[null,null,null,null,null,null,null,"2014-12-23",357]
[null,null,null,null,null,null,null,"2014-12-24",358]
[null,null,null,null,null,null,null,"2014-12-25",359]
[null,null,null,null,null,null,null,"2014-12-26",360]
[null,null,null,null,null,null,null,"2014-12-27",361]
[null,null,null,null,null,null,null,"2014-12-28",362]
[null,null,null,null,null,null,null,"2014-12-29",363]
[null,null,null,null,null,null,null,"2014-12-30",364]
[null,null,null,null,null,null,null,"2014-12-31",365]

{"sheet":"528 JS - Schedule Option #2","index":14,"n_rows":50,"n_cols":22,"rows_kept":50,"cut":false,"hidden":false,"merged":[[29,0,32,22],[26,19,26,20],[26,21,26,22],[27,7,27,8],[27,9,27,10],[27,11,27,12],[27,13,27,14],[27,15,27,16],[27,17,27,18],[27,19,27,20],[27,21,27,22],[26,7,26,8],[26,9,26,10],[26,11,26,12],[26,13,26,14],[26,15,26,16],[26,17,26,18],[28,0,28,1],[25,11,25,12],[25,13,25,14],[25,15,25,16],[25,17,25,18],[25,19,25,20],[25,21,25,22],[24,7,24,8],[24,9,24,10],[24,11,24,12],[24,13,24,14],[24,15,24,16],[24,17,24,18],[24,19,24,20],[24,21,24,22],[25,7,25,8],[25,9,25,10],[22,19,22,20],[22,21,22,22],[23,7,23,8],[23,9,23,10],[23,11,23,12],[23,13,23,14],[23,15,23,16],[23,17,23,18],[23,19,23,20],[23,21,23,22],[22,7,22,8],[22,9,22,10],[22,11,22,12],[22,13,22,14],[22,15,22,16],[22,17,22,18],[20,19,20,20],[20,21,20,22],[21,7,21,8],[21,9,21,10],[21,11,21,12],[21,13,21,14],[21,15,21,16],[21,17,21,18],[21,19,21,20],[21,21,21,22],[20,7,20,8],[20,9,20,10],[20,11,20,12],[20,13,20,14],[20,15,20,16],[20,17,20,18],[15,11,15,12],[15,13,15,14],[15,15,15,16],[15,17,15,18],[18,19,18,20],[18,21,18,22],[19,7,19,8],[19,9,19,10],[19,11,19,12],[19,13,19,14],[19,15,19,16],[19,17,19,18],[19,19,19,20],[19,21,19,22],[18,7,18,8],[18,9,18,10],[18,11,18,12],[18,13,18,14],[18,15,18,16],[18,17,18,18],[11,13,11,14],[11,15,11,16],[11,17,11,18],[11,19,11,20],[13,7,13,8],[13,9,13,10],[16,19,16,20],[16,21,16,22],[17,7,17,8],[17,9,17,10],[17,11,17,12],[17,13,17,14],[17,15,17,16],[17,17,17,18],[17,19,17,20],[17,21,17,22],[16,7,16,8],[16,9,16,10],[16,11,16,12],[16,13,16,14],[16,15,16,16],[16,17,16,18],[15,7,15,8],[15,9,15,10],[10,17,10,18],[0,23,2,23],[1,7,1,18],[1,21,1,22],[15,19,15,20],[15,21,15,22],[14,7,14,8],[14,9,14,10],[14,11,14,12],[14,13,14,14],[14,15,14,16],[14,17,14,18],[8,13,8,14],[8,15,8,16],[8,17,8,18],[12,11,12,12],[12,13,12,14],[12,15,12,16],[12,17,12,18],[14,19,14,20],[14,21,14,22],[12,19,12,20],[12,21,12,22],[11,11,11,12],[6,7,6,14],[6,15,6,22],[7,7,7,8],[7,9,7,10],[4,0,4,2],[4,3,4,5],[2,19,2,20],[4,7,4,12],[4,14,4,20],[2,21,2,22],[3,0,3,22],[46,2,46,22],[47,2,47,22],[48,2,48,22],[49,2,49,22],[35,0,35,22],[36,0,36,22],[37,0,37,22],[38,0,38,22],[39,0,39,22],[40,0,40,22],[41,2,41,22],[42,2,42,22],[43,2,43,22],[44,2,44,22],[45,2,45,22],[33,0,33,22],[34,0,34,22],[8,19,8,20],[8,21,8,22],[9,7,9,8],[9,9,9,10],[9,11,9,12],[9,13,9,14],[9,15,9,16],[9,17,9,18],[9,19,9,20],[9,21,9,22],[8,7,8,8],[8,9,8,10],[8,11,8,12],[13,11,13,12],[13,13,13,14],[13,15,13,16],[11,21,11,22],[10,7,10,8],[10,9,10,10],[10,11,10,12],[10,13,10,14],[10,15,10,16],[13,17,13,18],[13,19,13,20],[13,21,13,22],[12,7,12,8],[12,9,12,10],[11,9,11,10],[0,0,1,3],[0,7,0,18],[5,0,7,0],[10,19,10,20],[10,21,10,22],[11,7,11,8],[2,1,2,3],[2,7,2,18],[7,11,7,12],[7,13,7,14],[7,15,7,16],[7,17,7,18],[7,19,7,20],[7,21,7,22],[5,1,7,1],[5,2,7,2],[5,3,5,5],[5,7,5,22]]}
[null,null,null,null,null,null,null,"PRESCRIBED GRAZING JOBSHEET           "]
[null,null,null,null,null,null,null,"NE-ECS-528",null,null,null,null,null,null,null,null,null,null,null,null,null,"September, 2014"]
["CLIENT:",{"$f":"'528 Jobsheet Cover_Sheet'!C4","v":0},null,null,null,null,null,"GRAZING SCHEDULE - YEAR #1 - 2015, Year #2 - 2016",null,null,null,null,null,null,null,null,null,null,null,"DATE:",null,{"$f":"'528 Jobsheet Cover_Sheet'!K4","v":"00:00:00"}]
[]
["Days grazing for system:",null,null,null,null,null,null,"Planned grazing dates: "]
["Pasture Number ","Pasture Name","ACRES","Planned/Estimated Days",null,null,null,"Planned and Actual Dates"]
[null,null,null,null,null,null,null,"Year 1",null,null,null,null,null,null,null,"Year 2"]
[null,null,null,"Estimated Available AUM's","% of AUM by Pasture","DAYs",null,"Planned In Date",null,"Planned Out Date",null,"Actual In Date",null,"Actual Out Date",null,"Planned In Date",null,"Planned Out Date",null,"Actual In Date",null,"Actual Out Date"]
[{"$f":"'528-JS_Lvstk-Forage-Bal-ANN'!C55","v":0},{"$f":"IF(A9=0,\"\",('528-JS_Lvstk-Forage-Bal-ANN'!D55))","v":""},{"$f":"IF(A9=0,\"\",('528-JS_Lvstk-Forage-Bal-ANN'!G55))","v":""},{"$f":"IF(A9=0,\"\",('528-JS_Lvstk-Forage-Bal-ANN'!I55))","v":""},{"$f":"IF(A9=0,\"\",D9/$D$29*100)","v":""},{"$f":"IF(A9=0,\"\",$D$5*E9/100)","v":""}]
[{"$f":"'528-JS_Lvstk-Forage-Bal-ANN'!C56","v":0},{"$f":"IF(A10=0,\"\",('528-JS_Lvstk-Forage-Bal-ANN'!D56))","v":""},{"$f":"IF(A10=0,\"\",('528-JS_Lvstk-Forage-Bal-ANN'!G56))","v":""},{"$f":"IF(A10=0,\"\",('528-JS_Lvstk-Forage-Bal-ANN'!I56))","v":""},{"$f":"IF(A10=0,\"\",D10/$D$29*100)","v":""},""]
[{"$f":"'528-JS_Lvstk-Forage-Bal-ANN'!C57","v":0},{"$f":"IF(A11=0,\"\",('528-JS_Lvstk-Forage-Bal-ANN'!D57))","v":""},{"$f":"IF(A11=0,\"\",('528-JS_Lvstk-Forage-Bal-ANN'!G57))","v":""},{"$f":"IF(A11=0,\"\",('528-JS_Lvstk-Forage-Bal-ANN'!I57))","v":""},{"$f":"IF(A11=0,\"\",D11/$D$29*100)","v":""},""]
[{"$f":"'528-JS_Lvstk-Forage-Bal-ANN'!C58","v":0},{"$f":"IF(A12=0,\"\",('528-JS_Lvstk-Forage-Bal-ANN'!D58))","v":""},{"$f":"IF(A12=0,\"\",('528-JS_Lvstk-Forage-Bal-ANN'!G58))","v":""},{"$f":"IF(A12=0,\"\",('528-JS_Lvstk-Forage-Bal-ANN'!I58))","v":""},{"$f":"IF(A12=0,\"\",D12/$D$29*100)","v":""},""]
[{"$f":"'528-JS_Lvstk-Forage-Bal-ANN'!C59","v":0},{"$f":"IF(A13=0,\"\",('528-JS_Lvstk-Forage-Bal-ANN'!D59))","v":""},{"$f":"IF(A13=0,\"\",('528-JS_Lvstk-Forage-Bal-ANN'!G59))","v":""},{"$f":"IF(A13=0,\"\",('528-JS_Lvstk-Forage-Bal-ANN'!I59))","v":""},"",""]
[{"$f":"'528-JS_Lvstk-Forage-Bal-ANN'!C60","v":0},{"$f":"IF(A14=0,\"\",('528-JS_Lvstk-Forage-Bal-ANN'!D60))","v":""},{"$f":"IF(A14=0,\"\",('528-JS_Lvstk-Forage-Bal-ANN'!G60))","v":""},{"$f":"IF(A14=0,\"\",('528-JS_Lvstk-Forage-Bal-ANN'!I60))","v":""},"",""]
[{"$f":"'528-JS_Lvstk-Forage-Bal-ANN'!C61","v":0},{"$f":"IF(A15=0,\"\",('528-JS_Lvstk-Forage-Bal-ANN'!D61))","v":""},{"$f":"IF(A15=0,\"\",('528-JS_Lvstk-Forage-Bal-ANN'!G61))","v":""},{"$f":"IF(A15=0,\"\",('528-JS_Lvstk-Forage-Bal-ANN'!I61))","v":""},"",{"$f":"IF(A15=0,\"\",$D$5*E15/100)","v":""}]
[{"$f":"'528-JS_Lvstk-Forage-Bal-ANN'!C62","v":0},{"$f":"IF(A16=0,\"\",('528-JS_Lvstk-Forage-Bal-ANN'!D62))","v":""},{"$f":"IF(A16=0,\"\",('528-JS_Lvstk-Forage-Bal-ANN'!G62))","v":""},{"$f":"IF(A16=0,\"\",('528-JS_Lvstk-Forage-Bal-ANN'!I62))","v":""},"",""]
[{"$f":"'528-JS_Lvstk-Forage-Bal-ANN'!C63","v":0},{"$f":"IF(A17=0,\"\",('528-JS_Lvstk-Forage-Bal-ANN'!D63))","v":""},{"$f":"IF(A17=0,\"\",('528-JS_Lvstk-Forage-Bal-ANN'!G63))","v":""},{"$f":"IF(A17=0,\"\",('528-JS_Lvstk-Forage-Bal-ANN'!I63))","v":""},"",""]
[{"$f":"'528-JS_Lvstk-Forage-Bal-ANN'!C64","v":0},{"$f":"IF(A18=0,\"\",('528-JS_Lvstk-Forage-Bal-ANN'!D64))","v":""},{"$f":"IF(A18=0,\"\",('528-JS_Lvstk-Forage-Bal-ANN'!G64))","v":""},{"$f":"IF(A18=0,\"\",('528-JS_Lvstk-Forage-Bal-ANN'!I64))","v":""},"",""]
[{"$f":"'528-JS_Lvstk-Forage-Bal-ANN'!C65","v":0},{"$f":"IF(A19=0,\"\",('528-JS_Lvstk-Forage-Bal-ANN'!D65))","v":""},{"$f":"IF(A19=0,\"\",('528-JS_Lvstk-Forage-Bal-ANN'!G65))","v":""},{"$f":"IF(A19=0,\"\",('528-JS_Lvstk-Forage-Bal-ANN'!I65))","v":""},"",""]
[{"$f":"'528-JS_Lvstk-Forage-Bal-ANN'!C66","v":0},{"$f":"IF(A20=0,\"\",('528-JS_Lvstk-Forage-Bal-ANN'!D66))","v":""},{"$f":"IF(A20=0,\"\",('528-JS_Lvstk-Forage-Bal-ANN'!G66))","v":""},{"$f":"IF(A20=0,\"\",('528-JS_Lvstk-Forage-Bal-ANN'!I66))","v":""},"",""]
[{"$f":"'528-JS_Lvstk-Forage-Bal-ANN'!C67","v":0},{"$f":"IF(A21=0,\"\",('528-JS_Lvstk-Forage-Bal-ANN'!D67))","v":""},{"$f":"IF(A21=0,\"\",('528-JS_Lvstk-Forage-Bal-ANN'!G67))","v":""},{"$f":"IF(A21=0,\"\",('528-JS_Lvstk-Forage-Bal-ANN'!I67))","v":""},"",""]
[{"$f":"'528-JS_Lvstk-Forage-Bal-ANN'!C68","v":0},{"$f":"IF(A22=0,\"\",('528-JS_Lvstk-Forage-Bal-ANN'!D68))","v":""},{"$f":"IF(A22=0,\"\",('528-JS_Lvstk-Forage-Bal-ANN'!G68))","v":""},{"$f":"IF(A22=0,\"\",('528-JS_Lvstk-Forage-Bal-ANN'!I68))","v":""},"",""]
[{"$f":"'528-JS_Lvstk-Forage-Bal-ANN'!C69","v":0},{"$f":"IF(A23=0,\"\",('528-JS_Lvstk-Forage-Bal-ANN'!D69))","v":""},{"$f":"IF(A23=0,\"\",('528-JS_Lvstk-Forage-Bal-ANN'!G69))","v":""},{"$f":"IF(A23=0,\"\",('528-JS_Lvstk-Forage-Bal-ANN'!I69))","v":""},"",""]
[{"$f":"'528-JS_Lvstk-Forage-Bal-ANN'!C70","v":0},{"$f":"IF(A24=0,\"\",('528-JS_Lvstk-Forage-Bal-ANN'!D70))","v":""},{"$f":"IF(A24=0,\"\",('528-JS_Lvstk-Forage-Bal-ANN'!G70))","v":""},{"$f":"IF(A24=0,\"\",('528-JS_Lvstk-Forage-Bal-ANN'!I70))","v":""},"",""]
[{"$f":"'528-JS_Lvstk-Forage-Bal-ANN'!C71","v":0},{"$f":"IF(A25=0,\"\",('528-JS_Lvstk-Forage-Bal-ANN'!D71))","v":""},{"$f":"IF(A25=0,\"\",('528-JS_Lvstk-Forage-Bal-ANN'!G71))","v":""},{"$f":"IF(A25=0,\"\",('528-JS_Lvstk-Forage-Bal-ANN'!I71))","v":""},"",""]
[{"$f":"'528-JS_Lvstk-Forage-Bal-ANN'!C72","v":0},{"$f":"IF(A26=0,\"\",('528-JS_Lvstk-Forage-Bal-ANN'!D72))","v":""},{"$f":"IF(A26=0,\"\",('528-JS_Lvstk-Forage-Bal-ANN'!G72))","v":""},{"$f":"IF(A26=0,\"\",('528-JS_Lvstk-Forage-Bal-ANN'!I72))","v":""},"",""]
[{"$f":"'528-JS_Lvstk-Forage-Bal-ANN'!C73","v":0},{"$f":"IF(A27=0,\"\",('528-JS_Lvstk-Forage-Bal-ANN'!D73))","v":""},{"$f":"IF(A27=0,\"\",('528-JS_Lvstk-Forage-Bal-ANN'!G73))","v":""},{"$f":"IF(A27=0,\"\",('528-JS_Lvstk-Forage-Bal-ANN'!I73))","v":""},"",""]
[{"$f":"'528-JS_Lvstk-Forage-Bal-ANN'!C74","v":0},{"$f":"IF(A28=0,\"\",('528-JS_Lvstk-Forage-Bal-ANN'!D74))","v":""},{"$f":"IF(A28=0,\"\",('528-JS_Lvstk-Forage-Bal-ANN'!G74))","v":""},{"$f":"IF(A28=0,\"\",('528-JS_Lvstk-Forage-Bal-ANN'!I74))","v":""},"",""]
["Total:  ",null,{"$f":"SUM(C9:C28)","v":0},{"$f":"SUM(D9:D28)","v":0},{"$f":"SUM(E9:E28)","v":0},{"$f":"SUM(F9:F28)","v":0}]
["Comments:  "]
[]
[]
[]
["Grazing management systems are planned forage and livestock management programs designed to accomplish range improvement.  A grazing system is developed to maintain or improve range similarity index, productivity, health and vigor while simultaneously achieving a high, sustainable level of livestock production."]
["Types of Grazing Systems:  Prescribed grazing is a grazing system which is tailored to the individual operation and designed to achieve the specific objectives of the operation.  There are several general types of grazing management systems:"]
["1.  Rest Rotation:  In a rest rotation grazing management system, one or more pastures are left ungrazed for the entire growing season.  Each year a different pasture(s) is ungrazed; in other words, the rest is rotated.  Incorporating rest so that each pasture is ungrazed once every 5-7 years builds in resilience, aids in drought recovery and provides wildlife habitat.  Stocking rates should be adjusted to account for the forage that is unavailable each year."]
["2.  Deferred Rotation:  In a deferred rotation grazing management system, a herd is rotated through three or more pastures.  While one pasture is being grazed, the remaining pastures are not grazed (deferred).  The pastures are grazed in a planned sequence.  The sequence of grazing is generally changed each year.  "]
["3.  High Intensity/Low Frequency Rotation:  In a high intensity/low frequency rotation grazing management system, one herd of livestock grazes eight or more pastures in a planned sequence. Livestock are moved into one pasture and the other pastures are rested. When the forage is grazed to the desired intensity, livestock are moved to the next pasture in the rotation. Livestock typically stay in a pasture 10 to 25 days. The frequent moves allow long rest periods for each pasture.  The sequence of grazing is generally changed each year. "]
["4.  Short-duration. (Management Intensive Grazing.) This is similar to the high intensity/low frequency system, except the speed of the rotation is adjusted according to the growth rate and the required rest period of the plants. During the peak of the growing season, livestock are moved rapidly with slower moves when pasture growth rate slow down."]
[]
["Purpose of prescribed grazing management systems:"]
[null,null,"Maintain or speed up improvement in plant cover while properly using the forage in all pastures."]
[null,null,"Improve efficiency of grazing by uniformly using all parts of each grazed pasture."]
[null,null,"Permit a higher level of livestock production."]
[null,null,"Insure a supply of forage throughout the grazing season."]
[null,null,"Insure that an adequate feed and forage balance is maintained for the unit."]
[null,null,"Improve control of undesirable plants."]
[null,null,"Allow easier handling and observation of livestock."]
[null,null,"Enhance wildlife habitat."]
[null,null,"Enhance watershed protection."]

{"sheet":"528 JS - Schedule Option #3","index":15,"n_rows":65,"n_cols":22,"rows_kept":65,"cut":false,"hidden":false,"merged":[[2,20,2,22],[64,0,75,22],[0,0,1,4],[0,7,0,18],[0,23,2,23],[1,7,1,18],[2,1,2,3],[2,7,2,18],[6,11,6,12],[6,13,6,14],[6,15,6,16],[6,17,6,18],[6,19,6,20],[6,21,6,22],[3,21,3,22],[4,0,6,0],[4,1,6,1],[4,2,6,2],[4,3,4,5],[4,7,4,22],[5,7,5,14],[5,15,5,22],[6,7,6,8],[6,9,6,10],[3,6,3,7],[3,8,3,12],[3,13,3,17],[3,19,3,20],[7,19,7,20],[7,21,7,22],[8,7,8,8],[8,9,8,10],[8,11,8,12],[8,13,8,14],[8,15,8,16],[8,17,8,18],[8,19,8,20],[8,21,8,22],[7,7,7,8],[7,9,7,10],[7,11,7,12],[7,13,7,14],[7,15,7,16],[7,17,7,18],[9,19,9,20],[9,21,9,22],[10,7,10,8],[10,9,10,10],[10,11,10,12],[10,13,10,14],[10,15,10,16],[10,17,10,18],[10,19,10,20],[10,21,10,22],[9,7,9,8],[9,9,9,10],[9,11,9,12],[9,13,9,14],[9,15,9,16],[9,17,9,18],[11,19,11,20],[11,21,11,22],[12,7,12,8],[12,9,12,10],[12,11,12,12],[12,13,12,14],[12,15,12,16],[12,17,12,18],[12,19,12,20],[12,21,12,22],[11,7,11,8],[11,9,11,10],[11,11,11,12],[11,13,11,14],[11,15,11,16],[11,17,11,18],[13,19,13,20],[13,21,13,22],[14,7,14,8],[14,9,14,10],[14,11,14,12],[14,13,14,14],[14,15,14,16],[14,17,14,18],[14,19,14,20],[14,21,14,22],[13,7,13,8],[13,9,13,10],[13,11,13,12],[13,13,13,14],[13,15,13,16],[13,17,13,18],[15,19,15,20],[15,21,15,22],[16,7,16,8],[16,9,16,10],[16,11,16,12],[16,13,16,14],[16,15,16,16],[16,17,16,18],[16,19,16,20],[16,21,16,22],[15,7,15,8],[15,9,15,10],[15,11,15,12],[15,13,15,14],[15,15,15,16],[15,17,15,18],[17,19,17,20],[17,21,17,22],[18,7,18,8],[18,9,18,10],[18,11,18,12],[18,13,18,14],[18,15,18,16],[18,17,18,18],[18,19,18,20],[18,21,18,22],[17,7,17,8],[17,9,17,10],[17,11,17,12],[17,13,17,14],[17,15,17,16],[17,17,17,18],[19,19,19,20],[19,21,19,22],[20,7,20,8],[20,9,20,10],[20,11,20,12],[20,13,20,14],[20,15,20,16],[20,17,20,18],[20,19,20,20],[20,21,20,22],[19,7,19,8],[19,9,19,10],[19,11,19,12],[19,13,19,14],[19,15,19,16],[19,17,19,18],[21,19,21,20],[21,21,21,22],[22,7,22,8],[22,9,22,10],[22,11,22,12],[22,13,22,14],[22,15,22,16],[22,17,22,18],[22,19,22,20],[22,21,22,22],[21,7,21,8],[21,9,21,10],[21,11,21,12],[21,13,21,14],[21,15,21,16],[21,17,21,18],[23,19,23,20],[23,21,23,22],[24,7,24,8],[24,9,24,10],[24,11,24,12],[24,13,24,14],[24,15,24,16],[24,17,24,18],[24,19,24,20],[24,21,24,22],[23,7,23,8],[23,9,23,10],[23,11,23,12],[23,13,23,14],[23,15,23,16],[23,17,23,18],[43,0,44,4],[43,7,43,18],[44,7,44,18],[45,1,45,3],[45,7,45,18],[25,19,25,20],[25,21,25,22],[26,7,26,8],[26,9,26,10],[26,11,26,12],[26,13,26,14],[26,15,26,16],[26,17,26,18],[26,19,26,20],[26,21,26,22],[25,7,25,8],[25,9,25,10],[25,11,25,12],[25,13,25,14],[25,15,25,16],[25,17,25,18],[27,0,27,1],[3,0,3,5],[77,0,77,22],[78,0,78,22],[79,0,79,22],[76,0,76,22],[58,2,58,22],[59,2,59,22],[60,2,60,22],[61,2,61,22],[62,2,62,22],[63,0,63,22],[52,0,52,22],[53,0,53,22],[54,2,54,22],[55,2,55,22],[56,2,56,22],[57,2,57,22],[46,0,46,22],[47,0,47,22],[48,0,48,22],[49,0,49,22],[50,0,50,22],[51,0,51,22],[29,0,37,22]]}
[null,null,null,null,null,null,null,"PRESCRIBED GRAZING JOBSHEET           "]
[null,null,null,null,null,null,null,"NE-ECS-528"]
["CLIENT:",{"$f":"'528 Jobsheet Cover_Sheet'!C4","v":0},null,null,null,null,null,"GRAZING SCHEDULE - YEAR #1 - 2015 & Year #2 - 2016",null,null,null,null,null,null,null,null,null,null,null,null,"September, 2014"]
["Number Days in Grazing System:  ",null,null,null,null,null,null,null,"Dates for Grazing System:",null,null,null,null,null,null,null,null,null,null,"Date:  ",null,{"$f":"'528 Jobsheet Cover_Sheet'!K4","v":"00:00:00"}]
["Pasture Number ","Pasture Name","ACRES","Planned/Estimated Days",null,null,null,"Planned and Actual Dates"]
[null,null,null,null,null,null,null,"First Grazing Occupation",null,null,null,null,null,null,null,"Second Grazing Occupation"]
[null,null,null,"Estimated Available AUM's","% of AUM by Pasture","DAYs",null,"Planned In Date",null,"Planned Out Date",null,"Actual In Date",null,"Actual Out Date",null,"Planned In Date",null,"Planned Out Date",null,"Actual In Date",null,"Actual Out Date"]
[{"$f":"'528-JS_Lvstk-Forage-Bal-ANN'!C55","v":0},{"$f":"IF(A8=0,\"\",('528-JS_Lvstk-Forage-Bal-ANN'!D55))","v":""},{"$f":"IF(A8=0,\"\",('528-JS_Lvstk-Forage-Bal-ANN'!G55))","v":""},{"$f":"IF(A8=0,\"\",('528-JS_Lvstk-Forage-Bal-ANN'!I55))","v":""},{"$f":"IF(A8=0,\"\",D8/D28*100)","v":""},{"$f":"IF(A8=0,\"\", $G$4*E8/100)","v":""}]
[{"$f":"'528-JS_Lvstk-Forage-Bal-ANN'!C56","v":0},{"$f":"IF(A9=0,\"\",('528-JS_Lvstk-Forage-Bal-ANN'!D56))","v":""},{"$f":"IF(A9=0,\"\",('528-JS_Lvstk-Forage-Bal-ANN'!G56))","v":""},{"$f":"IF(A9=0,\"\",('528-JS_Lvstk-Forage-Bal-ANN'!I56))","v":""},{"$f":"IF(A9=0,\"\",D9/D28*100)","v":""},{"$f":"IF(A9=0,\"\", $G$4*E9/100)","v":""}]
[{"$f":"'528-JS_Lvstk-Forage-Bal-ANN'!C57","v":0},{"$f":"IF(A10=0,\"\",('528-JS_Lvstk-Forage-Bal-ANN'!D57))","v":""},{"$f":"IF(A10=0,\"\",('528-JS_Lvstk-Forage-Bal-ANN'!G57))","v":""},{"$f":"IF(A10=0,\"\",('528-JS_Lvstk-Forage-Bal-ANN'!I57))","v":""},{"$f":"IF(A10=0,\"\",D10/D28*100)","v":""},""]
[{"$f":"'528-JS_Lvstk-Forage-Bal-ANN'!C58","v":0},{"$f":"IF(A11=0,\"\",('528-JS_Lvstk-Forage-Bal-ANN'!D58))","v":""},{"$f":"IF(A11=0,\"\",('528-JS_Lvstk-Forage-Bal-ANN'!G58))","v":""},{"$f":"IF(A11=0,\"\",('528-JS_Lvstk-Forage-Bal-ANN'!I58))","v":""},{"$f":"IF(A11=0,\"\",D11/D28*100)","v":""},""]
[{"$f":"'528-JS_Lvstk-Forage-Bal-ANN'!C59","v":0},{"$f":"IF(A12=0,\"\",('528-JS_Lvstk-Forage-Bal-ANN'!D59))","v":""},{"$f":"IF(A12=0,\"\",('528-JS_Lvstk-Forage-Bal-ANN'!G59))","v":""},{"$f":"IF(A12=0,\"\",('528-JS_Lvstk-Forage-Bal-ANN'!I59))","v":""},{"$f":"IF(A12=0,\"\",D12/D28*100)","v":""},""]
[{"$f":"'528-JS_Lvstk-Forage-Bal-ANN'!C60","v":0},{"$f":"IF(A13=0,\"\",('528-JS_Lvstk-Forage-Bal-ANN'!D60))","v":""},{"$f":"IF(A13=0,\"\",('528-JS_Lvstk-Forage-Bal-ANN'!G60))","v":""},{"$f":"IF(A13=0,\"\",('528-JS_Lvstk-Forage-Bal-ANN'!I60))","v":""},{"$f":"IF(A13=0,\"\",D13/D28*100)","v":""},""]
[{"$f":"'528-JS_Lvstk-Forage-Bal-ANN'!C61","v":0},{"$f":"IF(A14=0,\"\",('528-JS_Lvstk-Forage-Bal-ANN'!D61))","v":""},{"$f":"IF(A14=0,\"\",('528-JS_Lvstk-Forage-Bal-ANN'!G61))","v":""},{"$f":"IF(A14=0,\"\",('528-JS_Lvstk-Forage-Bal-ANN'!I61))","v":""},{"$f":"IF(A14=0,\"\",D14/D28*100)","v":""},""]
[{"$f":"'528-JS_Lvstk-Forage-Bal-ANN'!C62","v":0},{"$f":"IF(A15=0,\"\",('528-JS_Lvstk-Forage-Bal-ANN'!D62))","v":""},{"$f":"IF(A15=0,\"\",('528-JS_Lvstk-Forage-Bal-ANN'!G62))","v":""},{"$f":"IF(A15=0,\"\",('528-JS_Lvstk-Forage-Bal-ANN'!I62))","v":""},{"$f":"IF(A15=0,\"\",D15/D28*100)","v":""},""]
[{"$f":"'528-JS_Lvstk-Forage-Bal-ANN'!C63","v":0},{"$f":"IF(A16=0,\"\",('528-JS_Lvstk-Forage-Bal-ANN'!D63))","v":""},{"$f":"IF(A16=0,\"\",('528-JS_Lvstk-Forage-Bal-ANN'!G63))","v":""},{"$f":"IF(A16=0,\"\",('528-JS_Lvstk-Forage-Bal-ANN'!I63))","v":""},{"$f":"IF(A16=0,\"\",D16/D28*100)","v":""},""]
[{"$f":"'528-JS_Lvstk-Forage-Bal-ANN'!C64","v":0},{"$f":"IF(A17=0,\"\",('528-JS_Lvstk-Forage-Bal-ANN'!D64))","v":""},{"$f":"IF(A17=0,\"\",('528-JS_Lvstk-Forage-Bal-ANN'!G64))","v":""},{"$f":"IF(A17=0,\"\",('528-JS_Lvstk-Forage-Bal-ANN'!I64))","v":""},{"$f":"IF(A17=0,\"\",D17/D28*100)","v":""},""]
[{"$f":"'528-JS_Lvstk-Forage-Bal-ANN'!C65","v":0},{"$f":"IF(A18=0,\"\",('528-JS_Lvstk-Forage-Bal-ANN'!D65))","v":""},{"$f":"IF(A18=0,\"\",('528-JS_Lvstk-Forage-Bal-ANN'!G65))","v":""},{"$f":"IF(A18=0,\"\",('528-JS_Lvstk-Forage-Bal-ANN'!I65))","v":""},{"$f":"IF(A18=0,\"\",D18/D28*100)","v":""},""]
[{"$f":"'528-JS_Lvstk-Forage-Bal-ANN'!C66","v":0},{"$f":"IF(A19=0,\"\",('528-JS_Lvstk-Forage-Bal-ANN'!D66))","v":""},{"$f":"IF(A19=0,\"\",('528-JS_Lvstk-Forage-Bal-ANN'!G66))","v":""},{"$f":"IF(A19=0,\"\",('528-JS_Lvstk-Forage-Bal-ANN'!I66))","v":""},{"$f":"IF(A19=0,\"\",D19/D28*100)","v":""},""]
[{"$f":"'528-JS_Lvstk-Forage-Bal-ANN'!C67","v":0},{"$f":"IF(A20=0,\"\",('528-JS_Lvstk-Forage-Bal-ANN'!D67))","v":""},{"$f":"IF(A20=0,\"\",('528-JS_Lvstk-Forage-Bal-ANN'!G67))","v":""},{"$f":"IF(A20=0,\"\",('528-JS_Lvstk-Forage-Bal-ANN'!I67))","v":""},{"$f":"IF(A20=0,\"\",D20/D28*100)","v":""},""]
[{"$f":"'528-JS_Lvstk-Forage-Bal-ANN'!C68","v":0},{"$f":"IF(A21=0,\"\",('528-JS_Lvstk-Forage-Bal-ANN'!D68))","v":""},{"$f":"IF(A21=0,\"\",('528-JS_Lvstk-Forage-Bal-ANN'!G68))","v":""},{"$f":"IF(A21=0,\"\",('528-JS_Lvstk-Forage-Bal-ANN'!I68))","v":""},{"$f":"IF(A21=0,\"\",D21/D28*100)","v":""},""]
[{"$f":"'528-JS_Lvstk-Forage-Bal-ANN'!C69","v":0},{"$f":"IF(A22=0,\"\",('528-JS_Lvstk-Forage-Bal-ANN'!D69))","v":""},{"$f":"IF(A22=0,\"\",('528-JS_Lvstk-Forage-Bal-ANN'!G69))","v":""},{"$f":"IF(A22=0,\"\",('528-JS_Lvstk-Forage-Bal-ANN'!I69))","v":""},{"$f":"IF(A22=0,\"\",D22/D28*100)","v":""},""]
[{"$f":"'528-JS_Lvstk-Forage-Bal-ANN'!C70","v":0},{"$f":"IF(A23=0,\"\",('528-JS_Lvstk-Forage-Bal-ANN'!D70))","v":""},{"$f":"IF(A23=0,\"\",('528-JS_Lvstk-Forage-Bal-ANN'!G70))","v":""},{"$f":"IF(A23=0,\"\",('528-JS_Lvstk-Forage-Bal-ANN'!I70))","v":""},{"$f":"IF(A23=0,\"\",D23/D28*100)","v":""},""]
[{"$f":"'528-JS_Lvstk-Forage-Bal-ANN'!C71","v":0},{"$f":"IF(A24=0,\"\",('528-JS_Lvstk-Forage-Bal-ANN'!D71))","v":""},{"$f":"IF(A24=0,\"\",('528-JS_Lvstk-Forage-Bal-ANN'!G71))","v":""},{"$f":"IF(A24=0,\"\",('528-JS_Lvstk-Forage-Bal-ANN'!I71))","v":""},{"$f":"IF(A24=0,\"\",D24/D28*100)","v":""},""]
[{"$f":"'528-JS_Lvstk-Forage-Bal-ANN'!C72","v":0},{"$f":"IF(A25=0,\"\",('528-JS_Lvstk-Forage-Bal-ANN'!D72))","v":""},{"$f":"IF(A25=0,\"\",('528-JS_Lvstk-Forage-Bal-ANN'!G72))","v":""},{"$f":"IF(A25=0,\"\",('528-JS_Lvstk-Forage-Bal-ANN'!I72))","v":""},{"$f":"IF(A25=0,\"\",D25/D28*100)","v":""},""]
[{"$f":"'528-JS_Lvstk-Forage-Bal-ANN'!C73","v":0},{"$f":"IF(A26=0,\"\",('528-JS_Lvstk-Forage-Bal-ANN'!D73))","v":""},{"$f":"IF(A26=0,\"\",('528-JS_Lvstk-Forage-Bal-ANN'!G73))","v":""},{"$f":"IF(A26=0,\"\",('528-JS_Lvstk-Forage-Bal-ANN'!I73))","v":""},{"$f":"IF(A26=0,\"\",D26/D28*100)","v":""},{"$f":"IF(A26=0,\"\", $G$4*E26/100)","v":""}]
[{"$f":"'528-JS_Lvstk-Forage-Bal-ANN'!C74","v":0},{"$f":"IF(A27=0,\"\",('528-JS_Lvstk-Forage-Bal-ANN'!D74))","v":""},{"$f":"IF(A27=0,\"\",('528-JS_Lvstk-Forage-Bal-ANN'!G74))","v":""},{"$f":"IF(A27=0,\"\",('528-JS_Lvstk-Forage-Bal-ANN'!I74))","v":""},{"$f":"IF(A27=0,\"\",D27/D28*100)","v":""},{"$f":"IF(A27=0,\"\", $G$4*E27/100)","v":""}]
["Total:",null,{"$f":"SUM(C8:C27)","v":0},{"$f":"SUM(D8:D27)","v":0},{"$f":"SUM(E8:E27)","v":0},{"$f":"SUM(F8:F27)","v":0}]
[]
["Comments: "]
[]
[]
[]
[]
[]
[]
[]
[]
[]
[]
[]
[]
[]
[null,null,null,null,null,null,null,"PRESCRIBED GRAZING JOBSHEET           "]
[null,null,null,null,null,null,null,"NE-ECS-528"]
["CLIENT:",{"$f":"'528 Jobsheet Cover_Sheet'!C4","v":0},null,null,null,null,null,"GRAZING SCHEDULE - YEAR #1 - 2013 & Year #2 - 2014"]
["Grazing management systems are planned forage and livestock management programs designed to accomplish range improvement.  A grazing system is developed to maintain or improve range similarity index, productivity, health and vigor while simultaneously achieving a high, sustainable level of livestock production."]
["Types of Grazing Systems:  Prescribed grazing is a grazing system which is tailored to the individual operation and designed to achieve the specific objectives of the operation.  There are several general types of grazing management systems:"]
["1.  Rest Rotation:  In a rest rotation grazing management system, one or more pastures are left ungrazed for the entire growing season.  Each year a different pasture(s) is ungrazed; in other words, the rest is rotated.  Incorporating rest so that each pasture is ungrazed once every 5-7 years builds in resilience, aids in drought recovery and provides wildlife habitat.  Stocking rates should be adjusted to account for the forage that is unavailable each year."]
["2.  Deferred Rotation:  In a deferred rotation grazing management system, a herd is rotated through three or more pastures.  While one pasture is being grazed, the remaining pastures are not grazed (deferred).  The pastures are grazed in a planned sequence.  The sequence of grazing is generally changed each year.  "]
["3.  High Intensity/Low Frequency Rotation:  In a high intensity/low frequency rotation grazing management system, one herd of livestock grazes eight or more pastures in a planned sequence. Livestock are moved into one pasture and the other pastures are rested. When the forage is grazed to the desired intensity, livestock are moved to the next pasture in the rotation. Livestock typically stay in a pasture 10 to 25 days. The frequent moves allow long rest periods for each pasture.  The sequence of grazing is generally changed each year. "]
["4.  Short-duration. (Management Intensive Grazing.) This is similar to the high-intensity, low frequency system, except the speed of the rotation is adjusted according to the growth rate and the required rest period of the plants. During the peak of the growing season, livestock are moved rapidly with slower moves when pasture growth rate slow down."]
[]
["Purpose of prescribed grazing management systems:"]
[null,null,"Maintain or speed up improvement in plant cover while properly using the forage in all pastures."]
[null,null,"To improve efficiency of grazing by uniformly using all parts of each grazed pasture."]
[null,null,"Permit a higher level of livestock production."]
[null,null,"Insure a supply of forage throughout the grazing season."]
[null,null,"Insure that an adequate feed and forage balance is maintained for the unit."]
[null,null,"Improve control of undesirable plants."]
[null,null,"Allow easier handling and observation of livestock."]
[null,null,"Enhance wildlife habitat."]
[null,null,"Enhance watershed protection."]
[]
["A growth curve may be created, saved as a jpeg or pdf and inserted here. If you chose not to use a growth curve,  delete the text.\n\n"]

{"sheet":"528 JS - Schedule Option #4","index":16,"n_rows":50,"n_cols":191,"rows_kept":50,"cut":false,"hidden":false,"merged":[[4,0,4,220],[3,0,3,220],[16,2,16,220],[9,0,9,220],[11,2,11,220],[12,2,12,220],[13,2,13,220],[6,0,6,220],[5,0,5,220],[7,0,7,220],[14,2,14,220],[2,0,2,1],[2,2,2,4],[2,6,2,176],[2,190,2,219],[0,6,0,186],[1,6,1,184],[0,0,1,5],[0,189,1,219],[49,0,56,219],[21,6,21,187],[22,7,22,188],[23,6,23,188],[23,189,23,219],[26,189,27,219],[26,6,27,35],[25,0,27,0],[25,1,27,1],[25,2,27,2],[25,3,25,5],[26,3,27,3],[26,4,27,4],[26,5,27,5],[25,6,25,218],[21,0,21,4],[24,0,24,1],[19,2,19,220],[8,0,8,220],[17,2,17,220],[18,2,18,220],[22,0,22,4],[20,0,20,220],[23,0,23,1],[23,2,23,4],[24,6,24,44],[24,45,24,124],[15,2,15,220],[10,0,10,220],[24,3,24,5],[26,220,27,220],[26,128,27,158],[26,159,27,188],[26,36,27,66],[26,67,27,96],[26,97,27,127]]}
[null,null,null,null,null,null," PRESCRIBED GRAZING JOBSHEET",null,null,null,null,null,null,null,null,null,null,null,null,null,null,null,null,null,null,null,null,null,null,null,null,null,null,null,null,null,null,null,null,null,null,null,null,null,null,null,null,null,null,null,null,null,null,null,null,null,null,null,null,null,null,null,null,null,null,null,null,null,null,null,null,null,null,null,null,null,null,null,null,null,null,null,null,null,null,null,null,null,null,null,null,null,null,null,null,null,null,null,null,null,null,null,null,null,null,null,null,null,null,null,null,null,null,null,null,null,null,null,null,null,null,null,null,null,null,null,null,null,null,null,null,null,null,null,null,null,null,null,null,null,null,null,null,null,null,null,null,null,null,null,null,null,null,null,null,null,null,null,null,null,null,null,null,null,null,null,null,null,null,null,null,null,null,null,null,null,null,null,null,null,null,null,null,null,null,null,null,null,null,"January, 2014"]
[null,null,null,null,null,null,"NE-ECS-528"]
["CLIENT:",null,{"$f":"'528 Jobsheet Cover_Sheet'!C4","v":0},null,null,null,"GRAZING SCHEDULE YEAR #1",null,null,null,null,null,null,null,null,null,null,null,null,null,null,null,null,null,null,null,null,null,null,null,null,null,null,null,null,null,null,null,null,null,null,null,null,null,null,null,null,null,null,null,null,null,null,null,null,null,null,null,null,null,null,null,null,null,null,null,null,null,null,null,null,null,null,null,null,null,null,null,null,null,null,null,null,null,null,null,null,null,null,null,null,null,null,null,null,null,null,null,null,null,null,null,null,null,null,null,null,null,null,null,null,null,null,null,null,null,null,null,null,null,null,null,null,null,null,null,null,null,null,null,null,null,null,null,null,null,null,null,null,null,null,null,null,null,null,null,null,null,null,null,null,null,null,null,null,null,null,null,null,null,null,null,null,null,null,null,null,null,null,null,null,null,null,null,null,null,null,null,null,"Date:  ",null,null,null,null,null,null,null,null,null,null,{"$f":"'528 Jobsheet Cover_Sheet'!K4","v":"00:00:00"}]
[]
["Grazing management systems are planned forage and livestock management programs designed to accomplish range improvement.  A grazing system is developed to maintain or improve range similarity index, productivity, health and vigor while simultaneously achieving a high, sustainable level of livestock production."]
["Types of Grazing Systems:  Prescribed grazing is a grazing system which is tailored to the individual operation and designed to achieve the specific objectives of the operation.  There are several general types of grazing management systems:"]
["1.  Rest Rotation:  In a rest rotation grazing management system, one or more pastures are left ungrazed for the entire growing season.  Each year a different pasture(s) is ungrazed; in other words, the rest is rotated.  Incorporating rest so that each pasture is ungrazed once every 5-7 years builds in resilience, aids in drought recovery and provides wildlife habitat.  Stocking rates should be adjusted to account for the forage that is unavailable each year."]
["2.  Deferred Rotation:  In a deferred rotation grazing management system, a herd is rotated through three or more pastures.  While one pasture is being grazed, the remaining pastures are not grazed (deferred).  The pastures are grazed in a planned sequence.  The sequence of grazing is generally changed each year.  "]
["3.  High Intensity/Low Frequency Rotation:  In a high intensity/low frequency rotation grazing management system, one herd of livestock grazes eight or more pastures in a planned sequence. Livestock are moved into one pasture and the other pastures are rested. When the forage is grazed to the desired intensity, livestock are moved to the next pasture in the rotation. Livestock typically stay in a pasture 10 to 25 days. The frequent moves allow long rest periods for each pasture.  The sequence of grazing is generally changed each year.  "]
["4.  Short-duration. (Management Intensive Grazing.) This is similar to the high intensity/low frequency system, except the speed of the rotation is adjusted according to the growth rate and the required rest period of the plants. During the peak of the growing season, livestock are moved rapidly with slower moves when pasture growth rate slow down."]
["Purpose of prescribed grazing management systems:"]
[null,null,"Maintain or speed up improvement in plant cover while properly using the forage in all pastures."]
[null,null,"Improve efficiency of grazing by uniformly using all parts of each grazed pasture."]
[null,null,"Permit a higher level of livestock production."]
[null,null,"Insure a supply of forage throughout the grazing season."]
[null,null,"Insure that an adequate feed and forage balance is maintained for the unit."]
[null,null,"Improve control of undesirable plants."]
[null,null,"Allow easier handling and observation of livestock."]
[null,null,"Enhance wildlife habitat."]
[null,null,"Enhance watershed protection."]
["A growth curve may be created, saved as a jpeg or pdf and inserted here. If you chose not to use a growth curve,  delete the text.\n\n"]
[null,null,null,null,null,null,"PRESCRIBED GRAZING JOBSHEET     ",null,null,null,null,null,null,null,null,null,null,null,null,null,null,null,null,null,null,null,null,null,null,null,null,null,null,null,null,null,null,null,null,null,null,null,null,null,null,null,null,null,null,null,null,null,null,null,null,null,null,null,null,null,null,null,null,null,null,null,null,null,null,null,null,null,null,null,null,null,null,null,null,null,null,null,null,null,null,null,null,null,null,null,null,null,null,null,null,null,null,null,null,null,null,null,null,null,null,null,null,null,null,null,null,null,null,null,null,null,null,null,null,null,null,null,null,null,null,null,null,null,null,null,null,null,null,null,null,null,null,null,null,null,null,null,null,null,null,null,null,null,null,null,null,null,null,null,null,null,null,null,null,null,null,null,null,null,null,null,null,null,null,null,null,null,null,null,null,null,null,null,null,null,null,null,null,null,null,null,null,null,null,"      "]
[null,null,null,null,null,null,null,"NE-ECS-528"]
["CLIENT:",null,{"$f":"'528 Jobsheet Cover_Sheet'!C4","v":0},null,null,null,"GRAZING SCHEDULE - YEAR #1 - 2015"]
["Days grazing for system:",null,null,null,null,null,"Scheduled Grazing Periods:  "]
["Field no. ","Kind of forage (Range, pasture, hay, etc.)","Acres","AUM Information"]
[null,null,null,"Estimated AUM for Field","% AUM by pasture","Est. Days / Field","APRIL",null,null,null,null,null,null,null,null,null,null,null,null,null,null,null,null,null,null,null,null,null,null,null,null,null,null,null,null,null,"MAY",null,null,null,null,null,null,null,null,null,null,null,null,null,null,null,null,null,null,null,null,null,null,null,null,null,null,null,null,null,null,"JUNE",null,null,null,null,null,null,null,null,null,null,null,null,null,null,null,null,null,null,null,null,null,null,null,null,null,null,null,null,null,"JULY",null,null,null,null,null,null,null,null,null,null,null,null,null,null,null,null,null,null,null,null,null,null,null,null,null,null,null,null,null,null,"AUGUST",null,null,null,null,null,null,null,null,null,null,null,null,null,null,null,null,null,null,null,null,null,null,null,null,null,null,null,null,null,null,"SEPTEMBER",null,null,null,null,null,null,null,null,null,null,null,null,null,null,null,null,null,null,null,null,null,null,null,null,null,null,null,null,null,"OCTOBER"]
[]
[{"$f":"'528-JS_Lvstk-Forage-Bal-ANN'!C55","v":0},{"$f":"IF(A29=0,\"\",('528-JS_Lvstk-Forage-Bal-ANN'!F55))","v":""},{"$f":"IF(A29=0,\"\",('528-JS_Lvstk-Forage-Bal-ANN'!G55))","v":""},{"$f":"IF(A29=0,\"\",('528-JS_Lvstk-Forage-Bal-ANN'!I55))","v":""},{"$f":"IF(A29=0,\"\", D29/D49*100)","v":""},{"$f":"IF(A29=0,\"\", $C$25*E29/100)","v":""}]
[{"$f":"'528-JS_Lvstk-Forage-Bal-ANN'!C56","v":0},{"$f":"IF(A30=0,\"\",('528-JS_Lvstk-Forage-Bal-ANN'!F56))","v":""},{"$f":"IF(A30=0,\"\",('528-JS_Lvstk-Forage-Bal-ANN'!G56))","v":""},{"$f":"IF(A30=0,\"\",('528-JS_Lvstk-Forage-Bal-ANN'!I56))","v":""},{"$f":"IF(A30=0,\"\", D30/D49*100)","v":""},{"$f":"IF(A30=0,\"\", $C$25*E30/100)","v":""}]
[{"$f":"'528-JS_Lvstk-Forage-Bal-ANN'!C57","v":0},{"$f":"IF(A31=0,\"\",('528-JS_Lvstk-Forage-Bal-ANN'!F57))","v":""},{"$f":"IF(A31=0,\"\",('528-JS_Lvstk-Forage-Bal-ANN'!G57))","v":""},{"$f":"IF(A31=0,\"\",('528-JS_Lvstk-Forage-Bal-ANN'!I57))","v":""},{"$f":"IF(A31=0,\"\", D31/D49*100)","v":""},""]
[{"$f":"'528-JS_Lvstk-Forage-Bal-ANN'!C58","v":0},{"$f":"IF(A32=0,\"\",('528-JS_Lvstk-Forage-Bal-ANN'!F58))","v":""},{"$f":"IF(A32=0,\"\",('528-JS_Lvstk-Forage-Bal-ANN'!G58))","v":""},{"$f":"IF(A32=0,\"\",('528-JS_Lvstk-Forage-Bal-ANN'!I58))","v":""},{"$f":"IF(A32=0,\"\", D32/D49 *100)","v":""},""]
[{"$f":"'528-JS_Lvstk-Forage-Bal-ANN'!C59","v":0},{"$f":"IF(A33=0,\"\",('528-JS_Lvstk-Forage-Bal-ANN'!F59))","v":""},{"$f":"IF(A33=0,\"\",('528-JS_Lvstk-Forage-Bal-ANN'!G59))","v":""},{"$f":"IF(A33=0,\"\",('528-JS_Lvstk-Forage-Bal-ANN'!I59))","v":""},{"$f":"IF(A33=0, \"\", D33/D49*100)","v":""},""]
[{"$f":"'528-JS_Lvstk-Forage-Bal-ANN'!C60","v":0},{"$f":"IF(A34=0,\"\",('528-JS_Lvstk-Forage-Bal-ANN'!F60))","v":""},{"$f":"IF(A34=0,\"\",('528-JS_Lvstk-Forage-Bal-ANN'!G60))","v":""},{"$f":"IF(A34=0,\"\",('528-JS_Lvstk-Forage-Bal-ANN'!I60))","v":""},{"$f":"IF(A34=0,\"\", D34/D49*100)","v":""},""]
[{"$f":"'528-JS_Lvstk-Forage-Bal-ANN'!C61","v":0},{"$f":"IF(A35=0,\"\",('528-JS_Lvstk-Forage-Bal-ANN'!F61))","v":""},{"$f":"IF(A35=0,\"\",('528-JS_Lvstk-Forage-Bal-ANN'!G61))","v":""},{"$f":"IF(A35=0,\"\",('528-JS_Lvstk-Forage-Bal-ANN'!I61))","v":""},{"$f":"IF(A35=0,\"\", D35/D49*100)","v":""},""]
[{"$f":"'528-JS_Lvstk-Forage-Bal-ANN'!C62","v":0},{"$f":"IF(A36=0,\"\",('528-JS_Lvstk-Forage-Bal-ANN'!F62))","v":""},{"$f":"IF(A36=0,\"\",('528-JS_Lvstk-Forage-Bal-ANN'!G62))","v":""},{"$f":"IF(A36=0,\"\",('528-JS_Lvstk-Forage-Bal-ANN'!I62))","v":""},{"$f":"IF(A36=0,\"\", D36/D49*100)","v":""},""]
[{"$f":"'528-JS_Lvstk-Forage-Bal-ANN'!C63","v":0},{"$f":"IF(A37=0,\"\",('528-JS_Lvstk-Forage-Bal-ANN'!F63))","v":""},{"$f":"IF(A37=0,\"\",('528-JS_Lvstk-Forage-Bal-ANN'!G63))","v":""},{"$f":"IF(A37=0,\"\",('528-JS_Lvstk-Forage-Bal-ANN'!I63))","v":""},{"$f":"IF(A37=0,\"\", D37/D49*100)","v":""},""]
[{"$f":"'528-JS_Lvstk-Forage-Bal-ANN'!C64","v":0},{"$f":"IF(A38=0,\"\",('528-JS_Lvstk-Forage-Bal-ANN'!F64))","v":""},{"$f":"IF(A38=0,\"\",('528-JS_Lvstk-Forage-Bal-ANN'!G64))","v":""},{"$f":"IF(A38=0,\"\",('528-JS_Lvstk-Forage-Bal-ANN'!I64))","v":""},{"$f":"IF(A38=0,\"\", D38/D49*100)","v":""},""]
[{"$f":"'528-JS_Lvstk-Forage-Bal-ANN'!C65","v":0},{"$f":"IF(A39=0,\"\",('528-JS_Lvstk-Forage-Bal-ANN'!F65))","v":""},{"$f":"IF(A39=0,\"\",('528-JS_Lvstk-Forage-Bal-ANN'!G65))","v":""},{"$f":"IF(A39=0,\"\",('528-JS_Lvstk-Forage-Bal-ANN'!I65))","v":""},{"$f":"IF(A39=0,\"\", D39/D49*100)","v":""},""]
[{"$f":"'528-JS_Lvstk-Forage-Bal-ANN'!C66","v":0},{"$f":"IF(A40=0,\"\",('528-JS_Lvstk-Forage-Bal-ANN'!F66))","v":""},{"$f":"IF(A40=0,\"\",('528-JS_Lvstk-Forage-Bal-ANN'!G66))","v":""},{"$f":"IF(A40=0,\"\",('528-JS_Lvstk-Forage-Bal-ANN'!I66))","v":""},{"$f":"IF(A40=0,\"\", D40/D49*100)","v":""},""]
[{"$f":"'528-JS_Lvstk-Forage-Bal-ANN'!C67","v":0},{"$f":"IF(A41=0,\"\",('528-JS_Lvstk-Forage-Bal-ANN'!F67))","v":""},{"$f":"IF(A41=0,\"\",('528-JS_Lvstk-Forage-Bal-ANN'!G67))","v":""},{"$f":"IF(A41=0,\"\",('528-JS_Lvstk-Forage-Bal-ANN'!I67))","v":""},{"$f":"IF(A41=0, \"\", D41/D49*100)","v":""},""]
[{"$f":"'528-JS_Lvstk-Forage-Bal-ANN'!C68","v":0},{"$f":"IF(A42=0,\"\",('528-JS_Lvstk-Forage-Bal-ANN'!F68))","v":""},{"$f":"IF(A42=0,\"\",('528-JS_Lvstk-Forage-Bal-ANN'!G68))","v":""},{"$f":"IF(A42=0,\"\",('528-JS_Lvstk-Forage-Bal-ANN'!I68))","v":""},{"$f":"IF(A42=0, \"\", D42/D49*100)","v":""},""]
[{"$f":"'528-JS_Lvstk-Forage-Bal-ANN'!C69","v":0},{"$f":"IF(A43=0,\"\",('528-JS_Lvstk-Forage-Bal-ANN'!F69))","v":""},{"$f":"IF(A43=0,\"\",('528-JS_Lvstk-Forage-Bal-ANN'!G69))","v":""},{"$f":"IF(A43=0,\"\",('528-JS_Lvstk-Forage-Bal-ANN'!I69))","v":""},{"$f":"IF(A43=0,\"\", D43/D49*100)","v":""},""]
[{"$f":"'528-JS_Lvstk-Forage-Bal-ANN'!C70","v":0},{"$f":"IF(A44=0,\"\",('528-JS_Lvstk-Forage-Bal-ANN'!F70))","v":""},{"$f":"IF(A44=0,\"\",('528-JS_Lvstk-Forage-Bal-ANN'!G70))","v":""},{"$f":"IF(A44=0,\"\",('528-JS_Lvstk-Forage-Bal-ANN'!I70))","v":""},{"$f":"IF(A44=0,\"\", D44/D49*100)","v":""},""]
[{"$f":"'528-JS_Lvstk-Forage-Bal-ANN'!C71","v":0},{"$f":"IF(A45=0,\"\",('528-JS_Lvstk-Forage-Bal-ANN'!F71))","v":""},{"$f":"IF(A45=0,\"\",('528-JS_Lvstk-Forage-Bal-ANN'!G71))","v":""},{"$f":"IF(A45=0,\"\",('528-JS_Lvstk-Forage-Bal-ANN'!I71))","v":""},{"$f":"IF(A45=0,\"\", D45/D49*100)","v":""},""]
[{"$f":"'528-JS_Lvstk-Forage-Bal-ANN'!C72","v":0},{"$f":"IF(A46=0,\"\",('528-JS_Lvstk-Forage-Bal-ANN'!F72))","v":""},{"$f":"IF(A46=0,\"\",('528-JS_Lvstk-Forage-Bal-ANN'!G72))","v":""},{"$f":"IF(A46=0,\"\",('528-JS_Lvstk-Forage-Bal-ANN'!I72))","v":""},{"$f":"IF(A46=0, \"\", D46/D49*100)","v":""},""]
[{"$f":"'528-JS_Lvstk-Forage-Bal-ANN'!C73","v":0},{"$f":"IF(A47=0,\"\",('528-JS_Lvstk-Forage-Bal-ANN'!F73))","v":""},{"$f":"IF(A47=0,\"\",('528-JS_Lvstk-Forage-Bal-ANN'!G73))","v":""},{"$f":"IF(A47=0,\"\",('528-JS_Lvstk-Forage-Bal-ANN'!I73))","v":""},{"$f":"IF(A47=0, \"\", D47/D49*100)","v":""},""]
[{"$f":"'528-JS_Lvstk-Forage-Bal-ANN'!C74","v":0},{"$f":"IF(A48=0,\"\",('528-JS_Lvstk-Forage-Bal-ANN'!F74))","v":""},{"$f":"IF(A48=0,\"\",('528-JS_Lvstk-Forage-Bal-ANN'!G74))","v":""},{"$f":"IF(A48=0,\"\",('528-JS_Lvstk-Forage-Bal-ANN'!I74))","v":""},{"$f":"IF(A48=0, \"\", D48/D49*100)","v":""},""]
["TOTAL",null,{"$f":"SUM(C29:C48)","v":0},{"$f":"SUM(D29:D48)","v":0},{"$f":"SUM(E29:E48)","v":0},{"$f":"SUM(F29:F48)","v":0}]
["Comments:  "]

{"sheet":"Contingency Plan","index":17,"n_rows":76,"n_cols":3,"rows_kept":76,"cut":false,"hidden":false,"merged":[]}
["CONTINGENCY PLAN 1"]
["Forward planning is recommended to address any unpredictable event that reduces the amount of forage available.  Unpredictable events include flood, fire, hail, insects, and most commonly drought.  There is no special prescription for management of grazing lands impacted by unpredictable events. Years of good grazing management prepares grazing land for recovery.  This embodies utilizing a prescribed grazing strategy which manages grazing frequency, grazing intensity and adequate recovery periods after grazing, proper livestock distribution, season of use, and stocking rate.  "]
[]
["A basic understanding of the potential capabilities and limitations of all range resources is fundamental to sound management.  High levels of plant vigor and range health are critical for the endurance of and rapid recovery from drought and other natural events which damage plants.  It is equally important to know which practices optimize livestock performance and minimize risk of financial loss.  Drought considerations must be incorporated into each year’s management plan. "]
[]
["A contingency plan should minimize financial hardships and hasten vegetation recovery.  While the remainder of this contingency plan refers primarily to drought, the principles involved are applicable to any natural event (fire, hail, flood, insect infestation) that removes forage beyond the planned level.  Contingency plans identify action to be taken at the first sign of drought as well as with continued indications of pending forage shortages.  Plans for stocking rate adjustments need to be specific in terms of method and date.  A drought contingency plan will include trigger dates, trigger conditions and planned responses to those triggers.  "]
[]
["Past Stocking Rates and Management:"]
["Grazing management during years proceeding drought is a major factor in range vegetation response to drought.  Stocking rates can increase even when livestock numbers are static.  The amount of forage consumed in a pasture depends upon animal size as well as animal numbers and days of grazing.  Inadvertent increases in stocking rates due to larger animal sizes may lead to overgrazing and reduced plant vigor before drought.  All range livestock land managers need to critically evaluate their animal weights and use an appropriate animal unit (AU) equivalent when calculating stocking rates.  Inadvertent overstocking may reduce animal performance and will damage the forage resource. "]
[null,null," "]
["Seasonal Checkpoints:"]
["Seasonal Checkpoints are critical dates when management decisions need to be made to respond to drought conditions.  On critical dates, current and predicted forage production should be evaluated.  This production estimate should be compared to the forage demand.  When current production does not meet current demand, actions must be taken.  "]
[]
["Critical dates should be based on rapid growth windows for the dominant grass species.  Soil moisture and precipitation before and during the rapid growth period of these species are critical to forage production.  In situations where the forage is a mixture of cool-season and warm-season grasses, multiple critical dates are helpful.  "]
[]
["The average total annual precipitation for the two preceding years is a good indicator of the amount of production that will occur during May and June.  Additionally, depth of moist soil in mid-April correlates to the amount of forage produced by early August.  On mixed and short-grass prairie on loamy and silty sites in Nebraska, the amount of production is correlated to precipitation received in May and June."]
["The dates listed below are \"average\" for Nebraska.  The dates will need to be adjusted 1-3 weeks based on green-up dates."]
["April 1:"]
["·   Determine average depth of moist soil and estimate probable stocking rates"]
["·   Evaluate the volume of precipitation received from October through March as compared to normal.   "]
["·   Estimate probable forage production from rangeland."]
["·   Review short-term precipitation and temperature forecasts."]
["·   Assess current standing herbage."]
["·   Assess all residual herbage."]
["·   Assess growth of introduced cool season pastures. "]
["·   Evaluate stand quality and probable forage production of winter and spring small grains."]
["·   Determine if yield of native cool season species on rangeland is above or below average. "]
["·   Alternative forages, stocking rate reductions and modified grazing strategies may be needed if there is a delay in plant green-up and growth."]
["May 1:"]
["·   Monitor green up of native warm season species on rangeland."]
["·   Continue to review short-term precipitation and temperature forecasts."]
["·   Assess current standing herbage."]
["·   Assess all residual herbage."]
["June 1 - 15:"]
["·   Assess establishment and stand quality of summer annual forages and soil moisture conditions. "]
["·   The majority of plant growth in Nebraska will occur by the end of June.  If drought conditions continue into June, forage production will be dramatically reduced for the season even if good moisture occurs after June 30. Serious consideration should be given to stocking rate reductions and herd management."]
["July 1:"]
["·   Determine if yield of native warm season species on rangeland is above or below average. "]
["·   Assess establishment and stand quality of late planted summer annual forages."]
["·   Assess soil moisture conditions."]
["August 1:"]
["·   Estimate or measure yield of summer annuals harvested for feed or grown for late season grazing. "]
["·   Diet quality of annual forages declines dramatically after the soft dough stage.  If high forage quality is the objective, harvest at the late boot to soft dough stage. If maximum tonnage is the objective, then harvesting after the soft dough stage may be desirable.  "]
["September 1:"]
["·   Assess current year and carry-over winter feed inventories.  Purchase hay resources as needed. "]
["·   Make a final assessment of yield of annual forages grown for late season grazing. "]
["·   Inventory other harvested feed and determine the quantity of crop residue on cropland. "]
["·   Estimate amount of forage in winter pastures (if applicable). "]
["October 1:"]
["·   Use September though October precipitation to predict stocking rates for the next summer."]
[]
["Note: Even a small amount of spring or fall green-up can cause a false sense of security and delay of prudent management decisions.  Premature, aggressive restocking can cause serious economic loss because of long-term reductions in the rate of vegetation recovery.  If vegetation recovery is slow or restricted by continued drought, a de-stocking plan will be needed. "]
[]
["Herd Management:"]
["One alternative for drought management is to reduce total forage requirements. Reducing stocking rates during drought pays dividends in terms of: "]
["·    Optimized animal performance "]
["·    Reduced supplemental and winter feeding costs  "]
["·    Minimized damage to forage resources"]
["·    Enhanced range and pasture recovery following drought "]
[]
["Consider removing or relocating livestock as soon as shortages in forage and feed resources are anticipated to take advantage of best market values.  If additional shortages in forage occur, calculate the additional costs associated with keeping livestock on the ranch (feed, interest, labor, etc.) or transporting livestock to another location with adequate feed or forage.  If calculations show an unreasonably high cost of livestock production, it may be prudent to sell or relocate part or all of the livestock. "]
[]
["The following practices can help to minimize liquidation of the breeding herd: "]
["·   Early weaning can extend the forage base "]
["·   Practice early and heavy culling of less productive animals such as late calving cows and older cattle "]
["·   Remove yearlings from summer pastures early "]
["·   Consider curtailing of replacement animals for one year"]
["·   Supplement vulnerable classes of livestock such as heifers earlier than other classes of livestock "]
["·   Maintain a percentage of the livestock as a readily marketable class such as yearlings or stockers"]
[]
["Diverse practices can be used to maintain ownership of cows under drought conditions. Some ranches will liquidate or relocate part or all of their breeding stock.  The value of keeping breeding herds on the ranch must be weighed against the additional costs that are probable when drought continues.  Recovery of additional production costs will depend upon: (1) productivity of livestock, (2) productivity of grazing lands, and (3) livestock market prices during and following drought.  The use of excessive stocking rates during drought can reduce animal performance and cause dramatic reductions in plant vigor.  Overgrazed land in combination with prolonged drought can cause rangelands to shift across transition zones to states that may not recover to pre-drought production levels for decades.  Under severe or prolonged drought conditions the cost of replacement livestock is almost always less that the cost of long-term reductions in grazing land productivity."]
[]
["Additional information may be obtained from the Drought Mitigation Center website:  http://drought.unl.edu/.  In depth information about developing a drought mitigation plan can be found in the handbook “Managing Drought Risk on the Ranch” which is available at: "]
["http://drought.unl.edu/ranchplan/Overview.aspx"]
[]
["1.  The majority of the information in this section was obtained from \"Managing Drought Risk on the Ranch:  A Planning Guide for Great Plains Ranchers\", published by the National Drought Mitigation Center, UN-L and USDA Risk Management Agency."]

{"sheet":"NE-ECS-414A-% use","index":18,"n_rows":30,"n_cols":16,"rows_kept":30,"cut":false,"hidden":false,"merged":[[0,4,0,12],[1,4,1,12],[2,8,2,11],[2,5,2,7],[27,3,27,4],[27,6,28,9],[27,10,28,10],[27,11,28,11],[27,12,28,12],[11,7,11,8],[12,7,12,8],[13,7,13,8],[14,7,14,8],[15,7,15,8],[16,7,16,8],[17,7,17,8],[18,7,18,8],[19,7,19,8],[19,5,19,6],[12,2,12,3],[12,5,12,6],[10,5,10,6],[28,0,29,2],[28,3,29,5],[27,13,28,13],[27,15,28,15],[27,14,28,14],[20,7,20,8],[21,7,21,8],[22,7,22,8],[23,7,23,8],[24,7,24,8],[25,7,25,8],[26,7,26,8],[29,6,29,9],[4,5,4,15],[25,0,25,1],[25,2,25,3],[25,5,25,6],[26,0,26,1],[26,2,26,3],[26,5,26,6],[23,0,23,1],[23,2,23,3],[23,5,23,6],[24,0,24,1],[24,2,24,3],[24,5,24,6],[21,0,21,1],[21,2,21,3],[21,5,21,6],[22,0,22,1],[22,2,22,3],[22,5,22,6],[19,0,19,1],[19,2,19,3],[20,0,20,1],[20,2,20,3],[20,5,20,6],[17,0,17,1],[17,2,17,3],[17,5,17,6],[18,0,18,1],[18,2,18,3],[18,5,18,6],[15,0,15,1],[15,2,15,3],[15,5,15,6],[16,0,16,1],[16,2,16,3],[16,5,16,6],[12,0,12,1],[13,0,13,1],[13,2,13,3],[13,5,13,6],[14,0,14,1],[14,2,14,3],[14,5,14,6],[7,0,7,1],[7,2,7,3],[7,5,7,6],[8,0,8,1],[8,2,8,3],[8,5,8,6],[9,5,9,6],[10,0,10,1],[10,2,10,3],[0,14,0,15],[1,14,1,15],[0,0,0,3],[1,0,1,3],[7,7,7,8],[8,7,8,8],[9,7,9,8],[10,7,10,8],[27,0,27,2],[2,0,2,1],[2,2,2,4],[2,14,2,15],[4,0,6,1],[4,2,6,3],[4,4,6,4],[5,5,6,6],[5,7,6,8],[5,9,6,9],[5,10,5,15],[9,0,9,1],[9,2,9,3],[11,0,11,1],[11,2,11,3],[11,5,11,6]]}
[null,null,null,null,"PROPER GRAZING USE WORKSHEET",null,null,null,null,null,null,null,null,null,"NE-ECS-414"]
[null,null,null,null,"Expressed as % Degree of Use",null,null,null,null,null,null,null,null,null,"January, 2014"]
["FIELD OFFICE:  ",null,{"$f":"'528 Jobsheet Cover_Sheet'!C3","v":0},null,null,"Client:  ",null,null,{"$f":"'528 Jobsheet Cover_Sheet'!C4","v":0},null,null,null,null,"DATE:",{"$f":"'528 Jobsheet Cover_Sheet'!K4","v":"00:00:00"}]
[]
["Pasture Name or Number",null,"ACRES",null,"Season of Use","KEY GRAZING AREA INFORMATION - See Plan map for location of Key Areas"]
[null,null,null,null,null,"Key Area #",null,"Key Plant",null,"Planned Degree of Use (%)","Estimated Use Key Plant Species by Weight"]
[null,null,null,null,null,null,null,null,null,null,2015,2016,2017,2018,2019,2020]
[{"$f":"'528-JS_Lvstk-Forage-Bal-ANN'!C55","v":0},null,{"$f":"IF(A8=0,\"\",('528-JS_Lvstk-Forage-Bal-ANN'!G55))","v":""}]
[{"$f":"'528-JS_Lvstk-Forage-Bal-ANN'!C56","v":0},null,{"$f":"IF(A9=0,\"\",('528-JS_Lvstk-Forage-Bal-ANN'!G56))","v":""}]
[{"$f":"'528-JS_Lvstk-Forage-Bal-ANN'!C57","v":0},null,{"$f":"IF(A10=0,\"\",('528-JS_Lvstk-Forage-Bal-ANN'!G57))","v":""}]
[{"$f":"'528-JS_Lvstk-Forage-Bal-ANN'!C58","v":0},null,{"$f":"IF(A11=0,\"\",('528-JS_Lvstk-Forage-Bal-ANN'!G58))","v":""}]
[{"$f":"'528-JS_Lvstk-Forage-Bal-ANN'!C59","v":0},null,{"$f":"IF(A12=0,\"\",('528-JS_Lvstk-Forage-Bal-ANN'!G59))","v":""}]
[{"$f":"'528-JS_Lvstk-Forage-Bal-ANN'!C60","v":0},null,{"$f":"IF(A13=0,\"\",('528-JS_Lvstk-Forage-Bal-ANN'!G60))","v":""}]
[{"$f":"'528-JS_Lvstk-Forage-Bal-ANN'!C61","v":0},null,{"$f":"IF(A14=0,\"\",('528-JS_Lvstk-Forage-Bal-ANN'!G61))","v":""}]
[{"$f":"'528-JS_Lvstk-Forage-Bal-ANN'!C62","v":0},null,{"$f":"IF(A15=0,\"\",('528-JS_Lvstk-Forage-Bal-ANN'!G62))","v":""}]
[{"$f":"'528-JS_Lvstk-Forage-Bal-ANN'!C63","v":0},null,{"$f":"IF(A16=0,\"\",('528-JS_Lvstk-Forage-Bal-ANN'!G63))","v":""}]
[{"$f":"'528-JS_Lvstk-Forage-Bal-ANN'!C64","v":0},null,{"$f":"IF(A17=0,\"\",('528-JS_Lvstk-Forage-Bal-ANN'!G64))","v":""}]
[{"$f":"'528-JS_Lvstk-Forage-Bal-ANN'!C65","v":0},null,{"$f":"IF(A18=0,\"\",('528-JS_Lvstk-Forage-Bal-ANN'!G65))","v":""}]
[{"$f":"'528-JS_Lvstk-Forage-Bal-ANN'!C66","v":0},null,{"$f":"IF(A19=0,\"\",('528-JS_Lvstk-Forage-Bal-ANN'!G66))","v":""}]
[{"$f":"'528-JS_Lvstk-Forage-Bal-ANN'!C67","v":0},null,{"$f":"IF(A20=0,\"\",('528-JS_Lvstk-Forage-Bal-ANN'!G67))","v":""}]
[{"$f":"'528-JS_Lvstk-Forage-Bal-ANN'!C68","v":0},null,{"$f":"IF(A21=0,\"\",('528-JS_Lvstk-Forage-Bal-ANN'!G68))","v":""}]
[{"$f":"'528-JS_Lvstk-Forage-Bal-ANN'!C69","v":0},null,{"$f":"IF(A22=0,\"\",('528-JS_Lvstk-Forage-Bal-ANN'!G69))","v":""}]
[{"$f":"'528-JS_Lvstk-Forage-Bal-ANN'!C70","v":0},null,{"$f":"IF(A23=0,\"\",('528-JS_Lvstk-Forage-Bal-ANN'!G70))","v":""}]
[{"$f":"'528-JS_Lvstk-Forage-Bal-ANN'!C71","v":0},null,{"$f":"IF(A24=0,\"\",('528-JS_Lvstk-Forage-Bal-ANN'!G71))","v":""}]
[{"$f":"'528-JS_Lvstk-Forage-Bal-ANN'!C72","v":0},null,{"$f":"IF(A25=0,\"\",('528-JS_Lvstk-Forage-Bal-ANN'!G72))","v":""}]
[{"$f":"'528-JS_Lvstk-Forage-Bal-ANN'!C73","v":0},null,{"$f":"IF(A26=0,\"\",('528-JS_Lvstk-Forage-Bal-ANN'!G73))","v":""}]
[{"$f":"'528-JS_Lvstk-Forage-Bal-ANN'!C74","v":0},null,{"$f":"IF(A27=0,\"\",('528-JS_Lvstk-Forage-Bal-ANN'!G74))","v":""}]
["PLANNED BY & date:",null,null,null,null,null,"Date of Field Visit:"]
["COMMENTS:"]
[null,null,null,null,null,null,"Observer:"]

{"sheet":"NE-ECS-414B-min height","index":19,"n_rows":32,"n_cols":15,"rows_kept":32,"cut":false,"hidden":false,"merged":[[26,0,26,1],[26,2,26,3],[18,0,18,1],[18,2,18,3],[19,0,19,1],[19,2,19,3],[22,0,22,1],[22,2,22,3],[23,0,23,1],[23,2,23,3],[21,0,21,1],[24,0,24,1],[24,2,24,3],[25,0,25,1],[25,2,25,3],[21,2,21,3],[15,0,15,1],[15,2,15,3],[12,0,12,1],[12,2,12,3],[13,0,13,1],[13,2,13,3],[14,0,14,1],[14,2,14,3],[31,0,31,14],[29,9,29,13],[27,0,28,2],[27,3,28,4],[27,5,27,7],[28,5,28,7],[29,4,29,8],[29,0,29,3],[30,0,30,14],[20,0,20,1],[20,2,20,3],[16,0,16,1],[16,2,16,3],[17,0,17,1],[17,2,17,3],[11,2,11,3],[7,0,7,1],[7,2,7,3],[5,4,6,4],[8,0,8,1],[8,2,8,3],[9,0,9,1],[9,2,9,3],[10,0,10,1],[10,2,10,3],[11,0,11,1],[1,13,1,14],[0,0,1,3],[5,8,5,14],[4,0,4,14],[5,0,6,1],[5,2,6,3],[2,0,2,1],[2,2,2,4],[2,5,2,6],[2,7,2,8],[2,9,2,11],[2,13,2,14],[5,5,5,7],[0,4,0,11],[1,4,1,11],[0,12,0,14]]}
[null,null,null,null,"GRAZING UTILIZATION FOR RANGELAND OR PASTURLAND",null,null,null,null,null,null,null,"NE-ECS-414B"]
[null,null,null,null,"Expressed as Residual Plant Height",null,null,null,null,null,null,null,null,"January, 2014"]
["Client:  ",null,{"$f":"'528 Jobsheet Cover_Sheet'!C4","v":0},null,null,null,null,"Field Office: ",null,{"$f":"'528 Jobsheet Cover_Sheet'!C3","v":0},null,null,"DATE:",{"$f":"'528 Jobsheet Cover_Sheet'!K4","v":"00:00:00"}]
[]
[]
["Pasture Name or Number",null,"ACRES",null,"KEY FORAGE SPECIES","Recommended minimum heights",null,null,"Residual Plant Height  (killing frost or after grazing - circle one)**"]
[null,null,null,null,null,"Begin Grazing","End Grazing","Before Killing Frost",2014,2015,2016,2017,2018,2019,2020]
[{"$f":"'528-JS_Lvstk-Forage-Bal-ANN'!C55","v":0},null,{"$f":"IF(A8=0,\"\",('528-JS_Lvstk-Forage-Bal-ANN'!G55))","v":""},null,null,{"$f":"IF($E8=0,\"\",(VLOOKUP(E8,DATA!$F$215:$G$248,2,FALSE)))","v":""},{"$f":"IF($E8=0,\"\",(VLOOKUP(E8,DATA!$F$250:$G$280,2,FALSE)))","v":""},{"$f":"IF($E8=0,\"\",(VLOOKUP(E8,DATA!$F$282:$G$310,2,FALSE)))","v":""}]
[{"$f":"'528-JS_Lvstk-Forage-Bal-ANN'!C56","v":0},null,{"$f":"IF(A9=0,\"\",('528-JS_Lvstk-Forage-Bal-ANN'!G56))","v":""},null,null,{"$f":"IF($E9=0,\"\",(VLOOKUP(E9,DATA!$F$215:$G$248,2,FALSE)))","v":""},{"$f":"IF($E9=0,\"\",(VLOOKUP(E9,DATA!$F$250:$G$280,2,FALSE)))","v":""},{"$f":"IF($E9=0,\"\",(VLOOKUP(E9,DATA!$F$282:$G$310,2,FALSE)))","v":""}]
[{"$f":"'528-JS_Lvstk-Forage-Bal-ANN'!C57","v":0},null,{"$f":"IF(A10=0,\"\",('528-JS_Lvstk-Forage-Bal-ANN'!G57))","v":""},null,null,{"$f":"IF($E10=0,\"\",(VLOOKUP(E10,DATA!$F$215:$G$248,2,FALSE)))","v":""},{"$f":"IF($E10=0,\"\",(VLOOKUP(E10,DATA!$F$250:$G$280,2,FALSE)))","v":""},{"$f":"IF($E10=0,\"\",(VLOOKUP(E10,DATA!$F$282:$G$310,2,FALSE)))","v":""}]
[{"$f":"'528-JS_Lvstk-Forage-Bal-ANN'!C58","v":0},null,{"$f":"IF(A11=0,\"\",('528-JS_Lvstk-Forage-Bal-ANN'!G58))","v":""},null,null,{"$f":"IF($E11=0,\"\",(VLOOKUP(E11,DATA!$F$215:$G$248,2,FALSE)))","v":""},{"$f":"IF($E11=0,\"\",(VLOOKUP(E11,DATA!$F$250:$G$280,2,FALSE)))","v":""},{"$f":"IF($E11=0,\"\",(VLOOKUP(E11,DATA!$F$282:$G$310,2,FALSE)))","v":""}]
[{"$f":"'528-JS_Lvstk-Forage-Bal-ANN'!C59","v":0},null,{"$f":"IF(A12=0,\"\",('528-JS_Lvstk-Forage-Bal-ANN'!G59))","v":""},null,null,{"$f":"IF($E12=0,\"\",(VLOOKUP(E12,DATA!$F$215:$G$248,2,FALSE)))","v":""},{"$f":"IF($E12=0,\"\",(VLOOKUP(E12,DATA!$F$250:$G$280,2,FALSE)))","v":""},{"$f":"IF($E12=0,\"\",(VLOOKUP(E12,DATA!$F$282:$G$310,2,FALSE)))","v":""}]
[{"$f":"'528-JS_Lvstk-Forage-Bal-ANN'!C60","v":0},null,{"$f":"IF(A13=0,\"\",('528-JS_Lvstk-Forage-Bal-ANN'!G60))","v":""},null,null,{"$f":"IF($E13=0,\"\",(VLOOKUP(E13,DATA!$F$215:$G$248,2,FALSE)))","v":""},{"$f":"IF($E13=0,\"\",(VLOOKUP(E13,DATA!$F$250:$G$280,2,FALSE)))","v":""},{"$f":"IF($E13=0,\"\",(VLOOKUP(E13,DATA!$F$282:$G$310,2,FALSE)))","v":""}]
[{"$f":"'528-JS_Lvstk-Forage-Bal-ANN'!C61","v":0},null,{"$f":"IF(A14=0,\"\",('528-JS_Lvstk-Forage-Bal-ANN'!G61))","v":""},null,null,{"$f":"IF($E14=0,\"\",(VLOOKUP(E14,DATA!$F$215:$G$248,2,FALSE)))","v":""},{"$f":"IF($E14=0,\"\",(VLOOKUP(E14,DATA!$F$250:$G$280,2,FALSE)))","v":""},{"$f":"IF($E14=0,\"\",(VLOOKUP(E14,DATA!$F$282:$G$310,2,FALSE)))","v":""}]
[{"$f":"'528-JS_Lvstk-Forage-Bal-ANN'!C62","v":0},null,{"$f":"IF(A15=0,\"\",('528-JS_Lvstk-Forage-Bal-ANN'!G62))","v":""},null,null,{"$f":"IF($E15=0,\"\",(VLOOKUP(E15,DATA!$F$215:$G$248,2,FALSE)))","v":""},{"$f":"IF($E15=0,\"\",(VLOOKUP(E15,DATA!$F$250:$G$280,2,FALSE)))","v":""},{"$f":"IF($E15=0,\"\",(VLOOKUP(E15,DATA!$F$282:$G$310,2,FALSE)))","v":""}]
[{"$f":"'528-JS_Lvstk-Forage-Bal-ANN'!C63","v":0},null,{"$f":"IF(A16=0,\"\",('528-JS_Lvstk-Forage-Bal-ANN'!G63))","v":""},null,null,{"$f":"IF($E16=0,\"\",(VLOOKUP(E16,DATA!$F$215:$G$248,2,FALSE)))","v":""},{"$f":"IF($E16=0,\"\",(VLOOKUP(E16,DATA!$F$250:$G$280,2,FALSE)))","v":""},{"$f":"IF($E16=0,\"\",(VLOOKUP(E16,DATA!$F$282:$G$310,2,FALSE)))","v":""}]
[{"$f":"'528-JS_Lvstk-Forage-Bal-ANN'!C64","v":0},null,{"$f":"IF(A17=0,\"\",('528-JS_Lvstk-Forage-Bal-ANN'!G64))","v":""},null,null,{"$f":"IF($E17=0,\"\",(VLOOKUP(E17,DATA!$F$215:$G$248,2,FALSE)))","v":""},{"$f":"IF($E17=0,\"\",(VLOOKUP(E17,DATA!$F$250:$G$280,2,FALSE)))","v":""},{"$f":"IF($E17=0,\"\",(VLOOKUP(E17,DATA!$F$282:$G$310,2,FALSE)))","v":""}]
[{"$f":"'528-JS_Lvstk-Forage-Bal-ANN'!C65","v":0},null,{"$f":"IF(A18=0,\"\",('528-JS_Lvstk-Forage-Bal-ANN'!G65))","v":""},null,null,{"$f":"IF($E18=0,\"\",(VLOOKUP(E18,DATA!$F$215:$G$248,2,FALSE)))","v":""},{"$f":"IF($E18=0,\"\",(VLOOKUP(E18,DATA!$F$250:$G$280,2,FALSE)))","v":""},{"$f":"IF($E18=0,\"\",(VLOOKUP(E18,DATA!$F$282:$G$310,2,FALSE)))","v":""}]
[{"$f":"'528-JS_Lvstk-Forage-Bal-ANN'!C66","v":0},null,{"$f":"IF(A19=0,\"\",('528-JS_Lvstk-Forage-Bal-ANN'!G66))","v":""},null,null,{"$f":"IF($E19=0,\"\",(VLOOKUP(E19,DATA!$F$215:$G$248,2,FALSE)))","v":""},{"$f":"IF($E19=0,\"\",(VLOOKUP(E19,DATA!$F$250:$G$280,2,FALSE)))","v":""},{"$f":"IF($E19=0,\"\",(VLOOKUP(E19,DATA!$F$282:$G$310,2,FALSE)))","v":""}]
[{"$f":"'528-JS_Lvstk-Forage-Bal-ANN'!C67","v":0},null,{"$f":"IF(A20=0,\"\",('528-JS_Lvstk-Forage-Bal-ANN'!G67))","v":""},null,null,{"$f":"IF($E20=0,\"\",(VLOOKUP(E20,DATA!$F$215:$G$248,2,FALSE)))","v":""},{"$f":"IF($E20=0,\"\",(VLOOKUP(E20,DATA!$F$250:$G$280,2,FALSE)))","v":""},{"$f":"IF($E20=0,\"\",(VLOOKUP(E20,DATA!$F$282:$G$310,2,FALSE)))","v":""}]
[{"$f":"'528-JS_Lvstk-Forage-Bal-ANN'!C68","v":0},null,{"$f":"IF(A21=0,\"\",('528-JS_Lvstk-Forage-Bal-ANN'!G68))","v":""},null,null,{"$f":"IF($E21=0,\"\",(VLOOKUP(E21,DATA!$F$215:$G$248,2,FALSE)))","v":""},{"$f":"IF($E21=0,\"\",(VLOOKUP(E21,DATA!$F$250:$G$280,2,FALSE)))","v":""},{"$f":"IF($E21=0,\"\",(VLOOKUP(E21,DATA!$F$282:$G$310,2,FALSE)))","v":""}]
[{"$f":"'528-JS_Lvstk-Forage-Bal-ANN'!C69","v":0},null,{"$f":"IF(A22=0,\"\",('528-JS_Lvstk-Forage-Bal-ANN'!G69))","v":""},null,null,{"$f":"IF($E22=0,\"\",(VLOOKUP(E22,DATA!$F$215:$G$248,2,FALSE)))","v":""},{"$f":"IF($E22=0,\"\",(VLOOKUP(E22,DATA!$F$250:$G$280,2,FALSE)))","v":""},{"$f":"IF($E22=0,\"\",(VLOOKUP(E22,DATA!$F$282:$G$310,2,FALSE)))","v":""}]
[{"$f":"'528-JS_Lvstk-Forage-Bal-ANN'!C70","v":0},null,{"$f":"IF(A23=0,\"\",('528-JS_Lvstk-Forage-Bal-ANN'!G70))","v":""},null,null,{"$f":"IF($E23=0,\"\",(VLOOKUP(E23,DATA!$F$215:$G$248,2,FALSE)))","v":""},{"$f":"IF($E23=0,\"\",(VLOOKUP(E23,DATA!$F$250:$G$280,2,FALSE)))","v":""},{"$f":"IF($E23=0,\"\",(VLOOKUP(E23,DATA!$F$282:$G$310,2,FALSE)))","v":""}]
[{"$f":"'528-JS_Lvstk-Forage-Bal-ANN'!C71","v":0},null,{"$f":"IF(A24=0,\"\",('528-JS_Lvstk-Forage-Bal-ANN'!G71))","v":""},null,null,{"$f":"IF($E24=0,\"\",(VLOOKUP(E24,DATA!$F$215:$G$248,2,FALSE)))","v":""},{"$f":"IF($E24=0,\"\",(VLOOKUP(E24,DATA!$F$250:$G$280,2,FALSE)))","v":""},{"$f":"IF($E24=0,\"\",(VLOOKUP(E24,DATA!$F$282:$G$310,2,FALSE)))","v":""}]
[{"$f":"'528-JS_Lvstk-Forage-Bal-ANN'!C72","v":0},null,{"$f":"IF(A25=0,\"\",('528-JS_Lvstk-Forage-Bal-ANN'!G72))","v":""},null,null,{"$f":"IF($E25=0,\"\",(VLOOKUP(E25,DATA!$F$215:$G$248,2,FALSE)))","v":""},{"$f":"IF($E25=0,\"\",(VLOOKUP(E25,DATA!$F$250:$G$280,2,FALSE)))","v":""},{"$f":"IF($E25=0,\"\",(VLOOKUP(E25,DATA!$F$282:$G$310,2,FALSE)))","v":""}]
[{"$f":"'528-JS_Lvstk-Forage-Bal-ANN'!C73","v":0},null,{"$f":"IF(A26=0,\"\",('528-JS_Lvstk-Forage-Bal-ANN'!G73))","v":""},null,null,{"$f":"IF($E26=0,\"\",(VLOOKUP(E26,DATA!$F$215:$G$248,2,FALSE)))","v":""},{"$f":"IF($E26=0,\"\",(VLOOKUP(E26,DATA!$F$250:$G$280,2,FALSE)))","v":""},{"$f":"IF($E26=0,\"\",(VLOOKUP(E26,DATA!$F$282:$G$310,2,FALSE)))","v":""}]
[{"$f":"'528-JS_Lvstk-Forage-Bal-ANN'!C74","v":0},null,{"$f":"IF(A27=0,\"\",('528-JS_Lvstk-Forage-Bal-ANN'!G74))","v":""},null,null,{"$f":"IF($E27=0,\"\",(VLOOKUP(E27,DATA!$F$215:$G$248,2,FALSE)))","v":""},{"$f":"IF($E27=0,\"\",(VLOOKUP(E27,DATA!$F$250:$G$280,2,FALSE)))","v":""},{"$f":"IF($E27=0,\"\",(VLOOKUP(E27,DATA!$F$282:$G$310,2,FALSE)))","v":""}]
["COMMENTS:",null,null,null,null,"Date of Field Visit: "]
[null,null,null,null,null,"Observer (Initials):  "]
["PLANNED BY and DATE:"]
["*  See NE Field Office Technical Guide, Section IV, 528 - Prescribed Grazing Specifications, Table 4."]
["** A killing frost can be defined as \"when temperatures drop below 32 degrees F. for an extended period of time (usually several  hours) such that will kill vegetation.\"  Temperature and duration will vary with plant species, as some plant species are more frost tolerant."]

{"sheet":"NE-ECS-12_App_Trend_Range-Req","index":20,"n_rows":29,"n_cols":8,"rows_kept":29,"cut":false,"hidden":false,"merged":[[28,2,28,7],[2,5,2,7],[13,0,13,1],[18,0,18,1],[16,0,16,1],[17,0,17,1],[14,0,15,1],[28,0,28,1],[27,2,27,6],[14,6,15,6],[14,3,15,3],[14,4,15,4],[14,5,15,5],[14,2,15,2],[23,0,23,1],[19,0,19,1],[20,0,20,1],[24,2,25,7],[21,0,21,1],[22,0,22,1],[23,2,23,7],[12,0,12,1],[1,0,2,1],[1,2,1,4],[2,2,2,4],[11,2,11,6],[11,0,11,1],[4,1,4,2],[5,1,5,2],[6,5,6,6],[9,0,9,6],[6,1,6,2],[6,3,6,4],[7,1,7,6],[10,0,10,6],[1,6,1,7],[9,7,12,7]]}
[]
[null,null,"APPARENT TREND WORKSHEET",null,null,null,"NE-ECS-12"]
[null,null,null,null,null,"January, 2014"]
[]
["Cooperator:",{"$f":"'528 Jobsheet Cover_Sheet'!C4","v":0},null,"Conservationist:",null,"Date:"]
["Ecological Site:",null,null,"Pasture Name/#:",null,"Trend Type:"]
["Reference Plant Community:",null,null,"Current Precipitation                 (choose one):"]
["GPS Coordinates:"]
[]
["When making trend estimates, always compare present conditions to what can be expected to be found in the plant community that you are comparing present conditions to; either the historic or interpretive plant community (Rangeland Trend) or one of the other plant communities (Planned Trend) described in the ecological site description.  Take into consideration current weather conditions and the impact on plant growth and other plant related attributes.",null,null,null,null,null,null,"Actual Score"]
[]
[null,null,"Evaluate Site "]
["Composition Changes",null,"2 Points","1 point","0 Points","  - 1 Point","  -2 Points"]
["Evaluate the composition of the plant community and compare it to ESD communities.",null,"No invading undesirable plants present, desirable key species very abundant.","Slight presence of invading undesirables, desirable key species abundant.","Moderate presence of invading undesirables, average abundance of desirable key species.","Numerous invading undesirables, few desirable key species present.","Extreme presence of invading undesirables, very few desirable key species."]
["Abundance of Seedlings and Young Plants",null,"2 Points","1 point","0 Points","  - 1 Point","  -2 Points"]
[]
["Evaluate the number of new seedlings and tillers of desirable species present.",null,"Seedlings & young desired plants very abundant.","Seedlings & young desired plants abundant.","Average abundance of seedlings & young desired plants.","Few seedlings & young desired plants.","Very few seedlings and young desired plants."]
["Plant Residue & Litter",null,"2 Points","1 point","0 Points","  - 1 Point","  -2 Points"]
["Evaluate the amount of litter and plant residues and how well they are decomposing as compared to what is expected for the site.",null,"Litter present in amounts considered normal for the site.","Litter present in amounts slightly less or slightly more than considered normal.","Litter present in amounts moderately less or moderately more than considered normal.","Litter present or absent in moderate to extreme amounts when compared to what is considered normal.","Litter not present or present in extreme amounts when compared to what is considered normal."]
["Plant Vigor",null,"2 Points","1 point","0 Points","  - 1 Point","  -2 Points"]
["Evaluate plant decadence, plant spacing, reproduction, plant stature, leaf size, productivity, etc., of desirable species.",null,"Vigor of desirable species is very high.","Vigor of desirable species is high.","Vigor of desirable species is average.","Vigor of desirable species is poor.","Vigor of desirable species is extremely poor."]
["Condition of the Soil Surface",null,"2 Points","1 point","0 Points","  - 1 Point","  -2 Points"]
["Evaluate wind, sheet, rill, gully and streambank erosion as well as the amount of exposed soil surface.  Compare to what is expected for the site.",null,"No apparent erosion, percent bare ground is what is expected for the site.","Erosion is slight, percent bare ground is slightly higher than what is expected for the site.","Erosion is moderate, percent bare ground is moderately higher than what is expected for the site.","Erosion is moderate to extreme, percent bare ground is moderately to extremely higher than what is expected for the site.","Erosion is extreme, percent bare ground is extreme when compared to what is expected for the site."]
["TOTAL SCORE - Sum of all columns indicates apparent trend",null,{"$f":"SUM(H14:H23)","v":0}]
[null,null,"Overall Trend Rating(s):  (choose the appropriate trend rating)"]
[]
[]
[]
["COMMENTS:"]

{"sheet":"NE-ECS-13_Past Score","index":21,"n_rows":25,"n_cols":13,"rows_kept":25,"cut":false,"hidden":false,"merged":[[19,12,23,22],[24,12,33,22],[13,12,13,22],[14,12,15,22],[16,12,16,22],[17,12,18,22],[8,12,8,22],[9,12,11,22],[12,12,12,22],[0,12,0,22],[1,12,7,22],[11,8,11,9],[11,5,11,6],[11,2,11,3],[11,0,11,1],[10,5,10,6],[10,2,10,3],[0,3,1,8],[0,0,1,2],[3,9,3,10],[4,6,4,8],[4,9,4,10],[4,0,4,3],[4,4,4,5],[2,0,2,1],[2,2,2,4],[2,6,2,8],[3,0,3,2],[3,3,3,7],[0,9,0,10],[1,9,1,10],[7,0,7,10],[8,2,8,10],[5,1,5,3],[10,8,10,9],[9,0,10,1],[5,6,5,8],[5,4,5,5],[5,9,5,10],[9,10,10,10],[9,8,9,9],[9,5,9,6],[9,2,9,3],[15,5,15,6],[15,2,15,3],[15,0,15,1],[14,8,14,9],[14,5,14,6],[14,2,14,3],[14,0,14,1],[15,8,15,9],[12,8,12,9],[13,0,13,1],[13,2,13,3],[13,5,13,6],[13,8,13,9],[12,5,12,6],[12,2,12,3],[12,0,12,1],[18,0,18,1],[18,2,18,3],[18,5,18,6],[18,8,18,9],[19,10,22,10],[21,0,21,3],[22,0,22,3],[22,5,22,7],[19,8,22,9],[20,0,20,3],[19,0,19,3],[19,5,19,7],[20,5,20,7],[21,5,21,7],[16,0,16,1],[16,2,16,3],[16,5,16,6],[16,8,16,9],[17,0,17,1],[17,2,17,3],[17,8,17,9],[17,5,17,6]]}
[null,null,null,"PASTURE CONDITION SCORE WORKSHEET",null,null,null,null,null,"NE-ECS-13  ",null,null,"INTRODUCTION & INSTRUCTIONS FOR PASTURE CONDITION SCORING"]
[null,null,null,null,null,null,null,null,null,"January, 2014",null,null,"A well-managed pasture is one whose productivity (plant and animal) is optimized while doing no harm to soil, water, and air quality.  Pasture condition scoring is a systematic way to check how well a pasture is being managed.  A well managed, properly sited pasture will have a good to excellent overall pasture condition score.  By rating key indicators common to all pastures, pasture condition can be evaluated and the primary reasons for a low condition score can be determined. Conditions that typically express themselves as pasture resource concerns are: poor plant growth, weedy species invasion, poor animal performance, visible soil loss, increased runoff, and impaired water quality.  Pasture condition scoring involves the visual evaluation of 8 indicators, listed and described below, which rate pasture condition.  In the “Pasture Condition Score Sheet”, each indicator has five conditions described for it, ranging from very poor to excellent. This objectively ranks the extent of any problem(s)."]
["Cooperator:",null,{"$f":"'528 Jobsheet Cover_Sheet'!C4","v":0},null,null,"Conservationist:",null,null,null,"Date:"]
["MLRA - FSG - Species/Mix:",null,null,null,null,null,null,null,"Acres: "]
["Estimated Production Potential from FSG (lbs.):",null,null,null,null,null,"Estimated Annual AUM's:"]
["OR","Measured Production (lbs.):",null,null,null,null,"AUM's Calculated (from Measured lbs.):"]
[]
["Evaluate the present plant community and rate each category based on your observations.  Ratings for each category may range from 1 to 5  If the rating falls between the listed narratives select that value."]
[null,null,"Evaluate Site and Choose Appropriate Score in Column at Right",null,null,null,null,null,null,null,null,null,"PASTURE CONDITION INDICATOR DESCRIPTIONS"]
["Indicator",null,"1 Point",null,"2 Points","3 Points",null,"4 Points","5 Points",null,"Score",null,"Percent Desirable Plants:  This indicator determines if the pasture has desirable plant species that are readily consumed, persistent, and provide high tonnage and quality for a significant part of the growing season.  Some grazing-resistant intermediate species, such as Kentucky bluegrass, provide high quality forage, but often in amounts considerably less than other adapted species would.  They can be an indicator of a less than ideal grazing management history.  Undesirable species are those which typically are not eaten (rejected) by most livestock or cause undesirable side effects when eaten, and crowd out more desirable species."]
[null,null,"Very Poor",null,null,null,null,null,"Excellent"]
["1).  Percent desirable plants (adapted to site, and high production potential).",null,"Desirable species <20% of stand by weight.  Annual weeds and/or perennial weedy species dominate.",null,null,"40-60% desirable forage species by weight.  Grazing resistant forage species with lower production potential make up a substantial portion of the stand.  Undesirable broad-leaf weeds and annual weedy grasses invading.",null,null,"Desirable species exceed 80% of plant community by weight."]
["2).  Plant Cover",null,"Very poor stand relative to FSG.  Photosynthetic area very low.  Very little desirable plant cover to moderate soil temperatures and slow or stop runoff.",null,null,"Moderate stand relative to FSG.  Moderate leaf area to intercept sunlight and raindrops.  Bare areas may be common.",null,null,"Excellent stand relative to FSG.  Forages maintained in leafy condition for best photosynthetic activity.  Very thick stand, slow or no runoff.",null,null,null,"Plant Cover:  The percentage of the soil surface covered by plants is important for pasture production and soil and water protection.  When properly grazed, a dense stand (high stem count) ensures high animal intake, and high sunlight interception for best forage growth.  Bare, open spots allow for weed encroachment, increased water runoff during intense rains and soil erosion."]
["3).  Plant vigor",null,"Plants spindly, with yellowish green leaves.  Productivity much below site potential.  Little or no regrowth after grazing.",null,null,"Urine / dung patches dark green in contrast to rest of plants indicating an unfavorable plant nutrient status.  Yields regularly below site's potential.  Moderate regrowth after grazing.",null,null,"Plants healthy green color.  Urine / dung patches only slightly greener than rest of plants.  Yields at site potential for species adapted to the site's soil and climate.  Regrowth is rapid.",null,null,null,"Plant Vigor:  Desirable species should be healthy and growing at their potential for the season when rated.  If not, they will be replaced by weeds and low quality forage plants.  If plant growth conditions really suffer, bare soil will begin to appear.  Some things to consider when rating plant vigor are color, size of plants, rate of regrowth following harvest, and productivity."]
["4).  Percent legume",null,"No legumes in cool season pasture or > 60% bloat causing legume by weight.",null,null,"20 - 30% legume by weight in cool season pasture.",null,null,"40 - 50% legume by weight.",null,null,null,"Plant Diversity:  Plant diversity is the number of different forage species and functional groups that are well represented in a pasture grazed season long, or in a set of rotationally grazed pastures.  Low species diversity results in unreliable supplies of grazed forage for livestock during the grazing season.  Forage production and quality varies more widely through the grazing season due to changing weather and light conditions and insect and disease pressure. Having more than one species from more that 1 functional group (i.e. cool season grass, warm season grass, legume) maintains the most consistent forage supply during the grazing season."]
["5).  Plant Diversity (may be considered across several pastures if grazed in rotation).",null,"One forage species or functional group providing a narrow time period when forages are of high nutritive quality.",null,null,"2 or more forage species from 1 or more functional groups with similar growth periods resulting in low forage quality through a significant portion of the grazing season.",null,null,"2 or more forage species from two or more functional groups with complimentary growth periods resulting in high forage quality throughout the grazing season."]
["6).  Uniformity of use",null,"Urine and dung spots ungrazed.  Remainder of pasture appears to be consistently grazed below proper stubble heights.",null,null,"Spot or patch grazing evident across much of the pasture indicating selectivity by grazing animals.  OR zone grazing with significant areas lightly or not grazed by livestock.",null,null,"Rejected areas only at urine and dung patches.  No forage species rejection.",null,null,null,"Percent Legume:  Legumes are important sources of nitrogen for pastures and improve the forage quality of a pasture mix when they comprise at least 20 percent (but less than 60% of bloat causing legumes) of total air-dry weight of forage.  Deep-rooted legumes also provide grazing during hot dry periods in mid-summer.\n"]
["7).  Plant residue",null,"Very little litter present on soil surface to buffer soil temperatures and intercept and retain moisture OR litter present in extreme amounts, reducing tillering and suppressing stand.",null,null,"Surface litter present in amounts moderately more or less than expected for site and/or excessive standing dead plants reducing forage intake and quality.",null,null,"Litter present in amounts considered normal for the site and in contact with soil surface.",null,null,null,"Uniformity of Use:  Check uniformity of use by observing animal grazing patterns.  Uniform grazing results in all desirable and intermediate species being grazed to a similar (and acceptable) height.  Spotty or patterned grazing appears uneven throughout a pasture with some plants or parts of paddocks grazed heavily and others lightly.  Individual forage species are being selected for or against by the livestock based on their palatability and nutritional value.  Selectivity is also affected by forage species' maturity differences, amount of forage available to livestock, and their length of stay in the paddock.  Zone grazing occurs when one end of the pasture is heavily grazed and the other end is ungrazed or lightly grazed.  Typical causes of zone grazing are distance to water, pasture shape, and pasture terrain."]
["8).  Erosion",null,"Severe wind, sheet and rill, trail, gully, and/or riparian area erosion, active and readily apparent.",null,null,"Moderate wind, sheet and rill, trial, gully, and/or riparian area erosion evident. ",null,null,"No active erosion visible."]
["Overall Pasture Condition Score",null,null,null,"Indicator Score","Management Change Suggested",null,null,"Overall Pasture Condition Score",null,{"$f":"SUM(K12:K19)","v":0},null,"Plant Residue:  Plant residue, in various states of decay, provides additional surface cover and organic matter to the soil.  However, too much standing dead material in the grass stand reduces the feed value of the forage consumed, reduces animal intake, and inhibits new plant shoot growth.  Excessive amounts of standing dead material may cause the forage to be rejected by the grazing animal.  Less than 25 percent of the standing forage mass should be dead or dying leaves and stems.  A buildup of thatch (mat of undecomposed residue) at the soil surface promotes fungal diseases and retards or prevents shoot and seedling emergence.  This results in forage stand decline."]
["35-40",null,null,null,5,"No changes needed at this time."]
["15-35",null,null,null," 2-4","Improvements would benefit productivity and/or environment."]
[" 8 - 15",null,null,null,1,"Major effort required in time, management and expense."]
[]
[null,null,null,null,null,null,null,null,null,null,null,null,"Erosion:   Erosion increases as ground cover decreases.  Evidence of sheet erosion in a pasture appears as small debris dams of plant residue that build up at obstructions or span between obstructions.  Some soil aggregates or worm castings may also be washed into these debris dams.  Rills are small, incised channels in the soil that run parallel to each other down slope.  When rills appear, serious soil loss is occurring.  Wind erosion occurs when heavier wind blown soil particles abrade exposed soil and cause dust to become airborne.  Deposition of the heavier soil particles occurs downwind of obstructions such as fence lines, buildings, and vegetation.  Often vegetative debris will be “windrowed” against obstructions.  Pedestaling can indicate either wind or water erosion.  Sheet, rill, and wind erosion generally will increase as plant cover (Indicator 2) decreases.  Ground cover also affects gully and riparian area erosion because of its effect on runoff.  In addition, livestock hoof action may contribute substantially to these conditions."]

{"sheet":"NE-ECS-64_Actual_Use_Report","index":22,"n_rows":105,"n_cols":9,"rows_kept":105,"cut":false,"hidden":false,"merged":[[40,3,41,5],[0,3,1,6],[0,0,1,2],[2,1,2,3],[5,5,5,8],[5,0,7,0],[5,1,7,1],[5,2,7,2],[5,3,7,3],[5,4,7,4],[6,5,6,6],[6,7,6,8],[33,0,33,2]]}
[null,null,null,"ACTUAL GRAZING USE REPORT",null,null,null,null,"NE-ECS-64 "]
[null,null,null,null,null,null,null,null,"January, 2014"]
["Client:  ",{"$f":"'528 Jobsheet Cover_Sheet'!C4","v":0},null,null,null,"Calendar Year:  ",null,"Date:"]
["Contract Number:"]
[]
["Pasture Name / Number","Acres ","Planned Grazing Sequence","Kind of Livestock  (pairs, yearlings, heifers, etc.)","Number","Grazing Period - In & Out Dates"]
[null,null,null,null,null,"Planned",null,"Actual"]
[null,null,null,null,null,"Begin","End","Begin","End"]
[]
[]
[]
[]
[]
[]
[]
[]
[]
[]
[]
[]
[]
[]
[]
[]
[]
[]
[]
[]
[]
[]
[]
[]
[]
["Animal Information (Needed to calculate AUM')",null,null,"Comments:"]
["Average Cow Weight:"]
["Average Calving Date:"]
["Weaning Date:"]
["Average Weaning Wt.: "]
["Average Bull Weight: "]
["Average Heifer Weight: "]
["Average Yearling Weight: ",null,null,"Report Prepared by:  "]
["Average Horse Weight:"]
[]
[]
[]
[]
[]
[]
[]
[]
[]
[]
[]
[null,null,null,null,"NE-ECS-64"]
[]
[null,null,null,null,"Date:"]
[]
[]
[]
[]
[]
[]
[]
[]
[]
[]
[]
[]
[]
[]
[]
[]
[]
[]
[]
[]
[]
[null,null,null,null,null,null,null,null,700]
[null,null,null,null,null,null,null,null,2500]
[null,null,null,null,null,null,null,null,1750]
[null,null,null,null,null,null,null,null,1250]
[null,null,null,null,null,null,null,null,500]
[null,null,null,null,null,null,null,null,1100]
[null,null,null,null,null,null,null,null,850]
[null,null,null,null,null,null,null,null,1000]
[null,null,null,null,null,null,null,null,650]
[null,null,null,null,null,null,null,null,550]
[null,null,null,null,null,null,null,null,1100]
[null,null,null,null,null,null,null,null,850]
[null,null,null,null,null,null,null,null,1000]
[null,null,null,null,null,null,null,null,650]
[null,null,null,null,null,null,null,null,550]
[null,null,null,null,null,null,null,null,4500]
[null,null,null,null,null,null,null,null,2600]
[null,null,null,null,null,null,null,null,3800]
[null,null,null,null,null,null,null,null,2300]
[null,null,null,null,null,null,null,null,1800]
[null,null,null,null,null,null,null,null,600]
[null,null,null,null,null,null,null,null,450]
[null,null,null,null,null,null,null,null,550]
[null,null,null,null,null,null,null,null,300]
[null,null,null,null,null,null,null,null,5500]
[null,null,null,null,null,null,null,null,3000]
[null,null,null,null,null,null,null,null,1800]
[null,null,null,null,null,null,null,null,5000]

{"sheet":"DATA","index":23,"n_rows":958,"n_cols":24,"rows_kept":958,"cut":false,"hidden":false,"merged":[]}
["Alfalfa",2.5,null,null,null,"Alfalfa / Alsike/ red clover",3,"MLRA","EcoSite3","COMMUNITY","Average Production","Growth Curve Name","Jan","Feb","Mar","Apr","May","Jun","Jul","Aug","Sept","Oct","Nov","Dec"]
["Grass Hay",2.5,null,null,null,"Big / Sand bluestem",6,"MLRA 60A","Choppy Sands 72","CS72-Sandreed / Sand & Little Blue",1900,"102C- Introduced Cool Seasons",0,0,5,15,28,30,10,2,5,5,0,0]
["Annual Hay",2.5,null,null,null,"Birdsfoot trefoil",3,"MLRA 63B","Sands 72","CS72-Sandreed / Muhly / H Grama",900,"102C-Warm Season Natives Dominant",0,0,3,7,17,23,25,17,7,1,0,0]
["Corn Silage",1.5,null,null,null,"Cicer milkvetch",5,"MLRA 64","Sandy 72","CS72-Decadent Plants",700,"102C-Natives / Co-dom. Invasives",0,0,4,11,22,27,18,8,6,4,0,0]
["Cane Silage",1.5,null,null,null,"Creeping foxtail",3,"MLRA 65","Sandy Lowland 72","CS72-Sandhill Muhly/Pioneer spp.",375,"106-CyU Introduced dom or co-dom.",0,0,5,15,25,25,5,5,10,5,5,0]
["Grain",3.7,null,null,null,"Crested wheatgrass",3,"MLRA 66","Gravelly Hills 72","CS72-Active Blowout",100,"106-CyU, LoO, SwL Native Tall, Mid Grasses Dom.",0,0,0,5,25,35,20,10,5,0,0,0]
[null,null,null,null,null,"Eastern gamagrass",8,"MLRA 67A","Shallow Limy 72","Sa72-Sand Bluestem / Sandreed",2100,"106-LoLo Warm Season Domin.",0,0,5,5,25,15,20,10,5,0,0,0]
[null,null,null,null,null,"Forage Cocktail",2,"MLRA 71","Limy Upland 72","Sa72-Blue Grama / Sand Sagebrush",1000,"106-LoLo, LoO, CyU Dropseeds &/orIntroduced",0,0,5,15,25,25,5,5,10,5,5,0]
[null,null,null,null,null,"Indiangrass",4,"MLRA 72","Loamy Upland 72","Sa72-Decadent Plants",700,"106-LoU, SwL B. Grama &/orIntroduced",0,0,5,15,25,25,5,5,10,5,5,0]
[null,null,null,null,null,"Intermediate wheatgrass",5,"MLRA 73","Loamy Lowland 72","Sa72-Sand Sagebrush",800,"60A- Western/Grama/Buffalo Dom.",0,0,6,15,20,26,17,9,4,3,0,0]
[null,null,null,null,null,"Meadow bromegrass",5,"MLRA 75","Loess Breaks 72","Sa72 Grass Dominant",1200,"60A- Wheatgrass/Alkali Sacaton",0,0,5,13,20,25,18,11,5,3,0,0]
[null,null,null,null,null,"Mid Warm Season Native",null,"MLRA 102C","Siltstone Plains 72","Sa72-Early Perennial",175,"60A-Cl, Lo, ThCl (13-16) Low Similarity Index",0,0,2,5,15,25,30,15,7,1,0,0]
[null,null,null,null,null,"Orchardgrass",5,"MLRA 107B","Shallow Siltstone 72","Sa72-Go-back, Seeded",900,"60A-Clay Overflow Sites",0,0,4,11,19,23,20,12,6,5,0,0]
[null,null,null,null,null,"Pubescent wheatgrass",5,"MLRA 106","Shaly Plains 72","Sa72-Blowout",100,"60A-Little Blue with grama/sedge/needlegrass",0,0,3,10,20,28,21,10,5,3,0,0]
[null,null,null,null,null,"Reed canarygrass",4,null,"Subirrigated 72","Sy72-Sandreed / Sand Blue /Grama",1950,"60A-Loamy Lowland, loamy terrace and wetland Sites",0,0,4,11,19,23,20,12,6,5,0,0]
[null,null,null,null,null,"Russian wildrye",3,null,"Seasonally Wet 72","Sy72-Increased Blue Grama",1100,"60A-Loamy Overflow Sites",0,0,6,15,20,26,17,9,4,3,0,0]
[null,null,null,null,null,"Small Grain Cover Crop",2,null,"Saline Lowland 72","Sy72 Excessive Litter",1000,"60A-Needleandthread/Sandreed",0,0,3,10,20,28,21,10,5,3,0,0]
[null,null,null,null,null,"Smooth brome",4,null,"Saline Subirrigated 72","Sy72-Blue Grama Sod",850,"60A-Pine or Juniper Dominant",0,0,3,10,23,34,15,6,5,4,0,0]
[null,null,null,null,null,"Switchgrass",6,null,"Clay Upland 72","Sy72-Red Threeawn / Annuals",275,"60A-Sa Blue Grama & Needleandthread or sedge dom.",0,0,3,7,18,25,25,15,7,0,0,0]
[null,null,null,null,null,"Tall fescue",3,null,"Closed Upland Depression 72","Sy72-Go-back, Seeded ",1500,"60A-Saline and closed depression Sites",0,0,3,10,16,22,23,14,7,5,0,0]
[null,null,null,null,null,"Tall Warm Season Native",null,null,"Shale Breaks 72","SyL72-Sand Bluestem / Sandreed",2100,"60A-Sandreed, Bluestem and/or Sideoats Dom.",0,0,3,7,18,25,25,15,7,0,0,0]
[null,null,null,null,null,"Tall wheatgrass",4,null,"Sandstone Breaks 72","SyL72-Blue Grama  / Sagebrush",1100,"60A-Sb Cool Season Dominant",0,0,5,13,20,25,18,11,5,3,0,0]
[null,null,null,null,null,"Timothy",4,null,"_67A Choppy Sands","SyL72-Excessive Liter",900,"60A-Sb, Sa High Similarity Index",0,0,2,8,15,21,26,15,8,5,0,0]
[null,null,null,null,null,"Warm Season Cover Crop",2,null,"_67A Clayey","SyL72-Grass Dominant",1100,"60A-Shallow Clay,Porous Clay, Shallow Sandy Sites",0,0,3,10,23,34,15,6,5,4,0,0]
[null,null,null,null,null,"Western wheatgrass",3,null,"_67A Clayey Overflow","SyL72-Sand Sagebrush",800,"60A-Threeawn/annuals/dropseed",0,0,3,10,20,28,21,10,5,3,0,0]
[null,null,null,null,null,null,null,null,"_67A Gravelly  ","SyL72-Go-back, Seeded ",1000,"63B - Upland Blue Grama/Buffalograss Sod",0,0,2,5,15,25,30,15,17,1,0,0]
[null,null,null,null,null,"Ecosite4","Pounds",null,"_67A Gravelly Loamy","GH72-Little Blue/ Sideoats Grama",1200,"63B-Bluestems dom or co-dom",0,0,3,7,17,25,25,15,7,1,0,0]
[null,null,null,null,null,"72 Choppy Sands",1900,null,"_67A Limy Upland","GH72-B Grama / Decr. Mid/Tall Grass",600,"63B-Bromegrass/Bluegrass&/or Wheatgrass Dom",0,0,4,12,25,36,10,5,4,4,0,0]
["MLRA2","Ecosite5",null,null,null,"72 Clay Upland",1400,null,"_67A Loamy","GH72-Blue Grama / Threadleaf Sedge",400,"63B-CD Invaded or saltgrass domin.",0,0,3,10,20,28,21,10,5,3,0,0]
["_60A","72 Choppy Sands",null,null,null,"72 Closed Upland Depression",1650,null,"_67A Loamy Lowland  ","GH72-Bare Ground / Annual Plants",125,"63B-Clay and Clay Upland Low Sim. Index",0,0,3,10,20,28,21,10,5,3,0,0]
["_63B","72 Clay Upland  ",null,null,null,"72 Gravelly Hills",1200,null,"_67A Loamy Overflow","GH72-Excessive Litter",500,"63B-LoO and Very Shallow sites",0,0,3,10,23,34,15,6,5,4,0,0]
["_64","72 Closed Upland Depression",null,null,null,"72 Limy Upland",1650,null,"_67A Rocky Hills","GH72-Go-back, Seeded ",350,"63B-Lowlands, Shallow Clay Western/Grama Dominant",0,0,3,10,20,28,21,10,5,3,0,0]
["_65","72 Gravelly Hills",null,null,null,"72 Loamy Lowland",2400,null,"_67A Saline Lowland","SwL72-Little Blue / Sideoats Grama",1200,"63B-SaLo Cordgrass/Wheatgr/Alkaligr",0,0,5,13,20,25,18,11,5,3,0,0]
["_66","72 Limy Upland",null,null,null,"72 Loamy Upland",1800,null,"_67A Saline Subirrigated","SwL72-Blue Grama / Decr. Mid-grass",700,"63B-SaLo Low Sim. Index",0,0,4,11,19,23,20,12,6,5,0,0]
["_67A","72 Loamy Lowland ",null,null,null,"72 Loess Breaks",1900,null,"_67A Saline Upland ","SwL72-Blue Grama / Threadleaf Sedge",350,"63B-SaLo Wheatgr./Foxtail Barley/Saltgr",0,0,5,13,20,25,18,11,5,3,0,0]
["_71","72 Loamy Upland",null,null,null,"72 Saline Lowland",2000,null,"_67A Sands  ","SwL72-Eastern Red Cedar",250,"63B-SaLo Wheatgrass/Alkaligrass",0,0,6,15,20,26,17,9,4,3,0,0]
["_72","72 Loess Breaks",null,null,null,"72 Saline Subirrigated",3000,null,"_67A Sandy ","SwL72-Excessive Litter",500,"63B-Sedges, Blue Grama &/or saltgrass",0,0,3,7,17,25,25,15,7,1,0,0]
["_73","72 Saline Lowland  ",null,null,null,"72 Sands",2100,null,"_67A Sandy Lowland ","LiU72-Little Blue/ Gramas / Western ",1650,"63B-SwCl Tree Encroachment",1,3,7,11,24,27,12,5,4,3,2,1]
["_75","72 Saline Subirrigated ",null,null,null,"72 Sandstone Breaks",1300,null,"_67A Shallow Loamy","LiU72-Blue Grama / Buffalograss ",1200,"63B-Uplands Western/Blue Grama Dominant",0,0,3,10,23,34,15,6,5,4,0,0]
["_102C","72 Sands",null,null,null,"72 Sandy",1950,null,"_67A Shallow Sandy","LiU72-B. Grama / Buffalo/ Threeawn ",700,"64 Clayey, Loamy, Warm Season Short Grass",0,0,3,7,15,20,30,15,5,5,0,0]
["_107","72 Sandstone Breaks  ",null,null,null,"72 Sandy Lowland  ",2100,null,"_67A Subirrigated","LiU72-Reduced Cover / Erosion",275,"64 L Juniper/Pine/Shrubs Dominant",1,3,7,10,20,28,15,5,4,4,2,1]
["_106","72 Sandy",null,null,null,"72 Seasonally Wet",4500,null,"_67A Very Shallow","LiU72-Increased Red Cedar",300,"64 Lo,LoTe, Cl, Thin Claypan Lower Similarity Index",0,0,5,10,20,25,20,10,5,5,0,0]
[null,"72 Sandy Lowland ",null,null,null,"72 Shale Breaks",800,null,"_67A Wetland","LiU72-Go-back or Seeded",600,"64 Lowland, Overflow, Sb Sites High Similarity Index",0,0,5,12,20,25,19,11,5,3,0,0]
[null,"72 Seasonally Wet  ",null,null,null,"72 Shallow Limy",1200,null,"_65 Sandy 14_17","LoU72-Western Wheat / Blue Grama",1800,"64 Overflow, Sb -Western/Needlegrass",0,0,5,8,25,30,15,10,2,5,0,0]
[null,"72 Shale Breaks  ",null,null,null,"72 Shallow Siltstone",900,null,"_65 Sands 14_17","LoU72-B Grama / Buffalo/ Rem. Cool ",1500,"64 Sa, Sy, Thin Up High Similarity Index",0,0,3,7,15,20,30,15,5,5,0,0]
[null,"72 Shallow Limy",null,null,null,"72 Shaly Plains",950,null,"_65 Choppy Sands 14_17","LoU72-Blue Grama / Buffalograss Sod",700,"64 Shallow sites, cool season dominated",0,0,5,10,20,25,20,10,5,5,0,0]
[null,"72 Shallow Siltstone",null,null,null,"72 Siltstone Plains",1400,null,"_65 Wetland","LoU72-Excessive Litter",250,"64 Shallow sites, warm season dom.",0,0,5,8,15,24,23,15,5,5,0,0]
[null,"72 Shaly Plains",null,null,null,"72 Subirrigated",4500,null,"_65 Wet Subirrigated","LoU72-Threewan / Sand Drop/ Cactus",200,"64 Upland Sites Mid & Lower Similarity Index",0,0,5,8,15,24,23,15,5,5,0,0]
[null,"72 Siltstone Plains",null,null,null,"67A  Sandy ",1500,null,"_65 Subirrigated","LoU72 Go-back or Seeded",400,"64 Uplands Cool season dominant",0,0,5,15,28,20,10,2,5,5,0,0]
[null,"72 Subirrigated  ",null,null,null,"67A  Sandy Lowland ",2500,null,"_65 Saline Subirrigated","LoL72-Western Wheat/ Big Bluestem ",2400,"64-Badlands and Saline Sites",0,0,3,8,18,27,23,12,6,3,0,0]
[null,"67A  Sandy ",null,null,null,"67A  Shallow Loamy",1100,null,"_65 Sandy 17_22","LoL72-Blue Grama / Buffalo/ Remnant ",1300,"64-Overflow sites Low Similarity Index",0,0,5,13,28,28,12,5,6,3,0,0]
[null,"67A  Sandy Lowland ",null,null,null,"67A  Shallow Sandy",1100,null,"_65 Sands 17_22","LoL72-Western Wheatgrass Dominant",1800,"64-Sb Higher Similarity Index",0,0,3,7,15,25,25,17,6,2,0,0]
[null,"67A  Shallow Loamy",null,null,null,"67A  Subirrigated",1650,null,"_65 Sandy Lowland 17_22"]
[null,"67A  Shallow Sandy",null,null,null,"67A Choppy Sands",1300,null,"_65 Choppy Sands 17_22","LoL72-Excessive Litter",600,"64-Sb Low Similarity Index",0,0,5,8,25,30,15,10,2,5,0,0]
[null,"67A  Subirrigated",null,null,null,"67A Clayey",1300,null,"_65 Shallow to Gravel","LoL72-Blue Grama / Buffalograss Sod",700,"64-Wetland sites",0,0,5,12,20,25,19,11,5,3,0,0]
[null,"67A Choppy Sands",null,null,null,"67A Clayey Overflow",2000,null,"_65 Sandy 22_25","LoL72-Red Threeawn / Annuals ",100,"64-WSb Cool Season Dominant",0,0,5,13,28,28,12,5,6,3,0,0]
[null,"67A Clayey",null,null,null,"67A Gravelly  ",600,null,"_65 Sands 22_25","LoL72-Go-back or Seeded",1200,"65-CS Blowoutgrass/sandhill muhly",0,0,5,15,20,20,20,10,7,3,0,0]
[null,"67A Clayey Overflow",null,null,null,"67A Gravelly Loamy",1100,null,"_65 Choppy Sands 22_25","LB72-Little Blue/ Sideoats / Western ",1900,"65-CS Tall Grass Dominant",0,0,5,5,15,25,30,10,7,3,0,0]
[null,"67A Gravelly  ",null,null,null,"67A Limy Upland",1250,null,"_66 Closed Depression","LB72-Blue Grama/Sideoats",1300,"65-Sa Short Grass Dominant",0,0,0,5,15,30,25,15,10,0,0,0]
[null,"67A Gravelly Loamy",null,null,null,"67A Loamy",1500,null,"_66 Loamy Overflow","LB72-Decadent Plants",650,"65-Sa Tall Grass Dominant",0,0,5,5,15,25,30,10,7,3,0,0]
[null,"67A Limy Upland",null,null,null,"67A Loamy Lowland  ",2500,null,"_66 Loamy 18_22","LB72-Blue Grama / Threadleaf Sedge",750,"65-SaSb Alkali Sacaton Dominant",0,0,5,10,20,30,15,10,5,5,0,0]
[null,"67A Loamy",null,null,null,"67A Loamy Overflow",2000,null,"_66 Loamy 22_25","LB72-Bare Ground/Annual Plants",400,"65-SaSb Inland Saltgrass Dominant",0,0,0,5,10,40,25,15,5,0,0,0]
[null,"67A Loamy Lowland  ",null,null,null,"67A Rocky Hills",800,null,"_66 Loamy Terrace","SiPl72-Western wheat / Blue Grama / Green Needlegrass ",1400,"65-SB ",0,0,0,10,20,25,20,15,10,0,0,0]
[null,"67A Loamy Overflow",null,null,null,"67A Saline Lowland",1500,null,"_66 Sandy 18_22","SiPl72-Blue Grama / Buffalo/ Remnants",900,"65-SwG ",0,0,0,5,15,30,25,15,10,0,0,0]
[null,"67A Rocky Hills",null,null,null,"67A Saline Subirrigated",3500,null,"_66 Sandy 22_25","SiPl72-Excessive Litter",900,"65-Sy (18-25) Higher SI",0,0,5,5,15,25,30,10,7,3,0,0]
[null,"67A Saline Lowland",null,null,null,"67A Saline Upland ",700,null,"_66 Sands 18_22","SiPl72-Blue Grama / Buffalograss Sod",750,"65-Sy Lower SI",0,0,5,10,20,25,20,15,5,0,0,0]
[null,"67A Saline Subirrigated",null,null,null,"67A Sands  ",1500,null,"_66 Sands 22_25","SiPl72-Red Threeawn / Annuals ",150,"66-All Sites Trees Dominant",1,3,7,10,20,28,15,5,4,4,1,1]
[null,"67A Saline Upland ",null,null,null,"67A Very Shallow",600,null,"_66 Shallow Limy","SiPl72-Go-Back Land",400,"66-CD ",0,0,5,15,28,30,10,2,5,5,0,0]
[null,"67A Sands  ",null,null,null,"67A Wetland",5500,null,"_66 Shallow to Gravel","ShSi72-Western Wheat / Blue Grama",500,"66-Lo (18-25) Needlegrass/Western/Bluestem",0,0,5,10,25,30,15,5,5,5,0,0]
[null,"67A Very Shallow",null,null,null,"65 Choppy Sands 14_17",1400,null,"_66 Subirrigated","ShSi72-B Grama / Decr. Mid/Tall Grass",500,"66-Lo / LoT Blue Grama/Cool Season",0,0,5,10,20,25,20,10,5,5,0,0]
[null,"67A Wetland",null,null,null,"65 Choppy Sands 17_22",2100,null,"_66 Saline Subirrigated","ShSi72-Blue Grama / Buffalograss Sod",300,"66-Lo Threeawn/Forbs Dom.",0,0,5,8,15,24,23,15,5,5,0,0]
[null,null,null,null,null,"65 Choppy Sands 22_25",2400,null,"_66 Sandy Lowland","ShSi72-Cryptograms / Annual Plants",150,"66-Lo/LoT (18-25) Cool Season Dom.",0,0,5,15,28,30,10,2,5,5,0,0]
[null,"_65 Choppy Sands 14_17",null,null,null,"65 Saline Subirrigated",290,null,"_66 Wetland","ShPl72-Alkali Sacaton / Western/Grama",950,"66-LoOv Higher SI",0,0,5,12,20,25,19,11,5,3,0,0]
[null,"_65 Choppy Sands 17_22",null,null,null,"65 Sands 14_17",1900,null,"_66 Wet Subirrigated","ShPl72-Excessive Litter",600,"66-LoOv Lower SI",0,0,5,13,28,38,12,5,6,3,0,0]
[null,"_65 Choppy Sands 22_25",null,null,null,"65 Sands 17_22",2300,null,"_60A Closed Depression","ShPl72-Blue Grama / Remnants",700,"66-Sa (18-22) Lower SI",0,0,3,7,15,24,25,15,5,5,0,0]
[null,"_65 Saline Subirrigated",null,null,null,"65 Sands 22_25",2600,null,"_60A Wetland","ShPl72-Blue Grama",450,"66-Sa (22-25) Tall or Mid Grass Dom.",0,0,5,5,15,25,30,10,7,3,0,0]
[null,"_65 Sands 14_17",null,null,null,"65 Sandy 14_17",1900,null,"_60A Subirrigated","ShPl72-Red Threeawn / Sand Dropseed ",135,"66-Sa, SaLo Short grass or club moss dom.",0,0,0,5,15,30,25,15,10,0,0,0]
[null,"_65 Sands 17_22",null,null,null,"65 Sandy 17_22",2400,null,"_60A Saline Subirrigated","ShPl72-Go-Back / Seeded",500,"66-Sa, Sy, Sw Higher SI",0,0,5,8,15,24,23,15,5,5,0,0]
[null,"_65 Sands 22_25",null,null,null,"65 Sandy 22_25",3000,null,"_60A Saline Lowland","Sb72-Big Blue / Switch/Indian",4500,"66-Saline Subirrigated ",0,0,3,8,18,27,23,12,6,3,0,0]
[null,"_65 Sandy 14_17",null,null,null,"65 Sandy Lowland 17_22",2900,null,"_60A Saline Upland","Sb72-Decadent Plants",2000,"66-SaLoTall Grass Dom.",0,0,5,5,15,25,30,10,7,3,0,0]
[null,"_65 Sandy 17_22",null,null,null,"65 Shallow to Gravel",1000,null,"_60A Sands","Sb72-Cool Season Dominant",1700,"66-Sb Bluegrass/Wheatgrass/Brome",0,0,5,15,30,25,10,5,10,0,0,0]
[null,"_65 Sandy 22_25",null,null,null,"65 Subirrigated",4580,null,"_60A Sandy","Sb72-Go-Back / Seeded",1000,"66-Sb Reed Canary/Creeping Foxtail",0,0,0,5,20,35,25,10,5,0,0,0]
[null,"_65 Sandy Lowland 17_22",null,null,null,"65 Wet Subirrigated",4600,null,"_60A Shallow Sandy","SeasWet72-Prairie Cordgrass / Reedgrass",4500,"66-Sb Tall Grass Dominant",0,0,3,7,15,25,25,17,6,2,0,0]
[null,"_65 Shallow to Gravel",null,null,null,"65 Wetland",4800,null,"_60A Very Shallow","SaLo72-A.Sacaton / Western / B Grama ",2000,"66-Shallow Sites Moderate SI",0,0,5,10,20,25,20,10,5,5,0,0]
[null,"_65 Subirrigated",null,null,null,"_66 Closed Depression",3500,null,"_60A Thin Upland","SaLo72-Excessive litter",1000,"66-Sy Blue Grama/Western",0,0,5,10,20,25,20,10,5,5,0,0]
[null,"_65 Wet Subirrigated",null,null,null,"_66 Loamy 18_22",2600,null,"_60A Shallow Loamy","SaLo72-Inland Saltgrass / Remnant Mid Grasses",1200,"66-Sy Bluegrass/Ragweed",0,0,5,10,25,30,15,5,5,5,0,0]
[null,"_65 Wetland",null,null,null,"_66 Loamy 22_25",3100,null,"_60A Loamy 13_16","SaLo72-Inland Saltgrass Sod",600,"66-Wetland",0,0,0,5,20,35,25,10,5,0,0,0]
[null,"_66 Closed Depression",null,null,null,"_66 Loamy Overflow",3400,null,"_60A Loamy 16_18","SaLo72-Annuals ",100,"66-WSb  Warm Season Dominant",0,0,3,8,18,27,23,12,6,3,0,0]
[null,"_66 Loamy 18_22",null,null,null,"_66 Loamy Terrace",2800,null,"_60A Loamy Terrace","SaLo72-Go-Back / Seeded",400,"66-WSb Cool Season Dominant",0,0,5,8,25,30,15,10,2,5,0,0]
[null,"_66 Loamy 22_25",null,null,null,"_66 Saline Subirrigated",2800,null,"_60A Loamy Overflow","SaSb72-Alkali Sacaton / Western Wheat",3000,"67A - Threadleaf Sedge Domin.",0,0,0,5,25,40,15,5,10,0,0,0]
[null,"_66 Loamy Overflow",null,null,null,"_66 Sands 18_22",2300,null,"_60A Lowland","SaSb72-Western Wheat / Saltgrass",2200,"67A-Clay & Gravelly-Blue Grama Dom.",0,0,0,5,20,35,30,5,5,0,0,0]
[null,"_66 Loamy Terrace",null,null,null,"_66 Sands 22_25",2800,null,"_60A Clayey Overflow","SaSb72-Excessive litter",350,"67A-CS-Sands/Sandy/CS sites",0,0,0,5,20,35,30,5,5,0,0,0]
[null,"_66 Saline Subirrigated",null,null,null,"_66 Sandy 18_22",2400,null,"_60A Clayey 13_16","SaSb72-Inland Saltgrass / Foxtail Barley",1500,"67A-LoOv sites",0,0,0,5,20,25,30,15,5,0,0,0]
[null,"_66 Sands 18_22",null,null,null,"_66 Sandy 22_25",3000,null,"_60A Clayey 16_18","SaSb72-Go-Back / Seeded",1000,"67A-Lowland site-cottonwoods/R.olives",0,0,0,5,20,25,30,15,5,0,0,0]
[null,"_66 Sands 22_25",null,null,null,"_66 Sandy Lowland",2900,null,"_60A Porous Clay","SaSb72-Woody Invasion",1100,"67A-Lowland/Overflow sites Western co-dom.",0,0,0,5,25,30,20,15,5,0,0,0]
[null,"_66 Sandy 18_22",null,null,null,"_66 Shallow Limy",1700,null,"_60A Shallow Porous Clay","ClUp72-Western / B Grama / Gr Needle",1400,"67A-Saline Upland Sites higher SI",0,0,0,5,25,40,15,5,10,0,0,0]
[null,"_66 Sandy 22_25",null,null,null,"_66 Shallow to Gravel",1600,null,"_60A Shallow Clay","ClUp72-Blue Grama / Buffalo / Remnants",750,"67A-Saline Upland Sites lower SI",0,0,0,5,20,35,30,5,5,0,0,0]
[null,"_66 Sandy Lowland",null,null,null,"_66 Subirrigated",4800,null,"_60A Shallow Dense Clay","ClUp72-Excessive Litter",800,"67A-Sb,SaSb,WL-Lower Sim. Index",0,0,0,5,20,25,25,15,10,0,0,0]
[null,"_66 Shallow Limy",null,null,null,"_66 Wet Subirrigated",5000,null,"_60A Dense Clay","ClUp72-Blue Grama / Buffalograss Sod",550,"67A-Shallow sites - Higher SI",0,0,0,5,20,35,30,5,5,0,0,0]
[null,"_66 Shallow to Gravel",null,null,null,"_66 Wetland",4495,null,"_60A Claypan","ClUp72-Red Threeawn / Annuals ",150,"67A-Upland - Western Wheat dom.",0,0,0,5,25,40,15,5,10,0,0,0]
[null,"_66 Subirrigated",null,null,null,"_60A Clayey 13_16",1800,null,"_60A Thin Claypan","ClUp72-Go-Back / Seeded",500,"67A-Upland Sites - Blue grama dom.",0,0,0,5,20,25,30,15,5,0,0,0]
[null,"_66 Wet Subirrigated",null,null,null,"_60A Clayey 16_18",2000,null,"_64 Saline Upland","CUP72-Western/ Buffalo / B Grama",1650,"67A-Upland-higher SI",0,0,0,5,20,25,35,30,5,5,0,0]
[null,"_66 Wetland",null,null,null,"_60A Clayey Overflow",2500,null,"_64 Wet Subirrigated","CUP72-Water / Spikerush",1650,"67A-Wetter Sites - Higher Sim. Index",0,0,0,5,15,20,30,20,10,0,0,0]
[null,"_60A Clayey 13_16",null,null,null,"_60A Claypan",1400,null,"_64 Subirrigated","CUP72-Buffalograss / Blue Grama Sod",700,"71-LB & LiU Higher Similarity Index",0,0,3,7,15,20,30,15,5,5,0,0]
[null,"_60A Clayey 16_18",null,null,null,"_60A Closed Depression",2200,null,"_64 Wetland","CUP72-Annuals / Bare Ground",150,"71-LiU, LoUp, Sb Lower Similarity Index",0,0,5,13,28,28,12,5,6,3,0,0]
[null,"_60A Clayey Overflow",null,null,null,"_60A Dense Clay",1300,null,"_64 Loamy Overflow","CUP72-Go-Back / Seeded",600,"71-LoUp Big Blue / Little Blue / Sideoats",0,0,5,8,25,30,15,10,2,5,0,0]
[null,"_60A Claypan",null,null,null,"_60A Loamy 13_16",1900,null,"_64 Clayey Overflow","ShB72-Western Wheatgrass / Sideoats",800,"71-Sands Higher Similarity Index",0,0,5,8,15,24,23,15,5,5,0,0]
[null,"_60A Closed Depression",null,null,null,"_60A Loamy 16_18",2200,null,"_64 Loamy Terrace","ShB72-Blue Grama / Remnants",650,"71-Sb Higher Similarity Index",0,0,3,7,15,25,25,17,6,2,0,0]
[null,"_60A Dense Clay",null,null,null,"_60A Loamy Overflow",2800,null,"_64 Loamy 14_17","ShB72-Blue Grama",350,"71-Uplands Lower Similarity Index",0,0,5,12,20,25,19,11,5,3,0,0]
[null,"_60A Loamy 13_16",null,null,null,"_60A Loamy Terrace",2500,null,"_64 Clayey 14_17","ShB72-Red Threeawn / Sand Dropseed ",150,"72-(Sb,SaSb, overflow)-Tall Grass domin.",0,0,0,5,15,35,30,10,5,0,0,0]
[null,"_60A Loamy 16_18",null,null,null,"_60A Lowland",3000,null,"_64 Sandy 14_17","SaB72-Sandreed / L Blue / Sideoats",1300,"72-Blue Grama/Buffalograss",0,0,0,5,18,25,20,15,12,5,0,0]
[null,"_60A Loamy Overflow",null,null,null,"_60A Porous Clay",1500,null,"_64 Sandy 17_20","SaB72-Blue Grama / Decr Mid and Tall grasses",750,"72-Sandy/Sands/Choppy Sands Sites",0,0,3,7,20,35,20,10,3,2,0,0]
[null,"_60A Loamy Terrace",null,null,null,"_60A Saline Lowland",2000,null,"_64 Loamy 17_20","SaB72-Excessive Litter",600,"72-Shallow/gravel/loamy/limy-shortgrasses dom.",0,0,0,2,10,45,25,15,3,0,0,0]
[null,"_60A Lowland",null,null,null,"_60A Saline Subirrigated",2800,null,"_64 Clayey 17_20","SaB72-B Grama Sod / Threadleaf sedge",400,"72-Shallow/Gravelly-mid-grasses dom.",0,0,2,8,19,30,18,15,6,2,0,0]
[null,"_60A Porous Clay",null,null,null,"_60A Saline Upland",600,null,"_64 Sands","SaB72-Sand Dropseed / Red Threeawn ",125,"72-threeawns/dropseed/cactus domin.",0,0,1,5,20,45,20,7,2,0,0,0]
[null,"_60A Saline Lowland",null,null,null,"_60A Sands",1900,null,"_64 Sandy Lowland","CS67A-Sand Blue/Sandreed/N&T",1300,"72-Uplands:bluestem/sideoats dom.",0,0,2,10,20,30,20,10,5,3,0,0]
[null,"_60A Saline Subirrigated",null,null,null,"_60A Sandy",1800,null,"_64 Saline Lowland","CS67A-Sandreed /N&T/Sedges",950,"72-Western/Needlegrass/Blue Grama",0,0,2,10,20,30,20,10,5,3,0,0]
[null,"_60A Saline Upland",null,null,null,"_60A Shallow Clay",1400,null,"_64 Thin Upland","CS67A-Excessive Litter",900,"73-ClT Lower SI",0,0,0,5,15,35,30,10,5,0,0,0]
[null,"_60A Sands",null,null,null,"_60A Shallow Dense Clay",900,null,"_64 Shallow Clay","CS67A-Sand Sage/SH Muhly/annual",550,"73-ClT, LoLo Higher SI",0,0,2,10,20,30,25,10,5,0,0,0]
[null,"_60A Sandy",null,null,null,"_60A Shallow Loamy",1400,null,"_64 Shallow ","CS67A-Blowout",100,"73-ClUp Lower SI",0,0,2,8,20,30,25,10,5,0,0,0]
[null,"_60A Shallow Clay",null,null,null,"_60A Shallow Porous Clay",955,null,"_64 Claypan","CS67A-Annuals/Pioneer",250,"73-ClUp, CUD High SI",0,0,2,5,23,30,25,10,5,0,0,0]
[null,"_60A Shallow Dense Clay",null,null,null,"_60A Shallow Sandy",1300,null,"_64 Dense Clay","Clayey67A-Western/Gr. Needle/Grama",1300,"73-CUD Low SI",0,0,0,5,20,35,25,10,5,0,0,0]
[null,"_60A Shallow Loamy",null,null,null,"_60A Subirrigated",4300,null,"_64 Thin Claypan","Clayey67A-Blue Grama/Western",950,"73-GH, LoUp, LiU & SwLi Low SI",0,0,3,10,25,30,20,8,4,0,0,0]
[null,"_60A Shallow Porous Clay",null,null,null,"_60A Thin Claypan",900,null,"_64 Very Shallow","Clayey67A-Excessive Litter",11200,"73-GH, SwLi, LiU Sites Higher SI",0,0,5,10,15,30,25,10,5,0,0,0]
[null,"_60A Shallow Sandy",null,null,null,"_60A Thin Upland",1400,null,"_64 Badlands Terrace","Clayey67A-B Grama/Cool Mid-Grass",600,"73-LiU, SwL Lower SI",0,0,5,10,20,30,20,10,5,0,0,0]
[null,"_60A Subirrigated",null,null,null,"_60A Very Shallow",800,null,"_64 Badlands Overflow","Clayey67A-Go Back",600,"73-LoLo Western/Blue Grama",0,0,0,5,20,35,30,5,5,0,0,0]
[null,"_60A Thin Claypan",null,null,null,"_60A Wetland",5500,null,"_64 Thin Breaks","Clayey67A-Blue Grama / Invaders",600,"73-LoLo Western/Tall Dropseed",0,0,5,15,25,25,10,10,5,5,0,0]
[null,"_60A Thin Upland",null,null,null,"_64 Badlands Overflow",2400,null,"_63B Clayey","ClOf67A-Western/Gr. Needlegrass",2000,"73-LoTe Blue Grama/Buffalo/Western",0,0,0,5,22,35,25,8,5,0,0,0]
[null,"_60A Very Shallow",null,null,null,"_64 Badlands Terrace",2100,null,"_63B Clayey Overflow","ClOf67A-Blue Grama/Western",1500,"73-LoTe Tall Drop/Western/Remnants",0,0,2,13,20,25,25,10,5,0,0,0]
[null,"_60A Wetland",null,null,null,"_64 Clayey 14_17",1800,null,"_63B Shallow Clay","ClOf67A-Excessive Litter",1800,"73-LoTe Tall Grass Dom.",0,0,2,5,20,33,25,10,5,0,0,0]
[null,"_64 Badlands Overflow",null,null,null,"_64 Clayey 17_20",2000,null,"_63B Dense Clay","ClOf67A-Blue Grama Sod",1000,"73-LoUp",0,0,0,5,20,30,30,10,5,0,0,0]
[null,"_64 Badlands Terrace",null,null,null,"_64 Clayey Overflow",2500,null,"_63B Thin Claypan","ClOf67A-Blue Grama / Invaders",1000,"73-Sands & Sandy Sites",0,0,3,7,20,35,20,10,3,2,0,0]
[null,"_64 Clayey 14_17",null,null,null,"_64 Claypan",1600,null,"_63B Claypan","Gr67A-Little Blue/N&T/Blue Grama",600,"73-SyLo & LoLo Mid and Tall Grass dom.",0,0,5,15,20,25,20,10,5,0,0,0]
[null,"_64 Clayey 17_20",null,null,null,"_64 Dense Clay",1500,null,"_63B Closed Depression","Gr67A-Blue Grama/N&T",450,"73-SyLo Tall Grass Domin.",0,0,0,5,20,35,25,10,5,0,0,0]
[null,"_64 Clayey Overflow",null,null,null,"_64 Loamy 14_17",1800,null,"_63B Loamy","Gr67A-Excessive Litter",500,"73-SyLo Western Wheat Domin.",0,0,10,20,20,25,5,5,10,5,0,0]
[null,"_64 Claypan",null,null,null,"_64 Loamy 17_20",2400,null,"_63B Loamy Overflow","Gr67A-B. Grama/Threadleaf/3awn",300,"75 Smooth Bromegrass",0,0,2,13,29,19,7,10,13,6,1,0]
[null,"_64 Dense Clay",null,null,null,"_64 Loamy Overflow",3000,null,"_63B Thin Upland","Gr67A-Little Blue/N&T/Western",1100,"75-Eastern Red Cedar/Tree Overstory",0,3,8,12,20,25,14,5,8,4,1,0]
[null,"_64 Loamy 14_17",null,null,null,"_64 Loamy Terrace",2600,null,"_63B Shallow","Gr67A-B. Grama/3awn/N&T",800,"75-LoO  & LoLo Mid Grass Dom/ w. Big Blue",0,0,4,9,27,29,15,8,5,2,1,0]
[null,"_64 Loamy 17_20",null,null,null,"_64 Saline Lowland",2800,null,"_63B Very Shallow","Gr67A-Broken B. Grama Sod",600,"75-LoO & LoLO Tall Grass Dom.",0,0,4,9,27,29,15,8,5,2,1,0]
[null,"_64 Loamy Overflow",null,null,null,"_64 Saline Upland",2800,null,"_63B Saline Lowland","Gr67A-Excessive Litter",900,"75-LoO,LoO, LoUp, Cy, SwL Short Grass Dom.",0,0,3,9,27,25,12,10,10,3,1,0]
[null,"_64 Loamy Terrace",null,null,null,"_64 Sands",1900,null,"_73 Blue Shale","Gr67A-B.grama/3awn/Annuals",550,"75-LoUp & Cy Mid Grass Dom.",0,0,3,10,21,26,18,10,8,3,1,0]
[null,"_64 Saline Lowland",null,null,null,"_64 Sandy 14_17",1600,null,"_73 Clay Terrace","LiU67A-B.Grama/N&T/Sideoats",1250,"75-LoUp & Cy Tall Grass  Domin.",0,0,3,7,21,33,18,8,6,3,1,0]
[null,"_64 Saline Upland",null,null,null,"_64 Sandy 17-20",2400,null,"_73 Gravelly Hills","LiU67A-B.Grama/Threadleaf/mid-gr",950,"75-SwL Tall & Mid Grass Domin.",0,0,3,7,21,33,18,8,6,3,1,0]
[null,"_64 Sands",null,null,null,"_64 Sandy Lowland",2600,null,"_73 Clay Upland","LiU67A-Excessive Litter",1000]
[null,"_64 Sandy 14_17",null,null,null,"_64 Shallow ",1500,null,"_73 Closed Upland Depression","LiU67A-B.Grama/Threadleaf sedge",650]
[null,"_64 Sandy 17-20",null,null,null,"_64 Shallow Clay",1600,null,"_73Limy Upland","LiU67A-Blue Grama/Invaders",650]
[null,"_64 Sandy Lowland",null,null,null,"_64 Subirrigated",4300,null,"_73 Loamy Lowland","LiU67A-Go-Back",650]
[null,"_64 Shallow ",null,null,null,"_64 Thin Breaks",2500,null,"_73 Loamy Terrace","Lo67A-Wheatgrass/N&T/B.Grama",1500]
[null,"_64 Shallow Clay",null,null,null,"_64 Thin Claypan",1000,null,"_73 Loamy Upland","Lo67A-B.Grama/Cool Mid-grasses",1100]
[null,"_64 Subirrigated",null,null,null,"_64 Thin Upland",1800,null,"_73 Sands","Lo67A-Excessive Litter",1400]
[null,"_64 Thin Breaks",null,null,null,"_64 Very Shallow",900,null,"_73 Sandy","Lo67A-Blue Grama Sod",700]
[null,"_64 Thin Claypan",null,null,null,"_64 Wet Subirrigated",5000,null,"_73 Sandy Lowland","Lo67A-Blue Grama/Invaders",700]
[null,"_64 Thin Upland",null,null,null,"_64 Wetland",5500,null,"_73 Shallow Limy","Lo67A-Go-Back",700]
[null,"_64 Very Shallow",null,null,null,"_63B Clayey",2800,null,"_73 Wetland","LoLo67A-Diverse cottonwood/Midgr.",2500]
[null,"_64 Wet Subirrigated",null,null,null,"_63B Clayey Overflow",3000,null,"_73 Loess Breaks","LoLo67A-Single age Cottonwood",1750]
[null,"_64 Wetland",null,null,null,"_63B Claypan",2000,null,"_73 Silty Overflow","LoLo67A-Sod bound shortgrass",1250]
[null,"_63B Clayey",null,null,null,"_63B Closed Depression",3500,null,"_73 Clayey Overflow","LoLo67A-Russian Olive/Bluegrass",900]
[null,"_63B Clayey Overflow",null,null,null,"_63B Dense Clay",1800,null,"_73 Clayey  ","LoOv67A-Western/N&T/Big Blue",2000]
[null,"_63B Claypan",null,null,null,"_63B Loamy",3000,null,"_73 Choppy Sands","LoOv67A-Blue Grama/Western",1500]
[null,"_63B Closed Depression",null,null,null,"_63B Loamy Overflow",3400,null,"_73 Subirrigated","LoOv67A-Excessive Litter",1800]
[null,"_63B Dense Clay",null,null,null,"_63B Saline Lowland",3500,null,"_73 Saline Lowland","LoOv67A-Blue Grama Sod",1000]
[null,"_63B Loamy",null,null,null,"_63B Shallow",2200,null,"_73 Saline Subirrigated","LoOv67A-Blue Grama Invaders",1000]
[null,"_63B Loamy Overflow",null,null,null,"_63B Shallow Clay",2200,null,"_71 Limy Upland","RH67A-Wheatgrass/N&T/Mt. Mahog.",800]
[null,"_63B Saline Lowland",null,null,null,"_63B Thin Claypan",1500,null,"_71 Loamy Lowland","RH67A-N&T/3awn/Mt. Mahogany",650]
[null,"_63B Shallow",null,null,null,"_63B Thin Upland",2400,null,"_71 Loamy Upland ","RH67A-Excessive Litter",700]
[null,"_63B Shallow Clay",null,null,null,"_63B Very Shallow",1500,null,"_71 Sands","RH67A-Annuals/Weeds/Mt. Mahog.",400]
[null,"_63B Thin Claypan",null,null,null,"_73 Blue Shale",2500,null,"_71 Subirrigated","SaLo67A-Alkali Sacaton/Western",1500]
[null,"_63B Thin Upland",null,null,null,"_73 Choppy Sands",2300,null,"_71 Loess Breaks","SaLo67A-Inland Saltgrass/Western",1300]
[null,"_63B Very Shallow",null,null,null,"_73 Clay Terrace",3500,null,"_75 Loamy Lowland","SaLo67A-Excessive Litter",1200]
[null,"_71 Limy Upland",null,null,null,"_73 Clay Upland",2500,null,"_75 Clayey","SaLo67A-Saltgrass/Cheatgrass",900]
[null,"_73 Blue Shale",null,null,null,"_73 Clayey  ",2400,null,"_75 Loamy Upland","SaSb67A-A.Sacaton/Western/Saltgrass",3500]
[null,"_73 Choppy Sands",null,null,null,"_73 Clayey Overflow",2300,null,"_75 Loamy Overflow","SaSb67A-Saltgrass/Alkali Sacaton",2300]
[null,"_73 Clay Terrace",null,null,null,"_73 Closed Upland Depression",2000,null,"_75 Shallow Limy","SaSb67A-Excessive Litter",3100]
[null,"_73 Clay Upland",null,null,null,"_73 Gravelly Hills",2000,null,"_102C Limy Upland","SaSb67A-Inland Saltgrass Sod",1900]
[null,"_73 Clayey  ",null,null,null,"_73 Loamy Lowland",4500,null,"_102C Loamy Upland","SaSb67A-Sod/Invaders",1400]
[null,"_73 Clayey Overflow",null,null,null,"_73 Loamy Terrace",3500,null,"_102C Loamy Lowland","SaSb67A-Halogeton/Salt Crust",800]
[null,"_73 Closed Upland Depression",null,null,null,"_73 Loamy Upland",3500,null,"_102C Loamy Overflow","SaSb67A-Russian Olive  ",2100]
[null,"_73 Gravelly Hills",null,null,null,"_73 Loess Breaks",2100,null,"_102C Loess Uplands","SaUp67A-Western/B. Grama/Saltbush",700]
[null,"_73 Loamy Lowland",null,null,null,"_73 Saline Lowland",3100,null,"_102C Subirrigated","SaUp67A-Western/Buffalo/Saltgrass",500]
[null,"_73 Loamy Terrace",null,null,null,"_73 Saline Subirrigated",3100,null,"_106 Clayey Upland","SaUp67A-Buffalo/Saltgrass/Annuals",300]
[null,"_73 Loamy Upland",null,null,null,"_73 Sands",2000,null,"_106 Loamy Lowland","SaUp67A-Invaders",300]
[null,"_73 Loess Breaks",null,null,null,"_73 Sandy",2100,null,"_106 Loamy Overflow","Sa67A-Sand  Blue/Sandreed/N&T",1500]
[null,"_73 Saline Lowland",null,null,null,"_73 Sandy Lowland",3500,null,"_106 Loamy Upland","Sa67A-Sandreed/N&T/B.Grama",1100]
[null,"_73 Saline Subirrigated",null,null,null,"_73 Shallow Limy",1750,null,"_106 Shallow Limy","Sa67A-Excessive Litter",1200]
[null,"_73 Sands",null,null,null,"_73 Silty Overflow",2600,null,null,"Sa67A-Sand Sage/SH Muhly/annual",900]
[null,"_73 Sandy",null,null,null,"_73 Subirrigated",4500,null,null,"Sa67A-Blowout",100]
[null,"_73 Sandy Lowland",null,null,null,"_73 Wetland",5000,null,null,"Sa67A-Annual/Perennial Pioneer",250]
[null,"_73 Shallow Limy",null,null,null,"_73Limy Upland",2600,null,null,"Sy67A-N&T/Sandreed/Little Blue",1500]
[null,"_73 Silty Overflow",null,null,null,"_71 Limy Upland",2625,null,null,"Sy67A-Sandreed/N&T/Wheatgrass",1100]
[null,"_73 Subirrigated",null,null,null,"_71 Loamy Lowland",3750,null,null,"Sy67A-Excessive Litter",1200]
[null,"_73 Wetland",null,null,null,"_71 Loamy Upland ",3125,null,null,"Threadleaf/Mid-Grass",900]
[null,"_73Limy Upland",null,null,null,"_71 Loess Breaks",2125,null,null,"Sy67A-Threadleaf/Blue Grama",600]
[null,"_71 Loamy Lowland",null,null,null,"_71 Sands",2700,null,null,"Sy67A-Go-Back",700]
[null,"_71 Loamy Upland ",null,null,null,"_71 Subirrigated",5100,null,null,"SyLo67A-Diverse cottonwood/Midgr.",2500]
[null,"_71 Loess Breaks",null,null,null,"_75 Clayey",3500,null,null,"SyLo67A-Single age Cottonwood",1750]
[null,"_71 Sands",null,null,null,"_75 Loamy Lowland",4000,null,null,"SyLo67A-Decadent cottonwood",1250]
[null,"_71 Subirrigated",null,null,null,"_75 Loamy Overflow",4000,null,null,"SyLo67A-Russian Olive",500]
[null,"_75 Clayey",null,null,null,"_75 Loamy Upland",3600,null,null,"SwLo67A-Wheatgrass/Little Blue/N&T",1100]
[null,"_75 Loamy Lowland",null,null,null,"_75 Shallow Limy",2400,null,null,"SwLo67A-Blue Grama/Threadleaf",850]
[null,"_75 Loamy Overflow",null,null,null,"_102C Limy Upland",2900,null,null,"SwLo67A-Decadent Plants",1000]
[null,"_75 Loamy Upland",null,null,null,"_102C Loamy Lowland",4000,null,null,"SwLo67A-Blue Grama / Threadleaf",650]
[null,"_75 Shallow Limy",null,null,null,"_102C Loamy Overflow",3200,null,null,"SwLo67A-Blue Grama/Invaders",550]
[null,"_102C Limy Upland",null,null,null,"_102C Loamy Upland",3500,null,null,"SwSy67A-N&T/Little Blue/Wheatgrass",1100]
[null,"_102C Loamy Lowland",null,null,null,"_102C Loess Uplands",2400,null,null,"SwSy67A-Sedge/B Grama/Midgrass",850]
[null,"_102C Loamy Overflow",null,null,null,"_102C Subirrigated",5100,null,null,"SwSy67A-Decadent Plants",1000]
[null,"_102C Loamy Upland",null,null,null,"_106 Clayey Upland",3800,null,null,"SwSy67A-Threadleaf/Blue Grama",650]
[null,"_102C Loess Uplands",null,null,null,"_106 Loamy Lowland",4600,null,null,"SwSy67A-Threadleaf/Invaders",550]
[null,"_102C Subirrigated",null,null,null,"_106 Loamy Overflow",4000,null,null,"Sb67A-Big Blue/Little Blue/Cordgr",4500]
[null,"_106 Clayey Upland",null,null,null,"_106 Loamy Upland",4250,null,null,"Sb67A-Red. Tall Warm/Incr Cool",2600]
[null,"_106 Loamy Lowland",null,null,null,"_106 Shallow Limy",3600,null,null,"Sb67A-Decadent Plants",3800]
[null,"_106 Loamy Overflow",null,null,null,null,null,null,null,"Sb67A-Sod bound cool season",2300]
[null,"_106 Loamy Upland",null,null,null,null,null,null,null,"Sb67A-Broken Sod/Invaders",1800]
[null,"_106 Shallow Limy",null,null,null,null,null,null,null,"VSh67A-Little Blue/Sideoats/N&T",600]
[null,null,null,null,null,null,"Begin Grazing","End Grazing","Killing frost","VSh67A-N&T/Threadleaf/rem Mid",450]
[null,null,null,null,null,"Alfalfa / Alsike/ red clover",6,3,6,"VSh67A-Decadent Plants",550]
[null,null,null,null,null,"Big / Sand bluestem",10,6,10,"VSh67A-Threadleaf/Invaders",300]
[null,null,0.2,0.8,null,"Birdsfoot trefoil",6,3,6,"WL67A-Cordgrass/NE Sedge/Reedgr",5500]
[null,null,0.25,1,null,"Cicer milkvetch",8,5,8,"WL67A-Baltic Rush/Cattail",3000]
[null,null,0.3,1.2,null,"Creeping foxtail",6,3,6,"WL67A-Baltic Rush / Smartweed",1800]
[null,null,0.35,1.4,null,"Crested wheatgrass",4,3,6,"WL67A-Decadent Plants",5000]
[null,null,null,null,null,"Eastern gamagrass",18,8,10,"Sy(14-17)65-Sand Blue/Sandreed ",1900]
[null,null,null,null,null,"Forage Cocktail",6,2,2,"Sy(14-17)65-Sandreed/Blue Grama/N&T",1600]
[null,null,null,null,null,"Indiangrass",10,4,10,"Sy(14-17)65-Blue Grama/Sand Drop/Ragweed",1100]
[null,null,null,null,null,"Intermediate wheatgrass",6,5,8,"Sy(14-17)65-Excessive Litter",1600]
[null,null,null,null,null,"Meadow bromegrass",6,5,6,"Sy(14-17)65-Go-Back",900]
[null,null,null,null,null,"Mid Warm Season Native",6,4,5,"Sa(14-17)65-Bluestem/Sandreed",1900]
[null,null,null,null,null,"Orchardgrass",6,5,8,"Sa(14-17)65-Bluestem/Sandreed/B. Grama",1700]
[null,null,null,null,null,"Pubescent wheatgrass",6,5,6,"Sa(14-17)65-Blue Grama/Sedge sod",1300]
[null,null,null,null,null,"Reed canarygrass",8,4,8,"Sa(14-17)65-Excessive Litter",1400]
[null,null,null,null,null,"Russian wildrye",6,3,4,"Sa(14-17)65-Annual/Perennial Pioneer",600]
[null,null,null,null,null,"Small Grain ",6,2,4,"Sa(14-17)65-Active Blowout",100]
[null,null,null,null,null,"Smooth brome",6,4,7,"Sa(14-17)65-Go-Back",800]
[null,null,null,null,null,"Switchgrass",10,6,10,"CS(14-17)65-Bluestem/Sandreed/Sand lovegr.",1400]
[null,null,null,null,null,"Tall fescue",6,3,6,"CS(14-17)65-Sand Blue/Sandreed",1100]
[null,null,null,null,null,"Tall Warm Season Native",10,6,10,"CS(14-17)65-Blowoutgrass/sandhill muhly",600]
[null,null,null,null,null,"Tall wheatgrass",7,4,8,"CS(14-17)65-Excessive Litter",1200]
[null,null,null,null,null,"Timothy",6,4,5,"CS(14-17)65-Annual/Perennial Pioneer",800]
[null,null,null,null,null,"Warm Season Cover Crop",10,6,8,"CS(14-17)65-Active Blowout",100]
[null,null,null,null,null,"Western wheatgrass",6,3,6,"WL65-Prairie Cordgrass / Reedgrass",4800]
[null,null,null,null,null,null,null,null,null,"WSb65-Big Blue/Switchgrass",4650]
[null,null,null,null,null,null,null,null,null,"WSb65-Switchgrass/Prairie Cordgrass",4050]
[null,null,null,null,null,null,null,null,null,"WSb65-Cool Season Dominant",3700]
[null,null,null,null,null,null,null,null,null,"WSb65-Reed Canary/Creeping Foxtail",3000]
[null,null,null,null,null,null,null,null,null,"SB65-Bluestem/Indiangrass",4580]
[null,null,null,null,null,null,null,null,null,"SB65-Bluestem/Switchgrass",3980]
[null,null,null,null,null,null,null,null,null,"SB65-Cool Season Dominant",3180]
[null,null,null,null,null,null,null,null,null,"SB65-Reed Canary/Creeping Foxtail",3000]
[null,null,null,null,null,null,null,null,null,"SaSb65-Alkali Sacaton",2900]
[null,null,null,null,null,null,"End Grazing",null,null,"SaSb65-Inland Saltgrass/Alkali Sacaton",1700]
[null,null,null,null,null,"Alfalfa / Alsike/ red clover",3,null,null,"SaSb65-Excessive Litter",1900]
[null,null,null,null,null,"Big / Sand bluestem",6,null,null,"SaSb65-Inland Saltgrass Sod",1000]
[null,null,null,null,null,"Birdsfoot trefoil",3,null,null,"Sy(17-22)65-Bluestem/Prairie Sandreed",2400]
[null,null,null,null,null,"Cicer milkvetch",5,null,null,"Sy(17-22)65-Switchgrass/Prairie Sandreed",2000]
[null,null,null,null,null,"Creeping foxtail",3,null,null,"Sy(17-22)65-Blue Grama/Western",1400]
[null,null,null,null,null,"Crested wheatgrass",3,null,null,"Sy(17-22)65-Kentucky Bluegrass/Ragweed",900]
[null,null,null,null,null,"Eastern gamagrass",8,null,null,"Sa(17-22)65-Bluestem/Sandreed/Needlegr.",2300]
[null,null,null,null,null,"Forage Cocktail",2,null,null,"Sa(17-22)65-Bluestem/Sandreed",2000]
[null,null,null,null,null,"Indiangrass",4,null,null,"Sa(17-22)65-Sandreed/Ragweed",1500]
[null,null,null,null,null,"Intermediate wheatgrass",5,null,null,"Sa(17-22)65-Excessive Litter",2100]
[null,null,null,null,null,"Meadow bromegrass",5,null,null,"Sa(17-22)65-Grama / Sedge Sod",1000]
[null,null,null,null,null,"Mid Warm Season Native",4,null,null,"Sa(17-22)65-Annual/Perennial Pioneer",300]
[null,null,null,null,null,"Orchardgrass",5,null,null,"Sa(17-22)65-Eastern Red Cedar",800]
[null,null,null,null,null,"Pubescent wheatgrass",5,null,null,"Sa(17-22)65-Blowout",100]
[null,null,null,null,null,"Reed canarygrass",4,null,null,"Sa(17-22)65-Go-Back",900]
[null,null,null,null,null,"Russian wildrye",3,null,null,"CS(17-22)65-Sand Bluestem ",2100]
[null,null,null,null,null,"Small Grain ",2,null,null,"CS(17-22)65-Bluestem/Prairie Sandreed",1800]
[null,null,null,null,null,"Smooth brome",4,null,null,"CS(17-22)65-Blowoutgrass/sandhill muhly",400]
[null,null,null,null,null,"Switchgrass",6,null,null,"CS(17-22)65-Excessive Litter",1500]
[null,null,null,null,null,"Tall fescue",3,null,null,"CS(17-22)65-Annual/Perennial Pioneer",300]
[null,null,null,null,null,"Tall Warm Season Native",6,null,null,"CS(17-22)65-Active Blowout",200]
[null,null,null,null,null,"Tall wheatgrass",4,null,null,"SyL(17-22)65-Sand Blue/Prairie Sandreed/Switchgrass",2900]
[null,null,null,null,null,"Timothy",4,null,null,"SyL(17-22)65-Prairie Sandreed/Switchgrass/Needle&Thread",2500]
[null,null,null,null,null,"Warm Season Cover Crop",6,null,null,"SyL(17-22)65-Needle&Thread/Blue Grama",1500]
[null,null,null,null,null,"Western wheatgrass",3,null,null,"SwG65-Sand Blue/Prairie Sandreed",1000]
[null,null,null,null,null,null,null,null,null,"SwG65-Club Moss/Prairie Sandreed",900]
[null,null,null,null,null,null,null,null,null,"SwG65-Club Moss/Grama",500]
[null,null,null,null,null,null,null,null,null,"Sy(22-25)65-Bluestem/Prairie Sandreed",3000]
[null,null,null,null,null,null,null,null,null,"Sy(22-25)65-Switchgrass/Prairie Sandreed",2500]
[null,null,null,null,null,null,null,null,null,"Sy(22-25)65-Blue Grama/Western Wheat",1700]
[null,null,null,null,null,null,null,null,null,"Sy(22-25)65-Kentucky Bluegrass/Ragweed",1200]
[null,null,null,null,null,null,"Killing frost",null,null,"Sy(22-25)65-Go-Back Land",1000]
[null,null,null,null,null,"Alfalfa / Alsike/ red clover",6,null,null,"Sa(22-25)65-Bluestem/Prairie Sandreed",2600]
[null,null,null,null,null,"Big / Sand bluestem",10,null,null,"Sa(22-25)65-Bluestem/Sandreed/Switch",2300]
[null,null,null,null,null,"Birdsfoot trefoil",6,null,null,"Sa(22-25)65-Sandreed/Ragweed",1700]
[null,null,null,null,null,"Cicer milkvetch",8,null,null,"Sa(22-25)65-Excessive Litter",2400]
[null,null,null,null,null,"Creeping foxtail",6,null,null,"Sa(22-25)65-Grama/Sedge Sod",1000]
[null,null,null,null,null,"Crested wheatgrass",6,null,null,"Sa(22-25)65-Annual/Perennial Pioneer",900]
[null,null,null,null,null,"Eastern gamagrass",10,null,null,"Sa(22-25)65-Eastern Red Cedar",300]
[null,null,null,null,null,"Forage Cocktail",2,null,null,"Sa(22-25)65-Active Blowout",100]
[null,null,null,null,null,"Indiangrass",10,null,null,"CS(22-25)65-Sand Bluestem",2400]
[null,null,null,null,null,"Intermediate wheatgrass",8,null,null,"CS(22-25)65-Little Blue / Sandreed",2400]
[null,null,null,null,null,"Meadow bromegrass",6,null,null,"CS(22-25)65-Blowout grass/Sandhill muhly",600]
[null,null,null,null,null,"Mid Warm Season Native",5,null,null,"CS(22-25)65-Excessive Litter",1800]
[null,null,null,null,null,"Orchardgrass",8,null,null,"CS(22-25)65-Annual/Perennial Pioneer",500]
[null,null,null,null,null,"Pubescent wheatgrass",6,null,null,"CS(22-25)65-Active Blowout",100]
[null,null,null,null,null,"Reed canarygrass",8,null,null,"CD66-Western Wheatgrass",3500]
[null,null,null,null,null,"Russian wildrye",4,null,null,"CD66-Grass-likes / Forbs",2700]
[null,null,null,null,null,"Small Grain ",4,null,null,"CD66-Western / Inland Saltgrass",2200]
[null,null,null,null,null,"Smooth brome",7,null,null,"CD66-Foxtail Barley / Inland Saltgrass",1200]
[null,null,null,null,null,"Switchgrass",10,null,null,"CD66-Go-Back/Excessive Disturbance",400]
[null,null,null,null,null,"Tall fescue",6,null,null,"LoOv66-Big Blue/Needlegrass/Western",3400]
[null,null,null,null,null,"Tall Warm Season Native",10,null,null,"LoOv66-Western/Bluegrass/Remn. Big Blue",2700]
[null,null,null,null,null,"Tall wheatgrass",8,null,null,"LoOv66-Western/Bluegrass/Shrubs",2500]
[null,null,null,null,null,"Timothy",5,null,null,"LoOv66-Kentucky Bluegrass/Annuals",1700]
[null,null,null,null,null,"Warm Season Cover Crop",8,null,null,"LoOv66-Upper/Lower Woody Draws",500]
[null,null,null,null,null,"Western wheatgrass",6,null,null,"Lo(18-22)66-Needlegrass/Western/Bluestem",2600]
[null,null,null,null,null,null,null,null,null,"Lo(18-22)66-Blue Grama/Western/Bluegrass",2000]
[null,null,null,null,null,"Cover Crops for Cover Crop Sheet","End Grazing",null,null,"Lo(18-22)66-Blue Grama/Bluegrass/Sedge Sod",1500]
[null,null,null,null,null,"Barley, Spring (HEL)",6,null,null,"Lo(18-22)66-Bluegrass/Western/Bromegrass",2500]
[null,null,null,null,null,"Barley, Spring (NHEL)",4,null,null,"Lo(18-22)66-Threeawn/Forbs",500]
[null,null,null,null,null,"Brassica, Hybrid (HEL)2",8,null,null,"Lo(18-22)66-Conifer/Deciduous Trees",100]
[null,null,null,null,null,"Brassica, Hybrid (NHEL)2",6,null,null,"Lo(18-22)66-Go-back/Invaded",900]
[null,null,null,null,null,"Buckwheat (HEL)",8,null,null,"Lo(22-25)66-Needlegrass/Western/Bluestem",3100]
[null,null,null,null,null,"Buckwheat (NHEL)",8,null,null,"Lo(22-25)66-Blue Grama/Western/Bluegrass",2400]
[null,null,null,null,null,"Cabbage, Ethiopian (HEL)2",8,null,null,"Lo(22-25)66-Blue Grama/Bluegrass/Sedge Sod",1400]
[null,null,null,null,null,"Cabbage, Ethiopian (NHEL)2",5,null,null,"Lo(22-25)66-Bluegrass/Western/Bromegrass",1600]
[null,null,null,null,null,"Canola/Rapeseed (HEL)",8,null,null,"Lo(22-25)66-Threeawn/Forbs",700]
[null,null,null,null,null,"Canola/Rapeseed (NHEL)",8,null,null,"Lo(22-25)66-Conifer/Deciduous Trees",500]
[null,null,null,null,null,"Chickling Vetch (HEL)",6,null,null,"LoT66-Western/Gr. Needlegrass",2800]
[null,null,null,null,null,"Chickling Vetch (NHEL)",4,null,null,"LoT66-Blue Grama/Western",1800]
[null,null,null,null,null,"Chickpea (HEL)2",8,null,null,"LoT66-Bluegrass/Bromegrass/Shrubs",2000]
[null,null,null,null,null,"Chickpea (NHEL)2",6,null,null,"Sy(18-22)66-Bluestem /Sandreed",2400]
[null,null,null,null,null,"Clover, Arrowleaf (HEL)",6,null,null,"Sy(18-22)66-Switchgrass/Sandreed",2000]
[null,null,null,null,null,"Clover, Arrowleaf (NHEL)",4,null,null,"Sy(18-22)66-Blue Grama/Western",1400]
[null,null,null,null,null,"Clover, Berseem/Persian (HEL)",6,null,null,"Sy(18-22)66-Bluegrass/Ragweed",900]
[null,null,null,null,null,"Clover, Berseem/Persian (NHEL)",4,null,null,"Sy(18-22)66-Eastern Red Cedar",1600]
[null,null,null,null,null,"Clover, Crimson (HEL)",6,null,null,"Sy(18-22)66-Go-back/Invaded",500]
[null,null,null,null,null,"Clover, Crimson (NHEL)",4,null,null,"Sy(22-25)66-Bluestem/Sandreed",3000]
[null,null,null,null,null,"Clover, Red (HEL)",6,null,null,"Sy(22-25)66-Switchgrass/Sandreed",2500]
[null,null,null,null,null,"Clover, Red (NHEL)",4,null,null,"Sy(22-25)66-Blue Grama/Western",1700]
[null,null,null,null,null,"Clover, Sweet (HEL)",8,null,null,"Sy(22-25)66-Bluegrass/Ragweed",1200]
[null,null,null,null,null,"Clover, Sweet (NHEL)",5,null,null,"Sy(22-25)66-Eastern Red Cedar",1300]
[null,null,null,null,null,"Corn (HEL)2",10,null,null,"Sy(22-25)66-Go-back/Invaded",700]
[null,null,null,null,null,"Corn (NHEL)2",6,null,null,"Sa(18-22)66-Bluestem/Sandreed/Needlegr.",2300]
[null,null,null,null,null,"Cowpea (HEL)",6,null,null,"Sa(18-22)66-Bluestem/Sandreed",2000]
[null,null,null,null,null,"Cowpea (NHEL)",4,null,null,"Sa(18-22)66-Sandreed/Ragweed",1500]
[null,null,null,null,null,"Faba Bean (HEL)2",8,null,null,"Sa(18-22)66-Excessive Litter",2100]
[null,null,null,null,null,"Faba Bean (NHEL)2",5,null,null,"Sa(18-22)66-Grama/Sedge Sod",700]
[null,null,null,null,null,"Flax (HEL)2",8,null,null,"Sa(18-22)66-Eastern Red Cedar",1200]
[null,null,null,null,null,"Flax (NHEL)2",6,null,null,"Sa(18-22)66-Annual/Perennial Pioneer",500]
[null,null,null,null,null,"Lentil, Spring (HEL)2",8,null,null,"Sa(18-22)66-Active Blowout",200]
[null,null,null,null,null,"Lentil, Spring (NHEL)2",5,null,null,"Sa(18-22)66-Go-Back ",400]
[null,null,null,null,null,"Millet, Foxtail (HEL)2",8,null,null,"Sa(22-25)66-Bluestem/Sandreed",2800]
[null,null,null,null,null,"Millet, Foxtail (NHEL)2",6,null,null,"Sa(22-25)66-Bluestem/Sandreed/Switch",2400]
[null,null,null,null,null,"Millet, Pearl (HEL)2",8,null,null,"Sa(22-25)66-Sandreed/Ragweed",1900]
[null,null,null,null,null,"Millet, Pearl (NHEL)2",6,null,null,"Sa(22-25)66-Excessive Litter",2300]
[null,null,null,null,null,"Millet, Proso (HEL)2",8,null,null,"Sa(22-25)66-Grama/Sedge Sod",900]
[null,null,null,null,null,"Millet, Proso (NHEL)2",6,null,null,"Sa(22-25)66-Annual/Perennial Pioneer",700]
[null,null,null,null,null,"Mixed grasses & Broadleaf (NHEL)",5,null,null,"Sa(22-25)66-Eastern Red Cedar",1400]
[null,null,null,null,null,"Mixed grasses & Broadleaf (HEL)",8,null,null,"Sa(22-25)66-Active Blowout",200]
[null,null,null,null,null,"Mixed Cool Broadleaf (HEL)",8,null,null,"Sa(22-25)66-Go-Back",600]
[null,null,null,null,null,"Mixed Cool Broadleaf (NHEL)",5,null,null,"SwLi66-Bluestem/Sideoats/Needlegr.",1700]
[null,null,null,null,null,"Mixed Warm Season Broadleaf (HEL)",8,null,null,"SwLi66-Little Blue/N&T/Grama",1400]
[null,null,null,null,null,"Mixed Warm Season Broadleaf (NHEL)",5,null,null,"SwLi66-Grama/Sedge Sod",1000]
[null,null,null,null,null,"Mixed Winter Small Grains (HEL)",6,null,null,"SwLi66-Eastern Red Cedar",1200]
[null,null,null,null,null,"Mixed Winter Small Grains (NHEL)",3,null,null,"SwG66-Sand Blue/Sandreed",1600]
[null,null,null,null,null,"Mustard, Brown, Oriental, Yellow (HEL)",8,null,null,"SwG66-Club Moss/Sandreed",1100]
[null,null,null,null,null,"Mustard, Brown, Oriental, Yellow (HEL)",5,null,null,"SwG66-Club Moss/Grama",700]
[null,null,null,null,null,"Oats (HEL)",6,null,null,"Sb66-Bluestem/Indian/Switch",4800]
[null,null,null,null,null,"Oats (NHEL)",4,null,null,"Sb66-Bluestem/Switch/Western",4300]
[null,null,null,null,null,"Peas, Spring Field (HEL)",8,null,null,"Sb66-Reed Canary/Creeping Foxtail",3000]
[null,null,null,null,null,"Peas,Spring Field (NHEL)",4,null,null,"Sb66-Bluegrass/Wheatgrass/Brome",5000]
[null,null,null,null,null,"Peas, Spring Forage (HEL)",6,null,null,"SaSb66-Alkali Sacaton",2800]
[null,null,null,null,null,"Peas, Spring Forage (NHEL)",4,null,null,"SaSb66-Inland Saltgrass/A. Sacaton",1700]
[null,null,null,null,null,"Peas, Winter (HEL)",8,null,null,"SaSb66-Excessive Litter",1900]
[null,null,null,null,null,"Peas, Winter (NHEL)",6,null,null,"SaLo66-Sand Blue/Sandreed",2900]
[null,null,null,null,null,"Phacelia (HEL)",6,null,null,"SaLo66-Little Blue/Sandreed/N&T",2300]
[null,null,null,null,null,"Phacelia (NHEL)",4,null,null,"SaLo66-Needlegrass/Grama/Annuals",1800]
[null,null,null,null,null,"Radish (HEL)",8,null,null,"WL66-Cordgrass/Reedgrass",4495]
[null,null,null,null,null,"Radish (NHEL)",5,null,null,"WSb66-Big Bluestem/Switchgrass",5000]
[null,null,null,null,null,"Rye, Cereal (HEL)",6,null,null,"WSb66-Switchgrass/Cordgrass",4500]
[null,null,null,null,null,"Rye, Cereal (NHEL)",3,null,null,"WSb66-Cool Season Dominant",3700]
[null,null,null,null,null,"Ryegrass, Annual (HEL)",6,null,null,"WSb66-Reed Canary/Creeping Foxtail",3000]
[null,null,null,null,null,"Ryegrass, Annual (NHEL)",3,null,null,"CD60A-Western Wheatgrass",2200]
[null,null,null,null,null,"Ryegrass, Italian (HEL)2",6,null,null,"CD60A-Grass-likes/Forbs",2500]
[null,null,null,null,null,"Ryegrass, Italian (NHEL)2",3,null,null,"CD60A-Western Wheat/Inland Saltgrass",1800]
[null,null,null,null,null,"Safflower (HEL)2",8,null,null,"CD60A-Foxtail Barley/Inland Saltgrass",800]
[null,null,null,null,null,"Safflower (NHEL)2",4,null,null,"WL60A-Cordgrass /Sedge/ Reedgrass",5500]
[null,null,null,null,null,"Sorghum, grain/forage (HEL)2",8,null,null,"WL60A-Spikerush/Bulrush/Cattail",4500]
[null,null,null,null,null,"Sorghum, grain/forage (NHEL)2",4,null,null,"Sb60A-Big Blue/Prairie Cordgrass",4300]
[null,null,null,null,null,"Sudangrass (HEL)2",8,null,null,"Sb60A-Cool Season Dominant",3000]
[null,null,null,null,null,"Sudangrass (NHEL)2",4,null,null,"Sb60A-Decadent Plants",3300]
[null,null,null,null,null,"Sudan-sorghum hybrid (HEL)",8,null,null,"Sb60A-Kentucky Bluegrass Sod",2000]
[null,null,null,null,null,"Sudan-sorghum hybrid (NHEL)",4,null,null,"SaSb60A-Alkali Sacaton",2800]
[null,null,null,null,null,"Sunflower (HEL)",8,null,null,"SaSb60A-Inland Saltgrass/Alkali Sacaton",1700]
[null,null,null,null,null,"Sunflower (NHEL)",4,null,null,"SaSb60A-Excessive Litter",1900]
[null,null,null,null,null,"Sunn hemp (HEL)",8,null,null,"SaSb60A-Inland Saltgrass Sod",1000]
[null,null,null,null,null,"Sunn hemp (NHEL)",4,null,null,"SaLo60A-Wheatgrass/Alkali Sacaton",2000]
[null,null,null,null,null,"Triticale (HEL)2",6,null,null,"SaLo60A-Inland Saltgrass/Wheatgrass",1100]
[null,null,null,null,null,"Triticale (NHEL)2",3,null,null,"SaLo60A-Inland Saltgrass",900]
[null,null,null,null,null,"Triticale, Spring (HEL)2",6,null,null,"SaUp60A-Wheatgrass/Saltbush",600]
[null,null,null,null,null,"Triticale, Spring (NHEL)2",3,null,null,"SaUp60A-Wheatgrass/Saltgrass",500]
[null,null,null,null,null,"Turnip (HEL)2",6,null,null,"SaUp60A-Forbs/Saltgrass",375]
[null,null,null,null,null,"Turnip (NHEL)2",3,null,null,"Sa60A-Sand Blue/Sandreed/Little Blue",1900]
[null,null,null,null,null,"Vetch, Common (HEL)2",8,null,null,"Sa60A-Sandreed/Needleandthread",1300]
[null,null,null,null,null,"Vetch, Common (NHEL)2",5,null,null,"Sa60A-Needleandthread/Blue Grama",900]
[null,null,null,null,null,"Vetch, hairy or crown (HEL)",6,null,null,"Sa60A-Threeawn/Dropseed/Annual",500]
[null,null,null,null,null,"Vetch, hairy or crown (NHEL)",5,null,null,"Sy60A-Sandreed/N&T/Bluestem",1800]
[null,null,null,null,null,"Vetch, woolypod/Lana (HEL)",6,null,null,"Sy60A-Sandreed/N&T/Blue Grama",1200]
[null,null,null,null,null,"Vetch, woolypod/Lana (NHEL)",5,null,null,"Sy60A-B Grama/Thrlf Sedge/Dropseed",900]
[null,null,null,null,null,"Wheat, Winter (HEL)",6,null,null,"Sy60A-Threeawn/Dropseed/Annual",500]
[null,null,null,null,null,"Wheat, Winter (NHEL)",3,null,null,"SwSy60A-Needleandthread/Sandreed",1300]
[null,null,null,null,null,null,null,null,null,"SwSy60A-Needleandthread/Thlf Sedge",850]
[null,null,null,null,null,null,null,null,null,"SwSy60A-Thrlf Sedge/Sagewort/Yucca",550]
[null,null,null,null,null,null,null,null,null,"VSw60A-N&T/Little Blue/Grama",800]
[null,null,null,null,null,null,null,null,null,"VSw60A-Grama/Sedge",400]
[null,null,null,null,null,null,null,null,null,"TUp60A-Needlegrass/Grama/Little Blue",1400]
[null,null,null,null,null,null,null,null,null,"TUp60A-Little Bluestem/Grama",1200]
[null,null,null,null,null,"Big / Sand bluestem",null,null,null,"TUp60A-Blue Grama/Sedge  ",800]
[null,null,null,null,null,"Crested wheatgrass",null,null,null,"SwLo60A-Bluestem/Sideoats/Needlegr.",1400]
[null,null,null,null,null,"Eastern gamagrass",null,null,null,"SwLo60A-N&T/Little Blue/Grama",1000]
[null,null,null,null,null,"Indiangrass",null,null,null,"SwLo60A-Grama/Sedge/Sagewort",500]
[null,null,null,null,null,"Intermediate wheatgrass",null,null,null,"SwLo60A-Juniper/Pine Enchroachment",1200]
[null,null,null,null,null,"Meadow bromegrass",null,null,null,"Lo(13-16)60A-Western Wheat/Needlegrass",1900]
[null,null,null,null,null,"Mid & Shortgrass Native",null,null,null,"Lo(13-16)60A-Blue Grama/Western Wheat",1100]
[null,null,null,null,null,"Mid Warm Season Native",null,null,null,"Lo(13-16)60A-Blue Grama/Buffalograss Sod",600]
[null,null,null,null,null,"Pubescent wheatgrass",null,null,null,"Lo(13-16)60A-Threeawn/Annuals",700]
[null,null,null,null,null,"Reed canarygrass",null,null,null,"Lo(13-16)60A-Big Sagebrush/Western Wheat",1600]
[null,null,null,null,null,"Russian wildrye",null,null,null,"Lo(13-16)60A-Big Sagebrush ",900]
[null,null,null,null,null,"Smooth brome",null,null,null,"Lo(16-18)60A-Western Wheat/Needle&Thread",2200]
[null,null,null,null,null,"Switchgrass",null,null,null,"Lo(16-18)60A-Blue Grama/Buffalo/Wheatgrass",1500]
[null,null,null,null,null,"Tall fescue",null,null,null,"Lo(16-18)60A-Western Wheat/Bluegrass/Ann",1600]
[null,null,null,null,null,"Tall Warm Season Native",null,null,null,"Lo(16-18)60A-Grama/Buffalo Sod",800]
[null,null,null,null,null,"Tall wheatgrass",null,null,null,"Lo(16-18)60A-Juniper/Pine Enchroachment",800]
[null,null,null,null,null,"Western wheatgrass",null,null,null,"Lo(16-18)60A-Threeawn/Annuals",700]
[null,null,null,null,null,null,null,null,null,"Lo(16-18)60A-Go-Back/Invaded",900]
[null,null,null,null,null,null,null,null,null,"LoT60A-Western/Gr. Needlegr/Shrub",2500]
[null,null,null,null,null,null,null,null,null,"LoT60A-Western/Blue Grama",800]
[null,null,null,null,null,null,null,null,null,"LoT60A-Kentucky Bluegrass/Shrub",2100]
[null,null,null,null,null,null,null,null,null,"LoT60A-Go-Back/Introduced/Invaded",700]
[null,null,null,null,null,null,null,null,null,"LoOv60A-Big Bluestem/Western Wheat",2800]
[null,null,null,null,null,null,null,null,null,"LoOv60A-Mixed Shrub/Western Wheat",2200]
[null,null,null,null,null,null,null,null,null,"LoOv60A-Western Wheatgrass",1200]
[null,null,null,null,null,null,null,null,null,"LoOv60A-Western/Kentucky Bluegrass",1600]
[null,null,null,null,null,null,null,null,null,"LoOv60A-Kentucky Bluegrass/Annuals",1000]
[null,null,null,null,null,null,null,null,null,"Lol60A-Wheatgrass/Green Needlegr.",3000]
[null,null,null,null,null,null,null,null,null,"Lol60A-Mat Cottonwood/Cool Season",870]
[null,null,null,null,null,null,null,null,null,"Lol60A-Mat Cottonwood/Cheatgrass",1500]
[null,null,null,null,null,null,null,null,null,"Lol60A-Rhizomatus Wheatgrass",2000]
[null,null,null,null,null,null,null,null,null,"ClOv60A-Wheatgrass/Big Bluestem",2500]
[null,null,null,null,null,null,null,null,null,"ClOv60A-Mixed Shrub/Western Wheat",2100]
[null,null,null,null,null,null,null,null,null,"ClOv60A-Western/Green Needlegrass",1700]
[null,null,null,null,null,null,null,null,null,"ClOv60A-Western Wheatgrass",1500]
[null,null,null,null,null,null,null,null,null,"ClOv60A-Western Wheat/Annuals",900]
[null,null,null,null,null,null,null,null,null,"Cl(13-16)60A-Western Wheat/Green Needlegr",1800]
[null,null,null,null,null,null,null,null,null,"Cl(13-16)60A-Western/Blue grama/Buffalo",1600]
[null,null,null,null,null,null,null,null,null,"Cl(13-16)60A-Big Sagebrush/Western Wheat",1600]
[null,null,null,null,null,null,null,null,null,"Cl(13-16)60A-Blue Grama/Buffalograss Sod",650]
[null,null,null,null,null,null,null,null,null,"Cl(13-16)60A-Blue Grama/Buffalo/Threeawn",700]
[null,null,null,null,null,null,null,null,null,"Cl(13-16)60A-Big Sagebrush",500]
[null,null,null,null,null,null,null,null,null,"Cl(16-18)60A-Western/Green Needlegrass",2000]
[null,null,null,null,null,null,null,null,null,"Cl(16-18)60A-Western/Buffalo/Blue Grama",1800]
[null,null,null,null,null,null,null,null,null,"Cl(16-18)60A-Juniper ",1500]
[null,null,null,null,null,null,null,null,null,"Cl(16-18)60A-Threeawn/Annuals",700]
[null,null,null,null,null,null,null,null,null,"Cl(16-18)60A-Buffalo/Blue Grama Sod",700]
[null,null,null,null,null,null,null,null,null,"PCl60A-Sandreed/Little Blue",1500]
[null,null,null,null,null,null,null,null,null,"PCl60A-Wheatgrass/Blue Grama",900]
[null,null,null,null,null,null,null,null,null,"PCl60A-Sedge/Bare Ground",300]
[null,null,null,null,null,null,null,null,null,"SwPCl60A-Little Bluestem/Sun Sedge",955]
[null,null,null,null,null,null,null,null,null,"SwPCl60A-Wheatgrass/Blue Grama",700]
[null,null,null,null,null,null,null,null,null,"SwPCl60A-Ponderosa Pine",500]
[null,null,null,null,null,null,null,null,null,"SwCl60A-Western/Sideoats/Needlegr.",1400]
[null,null,null,null,null,null,null,null,null,"SwCl60A-Western/B. Grama/Sedge",1000]
[null,null,null,null,null,null,null,null,null,"SwCl60A-Excessive Litter",1200]
[null,null,null,null,null,null,null,null,null,"SwCl60A-Blue Grama/Sedge",600]
[null,null,null,null,null,null,null,null,null,"SwDCl60A-Wheatgrass",900]
[null,null,null,null,null,null,null,null,null,"SwDCl60A-Wheatgrass/Annuals",500]
[null,null,null,null,null,null,null,null,null,"DCl60A-Wheatgrass",1300]
[null,null,null,null,null,null,null,null,null,"DCl60A-Western Wheat/Bare Ground",600]
[null,null,null,null,null,null,null,null,null,"Clp60A-Western/Blue Grama",1400]
[null,null,null,null,null,null,null,null,null,"Clp60A-Blue grama/Western",1000]
[null,null,null,null,null,null,null,null,null,"Clp60A-Blue Grama/Sedge",650]
[null,null,null,null,null,null,null,null,null,"ThClp60A-Western/Blue Grama",900]
[null,null,null,null,null,null,null,null,null,"ThClp60A-Blue Grama/Cactus",500]
[null,null,null,null,null,null,null,null,null,"SaUp64-Alkali Sacaton",2800]
[null,null,null,null,null,null,null,null,null,"SaUp64-Inland Saltgrass/Alkali Sacaton",1700]
[null,null,null,null,null,null,null,null,null,"SaUp64-Inland Saltgrass",1000]
[null,null,null,null,null,null,null,null,null,"SaUp64-Excessive Litter",1900]
[null,null,null,null,null,null,null,null,null,"WSb64-Big Bluestem/Switchgrass",5000]
[null,null,null,null,null,null,null,null,null,"WSb64-Switchgrass/Prairie Cordgrass",4500]
[null,null,null,null,null,null,null,null,null,"WSb64-Cool Season Dominant",3700]
[null,null,null,null,null,null,null,null,null,"Sb64-Big Blue/Little Blue/Indian/Cordgr",4300]
[null,null,null,null,null,null,null,null,null,"Sb64-Little Blue/Western/Sedge",3000]
[null,null,null,null,null,null,null,null,null,"Sb64-Excessive Litter",3600]
[null,null,null,null,null,null,null,null,null,"Sb64-Kentucky Bluegrass/Sedge",1600]
[null,null,null,null,null,null,null,null,null,"Wl64-Cordgrass/Ne Sedge/Reedgrass",5500]
[null,null,null,null,null,null,null,null,null,"Wl64-Baltic Rush/Cattail",3000]
[null,null,null,null,null,null,null,null,null,"Wl64-Excessive Litter",5000]
[null,null,null,null,null,null,null,null,null,"Wl64-Baltic Rush/Smartweed",1800]
[null,null,null,null,null,null,null,null,null,"LoO64-Big Bluestem/Western Wheat",3000]
[null,null,null,null,null,null,null,null,null,"LoO64-Western/Kentucky Bluegrass",2300]
[null,null,null,null,null,null,null,null,null,"LoO64-Excessive Litter",1600]
[null,null,null,null,null,null,null,null,null,"LoO64-Woody Draws",500]
[null,null,null,null,null,null,null,null,null,"LoO64-Kentucky Bluegrass/Annuals",1000]
[null,null,null,null,null,null,null,null,null,"ClO64-Western Wheat/Green Needlegr",2500]
[null,null,null,null,null,null,null,null,null,"ClO64-Blue Grama/Western Wheat",1400]
[null,null,null,null,null,null,null,null,null,"ClO64-Excessive Litter",2000]
[null,null,null,null,null,null,null,null,null,"ClO64-Kentucky Bluegrass/Annuals",1600]
[null,null,null,null,null,null,null,null,null,"ClO64-Lower Woody Draw",600]
[null,null,null,null,null,null,null,null,null,"LoT64-Western/N&T/Big Blue",2600]
[null,null,null,null,null,null,null,null,null,"LoT64-Blue Grama/Western Wheat",1600]
[null,null,null,null,null,null,null,null,null,"LoT64-Kentucky Bluegrass",1100]
[null,null,null,null,null,null,null,null,null,"LoT64-Three awns/Annuals",900]
[null,null,null,null,null,null,null,null,null,"LoT64-Go-Back/Introduced/Invaded",800]
[null,null,null,null,null,null,null,null,null,"Lo(14-17)64-Western Wheat/Needleandthr.",1800]
[null,null,null,null,null,null,null,null,null,"Lo(14-17)64-Blue Grama/Western Wheat",1200]
[null,null,null,null,null,null,null,null,null,"Lo(14-17)64-Blue Grama Sod",600]
[null,null,null,null,null,null,null,null,null,"Lo(14-17)64-Threeawns/Annuals",600]
[null,null,null,null,null,null,null,null,null,"Cl(14-17)64-Western Wheat/Green Needlegr",1800]
[null,null,null,null,null,null,null,null,null,"Cl(14-17)64-Western/Blue grama/Buffalo",1600]
[null,null,null,null,null,null,null,null,null,"Cl(14-17)64-Blue Grama/Buffalograss Sod",700]
[null,null,null,null,null,null,null,null,null,"Cl(14-17)64-Renovated Sod",1600]
[null,null,null,null,null,null,null,null,null,"Sy(14-17)64-Sandreed/N&T/Bluestem",1600]
[null,null,null,null,null,null,null,null,null,"Sy(14-17)64-B Grama/Sand Dropseed/Sedge",900]
[null,null,null,null,null,null,null,null,null,"Sy(14-17)64-B Grama/ Annuals",500]
[null,null,null,null,null,null,null,null,null,"Sy(14-17)64-Excessive Litter",1100]
[null,null,null,null,null,null,null,null,null,"Sy(17-20)64-Bluestem/Prairie Sandreed",2400]
[null,null,null,null,null,null,null,null,null,"Sy(17-20)64-Sandreed/Needleandthread",2000]
[null,null,null,null,null,null,null,null,null,"Sy(17-20)64-Dropseed/Bluegrass",400]
[null,null,null,null,null,null,null,null,null,"Sy(17-20)64-Goback/Introduced/Invaded",1000]
[null,null,null,null,null,null,null,null,null,"Sy(17-20)64-Juniper/Ponderosa Pine",900]
[null,null,null,null,null,null,null,null,null,"Lo(17-20)64-Western/Needleandthread",2400]
[null,null,null,null,null,null,null,null,null,"Lo(17-20)64-Blue grama/Buffalo/Western",1600]
[null,null,null,null,null,null,null,null,null,"Lo(17-20)64-Western/Bluegrass/Annuals",1700]
[null,null,null,null,null,null,null,null,null,"Lo(17-20)64-Blue Grama/Buffalo",800]
[null,null,null,null,null,null,null,null,null,"Lo(17-20)64-Threeawns/Annuals",700]
[null,null,null,null,null,null,null,null,null,"Lo(17-20)64-Juniper/Ponderosa Pine",800]
[null,null,null,null,null,null,null,null,null,"Cl(17-20)64-Western/Green Needlegrass",2000]
[null,null,null,null,null,null,null,null,null,"Cl(17-20)64-Western/B Grama/Buffalogr",1600]
[null,null,null,null,null,null,null,null,null,"Cl(17-20)64-Blue Grama/Buffalo Sod",1100]
[null,null,null,null,null,null,null,null,null,"Cl(17-20)64-Excessive Litter",1400]
[null,null,null,null,null,null,null,null,null,"Sa64-Sand Blue/Sandreed",1900]
[null,null,null,null,null,null,null,null,null,"Sa64-Sandreed/Needleandthread",1400]
[null,null,null,null,null,null,null,null,null,"Sa64-Needleandthread/Sand Drop",900]
[null,null,null,null,null,null,null,null,null,"Sa64-Annual/Perennial Pioneer",500]
[null,null,null,null,null,null,null,null,null,"SyLo64-Sand Blue/Sandreed/Switch",2600]
[null,null,null,null,null,null,null,null,null,"SyLo64-Little Blue/Sandreed/N&T",2000]
[null,null,null,null,null,null,null,null,null,"SyLo64-N&T/Blue Grama/Annuals",1600]
[null,null,null,null,null,null,null,null,null,"SaLo64-Wheatgrass/Alkali Sacaton",2800]
[null,null,null,null,null,null,null,null,null,"SaLo64-Saltgrass/Wheatgrass",1800]
[null,null,null,null,null,null,null,null,null,"SaLo64-Inland Saltgrass",1200]
[null,null,null,null,null,null,null,null,null,"ThUp64-Needlegrass/Grama/Little Blue",1800]
[null,null,null,null,null,null,null,null,null,"ThUp64-Little Bluestem/Grama",1600]
[null,null,null,null,null,null,null,null,null,"ThUp64-Blue grama/Sedge",900]
[null,null,null,null,null,null,null,null,null,"SwCl64-Western/Sideoats/Needlegr.",1600]
[null,null,null,null,null,null,null,null,null,"SwCl64-Western/Grama/Sedge",1200]
[null,null,null,null,null,null,null,null,null,"SwCl64-Grama/Sedge",900]
[null,null,null,null,null,null,null,null,null,"SwCl64-Excessive Litter",1400]
[null,null,null,null,null,null,null,null,null,"Sw64-Bluestem/Sideoats/Needlegr.",1500]
[null,null,null,null,null,null,null,null,null,"Sw64-N&T/Little Blue/Grama",1300]
[null,null,null,null,null,null,null,null,null,"Sw64-Grama/Sedge/Bare Ground",800]
[null,null,null,null,null,null,null,null,null,"Sw64-Juniper/Ponderosa Pine",1000]
[null,null,null,null,null,null,null,null,null,"Clp64-Western/Green Needlegrass",1600]
[null,null,null,null,null,null,null,null,null,"Clp64-Excessive Litter",1400]
[null,null,null,null,null,null,null,null,null,"Clp64-Blue Grama/Buffalograss ",800]
[null,null,null,null,null,null,null,null,null,"DCl64-Western Wheatgrass",1500]
[null,null,null,null,null,null,null,null,null,"DCl64-Western Wheatgrass/Bare Gr.",800]
[null,null,null,null,null,null,null,null,null,"ThClp64-Western Wheat/Blue Grama",1000]
[null,null,null,null,null,null,null,null,null,"ThClp64-Blue Grama/Cactus",500]
[null,null,null,null,null,null,null,null,null,"VSw64-N&T/Little Blue/Grama",900]
[null,null,null,null,null,null,null,null,null,"VSw64-Grama/Sedge",500]
[null,null,null,null,null,null,null,null,null,"BdT64-Wheatgrass/Little Blue/Sandreed",2100]
[null,null,null,null,null,null,null,null,null,"BdT64-Sandreed/Bluestem/Saltgrass",1800]
[null,null,null,null,null,null,null,null,null,"BdT64-Saltgrass/Wheatgrass",1000]
[null,null,null,null,null,null,null,null,null,"BdT64-Saltgrass/Annuals/Pioneer Per.",700]
[null,null,null,null,null,null,null,null,null,"BdOv64-Switch/Wheatgrass/Needlegr.",2400]
[null,null,null,null,null,null,null,null,null,"BdOv64-Wheatgrass/Needlegr/Sandreed",2000]
[null,null,null,null,null,null,null,null,null,"BdOv64-Wheatgrass/Needlegr/Ricegr.",1000]
[null,null,null,null,null,null,null,null,null,"BdOv64-Wheatgrass/Saltgrass/Knotweed",600]
[null,null,null,null,null,null,null,null,null,"TB64-Green Muhly/Bluestem/Shrubs",2500]
[null,null,null,null,null,null,null,null,null,"Cl63B-Western/Green Needlegrass",2800]
[null,null,null,null,null,null,null,null,null,"Cl63B-Western/B Grama/Buffalogr",2100]
[null,null,null,null,null,null,null,null,null,"Cl63B-Invaded Western/Grama/Buffalo",2500]
[null,null,null,null,null,null,null,null,null,"Cl63B-Invaded Western/Gr. Needle",1800]
[null,null,null,null,null,null,null,null,null,"Cl63B-Blue Grama/Buffalograss Sod",1300]
[null,null,null,null,null,null,null,null,null,"Cl63B-Threeawns/Annuals",800]
[null,null,null,null,null,null,null,null,null,"Cl63B-Smooth Brome/K. Bluegrass",2600]
[null,null,null,null,null,null,null,null,null,"Cl63B-Kentucky Bluegrass",1700]
[null,null,null,null,null,null,null,null,null,"Cl63B-Annual/Perennial Pioneer",500]
[null,null,null,null,null,null,null,null,null,"ClO63B-Western/Bluestem/Needlegr.",3000]
[null,null,null,null,null,null,null,null,null,"ClO63B-Western Wheatgrass",2000]
[null,null,null,null,null,null,null,null,null,"ClO63B-Western/Bluestem/Needlegr/inv",3000]
[null,null,null,null,null,null,null,null,null,"ClO63B-Western/Bluegrass/invasion",2300]
[null,null,null,null,null,null,null,null,null,"ClO63B-Smooth Brome/K. Bluegrass",2800]
[null,null,null,null,null,null,null,null,null,"ClO63B-K. Bluegrass/Smooth Brome",1800]
[null,null,null,null,null,null,null,null,null,"ClO63B-Annual/Perennial Pioneer",700]
[null,null,null,null,null,null,null,null,null,"SwCl63B-Needlegrass/Bluestem/Western",2200]
[null,null,null,null,null,null,null,null,null,"SwCl63B-Western/Blue grama/Buffalo",1500]
[null,null,null,null,null,null,null,null,null,"SwCl63B-Sedge/Grama/Buffalo Sod",900]
[null,null,null,null,null,null,null,null,null,"SwCl63B-Tree Encroachment",1400]
[null,null,null,null,null,null,null,null,null,"SwCl63B-Smooth Brome/K. Bluegrass",1000]
[null,null,null,null,null,null,null,null,null,"SwCl63B-Annual/Perennial Pioneer/Inv.",500]
[null,null,null,null,null,null,null,null,null,"DCl63B-Western Wheatgrass",1800]
[null,null,null,null,null,null,null,null,null,"DCl63B-Western Wheatgrass/Bare Gr.",1200]
[null,null,null,null,null,null,null,null,null,"DCl63B-Invaded Western Wheatgrass",1400]
[null,null,null,null,null,null,null,null,null,"DCl63B-Western/Annual Brome/Bare Gr.",1000]
[null,null,null,null,null,null,null,null,null,"TClp63B-Western Wheat/Blue Grama",1500]
[null,null,null,null,null,null,null,null,null,"TClp63B-Blue Grama/Saltgrass/Western",900]
[null,null,null,null,null,null,null,null,null,"TClp63B-Cactus/Saltgrass/Blue Grama",600]
[null,null,null,null,null,null,null,null,null,"Clp63B-Western/Gr. Needle/Grama",2000]
[null,null,null,null,null,null,null,null,null,"Clp63B-Blue Grama/Western",1500]
[null,null,null,null,null,null,null,null,null,"Clp63B-Invaded B. Grama/Western",1500]
[null,null,null,null,null,null,null,null,null,"Clp63B-Inv.Western/Needlegr/Grama",2000]
[null,null,null,null,null,null,null,null,null,"Clp63B-Blue Grama/Buffalo Sod",1200]
[null,null,null,null,null,null,null,null,null,"Clp63B-Threeawns/Annuals",600]
[null,null,null,null,null,null,null,null,null,"Clp63B-Smooth Brome/K. Bluegrass",2000]
[null,null,null,null,null,null,null,null,null,"Clp63B-Kentucky Bluegrass",1300]
[null,null,null,null,null,null,null,null,null,"Clp63B-Annual/Pioneer, Non-Native",400]
[null,null,null,null,null,null,null,null,null,"CD63B-Western Wheatgrass",3500]
[null,null,null,null,null,null,null,null,null,"CD63B-Grass-likes/Forbs",3500]
[null,null,null,null,null,null,null,null,null,"CD63B-Western Wheat/Saltgrass",2200]
[null,null,null,null,null,null,null,null,null,"CD63B-Foxtail Barley/Inland Saltgrass",1200]
[null,null,null,null,null,null,null,null,null,"CD63B-Introduced Forbs/Foxtail Barley",500]
[null,null,null,null,null,null,null,null,null,"Lo63B-Western/Needlegrass/Bluestem",3000]
[null,null,null,null,null,null,null,null,null,"Lo63B-Western/B. Grama/Buffalograss",2300]
[null,null,null,null,null,null,null,null,null,"Lo63B-Western/Needlegr/Bluestem/Inv.",2000]
[null,null,null,null,null,null,null,null,null,"Lo63B-Western/Grama/Buffalo/Invaded",2100]
[null,null,null,null,null,null,null,null,null,"Lo63B-Blue Grama/Buffalograss Sod",1500]
[null,null,null,null,null,null,null,null,null,"Lo63B-Threeawns/Annuals",800]
[null,null,null,null,null,null,null,null,null,"Lo63B-Smooth Brome/K. Bluegrass",2400]
[null,null,null,null,null,null,null,null,null,"Lo63B-Kentucky Bluegrass",1600]
[null,null,null,null,null,null,null,null,null,"Lo63B-Annual/Pioneer/ Non-Native",500]
[null,null,null,null,null,null,null,null,null,"LoO63B-Big Bluestem/Needlegrass",3400]
[null,null,null,null,null,null,null,null,null,"LoO63B-Western/Needlegrass/Bluestem",3000]
[null,null,null,null,null,null,null,null,null,"LoO63B-Snowberry/Plum/Chokech/Grass",1750]
[null,null,null,null,null,null,null,null,null,"LoO63B-Green Ash/Box Elder/Shrubs",700]
[null,null,null,null,null,null,null,null,null,"LoO63B-Invaded Big Blue/Needlegrass",3000]
[null,null,null,null,null,null,null,null,null,"LoO63B-Western/K. Bluegrass/Big Blue",2800]
[null,null,null,null,null,null,null,null,null,"LoO63B-K. Bluegrass/Smooth Brome/Shrubs",2800]
[null,null,null,null,null,null,null,null,null,"LoO63B-Kentucky Bluegrass Sod/Forbs",1800]
[null,null,null,null,null,null,null,null,null,"LoO63B-Annual/Pioneer/Non-Native",500]
[null,null,null,null,null,null,null,null,null,"LoO63B-Woody Dominated",500]
[null,null,null,null,null,null,null,null,null,"ThUp63B-Bluestem/Needlegrass",2400]
[null,null,null,null,null,null,null,null,null,"ThUp63B-Bluestem/Grama",1900]
[null,null,null,null,null,null,null,null,null,"ThUp63B-Blue Grama/Kentucky Bluegrass",800]
[null,null,null,null,null,null,null,null,null,"ThUp63B-Sedge/Grama ",1200]
[null,null,null,null,null,null,null,null,null,"Sw63B-Bluestem/Needlegrass",2200]
[null,null,null,null,null,null,null,null,null,"Sw63B-Bluestem/Needlegrass/Grama",1500]
[null,null,null,null,null,null,null,null,null,"Sw63B-Sedge/Grama",900]
[null,null,null,null,null,null,null,null,null,"VSw63B-Needlegrass/Grama/Western",1500]
[null,null,null,null,null,null,null,null,null,"VSw63B-Sedge/Grama/Needlegrass",1000]
[null,null,null,null,null,null,null,null,null,"VSw63B-Inv. Needlegr/Grama/Western",1300]
[null,null,null,null,null,null,null,null,null,"VSw63B-Needlegrass/Ann. Brome/Sedge",700]
[null,null,null,null,null,null,null,null,null,"SaLo63B-Cordgrass/Wheatgrass/Alkaligr.",3500]
[null,null,null,null,null,null,null,null,null,"SaLo63B-Wheatgrass/Foxtail Barley/Saltgr.",2500]
[null,null,null,null,null,null,null,null,null,"SaLo63B-Wheatgrass/Alkaligrass",3000]
[null,null,null,null,null,null,null,null,null,"SaLo63B-Foxtail Barley/Inland Saltgrass",1600]
[null,null,null,null,null,null,null,null,null,"SaLo63B-Annual/Pioneer Perennials",700]
[null,null,null,null,null,null,null,null,null,"BSh73-Big Blue/Little Blue/Sideoats",2500]
[null,null,null,null,null,null,null,null,null,"BSh73-Sideoats/B. Grama/Little Blue",2000]
[null,null,null,null,null,null,null,null,null,"BSh73-Blue Grama/Buffalo/Sand Drop",1500]
[null,null,null,null,null,null,null,null,null,"BSh73-Blue Grama/Buffalo/Threeawn",800]
[null,null,null,null,null,null,null,null,null,"BSh73-Annuals/Ann. Bromes/P. Pear",350]
[null,null,null,null,null,null,null,null,null,"BSh73-Brush Invasion",800]
[null,null,null,null,null,null,null,null,null,"BSh73-Silver Bluestem Invasion",700]
[null,null,null,null,null,null,null,null,null,"ClTe73-Big Blue/Sideoats/Western",3500]
[null,null,null,null,null,null,null,null,null,"ClTe73-Western/Buffalo/Grama/Rem. Tall",2000]
[null,null,null,null,null,null,null,null,null,"ClTe73-Buffalo/Ragweed/Little Barley",1000]
[null,null,null,null,null,null,null,null,null,"ClTe73-Annuals",400]
[null,null,null,null,null,null,null,null,null,"ClTe73-Brush Invasion",800]
[null,null,null,null,null,null,null,null,null,"ClTe73-Silver Bluestem Invasion",700]
[null,null,null,null,null,null,null,null,null,"GH73-Big-Sand Blue/Sideoats/B. Grama",2000]
[null,null,null,null,null,null,null,null,null,"GH73-Sideoats/B. Grama/Little Blue",1350]
[null,null,null,null,null,null,null,null,null,"GH73-Decadent Plants",1400]
[null,null,null,null,null,null,null,null,null,"GH73-Blue Grama/Buffalo/Soapweed",700]
[null,null,null,null,null,null,null,null,null,"GH73-Annuals",400]
[null,null,null,null,null,null,null,null,null,"GH73-Cedar/Brush Encroachment",600]
[null,null,null,null,null,null,null,null,null,"ClUp73-Big Blue/Little Blue/Sideoats",2500]
[null,null,null,null,null,null,null,null,null,"ClUp73-Sideoats/B. Grama/Western",2000]
[null,null,null,null,null,null,null,null,null,"ClUp73-Blue Grama/Western/Buffalo",1000]
[null,null,null,null,null,null,null,null,null,"ClUp73-Brush Invasion",600]
[null,null,null,null,null,null,null,null,null,"ClUp73-Silver Bluestem Invasion",500]
[null,null,null,null,null,null,null,null,null,"ClUp73-Broken Sod/Threeawns/Annuals",400]
[null,null,null,null,null,null,null,null,null,"CUD73-Western Wheat/Blue Grama",2000]
[null,null,null,null,null,null,null,null,null,"CUD73-Buffalograss/Blue Grama",1200]
[null,null,null,null,null,null,null,null,null,"CUD73-Excessive Litter/Western",2000]
[null,null,null,null,null,null,null,null,null,"CUD73-Spikerush ",1000]
[null,null,null,null,null,null,null,null,null,"CUD73-Ragweed",500]
[null,null,null,null,null,null,null,null,null,"LiU73-Big Blue/LittleBlue/Sideoats",2600]
[null,null,null,null,null,null,null,null,null,"LiU73-Little Blue/Sideoats",2200]
[null,null,null,null,null,null,null,null,null,"LiU73-Blue Grama/Little Bluestem",1300]
[null,null,null,null,null,null,null,null,null,"LiU73-Blue Grama/Western Wheat",1500]
[null,null,null,null,null,null,null,null,null,"LiU73-Blue Grama/Buffalograss sod",700]
[null,null,null,null,null,null,null,null,null,"LiU73-Annuals/Red. Cover/Erosion ",400]
[null,null,null,null,null,null,null,null,null,"LiU73-Red Cedar/Brush Encroachment",1000]
[null,null,null,null,null,null,null,null,null,"LoLo73-Big Blue/Switch/Indiangrass",4500]
[null,null,null,null,null,null,null,null,null,"LoLo73-Big Blue/Western/Tall Dropseed",4000]
[null,null,null,null,null,null,null,null,null,"LoLo73-Western/Tall Dropseed",3000]
[null,null,null,null,null,null,null,null,null,"LoLo73-Western Wheatgr/Blue Grama",2000]
[null,null,null,null,null,null,null,null,null,"LoLo73-Woody Invasion",1200]
[null,null,null,null,null,null,null,null,null,"LoLo73-Silver Bluestem Invasion",1000]
[null,null,null,null,null,null,null,null,null,"LoLo73-Annuals/Thistle/Bare Ground",600]
[null,null,null,null,null,null,null,null,null,"LoTe73-Big Blue/Switch/Indiangrass",3500]
[null,null,null,null,null,null,null,null,null,"LoTe73-Western/Tall Drop/Big Blue",2800]
[null,null,null,null,null,null,null,null,null,"LoTe73-Tall Drop/Western/Rem. Tallgr.",2000]
[null,null,null,null,null,null,null,null,null,"LoTe73-Blue grama/Buffalo/Western",2000]
[null,null,null,null,null,null,null,null,null,"LoT373-Brush Invasion",1200]
[null,null,null,null,null,null,null,null,null,"LoTe73-Silver Bluestem Invasion",500]
[null,null,null,null,null,null,null,null,null,"LoTe73-Annuals",600]
[null,null,null,null,null,null,null,null,null,"LoUp73-Big Bluestem/Little Bluestem",3500]
[null,null,null,null,null,null,null,null,null,"LoUp73-Sideoats/Blue Grama/Western",2600]
[null,null,null,null,null,null,null,null,null,"LoUp73-Blue Grama/Buffalo/Western",1800]
[null,null,null,null,null,null,null,null,null,"LoUp73-Buffalo/Blue Grama Sod/P. Pear",800]
[null,null,null,null,null,null,null,null,null,"LoUp73-Decadent Plants",2500]
[null,null,null,null,null,null,null,null,null,"LoUp73-Eastern Red Cedar",1000]
[null,null,null,null,null,null,null,null,null,"LoUp73-Silver Bluestem Invasion",700]
[null,null,null,null,null,null,null,null,null,"Sa73-Sand Bluestem/Switchgrass",2000]
[null,null,null,null,null,null,null,null,null,"Sa73-Prairie Sandreed/Blue Grama",1800]
[null,null,null,null,null,null,null,null,null,"Sa73-Blue Grama/Sand Sagebrush",900]
[null,null,null,null,null,null,null,null,null,"Sa73-Sand Sagebrush",800]
[null,null,null,null,null,null,null,null,null,"Sa73-Large Blowout",100]
[null,null,null,null,null,null,null,null,null,"Sa73-Annuals",400]
[null,null,null,null,null,null,null,null,null,"Sa73-Early Perennial",200]
[null,null,null,null,null,null,null,null,null,"Sa73-Excessive Litter",1000]
[null,null,null,null,null,null,null,null,null,"Sy73-Sand Blue/Sideoats/Little Blue",2100]
[null,null,null,null,null,null,null,null,null,"Sy73-Sideoats/Little Blue/Blue Grama",1800]
[null,null,null,null,null,null,null,null,null,"Sy73-Sand Sagebrush/Remnant Grass",900]
[null,null,null,null,null,null,null,null,null,"Sy73-Excessive Litter",1000]
[null,null,null,null,null,null,null,null,null,"Sy73-Annuals",300]
[null,null,null,null,null,null,null,null,null,"Sy73-Early Perennial",500]
[null,null,null,null,null,null,null,null,null,"SyLo73-Sand Blue/Tall Grasses",3500]
[null,null,null,null,null,null,null,null,null,"SyLo73-Western/Little Blue/Sideoats",2500]
[null,null,null,null,null,null,null,null,null,"SyLo73-Western Wheat/Western Ragw.",2000]
[null,null,null,null,null,null,null,null,null,"SyLo73-Annuals",300]
[null,null,null,null,null,null,null,null,null,"SyLo73-Brush Invasion",1200]
[null,null,null,null,null,null,null,null,null,"SwLi73-Big Blue/Little Blue/Sideoats",1750]
[null,null,null,null,null,null,null,null,null,"SwLi73-Little Blue/Sideoats",1650]
[null,null,null,null,null,null,null,null,null,"SwLi73-Blue Grama/Little Bluestem",1150]
[null,null,null,null,null,null,null,null,null,"SwLi73-Blue Grama/Buffalograss Sod",550]
[null,null,null,null,null,null,null,null,null,"SwLi73-Annuals/Red. Cover/Erosion ",600]
[null,null,null,null,null,null,null,null,null,"SwLi73-Decadent Plants",1200]
[null,null,null,null,null,null,null,null,null,"SwLi73-Eastern Red Cedar",1000]
[null,null,null,null,null,null,null,null,null,"Wetland73 - HCPC",5000]
[null,null,null,null,null,null,null,null,null,"Wetland73 - Phragmites",4000]
[null,null,null,null,null,null,null,null,null,"Wetland73 - Woody Invasion",2000]
[null,null,null,null,null,null,null,null,null,"Wetland - "]
[null,null,null,null,null,null,null,null,null,"Wetland - "]
[null,null,null,null,null,null,null,null,null,"Loess Breaks73 -HCPC",2100]
[null,null,null,null,null,null,null,null,null,"Loess Breaks73 - Mixed Grass Dom.",1500]
[null,null,null,null,null,null,null,null,null,"Loess Breaks73 - Short Grass Dom",800]
[null,null,null,null,null,null,null,null,null,"Loess Breaks73 - Annuals",650]
[null,null,null,null,null,null,null,null,null,"Loess Breaks73 - Brush Invasion",1000]
[null,null,null,null,null,null,null,null,null,"Loess Breaks - "]
[null,null,null,null,null,null,null,null,null,"Loess Breaks - "]
[null,null,null,null,null,null,null,null,null,"Silty Overflow73 - HCPC",2600]
[null,null,null,null,null,null,null,null,null,"Silty Overflow73 - Western Dom.",1750]
[null,null,null,null,null,null,null,null,null,"Silty Overflow73 - Short Grass",1250]
[null,null,null,null,null,null,null,null,null,"Silty Overflow73 - Annuals",800]
[null,null,null,null,null,null,null,null,null,"Silty Overflow73 - Brush Invasion",1450]
[null,null,null,null,null,null,null,null,null,"Silty Overflow - "]
[null,null,null,null,null,null,null,null,null,"Silty Overflow - "]
[null,null,null,null,null,null,null,null,null,"Clayey Overflow73 - HCPC",2300]
[null,null,null,null,null,null,null,null,null,"Clayey Overflow73 - Western",1500]
[null,null,null,null,null,null,null,null,null,"Clayey Overflow73 - Short Grass",1000]
[null,null,null,null,null,null,null,null,null,"Clayey Overflow73 - Annuals",750]
[null,null,null,null,null,null,null,null,null,"Clayey Overflow73 - Brush Invasion",1200]
[null,null,null,null,null,null,null,null,null,"Clayey Overflow - "]
[null,null,null,null,null,null,null,null,null,"Clayey Overflow - "]
[null,null,null,null,null,null,null,null,null,"Clayey Overflow - "]
[null,null,null,null,null,null,null,null,null,"Clayey73 - HCPC",2400]
[null,null,null,null,null,null,null,null,null,"Clayey73 - Mid Grass Dominant",1700]
[null,null,null,null,null,null,null,null,null,"Clayey73 - Short Grass Dominant",1000]
[null,null,null,null,null,null,null,null,null,"Clayey73 - Annuals",700]
[null,null,null,null,null,null,null,null,null,"Clayey73 - Brush Invasion",900]
[null,null,null,null,null,null,null,null,null,"Clayey - "]
[null,null,null,null,null,null,null,null,null,"Clayey - "]
[null,null,null,null,null,null,null,null,null,"Clayey - "]
[null,null,null,null,null,null,null,null,null,"Choppy Sands73 - HCPC",2300]
[null,null,null,null,null,null,null,null,null,"Choppy Sands73 - Mid Grass Dom.",1600]
[null,null,null,null,null,null,null,null,null,"Choppy Sands73 - Short Grass Dom",1000]
[null,null,null,null,null,null,null,null,null,"Choppy Sands73 - Annuals",250]
[null,null,null,null,null,null,null,null,null,"Choppy Sands73 - Large Blowout",100]
[null,null,null,null,null,null,null,null,null,"Choppy Sands73 - Pioneer Perenn.",550]
[null,null,null,null,null,null,null,null,null,"Choppy Sands - "]
[null,null,null,null,null,null,null,null,null,"Choppy Sands - "]
[null,null,null,null,null,null,null,null,null,"Choppy Sands - "]
[null,null,null,null,null,null,null,null,null,"Subirrigated73 - HCPC",4500]
[null,null,null,null,null,null,null,null,null,"Subirrigated73 - Mid &Tall Grasses",3000]
[null,null,null,null,null,null,null,null,null,"Subirrigated73 - Mid Grass Dom.",2500]
[null,null,null,null,null,null,null,null,null,"Subirrigated73- Short Grass Dom.",1800]
[null,null,null,null,null,null,null,null,null,"Subirrigated73 - Annuals / Pioneer",1500]
[null,null,null,null,null,null,null,null,null,"Subirrigated73 - Invasive Grasses",2500]
[null,null,null,null,null,null,null,null,null,"Subirrigated73 - Brush Invasion ",1800]
[null,null,null,null,null,null,null,null,null,"Subirrigated"]
[null,null,null,null,null,null,null,null,null,"Subirrigated"]
[null,null,null,null,null,null,null,null,null,"Saline Lowland73 - HCPC",3100]
[null,null,null,null,null,null,null,null,null,"Saline Lowland73 - Mid Grass Dom",2200]
[null,null,null,null,null,null,null,null,null,"Saline Lowland73 - Short Grass Dom",1250]
[null,null,null,null,null,null,null,null,null,"Saline Lowland73 - Annuals",1000]
[null,null,null,null,null,null,null,null,null,"Saline Lowland73 - Invasive Grass",2000]
[null,null,null,null,null,null,null,null,null,"Saline Lowland73 - Brush Invasion",1500]
[null,null,null,null,null,null,null,null,null,"Saline Lowland - "]
[null,null,null,null,null,null,null,null,null,"Saline Lowland - "]
[null,null,null,null,null,null,null,null,null,"Saline Lowland - "]
[null,null,null,null,null,null,null,null,null,"SaSb73-HCPC",3100]
[null,null,null,null,null,null,null,null,null,"SaSb73-Mid Grass Dominant",2200]
[null,null,null,null,null,null,null,null,null,"SaSb73-Short Grass Dominant",1250]
[null,null,null,null,null,null,null,null,null,"SaSb73-Annuals/Pioneer Perenn.",1000]
[null,null,null,null,null,null,null,null,null,"SaSb73-Invasive grasses",2000]
[null,null,null,null,null,null,null,null,null,"SaSb73-Brush Invasion",1500]
[null,null,null,null,null,null,null,null,null,"SaSb - "]
[null,null,null,null,null,null,null,null,null,"SaSb - "]
[null,null,null,null,null,null,null,null,null,"SaSb - "]
[null,null,null,null,null,null,null,null,null,"SaSb - "]
[null,null,null,null,null,null,null,null,null,"LiU71-Big Blue/Little Blue/Sideoats",2625]
[null,null,null,null,null,null,null,null,null,"LiU71-Sideoats/Little Blue/B. Grama",2200]
[null,null,null,null,null,null,null,null,null,"LiU71-Sideoats/B Grama/Western",1800]
[null,null,null,null,null,null,null,null,null,"LiU71-Decadent Plants",1700]
[null,null,null,null,null,null,null,null,null,"LiU71-Blue Grama/K. Bluegrass sod",700]
[null,null,null,null,null,null,null,null,null,"LiU71-Eastern Red Cedar",500]
[null,null,null,null,null,null,null,null,null,"LiU71-Smooth Brome",2000]
[null,null,null,null,null,null,null,null,null,"LoLo71-Big Blue/Little Blue/Western",3750]
[null,null,null,null,null,null,null,null,null,"LoLo71-Big Blue / Western Wheat",2700]
[null,null,null,null,null,null,null,null,null,"LoLo71-Grama/K Bluegrass/Ragweed",1650]
[null,null,null,null,null,null,null,null,null,"LoLo71-Annuals",700]
[null,null,null,null,null,null,null,null,null,"LoLo71-Tree Overstory",1000]
[null,null,null,null,null,null,null,null,null,"LoLo71-Eastern Red Cedar",1500]
[null,null,null,null,null,null,null,null,null,"LoLo71-Smooth Bromegrass",2500]
[null,null,null,null,null,null,null,null,null,"LoLo71-Seeded",3000]
[null,null,null,null,null,null,null,null,null,"LoLo71-Go back",1200]
[null,null,null,null,null,null,null,null,null,"LoUp71-Big Blue/Little Blue/Sideoats",3125]
[null,null,null,null,null,null,null,null,null,"LoUP71-Sideoats/Blue Grama/Western",2600]
[null,null,null,null,null,null,null,null,null,"LoUp71-Blue Grama/K.Bluegrass",1650]
[null,null,null,null,null,null,null,null,null,"LoUp71-Annuals",700]
[null,null,null,null,null,null,null,null,null,"LoUp71-Woody Draw",500]
[null,null,null,null,null,null,null,null,null,"LoUP71-Red Cedar/Deciduous Trees",1200]
[null,null,null,null,null,null,null,null,null,"LoUp71-Smooth Bromegrass",2500]
[null,null,null,null,null,null,null,null,null,"LoUp71-Seeded",3000]
[null,null,null,null,null,null,null,null,null,"LoUp71-Go back",1000]
[null,null,null,null,null,null,null,null,null,"Sa71-Bluestem/Sandreed ",2700]
[null,null,null,null,null,null,null,null,null,"Sa71-Bluestem/Sandreed/Switch",2000]
[null,null,null,null,null,null,null,null,null,"Sa71-Sandreed/Ragweed",1800]
[null,null,null,null,null,null,null,null,null,"Sa71-Excessive Litter",1900]
[null,null,null,null,null,null,null,null,null,"Sa71-Grama/Sedge Sod",1350]
[null,null,null,null,null,null,null,null,null,"Sa71-Eastern Red Cedar",1350]
[null,null,null,null,null,null,null,null,null,"Sa71-Go-back",700]
[null,null,null,null,null,null,null,null,null,"Sa71-Active Blowout",250]
[null,null,null,null,null,null,null,null,null,"Sa71-Annual/Pioneer Perennial",500]
[null,null,null,null,null,null,null,null,null,"Sb71-Bluestem/Indian/Switch",5100]
[null,null,null,null,null,null,null,null,null,"Sb71-Bluestem/Switch/Cordgrass",4000]
[null,null,null,null,null,null,null,null,null,"Sb71-K. Bluegrass/Smooth Brome",3250]
[null,null,null,null,null,null,null,null,null,"Sb71-Reed Canary/Creeping Foxt.",3000]
[null,null,null,null,null,null,null,null,null,"Sb71-Decid. Trees/Red Cedar",1500]
[null,null,null,null,null,null,null,null,null,"LB71-Little Blue/Big Blue/Sideoats",2125]
[null,null,null,null,null,null,null,null,null,"LB71-Little Bluestem/Sideoats",1750]
[null,null,null,null,null,null,null,null,null,"LB71-Gramas/Little Blue/Forbs",1300]
[null,null,null,null,null,null,null,null,null,"LB71-Decadent Plants",1500]
[null,null,null,null,null,null,null,null,null,"LB71-Red Cedar/Shrubs",1200]
[null,null,null,null,null,null,null,null,null,"LB71-Blue Grama/K Bluegrass",1000]
[null,null,null,null,null,null,null,null,null,"LB71-Annuals",600]
[null,null,null,null,null,null,null,null,null,"LoLo75-Big Blue/Little Blue/Indian",4000]
[null,null,null,null,null,null,null,null,null,"LoLo75-Big Blue/Little Blue/Grama",3500]
[null,null,null,null,null,null,null,null,null,"LoLo75-Blue Grama/Bluegrass",2500]
[null,null,null,null,null,null,null,null,null,"LoLo75-Smooth Bromegrass",2800]
[null,null,null,null,null,null,null,null,null,"LoLo75-Seeded Pasture",3000]
[null,null,null,null,null,null,null,null,null,"LoLo75-Abandoned Farmland",1000]
[null,null,null,null,null,null,null,null,null,"LoLo75-Red Cedar/Deciduous",1500]
[null,null,null,null,null,null,null,null,null,"Cy75-Big Blue/Little Blue/Indian",3500]
[null,null,null,null,null,null,null,null,null,"Cy75-Big Bluestem/Little Bluestem",3100]
[null,null,null,null,null,null,null,null,null,"Cy75-Blue Grama/K.Bluegrass",2200]
[null,null,null,null,null,null,null,null,null,"Cy75-Smooth Bromegrass",2700]
[null,null,null,null,null,null,null,null,null,"Cy75-Seeded Pasture",2800]
[null,null,null,null,null,null,null,null,null,"Cy75-Abandoned Farmland",1000]
[null,null,null,null,null,null,null,null,null,"Cy75-Eastern Red Cedar",1300]
[null,null,null,null,null,null,null,null,null,"LoUp75-Big Blue/Little Blue/Indian",3600]
[null,null,null,null,null,null,null,null,null,"LoUp75-Big Blue/Little Blue",3200]
[null,null,null,null,null,null,null,null,null,"LoUP75-Little Blue/Sideoats",3200]
[null,null,null,null,null,null,null,null,null,"LoUp75-Tall Drop/Blue Grama/Bluegr.",2300]
[null,null,null,null,null,null,null,null,null,"LoUp75-Smooth Bromegrass",2700]
[null,null,null,null,null,null,null,null,null,"LoUp75-Seeded Pasture",3600]
[null,null,null,null,null,null,null,null,null,"LoUp75-Abandoned Farmland",1000]
[null,null,null,null,null,null,null,null,null,"LoUp75-Eastern Red Cedar",1500]
[null,null,null,null,null,null,null,null,null,"LoO75-Big Blue/Little Blue/Indian",4000]
[null,null,null,null,null,null,null,null,null,"LoO75-Big Blue/Little Blue/Gramas",3500]
[null,null,null,null,null,null,null,null,null,"LoO75-Blue Grama/Bluegrass",2500]
[null,null,null,null,null,null,null,null,null,"LoO75-Smooth Bromegrass",2750]
[null,null,null,null,null,null,null,null,null,"LoO75-Seeded Pasture",3200]
[null,null,null,null,null,null,null,null,null,"LoO75-Abandoned Farmland",1000]
[null,null,null,null,null,null,null,null,null,"LoO75-Tree Overstory",800]
[null,null,null,null,null,null,null,null,null,"SwL75-Little Blue/Big Blue/Sideoats",2400]
[null,null,null,null,null,null,null,null,null,"SwL75-Sideoats/Remnant Bluestem",2200]
[null,null,null,null,null,null,null,null,null,"SwL75-Blue Grama/K.Bluegrass",1250]
[null,null,null,null,null,null,null,null,null,"SwL75-Smooth Bromegrass",2300]
[null,null,null,null,null,null,null,null,null,"SwL75-Red Cedar/Decid. Trees",1200]
[null,null,null,null,null,null,null,null,null,"LiU102C-Big Bluestem/Sideoats",3000]
[null,null,null,null,null,null,null,null,null,"LiU102C-Little Bluestem/Sideoats",2450]
[null,null,null,null,null,null,null,null,null,"LiU102C-Subdom. Brome/Bluegrass",2100]
[null,null,null,null,null,null,null,null,null,"LiU75102C-Co-dom. Brome/Bluegr.",1750]
[null,null,null,null,null,null,null,null,null,"LiU102C-Smooth Brome/K.Bluegrass",2300]
[null,null,null,null,null,null,null,null,null,"LiU102C-Annual/Pioneer Perennials",400]
[null,null,null,null,null,null,null,null,null,"LiU102C-Evergreen Dominant",1000]
[]
[null,null,null,null,null,null,null,null,null,"LoU102C-Big & Little Bluestem",3500]
[null,null,null,null,null,null,null,null,null,"LoU102C-Little Blue/Sideoats Gr.",3000]
[null,null,null,null,null,null,null,null,null,"LoU102C-Subdom. Brome/Bluegrass",2700]
[null,null,null,null,null,null,null,null,null,"LoU102C-Co-dom. Brome/Bluegrass",2400]
[null,null,null,null,null,null,null,null,null,"LoU102C-S Brome/K Bluegrass",2750]
[null,null,null,null,null,null,null,null,null,"LoU102C-Red Cedar Dominant",1000]
[null,null,null,null,null,null,null,null,null,"LoU102C-Annual/Pioneer Perennial",400]
[]
[null,null,null,null,null,null,null,null,null,"LoLo102C-Big & Little Bluestem",4000]
[null,null,null,null,null,null,null,null,null,"LoLo102C-Little Blue / Sideoats",3200]
[null,null,null,null,null,null,null,null,null,"LoLo102C-Subdom. Brome/Bluegrass",2650]
[null,null,null,null,null,null,null,null,null,"LoLo102C-CoDom. Brome/Bluegrass",2150]
[null,null,null,null,null,null,null,null,null,"LoLo102C-Sm. Brome/Bluegrass",2800]
[null,null,null,null,null,null,null,null,null,"LoLo102C-Eastern Red Cedar",600]
[null,null,null,null,null,null,null,null,null,"LoLo102C-Annual/Pioneer Perennial",1000]
[null,null,null,null,null,null,null,null,null,"LoO102C-Big & Little Bluestem",3200]
[null,null,null,null,null,null,null,null,null,"LoO102C-Sideoats/ Dropseed",2600]
[null,null,null,null,null,null,null,null,null,"LoO102C-SubDom. Brome/Bluegrass",2500]
[null,null,null,null,null,null,null,null,null,"LoO102C-CoDom. Brome/Bluegrass",2350]
[null,null,null,null,null,null,null,null,null,"LoO102C-S. Brome/K. Bluegreas",2400]
[null,null,null,null,null,null,null,null,null,"LoO102C-Deciduous Overstory",1000]
[null,null,null,null,null,null,null,null,null,"LoO102C-Annual/Pioneer",900]
[null,null,null,null,null,null,null,null,null,"LU102C-Little & Big Bluestem",2400]
[null,null,null,null,null,null,null,null,null,"LU102C-Little Bluestem/ Sideoats",2100]
[null,null,null,null,null,null,null,null,null,"LU102C-Native w/subdom. Invasives",1600]
[null,null,null,null,null,null,null,null,null,"LU102C-Bur Oak/E Red Cedar",800]
[]
[null,null,null,null,null,null,null,null,"_106 Loamy Upland","Sb102C-Big & Little Bluestem",5100]
[null,null,null,null,null,null,null,null,"_106 Shallow Limy","Sb102C-Cordgrass/Big Bluestem",3500]
[null,null,null,null,null,null,null,null,null,"Sb102C-Subdom S. Brome/Reed Canary",2550]
[null,null,null,null,null,null,null,null,null,"Sb102C-Codom. S. Brome/Reed Canary",2000]
[null,null,null,null,null,null,null,null,null,"Sb102C- S. Brome/Reed Canary",2100]
[null,null,null,null,null,null,null,null,null,"Sb102C-Annual Pioneer Perennial",1000]
[null,null,null,null,null,null,null,null,null,"Sb102C-Native Deciduous Overstory",1000]
[null,null,null,null,null,null,null,null,null,"CyU106-Big Blue/Indiangrass",3800]
[null,null,null,null,null,null,null,null,null,"CyU106-Sideoats/Little Blue",3400]
[null,null,null,null,null,null,null,null,null,"CyU106-Blue Grama/Brome/Fescue",2400]
[null,null,null,null,null,null,null,null,null,"CyU106-Brome/Fescue - managed",2900]
[null,null,null,null,null,null,null,null,null,"CyU106-Brome/Fescue-unmanaged",2200]
[null,null,null,null,null,null,null,null,null,"CyU106-Abandoned Farmland",1200]
[null,null,null,null,null,null,null,null,null,"CyU106-Cedar/Deciduous/Shrub",1300]
[null,null,null,null,null,null,null,null,null,"LoLo106-Big Bluestem/Indiangrass",4600]
[null,null,null,null,null,null,null,null,null,"LoLo106-Sideoats/Little Bluestem",3500]
[null,null,null,null,null,null,null,null,null,"LoLo106-Dropseeds/Introduced",2600]
[null,null,null,null,null,null,null,null,null,"LoLo106-Smooth Brome / Fescue",3100]
[null,null,null,null,null,null,null,null,null,"LoLo106-Abandoned Farmland",1600]
[null,null,null,null,null,null,null,null,null,"LoLo106-Red Cedar/Deciduous",1200]
[null,null,null,null,null,null,null,null,null,"LoO106-Big Blue/Indiangrass",4000]
[null,null,null,null,null,null,null,null,null,"LoO106-Sideoats/Little Blue",2900]
[null,null,null,null,null,null,null,null,null,"LoO106-Dropseeds/Introduced",2000]
[null,null,null,null,null,null,null,null,null,"LoO106-Smooth Brome/Fescue",2500]
[null,null,null,null,null,null,null,null,null,"LoO106-Abandoned Farmland",1250]
[null,null,null,null,null,null,null,null,null,"LoO106-Red Cedar/Deciduous/Shrub",1300]
[null,null,null,null,null,null,null,null,null,"LoU106-Big Bluestem/Indiangrass",4250]
[null,null,null,null,null,null,null,null,null,"LoU106-Sideoats/Little Blue",3700]
[null,null,null,null,null,null,null,null,null,"LoU106-Little Blue/Smooth Brome",2600]
[null,null,null,null,null,null,null,null,null,"LoU106-Brome/Fescue Invaded",2750]
[null,null,null,null,null,null,null,null,null,"LoU106-Seeded Pastureland",3500]
[null,null,null,null,null,null,null,null,null,"LoU106-Abandoned Farmland",1500]
[null,null,null,null,null,null,null,null,null,"LoU106-Cedar/Deciduous/Shrubs",1300]
[null,null,null,null,null,null,null,null,null,"SwL106-Little Blue/Sideoats/Big Blue",3600]
[null,null,null,null,null,null,null,null,null,"SwL106-Sideoats/Little Blue",3200]
[null,null,null,null,null,null,null,null,null,"SwL106-B Grama/K.Bluegrass/Brome",2500]
[null,null,null,null,null,null,null,null,null,"SwL106-Smooth Brome / Fescue",2250]
[null,null,null,null,null,null,null,null,null,"SwL106-Seeded Pastureland",3000]
[null,null,null,null,null,null,null,null,null,"SwL106-Cedar/Deciduous/Shrub",1500]

{"sheet":"DATA2","index":24,"n_rows":182,"n_cols":17,"rows_kept":182,"cut":false,"hidden":false,"merged":[[21,6,21,9]]}
["Ecosite4","Pounds",null,null,null,null,null,null,null,"Apparent Trend Worksheet Data"]
["72 Choppy Sands",1900,null,null,null,null,null,null,null,"Trend Type",null,"Current Precipitation",null,null,"Actual Score",null,"Overall"]
["72 Sands",2100,null,null,null,null,null,null,null,"Range",null,"Above Normal",null,null,2,null,"Toward (>3)"]
["72 Sandy",1950,null,null,null,null,null,null,null,"Planned",null,"Normal",null,null,1,null,"Not Apparent (3 to 0)"]
["72 Sandy Lowland",2100,null,null,null,null,null,null,null,null,null,"Below Normal",null,null,0,null,"Away from (<0)"]
["72 Gravelly Hills",1200,null,null,null,null,null,null,null,null,null,null,null,null,-1]
["72 Shallow Limy",1200,null,null,null,null,null,null,null,null,null,null,null,null,-2]
["72 Limy Upland",1650]
["72 Loamy Upland",1800,null,null,null,null,null,null,null,"Pasture Condition Score Worksheet"]
["72 Loamy Lowland",2400,null,null,null,null,null,null,null,"Score"]
["72 Loess Breaks",1900,null,null,null,null,null,null,null,1]
["72 Siltstone Plains",1400,null,null,null,null,null,null,null,2]
["72 Shallow Siltstone",900,null,null,null,null,null,null,null,3]
["72 Shaly Plains",950,null,null,null,null,null,null,null,4]
["72 Subirrigated",4500,null,null,null,null,null,null,null,5]
["72 Seasonally Wet",4500]
["72 Saline Lowland",2000]
["72 Saline Subirrigated",3000]
["72 Clay Upland",1400]
["72 Closed Upland Depression",1650]
["72 Shale Breaks",800]
["72 Sandstone Breaks",1300,null,null,null,null,"Production Category"]
["67A Clayey",1300,null,null,null,null,1,2,3,4]
["67A Clayey Overflow",2000,null,null,null,"Barley, Spring (HEL)",1600,2000,4500,6300]
["67A Gravelly  ",600,null,null,null,"Barley, Spring (NHEL)",1600,2000,4500,6300]
["67A Gravelly Loamy",1100,null,null,null,"Brassica, Hybrid (HEL)2",2400,3000,3000,4200]
["67A Limy Upland",1250,null,null,null,"Brassica, Hybrid (NHEL)2",2400,3000,3000,4200]
["67A Loamy",1500,null,null,null,"Buckwheat (HEL)",1600,2000,2000,2800]
["67A Loamy Lowland  ",2500,null,null,null,"Buckwheat (NHEL)",1600,2000,2000,2800]
["67A Loamy Overflow",2000,null,null,null,"Cabbage, Ethiopian (HEL)2",2400,3000,3000,4200]
["67A Rocky Hills",800,null,null,null,"Cabbage, Ethiopian (NHEL)2",2400,3000,3000,4200]
["67A Saline Lowland",1500,null,null,null,"Canola/Rapeseed (HEL)",1600,2000,2500,3500]
["67A Saline Subirrigated",3500,null,null,null,"Canola/Rapeseed (NHEL)",1600,2000,2500,3500]
["67A Saline Upland ",700,null,null,null,"Chickling Vetch (HEL)",1600,2000,2000,2800]
["67A Sands  ",1500,null,null,null,"Chickling Vetch (NHEL)",1600,2000,2000,2800]
["67A  Sandy ",1500,null,null,null,"Chickpea (HEL)2",2400,3000,2000,2800]
["67A  Sandy Lowland ",2500,null,null,null,"Chickpea (NHEL)2",2400,3000,2000,2800]
["67A  Shallow Loamy",1100,null,null,null,"Clover, Arrowleaf (HEL)",2400,3000,2000,2800]
["67A  Shallow Sandy",1100,null,null,null,"Clover, Arrowleaf (NHEL)",2400,3000,2000,2800]
["67A  Subirrigated",1650,null,null,null,"Clover, Berseem/Persian (HEL)",4800,6000,5000,7000]
["67A Very Shallow",600,null,null,null,"Clover, Berseem/Persian (NHEL)",4800,6000,5000,7000]
["67A Wetland",5500,null,null,null,"Clover, Crimson (HEL)",2800,3500,2750,3850]
["_65 Sandy 14_17",1900,null,null,null,"Clover, Crimson (NHEL)",2800,3500,2750,3850]
["_65 Sands 14_17",1900,null,null,null,"Clover, Red (HEL)",1600,2000,2500,3500]
["_65 Choppy Sands 14_17",1400,null,null,null,"Clover, Red (NHEL)",1600,2000,2500,3500]
["_65 Wetland",4800,null,null,null,"Clover, Sweet (HEL)",2400,3000,2500,3500]
["_65 Wet Subirrigated",4600,null,null,null,"Clover, Sweet (NHEL)",2400,3000,2500,3500]
["_65 Subirrigated",4580,null,null,null,"Corn (HEL)2",1600,2000,2500,3500]
["_65 Saline Subirrigated",290,null,null,null,"Corn (NHEL)2",1600,2000,2500,3500]
["_65 Sandy 17_22",2400,null,null,null,"Cowpea (HEL)",2000,2500,2250,3150]
["_65 Sands 17_22",2300,null,null,null,"Cowpea (NHEL)",2000,2500,2250,3150]
["_65 Choppy Sands 17_22",2100,null,null,null,"Faba Bean (HEL)2",1600,2000,1750,2450]
["_65 Shallow to Gravel",1000,null,null,null,"Faba Bean (NHEL)2",1600,2000,1750,2450]
["_65 Sandy 22_25",3000,null,null,null,"Flax (HEL)2",2000,2500,2000,2800]
["_65 Sands 22_25",2600,null,null,null,"Flax (NHEL)2",2000,2500,2000,2800]
["_65 Choppy Sands 22_25",2400,null,null,null,"Lentil, Spring (HEL)2",2000,2500,2000,2800]
["_65 Sandy Lowland  17_22",2900,null,null,null,"Lentil, Spring (NHEL)2",2000,2500,2000,2800]
["_66 Closed Depression",3500,null,null,null,"Millet, Foxtail (HEL)2",1600,2000,2000,2800]
["_66 Loamy Overflow",3400,null,null,null,"Millet, Foxtail (NHEL)2",1600,2000,2000,2800]
["_66 Loamy 18_22",2600,null,null,null,"Millet, Pearl (HEL)2",1600,2000,2000,2800]
["_66 Loamy 22_25",3100,null,null,null,"Millet, Pearl (NHEL)2",1600,2000,2000,2800]
["_66 Loamy Terrace",2800,null,null,null,"Millet, Proso (HEL)2",1600,2000,2000,2800]
["_66 Sandy 18_22",2400,null,null,null,"Millet, Proso (NHEL)2",1600,2000,2000,2800]
["_66 Sandy 22_25",3000,null,null,null,"Mixed grasses & Broadleaf (NHEL)",3200,4000,4000,5600]
["_66 Sands 18_22",2300,null,null,null,"Mixed grasses & Broadleaf (HEL)",3200,4000,4000,5600]
["_66 Sands 22_25",2800,null,null,null,"Mixed Cool Broadleaf (HEL)",2400,3000,3000,4200]
["_66 Shallow Limy",1700,null,null,null,"Mixed Cool Broadleaf (NHEL)",2400,3000,3000,4200]
["_66 Shallow to Gravel",1600,null,null,null,"Mixed Warm Season Broadleaf (HEL)",2400,3000,4000,5600]
["_66 Subirrigated",4800,null,null,null,"Mixed Warm Season Broadleaf (NHEL)",2400,3000,4000,5600]
["_66 Saline Subirrigated",2800,null,null,null,"Mixed Winter Small Grains (HEL)",2000,2500,4000,5600]
["_66 Sandy Lowland",2900,null,null,null,"Mixed Winter Small Grains (NHEL)",2000,2500,4000,5600]
["_66 Wetland",4495,null,null,null,"Mustard, Brown, Oriental, Yellow (HEL)",2400,3000,4500,6300]
["_66 Wet Subirrigated",5000,null,null,null,"Mustard, Brown, Oriental, Yellow (HEL)",2400,3000,4500,6300]
["_60A Closed Depression",2200,null,null,null,"Oats (HEL)",1600,2000,5000,7000]
["_60A Wetland",5500,null,null,null,"Oats (NHEL)",1600,2000,5000,7000]
["_60A Subirrigated",4300,null,null,null,"Peas, Spring Field (HEL)",3200,4000,2500,3500]
["_60A Saline Subirrigated",2800,null,null,null,"Peas,Spring Field (NHEL)",3200,4000,2500,3500]
["_60A Saline Lowland",2000,null,null,null,"Peas, Spring Forage (HEL)",3200,4000,2500,3500]
["_60A Saline Upland",600,null,null,null,"Peas, Spring Forage (NHEL)",3200,4000,2500,3500]
["_60A Sands",1900,null,null,null,"Peas, Winter (HEL)",3200,4000,2500,3500]
["_60A Sandy",1800,null,null,null,"Peas, Winter (NHEL)",3200,4000,2500,3500]
["_60A Shallow Sandy",1300,null,null,null,"Phacelia (HEL)",2500,3300,3000,4200]
["_60A Very Shallow",800,null,null,null,"Phacelia (NHEL)",2500,3300,3000,4200]
["_60A Thin Upland",1400,null,null,null,"Radish (HEL)",3200,4000,3500,4900]
["_60A Shallow Loamy",1400,null,null,null,"Radish (NHEL)",3200,4000,3500,4900]
["_60A Loamy 13_16",1900,null,null,null,"Rye, Cereal (HEL)",2400,3000,5000,7000]
["_60A Loamy 16_18",2200,null,null,null,"Rye, Cereal (NHEL)",2400,3000,5000,7000]
["_60A Loamy Terrace",2500,null,null,null,"Ryegrass, Annual (HEL)",1600,2000,4500,6300]
["_60A Loamy Overflow",2800,null,null,null,"Ryegrass, Annual (NHEL)",1600,2000,4500,6300]
["_60A Lowland",3000,null,null,null,"Ryegrass, Italian (HEL)2",1600,2000,2500,3500]
["_60A Clayey Overflow",2500,null,null,null,"Ryegrass, Italian (NHEL)2",1600,2000,2500,3500]
["_60A Clayey 13_16",1800,null,null,null,"Safflower (HEL)2",1600,2000,1750,2450]
["_60A Clayey 16_18",2000,null,null,null,"Safflower (NHEL)2",1600,2000,1750,2450]
["_60A Porous Clay",1500,null,null,null,"Sorghum, grain/forage (HEL)2",3200,4000,3000,4200]
["_60A Shallow Porous Clay",955,null,null,null,"Sorghum, grain/forage (NHEL)2",3200,4000,3000,4200]
["_60A Shallow Clay",1400,null,null,null,"Sudangrass (HEL)2",4000,5000,4000,5600]
["_60A Shallow Dense Clay",900,null,null,null,"Sudangrass (NHEL)2",4000,5000,4000,5600]
["_60A Dense Clay",1300,null,null,null,"Sudan-sorghum hybrid (HEL)",5000,8000,5000,7000]
["_60A Claypan",1400,null,null,null,"Sudan-sorghum hybrid (NHEL)",5000,8000,5000,7000]
["_60A Thin Claypan",900,null,null,null,"Sunflower (HEL)",1600,2000,2000,2800]
["_64 Saline Upland",2800,null,null,null,"Sunflower (NHEL)",1600,2000,2000,2800]
["_64 Wet Subirrigated",5000,null,null,null,"Sunn hemp (HEL)",5000,8000,7000,9800]
["_64 Subirrigated",4300,null,null,null,"Sunn hemp (NHEL)",5000,8000,7000,9800]
["_64 Wetland",5500,null,null,null,"Triticale (HEL)2",2400,3000,4000,5600]
["_64 Loamy Overflow",3000,null,null,null,"Triticale (NHEL)2",2400,3000,4000,5600]
["_64 Clayey Overflow",2500,null,null,null,"Triticale, Spring (HEL)2",2400,3000,4000,5600]
["_64 Loamy Terrace",2600,null,null,null,"Triticale, Spring (NHEL)2",2400,3000,4000,5600]
["_64 Loamy 14_17",1800,null,null,null,"Turnip (HEL)2",2000,2500,2500,3500]
["_64 Clayey 14_17",1800,null,null,null,"Turnip (NHEL)2",2000,2500,2500,3500]
["_64 Sandy 14_17",1600,null,null,null,"Vetch, Common (HEL)2",1750,2300,2500,3500]
["_64 Loamy 17_20",2400,null,null,null,"Vetch, Common (NHEL)2",1750,2300,2500,3500]
["_64 Clayey 17_20",2000,null,null,null,"Vetch, hairy or crown (HEL)",1800,2300,2500,3500]
["_64 Sands",1900,null,null,null,"Vetch, hairy or crown (NHEL)",1800,2300,2500,3500]
["_64 Sandy Lowland",2600,null,null,null,"Vetch, woolypod/Lana (HEL)",3200,4000,4000,5600]
["_64 Saline Lowland",2800,null,null,null,"Vetch, woolypod/Lana (NHEL)",3200,4000,4000,5600]
["_64 Thin Upland",1800,null,null,null,"Wheat, Winter (HEL)",2400,3000,4000,5600]
["_64 Shallow Clay",1600,null,null,null,"Wheat, Winter (NHEL)",2400,3000,4000,5600]
["_64 Shallow ",1500]
["_64 Claypan",1600]
["_64 Dense Clay",1500]
["_64 Thin Claypan",1000]
["_64 Very Shallow",900]
["_64 Badlands Terrace",2100]
["_64 Badlands Overflow",2400]
["_64 Thin Breaks",2500]
["_63B Clayey",2800]
["_63B Clayey Overflow",3000]
["_63B Shallow Clay",2200]
["_63B Dense Clay",1800]
["_63B Thin Claypan",1500]
["_63B Claypan",2000]
["_63B Closed Depression",3500]
["_63B Loamy",3000]
["_63B Loamy Overflow",3400]
["_63B Thin Upland",2400]
["_63B Shallow",2200]
["_63B Very Shallow",1500]
["_63B Saline Lowland",3500]
["_73 Blue Shale",2500]
["_73 Clay Terrace",3500]
["_73 Gravelly Hills",2000]
["_73 Clay Upland",2500]
["_73 Closed Upland Depression",2000]
["_73 Limy Upland",2600]
["_73 Loamy Lowland",4500]
["_73 Loamy Terrace",3500]
["_73 Loamy Upland",3500]
["_73 Sands",2000]
["_73 Sandy",2100]
["_73 Sandy Lowland",3500]
["_73 Shallow Limy",1750]
["_73 Wetland",5000]
["_73 Loess Breaks",2100]
["_73 Silty Overflow",2600]
["_73 Clayey Overflow",2300," "]
["_73 Clayey  ",2400]
["_73 Choppy Sands",2300," "]
["_73 Subirrigated",4500]
["_73 Saline Lowland",3100]
["_73 Saline Subirrigated",3100]
["_71 Limy Upland",2625]
["_71 Loamy Lowland",3750]
["_71 Loamy Upland ",3125]
["_71 Sands",2700]
["_71 Subirrigated",5100]
["_71 Loess Breaks",2125]
["_75 Loamy Lowland",4000]
["_75 Clayey",3500]
["_75 Loamy Upland",3600]
["_75 Loamy Overflow",4000]
["_75 Shallow Limy",2400]
["_102C-Limy Upland",3000]
["_102C-Loamy Upland",3500]
["_102C-Loamy Lowland",4000]
["_102C-Loamy Overflow",3200]
["_102C-Loess Uplands",2400]
["_102C-Subirrigated",5100]
["_106 Clayey Upland",3800]
["_106 Loamy Lowland",4600]
["_106 Loamy Overflow",4000]
["_106 Loamy Upland",4250]
["_106 Shallow Limy",3600]